{"text_format":"1","workbook":"xlsx","n_sheets":21,"sheets":["Intro","Setup","Players","Table","Stunty","GroupFixtures","GroupMatrix","GroupTable","Matrix","Round1","Round2","Round3","Round4","Round5","Round6","Round7","Round8","Round9","NAF","Working","ChangeLog"],"not_rendered":{"charts":0,"images":0,"macros":1,"external_links":0,"defined_names":34,"comments":2,"pivot_tables":0},"unopened":[],"bounds":{"document_bytes":16777216,"sheet_cells":100000,"rows_first":2000,"rows_last":500,"rows_between":2000,"halvings":0,"cell_chars":16384,"cell_head_chars":4096},"cells_cut":0,"cells_raw":0,"read":"whole","date_system":"1900"}

{"sheet":"Intro","index":0,"n_rows":19,"n_cols":2,"rows_kept":19,"cut":false,"hidden":false,"merged":[]}
[]
[null,"Buttons for running a tournament:"]
[]
[]
[]
[]
[]
[]
[]
[]
[]
[]
[]
[]
[]
[]
[]
[]
[null,"Buttons for practising:"]

{"sheet":"Setup","index":1,"n_rows":24,"n_cols":11,"rows_kept":24,"cut":false,"hidden":false,"merged":[]}
["SCORING SETUP",null,null,"Group/Ind Swiss?","Group",null,"Individual Tie Breaks",null,null,"Group Tie Breaks"]
[null,null,null,null,null,null,"Player",null,null,"Group"]
["Points for…",null,null,"Name of First Bonus","Bonus1",null,"Points","Order",null,"Points","Order"]
["Win by at least 2 TD",1,null,"Name of Second Bonus","Bonus2",null,"TD For",null,null,"TD For"]
["Win by 1 TD",1,null,null,null,null,"TD Against",null,null,"TD Against"]
["Draw",0.5,null,null,null,null,"TD Net",2,null,"Net TDs",2]
["Lose by 1 TD",0,null,null,null,null,"Cas For",null,null,"Cas For"]
["Lose by at least 2 TD",0,null,null,null,null,"Cas Against",null,null,"Cas Against"]
[null,null,null,null,null,null,"Cas Net",3,null,"Net Cas",3]
["Bonus points for TD/Cas etc",null,null,"Test Individual Scoring System Here",null,null,{"$f":"Working!AG16","v":"Bonus1"},null,null,{"$f":"\"Group Total \"&Working!AG16","v":"Group Total Bonus1"}]
["Points per TD",0,null,"Your Score (required)",4,null,{"$f":"Working!AG17","v":"Bonus2"},null,null,{"$f":"\"Group Total \"&Working!AG17","v":"Group Total Bonus2"}]
["Max TD Bonus Pts",0,null,"Opponent Score (required)",3,null,"Wins",null,null,"Group Wins"]
["Points per Cas",0,null,"Your Cas (optional)",3,null,"Draws",null,null,"Groups Draws"]
["Max Cas Bonus Pts",0,null,{"$f":"\"Your \"&Working!AG16&\" (optional)\"","v":"Your Bonus1 (optional)"},1,null,"Losses",null,null,"Group Losses"]
[{"$f":"Working!AG16&\" Max Bonus Pts\"","v":"Bonus1 Max Bonus Pts"},0,null,{"$f":"\"Your \"&Working!AG17&\" (optional)\"","v":"Your Bonus2 (optional)"},2,null,"Opp Score",1,null,"Individual Wins"]
[{"$f":"Working!AG17&\" Max Bonus Pts\"","v":"Bonus2 Max Bonus Pts"},0,null,null,null,null,null,null,null,"Individual Draws"]
[null,null,null,"Your Points",{"$f":"fctScore(E11,E12,E13,E14,E15)","v":1},null,null,null,null,"Individual Losses"]
["Group Scoring Options",null,null,null,null,null,null,null,null,"Total Individual Points"]
["Points for a win",1,null,null,null,null,null,null,null,"Opponent Score",1]
["Points for a draw",0.5]
["Points for a loss",0]
["Points for a group win",1]
["Points for a group draw",0.5]
["Points for a group loss",0]

{"sheet":"Players","index":2,"n_rows":160,"n_cols":16,"rows_kept":160,"cut":false,"hidden":false,"merged":[]}
["Num","Display Name","NAF Name","NAF Number (Random)","Race","Group","Stunty",null,null,null,null,null,"Groups",null,"Team Size",8]
[{"$f":"IF(C2=\"\",\"\",MAX(A$1:A1)+1)","v":1},"Niebling ","Niebling ",11499,"Amazons","Denmark",null,null,null,null,null,null,"Belgium"]
[{"$f":"IF(C3=\"\",\"\",MAX(A$1:A2)+1)","v":2},"PurpleGoo ","PurpleGoo ",11777,"Amazons","England",null,null,null,null,null,null,"Denmark"]
[{"$f":"IF(C4=\"\",\"\",MAX(A$1:A3)+1)","v":3},"Mubo ","Mubo ",13409,"Amazons","England",null,null,null,null,null,null,"England"]
[{"$f":"IF(B5=\"\",\"\",MAX(A$1:A4)+1)","v":4},"Dirold ","Dirold ",5900,"Amazons","Italy",null,null,null,null,null,null,"Finland"]
[{"$f":"IF(B6=\"\",\"\",MAX(A$1:A5)+1)","v":5},"The_Ref ","The_Ref ",9441,"Amazons","Norway",null,null,null,null,null,null,"France"]
[{"$f":"IF(C7=\"\",\"\",MAX(A$1:A6)+1)","v":6},"Tripleskull ","Tripleskull ",9524,"Chaos","Denmark",null,null,null,null,null,null,"Germany"]
[{"$f":"IF(C8=\"\",\"\",MAX(A$1:A7)+1)","v":7},"MissSweden ","MissSweden ",11498,"Chaos","Denmark",null,null,null,null,null,null,"Hungary"]
[{"$f":"IF(C9=\"\",\"\",MAX(A$1:A8)+1)","v":8},"Topper ","Topper ",6363,"Chaos","Denmark",null,null,null,null,null,null,"Italy"]
[{"$f":"IF(C10=\"\",\"\",MAX(A$1:A9)+1)","v":9},"Joemanji ","Joemanji ",3312,"Chaos","England",null,null,null,null,null,null,"Norway"]
[{"$f":"IF(B11=\"\",\"\",MAX(A$1:A10)+1)","v":10},"edheim ","edheim ",20760,"Chaos","Finland",null,null,null,null,null,null,"Poland"]
[{"$f":"IF(B12=\"\",\"\",MAX(A$1:A11)+1)","v":11},"FrankPedersen ","FrankPedersen ",20899,"Chaos","Norway",null,null,null,null,null,null,"Scotland"]
[{"$f":"IF(B13=\"\",\"\",MAX(A$1:A12)+1)","v":12},"Obeliz ","Obeliz ",2519,"Chaos","Spain",null,null,null,null,null,null,"Spain"]
[{"$f":"IF(B14=\"\",\"\",MAX(A$1:A13)+1)","v":13},"Northernknight ","Northernknight ",7569,"Chaos","Wales",null,null,null,null,null,null,"Sweden"]
[{"$f":"IF(C15=\"\",\"\",MAX(A$1:A14)+1)","v":14},"Woete ","Woete ",12500,"Chaos Dwarves","Belgium",null,null,null,null,null,null,"Switzerland"]
[{"$f":"IF(B16=\"\",\"\",MAX(A$1:A15)+1)","v":15},"RoterSternHochdahl","RoterSternHochdahl",18704,"Chaos Dwarves","Germany",null,null,null,null,null,null,"Viking"]
[{"$f":"IF(B17=\"\",\"\",MAX(A$1:A16)+1)","v":16},"Jonny_Kanone ","Jonny_Kanone ",9621,"Chaos Dwarves","Germany",null,null,null,null,null,null,"Wales"]
[{"$f":"IF(B18=\"\",\"\",MAX(A$1:A17)+1)","v":17},"Itzla ","Itzla ",9758,"Chaos Dwarves","Hungary"]
[{"$f":"IF(B19=\"\",\"\",MAX(A$1:A18)+1)","v":18},"Farina ","Farina ",3533,"Chaos Dwarves","Italy"]
[{"$f":"IF(B20=\"\",\"\",MAX(A$1:A19)+1)","v":19},"Garrick ","Garrick ",18506,"Chaos Dwarves","Scotland"]
[{"$f":"IF(B21=\"\",\"\",MAX(A$1:A20)+1)","v":20},"Dark Duke ","Dark Duke ",2925,"Chaos Dwarves","Spain"]
[{"$f":"IF(B22=\"\",\"\",MAX(A$1:A21)+1)","v":21},"20Phoenix ","20Phoenix ",19395,"Chaos Dwarves","Wales"]
[{"$f":"IF(C23=\"\",\"\",MAX(A$1:A22)+1)","v":22},"Malodoror ","Malodoror ",20793,"Chaos Pact","Belgium"]
[{"$f":"IF(B24=\"\",\"\",MAX(A$1:A23)+1)","v":23},"Bouzzy ","Bouzzy ",15733,"Chaos Pact","France"]
[{"$f":"IF(B25=\"\",\"\",MAX(A$1:A24)+1)","v":24},"DocMaxx ","DocMaxx ",16347,"Chaos Pact","Germany"]
[{"$f":"IF(B26=\"\",\"\",MAX(A$1:A25)+1)","v":25},"BlackOrc ","BlackOrc ",6233,"Chaos Pact","Hungary"]
[{"$f":"IF(B27=\"\",\"\",MAX(A$1:A26)+1)","v":26},"Kaltenland ","Kaltenland ",11924,"Chaos Pact","Italy"]
[{"$f":"IF(B28=\"\",\"\",MAX(A$1:A27)+1)","v":27},"Shawass ","Shawass ",18416,"Chaos Pact","Poland"]
[{"$f":"IF(B29=\"\",\"\",MAX(A$1:A28)+1)","v":28},"Malasnoticias ","Malasnoticias ",17068,"Chaos Pact","Spain"]
[{"$f":"IF(B30=\"\",\"\",MAX(A$1:A29)+1)","v":29},"Macabeo ","Macabeo ",18608,"Chaos Pact","Switzerland"]
[{"$f":"IF(B31=\"\",\"\",MAX(A$1:A30)+1)","v":30},"Corwin ","Corwin ",17878,"Chaos Pact","Viking"]
[{"$f":"IF(B32=\"\",\"\",MAX(A$1:A31)+1)","v":31},"SFisher91 ","SFisher91 ",16057,"Chaos Pact","Wales"]
[{"$f":"IF(C33=\"\",\"\",MAX(A$1:A32)+1)","v":32},"Phoenix11 ","Phoenix11 ",8402,"Dark Elves","Belgium"]
[{"$f":"IF(B34=\"\",\"\",MAX(A$1:A33)+1)","v":33},"Wolio ","Wolio ",20061,"Dark Elves","Hungary"]
[{"$f":"IF(B35=\"\",\"\",MAX(A$1:A34)+1)","v":34},"Reszka ","Reszka ",21573,"Dark Elves","Poland"]
[{"$f":"IF(B36=\"\",\"\",MAX(A$1:A35)+1)","v":35},"Slimaq ","Slimaq ",21957,"Dark Elves","Poland"]
[{"$f":"IF(B37=\"\",\"\",MAX(A$1:A36)+1)","v":36},"Skuld ","Skuld ",20481,"Dark Elves","Sweden"]
[{"$f":"IF(B38=\"\",\"\",MAX(A$1:A37)+1)","v":37},"Balder ","Balder ",17725,"Dark Elves","Viking"]
[{"$f":"IF(B39=\"\",\"\",MAX(A$1:A38)+1)","v":38},"Dionysian ","Dionysian ",19480,"Dark Elves","Wales"]
[{"$f":"IF(B40=\"\",\"\",MAX(A$1:A39)+1)","v":39},"Harza ","Harza ",20060,"Dwarves","Finland"]
[{"$f":"IF(B41=\"\",\"\",MAX(A$1:A40)+1)","v":40},"Idroj ","Idroj ",20930,"Dwarves","Spain"]
[{"$f":"IF(B42=\"\",\"\",MAX(A$1:A41)+1)","v":41},"Faccko ","Faccko ",17893,"Dwarves","Viking"]
[{"$f":"IF(B43=\"\",\"\",MAX(A$1:A42)+1)","v":42},"MacWitt ","MacWitt ",19932,"Elves","Finland"]
[{"$f":"IF(B44=\"\",\"\",MAX(A$1:A43)+1)","v":43},"Pellevin ","Pellevin ",19271,"Elves","Sweden"]
[{"$f":"IF(C45=\"\",\"\",MAX(A$1:A44)+1)","v":44},"Araznaroth ","Araznaroth ",13199,"Goblins","Belgium",1]
[{"$f":"IF(C46=\"\",\"\",MAX(A$1:A45)+1)","v":45},"JimJimany ","JimJimany ",12403,"Goblins","England",1]
[{"$f":"IF(B47=\"\",\"\",MAX(A$1:A46)+1)","v":46},"zulu ","zulu ",16829,"Goblins","Norway",1]
[{"$f":"IF(B48=\"\",\"\",MAX(A$1:A47)+1)","v":47},"mynock ","mynock ",20775,"Goblins","Norway",1]
[{"$f":"IF(B49=\"\",\"\",MAX(A$1:A48)+1)","v":48},"Strider84 ","Strider84 ",14113,"Goblins","Switzerland",1]
[{"$f":"IF(B50=\"\",\"\",MAX(A$1:A49)+1)","v":49},"Phifoe ","Phifoe ",16959,"Goblins","Switzerland",1]
[{"$f":"IF(B51=\"\",\"\",MAX(A$1:A50)+1)","v":50},"JohnnyD ","JohnnyD ",18171,"Halflings","Sweden",1]
[{"$f":"IF(C52=\"\",\"\",MAX(A$1:A51)+1)","v":51},"Dekra1979 ","Dekra1979 ",16259,"High Elves","Belgium"]
[{"$f":"IF(B53=\"\",\"\",MAX(A$1:A52)+1)","v":52},"straume ","straume ",20685,"High Elves","Norway"]
[{"$f":"IF(B54=\"\",\"\",MAX(A$1:A53)+1)","v":53},"Barry ","Barry ",3290,"High Elves","Spain"]
[{"$f":"IF(B55=\"\",\"\",MAX(A$1:A54)+1)","v":54},"Tactel ","Tactel ",20218,"High Elves","Spain"]
[{"$f":"IF(B56=\"\",\"\",MAX(A$1:A55)+1)","v":55},"Pidpad ","Pidpad ",20957,"High Elves","Sweden"]
[{"$f":"IF(B57=\"\",\"\",MAX(A$1:A56)+1)","v":56},"Elrik ","Elrik ",19344,"High Elves","Switzerland"]
[{"$f":"IF(B58=\"\",\"\",MAX(A$1:A57)+1)","v":57},"Simon_ACP ","Simon_ACP ",17603,"Humans","France"]
[{"$f":"IF(B59=\"\",\"\",MAX(A$1:A58)+1)","v":58},"sann0638 ","sann0638 ",8866,"Humans","Scotland"]
[{"$f":"IF(B60=\"\",\"\",MAX(A$1:A59)+1)","v":59},"Goss ","Goss ",18266,"Humans","Switzerland"]
[{"$f":"IF(B61=\"\",\"\",MAX(A$1:A60)+1)","v":60},"Muadib ","Muadib ",2800,"Khemri","Germany"]
[{"$f":"IF(B62=\"\",\"\",MAX(A$1:A61)+1)","v":61},"swifty ","swifty ",20309,"Khemri","Hungary"]
[{"$f":"IF(B63=\"\",\"\",MAX(A$1:A62)+1)","v":62},"Matte8 ","Matte8 ",13785,"Khemri","Italy"]
[{"$f":"IF(B64=\"\",\"\",MAX(A$1:A63)+1)","v":63},"Joanet ","Joanet ",7690,"Khemri","Spain"]
[{"$f":"IF(C65=\"\",\"\",MAX(A$1:A64)+1)","v":64},"SpecialOne ","SpecialOne ",16742,"Lizardmen","Denmark"]
[{"$f":"IF(B66=\"\",\"\",MAX(A$1:A65)+1)","v":65},"Prince ","Prince ",341,"Lizardmen","Germany"]
[{"$f":"IF(B67=\"\",\"\",MAX(A$1:A66)+1)","v":66},"GreatWhiteHope ","GreatWhiteHope ",20881,"Lizardmen","Norway"]
[{"$f":"IF(B68=\"\",\"\",MAX(A$1:A67)+1)","v":67},"Bernuz ","Bernuz ",19542,"Lizardmen","Viking"]
[{"$f":"IF(B69=\"\",\"\",MAX(A$1:A68)+1)","v":68},"MadeofWelsh ","MadeofWelsh ",12184,"Lizardmen","Wales"]
[{"$f":"IF(C70=\"\",\"\",MAX(A$1:A69)+1)","v":69},"Tank ","Tank ",11501,"Necromantic","Denmark"]
[{"$f":"IF(B71=\"\",\"\",MAX(A$1:A70)+1)","v":70},"BeerBeer ","BeerBeer ",18245,"Necromantic","Finland"]
[{"$f":"IF(B72=\"\",\"\",MAX(A$1:A71)+1)","v":71},"ratogre ","ratogre ",22007,"Necromantic","Finland"]
[{"$f":"IF(B73=\"\",\"\",MAX(A$1:A72)+1)","v":72},"BudWiser ","BudWiser ",12987,"Necromantic","France"]
[{"$f":"IF(B74=\"\",\"\",MAX(A$1:A73)+1)","v":73},"Gros Nain ","Gros Nain ",14524,"Norse","France"]
[{"$f":"IF(B75=\"\",\"\",MAX(A$1:A74)+1)","v":74},"Warrior1980 ","Warrior1980 ",22376,"Norse","Poland"]
[{"$f":"IF(B76=\"\",\"\",MAX(A$1:A75)+1)","v":75},"Juniooor7 ","Juniooor7 ",22455,"Norse","Poland"]
[{"$f":"IF(B77=\"\",\"\",MAX(A$1:A76)+1)","v":76},"Madmatt13 ","Madmatt13 ",19790,"Norse","Switzerland"]
[{"$f":"IF(B78=\"\",\"\",MAX(A$1:A77)+1)","v":77},"jopotzuki ","jopotzuki ",20783,"Nurgle's Rotters","Finland"]
[{"$f":"IF(B79=\"\",\"\",MAX(A$1:A78)+1)","v":78},"J-Ho","J-Ho",19106,"Nurgle's Rotters","Finland"]
[{"$f":"IF(B80=\"\",\"\",MAX(A$1:A79)+1)","v":79},"Verrinho ","Verrinho ",16930,"Nurgle's Rotters","Italy"]
[{"$f":"IF(B81=\"\",\"\",MAX(A$1:A80)+1)","v":80},"Valen ","Valen ",1538,"Nurgle's Rotters","Scotland"]
[{"$f":"IF(C82=\"\",\"\",MAX(A$1:A81)+1)","v":81},"Lycos ","Lycos ",2870,"Ogres","England",1]
[{"$f":"IF(B83=\"\",\"\",MAX(A$1:A82)+1)","v":82},"Domingo ","Domingo ",20280,"Ogres","Poland",1]
[{"$f":"IF(B84=\"\",\"\",MAX(A$1:A83)+1)","v":83},"Mufflo ","Mufflo ",15048,"Ogres","Viking",1]
[{"$f":"IF(B85=\"\",\"\",MAX(A$1:A84)+1)","v":84},"andydavo ","andydavo ",19726,"Ogres","Wales",1]
[{"$f":"IF(C86=\"\",\"\",MAX(A$1:A85)+1)","v":85},"Geggster ","Geggster ",70,"Orc","England"]
[{"$f":"IF(B87=\"\",\"\",MAX(A$1:A86)+1)","v":86},"Arioso ","Arioso ",18738,"Orc","Germany"]
[{"$f":"IF(B88=\"\",\"\",MAX(A$1:A87)+1)","v":87},"Gaunab ","Gaunab ",2150,"Orc","Germany"]
[{"$f":"IF(B89=\"\",\"\",MAX(A$1:A88)+1)","v":88},"Alex05 ","Alex05 ",22352,"Orc","Hungary"]
[{"$f":"IF(B90=\"\",\"\",MAX(A$1:A89)+1)","v":89},"Beppe ","Beppe ",3564,"Orc","Italy"]
[{"$f":"IF(B91=\"\",\"\",MAX(A$1:A90)+1)","v":90},"Melisqus ","Melisqus ",16238,"Orc","Sweden"]
[{"$f":"IF(B92=\"\",\"\",MAX(A$1:A91)+1)","v":91},"Dragons ","Dragons ",19003,"Orc","Sweden"]
[{"$f":"IF(C93=\"\",\"\",MAX(A$1:A92)+1)","v":92},"Jaqra ","Jaqra ",19750,"Skaven","Denmark"]
[{"$f":"IF(B94=\"\",\"\",MAX(A$1:A93)+1)","v":93},"Harti ","Harti ",13583,"Skaven","France"]
[{"$f":"IF(B95=\"\",\"\",MAX(A$1:A94)+1)","v":94},"Favi ","Favi ",20062,"Skaven","Hungary"]
[{"$f":"IF(B96=\"\",\"\",MAX(A$1:A95)+1)","v":95},"Spartako ","Spartako ",13417,"Skaven","Italy"]
[{"$f":"IF(B97=\"\",\"\",MAX(A$1:A96)+1)","v":96},"DonShula ","DonShula ",14445,"Skaven","Scotland"]
[{"$f":"IF(B98=\"\",\"\",MAX(A$1:A97)+1)","v":97},"HumptyTrump ","HumptyTrump ",20360,"Skaven","Scotland"]
[{"$f":"IF(B99=\"\",\"\",MAX(A$1:A98)+1)","v":98},"Purrelito ","Purrelito ",15323,"Skaven","Viking"]
[{"$f":"IF(B100=\"\",\"\",MAX(A$1:A99)+1)","v":99},"nonumber ","nonumber ",8923,"Skaven","Wales"]
[{"$f":"IF(C101=\"\",\"\",MAX(A$1:A100)+1)","v":100},"Driesfield ","Driesfield ",6183,"Slann","Belgium"]
[{"$f":"IF(C102=\"\",\"\",MAX(A$1:A101)+1)","v":101},"kfoged ","kfoged ",10691,"Slann","Denmark"]
[{"$f":"IF(C103=\"\",\"\",MAX(A$1:A102)+1)","v":102},"Podfrey ","Podfrey ",149,"Slann","England"]
[{"$f":"IF(B104=\"\",\"\",MAX(A$1:A103)+1)","v":103},"valkohukka ","valkohukka ",18772,"Slann","Finland"]
[{"$f":"IF(B105=\"\",\"\",MAX(A$1:A104)+1)","v":104},"Skoberget ","Skoberget ",19448,"Slann","Sweden"]
[{"$f":"IF(B106=\"\",\"\",MAX(A$1:A105)+1)","v":105},"brocCooli ","brocCooli ",12552,"Slann","Viking"]
[{"$f":"IF(B107=\"\",\"\",MAX(A$1:A106)+1)","v":106},"Ploppy_McPloppy ","Ploppy_McPloppy ",16417,"Slann","Wales"]
[{"$f":"IF(B108=\"\",\"\",MAX(A$1:A107)+1)","v":107},"BiBi ","BiBi ",11491,"Undead","France"]
[{"$f":"IF(B109=\"\",\"\",MAX(A$1:A108)+1)","v":108},"Matt le fou ","Matt le fou ",13561,"Undead","France"]
[{"$f":"IF(B110=\"\",\"\",MAX(A$1:A109)+1)","v":109},"Candlejack ","Candlejack ",5844,"Undead","Germany"]
[{"$f":"IF(B111=\"\",\"\",MAX(A$1:A110)+1)","v":110},"Purdindas ","Purdindas ",10831,"Undead","Scotland"]
[{"$f":"IF(C112=\"\",\"\",MAX(A$1:A111)+1)","v":111},"JJ ","JJ ",10488,"Underworld","Belgium"]
[{"$f":"IF(C113=\"\",\"\",MAX(A$1:A112)+1)","v":112},"Wilzif ","Wilzif ",8901,"Underworld","England"]
[{"$f":"IF(B114=\"\",\"\",MAX(A$1:A113)+1)","v":113},"noraal ","noraal ",21798,"Underworld","Hungary"]
[{"$f":"IF(B115=\"\",\"\",MAX(A$1:A114)+1)","v":114},"cz ","cz ",21604,"Underworld","Hungary"]
[{"$f":"IF(B116=\"\",\"\",MAX(A$1:A115)+1)","v":115},"Loki ","Loki ",371,"Underworld","Scotland"]
[{"$f":"IF(C117=\"\",\"\",MAX(A$1:A116)+1)","v":116},"gninocker ","gninocker ",17832,"Vampires","Belgium"]
[{"$f":"IF(B118=\"\",\"\",MAX(A$1:A117)+1)","v":117},"Mewash ","Mewash ",21627,"Vampires","Poland"]
[{"$f":"IF(B119=\"\",\"\",MAX(A$1:A118)+1)","v":118},"Leonek ","Leonek ",22375,"Vampires","Poland"]
[{"$f":"IF(B120=\"\",\"\",MAX(A$1:A119)+1)","v":119},"JamesEs ","JamesEs ",17875,"Vampires","Scotland"]
[{"$f":"IF(B121=\"\",\"\",MAX(A$1:A120)+1)","v":120},"Duke_Luthor_Von_Hawkfire ","Duke_Luthor_Von_Hawkfire ",11793,"Vampires","Spain"]
[{"$f":"IF(B122=\"\",\"\",MAX(A$1:A121)+1)","v":121},"Jokaero ","Jokaero ",2785,"Vampires","Switzerland"]
[{"$f":"IF(B123=\"\",\"\",MAX(A$1:A122)+1)","v":122},"Duckwing ","Duckwing ",16278,"Vampires","Viking"]
[{"$f":"IF(B124=\"\",\"\",MAX(A$1:A123)+1)","v":123},"Justicium ","Justicium ",12319,"Wood Elves","France"]
[{"$f":"IF(B125=\"\",\"\",MAX(A$1:A124)+1)","v":124},"Liam ","Liam ",5906,"Wood Elves","Italy"]
[{"$f":"IF(B126=\"\",\"\",MAX(A$1:A125)+1)","v":125},"Endalos ","Endalos ",17242,"Wood Elves","Norway"]
[{"$f":"IF(B127=\"\",\"\",MAX(A$1:A126)+1)","v":126},"bothun ","bothun ",20953,"Wood Elves","Norway"]
[{"$f":"IF(B128=\"\",\"\",MAX(A$1:A127)+1)","v":127},"Inforthepain ","Inforthepain ",19483,"Wood Elves","Sweden"]
[{"$f":"IF(B129=\"\",\"\",MAX(A$1:A128)+1)","v":128},"sigu70 ","sigu70 ",17003,"Wood Elves","Switzerland"]
[{"$f":"IF(B130=\"\",\"\",MAX(A$1:A129)+1)","v":""}]
[{"$f":"IF(B131=\"\",\"\",MAX(A$1:A130)+1)","v":""}]
[{"$f":"IF(B132=\"\",\"\",MAX(A$1:A131)+1)","v":""}]
[{"$f":"IF(B133=\"\",\"\",MAX(A$1:A132)+1)","v":""}]
[{"$f":"IF(B134=\"\",\"\",MAX(A$1:A133)+1)","v":""}]
[{"$f":"IF(B135=\"\",\"\",MAX(A$1:A134)+1)","v":""}]
[{"$f":"IF(B136=\"\",\"\",MAX(A$1:A135)+1)","v":""}]
[{"$f":"IF(B137=\"\",\"\",MAX(A$1:A136)+1)","v":""}]
[{"$f":"IF(B138=\"\",\"\",MAX(A$1:A137)+1)","v":""}]
[{"$f":"IF(B139=\"\",\"\",MAX(A$1:A138)+1)","v":""}]
[{"$f":"IF(B140=\"\",\"\",MAX(A$1:A139)+1)","v":""}]
[{"$f":"IF(B141=\"\",\"\",MAX(A$1:A140)+1)","v":""}]
[{"$f":"IF(B142=\"\",\"\",MAX(A$1:A141)+1)","v":""}]
[{"$f":"IF(B143=\"\",\"\",MAX(A$1:A142)+1)","v":""}]
[{"$f":"IF(B144=\"\",\"\",MAX(A$1:A143)+1)","v":""}]
[{"$f":"IF(B145=\"\",\"\",MAX(A$1:A144)+1)","v":""}]
[{"$f":"IF(B146=\"\",\"\",MAX(A$1:A145)+1)","v":""}]
[{"$f":"IF(B147=\"\",\"\",MAX(A$1:A146)+1)","v":""}]
[{"$f":"IF(B148=\"\",\"\",MAX(A$1:A147)+1)","v":""}]
[{"$f":"IF(B149=\"\",\"\",MAX(A$1:A148)+1)","v":""}]
[{"$f":"IF(B150=\"\",\"\",MAX(A$1:A149)+1)","v":""}]
[{"$f":"IF(B151=\"\",\"\",MAX(A$1:A150)+1)","v":""}]
[{"$f":"IF(B152=\"\",\"\",MAX(A$1:A151)+1)","v":""}]
[{"$f":"IF(B153=\"\",\"\",MAX(A$1:A152)+1)","v":""}]
[{"$f":"IF(B154=\"\",\"\",MAX(A$1:A153)+1)","v":""}]
[{"$f":"IF(B155=\"\",\"\",MAX(A$1:A154)+1)","v":""}]
[{"$f":"IF(B156=\"\",\"\",MAX(A$1:A155)+1)","v":""}]
[{"$f":"IF(B157=\"\",\"\",MAX(A$1:A156)+1)","v":""}]
[{"$f":"IF(B158=\"\",\"\",MAX(A$1:A157)+1)","v":""}]
[{"$f":"IF(B159=\"\",\"\",MAX(A$1:A158)+1)","v":""}]
[{"$f":"IF(B160=\"\",\"\",MAX(A$1:A159)+1)","v":""}]

{"sheet":"Table","index":3,"n_rows":129,"n_cols":16,"rows_kept":129,"cut":false,"hidden":false,"merged":[]}
["Player","Points","TD For","TD Against","TD Net","Cas For","Cas Against","Cas Net","Bonus1","Bonus2","Wins","Draws","Losses","Opp Score",null,"Group"]
["Verrinho ",6.5,14,5,9,14,12,2,15,13,5,3,null,38,null,"Italy"]
["Domingo ",6.5,12,5,7,11,14,-3,14,10,6,1,1,37,null,"Poland"]
["Topper ",6.5,14,8,6,8,11,-3,13,11,5,3,null,37,null,"Denmark"]
["Garrick ",6.5,16,8,8,11,15,-4,13,20,6,1,1,33.5,null,"Scotland"]
["DonShula ",6,18,10,8,12,12,0,7,12,5,2,1,39.5,null,"Scotland"]
["BiBi ",6,15,9,6,15,12,3,6,10,5,2,1,38.5,null,"France"]
["Inforthepain ",6,15,9,6,12,13,-1,9,8,4,4,null,38.5,null,"Sweden"]
["sigu70 ",6,12,8,4,10,8,2,14,17,5,2,1,36.5,null,"Switzerland"]
["jopotzuki ",6,18,9,9,11,19,-8,7,8,5,2,1,36,null,"Finland"]
["Alex05 ",6,15,9,6,14,11,3,11,16,5,2,1,29.5,null,"Hungary"]
["Goss ",5.5,16,11,5,15,10,5,11,15,5,1,2,39,null,"Switzerland"]
["Faccko ",5.5,16,12,4,13,8,5,14,10,3,5,null,37.5,null,"Viking"]
["mynock ",5.5,15,10,5,8,17,-9,16,16,4,3,1,36,null,"Norway"]
["Itzla ",5.5,13,7,6,10,14,-4,14,12,4,3,1,35,null,"Hungary"]
["Skuld ",5.5,15,11,4,11,15,-4,14,13,4,3,1,35,null,"Sweden"]
["SpecialOne ",5.5,16,10,6,10,9,1,14,12,5,1,2,34.5,null,"Denmark"]
["Tactel ",5.5,17,9,8,9,13,-4,12,12,5,1,2,33,null,"Spain"]
["sann0638 ",5.5,15,9,6,12,12,0,10,11,3,5,null,31.5,null,"Scotland"]
["Elrik ",5.5,16,12,4,10,13,-3,16,12,5,1,2,30.5,null,"Switzerland"]
["Liam ",5.5,14,11,3,11,15,-4,12,13,4,3,1,26,null,"Italy"]
["Dragons ",5,13,10,3,13,14,-1,12,7,5,null,3,37.5,null,"Sweden"]
["Malodoror ",5,13,11,2,15,14,1,12,10,4,2,2,37.5,null,"Belgium"]
["BlackOrc ",5,16,15,1,16,7,9,14,16,3,4,1,37,null,"Hungary"]
["Gros Nain ",5,11,8,3,11,10,1,10,14,5,null,3,36.5,null,"France"]
["Phifoe ",5,13,9,4,10,14,-4,10,16,4,2,2,35.5,null,"Switzerland"]
["20Phoenix ",5,15,11,4,12,9,3,12,12,4,2,2,32.5,null,"Wales"]
["Joemanji ",5,13,10,3,12,9,3,12,13,4,2,2,32,null,"England"]
["Corwin ",5,11,8,3,11,9,2,10,8,3,4,1,32,null,"Viking"]
["noraal ",5,11,8,3,10,11,-1,8,15,4,2,2,31,null,"Hungary"]
["Pellevin ",5,12,13,-1,15,11,4,10,15,5,null,3,29,null,"Sweden"]
["GreatWhiteHope ",4.5,15,12,3,10,5,5,10,11,3,3,2,41,null,"Norway"]
["Arioso ",4.5,13,10,3,12,17,-5,9,15,3,3,2,41,null,"Germany"]
["Mufflo ",4.5,13,14,-1,9,10,-1,14,12,4,1,3,41,null,"Viking"]
["Beppe ",4.5,15,13,2,11,13,-2,8,10,4,1,3,40.5,null,"Italy"]
["Bouzzy ",4.5,13,12,1,9,6,3,12,13,1,7,null,38.5,null,"France"]
["edheim ",4.5,13,14,-1,12,8,4,12,8,4,1,3,38.5,null,"Finland"]
["ratogre ",4.5,13,12,1,9,9,0,6,16,4,1,3,38,null,"Finland"]
["MadeofWelsh ",4.5,10,7,3,16,15,1,10,10,2,5,1,37.5,null,"Wales"]
["Niebling ",4.5,16,16,0,14,10,4,12,7,3,3,2,35.5,null,"Denmark"]
["straume ",4.5,11,10,1,11,10,1,16,16,3,3,2,34.5,null,"Norway"]
["Woete ",4.5,11,11,0,18,14,4,13,13,4,1,3,34.5,null,"Belgium"]
["Mubo ",4.5,14,11,3,13,13,0,12,11,3,3,2,34,null,"England"]
["DocMaxx ",4.5,13,11,2,15,11,4,13,12,4,1,3,32.5,null,"Germany"]
["valkohukka ",4.5,14,12,2,14,10,4,10,13,4,1,3,32,null,"Finland"]
["Kaltenland ",4.5,9,8,1,14,16,-2,12,14,3,3,2,31.5,null,"Italy"]
["Shawass ",4.5,14,12,2,10,11,-1,12,15,4,1,3,31,null,"Poland"]
["MacWitt ",4.5,12,13,-1,11,12,-1,9,11,3,3,2,30,null,"Finland"]
["Phoenix11 ",4.5,15,13,2,16,8,8,9,16,3,3,2,29,null,"Belgium"]
["zulu ",4.5,12,11,1,15,17,-2,12,11,2,5,1,29,null,"Norway"]
["Candlejack ",4.5,12,12,0,16,12,4,13,14,3,3,2,29,null,"Germany"]
["Justicium ",4.5,13,13,0,12,17,-5,14,15,3,3,2,28.5,null,"France"]
["Simon_ACP ",4.5,12,11,1,11,13,-2,12,11,3,3,2,26.5,null,"France"]
["Idroj ",4,12,11,1,16,16,0,9,13,3,2,3,36.5,null,"Spain"]
["Leonek ",4,11,11,0,14,13,1,15,11,2,4,2,36.5,null,"Poland"]
["Reszka ",4,8,7,1,9,15,-6,9,12,1,6,1,36,null,"Poland"]
["kfoged ",4,8,9,-1,8,9,-1,14,9,2,4,2,35.5,null,"Denmark"]
["Dark Duke ",4,14,16,-2,10,14,-4,15,9,3,2,3,34.5,null,"Spain"]
["Spartako ",4,11,13,-2,9,14,-5,13,11,4,null,4,34.5,null,"Italy"]
["BeerBeer ",4,12,15,-3,17,9,8,18,7,3,2,3,34,null,"Finland"]
["Matte8 ",4,11,11,0,14,11,3,12,15,2,4,2,33,null,"Italy"]
["The_Ref ",4,12,12,0,12,11,1,15,12,2,4,2,33,null,"Norway"]
["Melisqus ",4,14,14,0,9,16,-7,13,11,3,2,3,33,null,"Sweden"]
["Strider84 ",4,12,13,-1,7,12,-5,8,13,3,2,3,33,null,"Switzerland"]
["Macabeo ",4,10,9,1,13,10,3,15,13,3,2,3,32.5,null,"Switzerland"]
["Mewash ",4,12,12,0,10,11,-1,13,10,3,2,3,32.5,null,"Poland"]
["Duckwing ",4,16,15,1,13,16,-3,14,10,3,2,3,32,null,"Viking"]
["Harti ",4,10,10,0,9,9,0,9,18,3,2,3,31.5,null,"France"]
["gninocker ",4,8,11,-3,14,11,3,14,12,3,2,3,31.5,null,"Belgium"]
["Ploppy_McPloppy ",4,13,14,-1,9,11,-2,17,17,3,2,3,31,null,"Wales"]
["Bernuz ",4,11,9,2,12,13,-1,16,11,2,4,2,30.5,null,"Viking"]
["Endalos ",4,7,8,-1,14,10,4,9,14,2,4,2,30.5,null,"Norway"]
["Dionysian ",4,13,14,-1,9,11,-2,16,9,3,2,3,30.5,null,"Wales"]
["Jaqra ",4,12,11,1,9,11,-2,10,13,3,2,3,29,null,"Denmark"]
["Loki ",4,11,11,0,10,9,1,12,16,2,4,2,28.5,null,"Scotland"]
["Araznaroth ",4,15,16,-1,17,11,6,12,12,2,4,2,25,null,"Belgium"]
["bothun ",4,9,11,-2,18,10,8,10,13,3,2,3,25,null,"Norway"]
["Lycos ",3.5,12,13,-1,15,14,1,11,12,2,3,3,36,null,"England"]
["Barry ",3.5,14,15,-1,14,11,3,11,15,3,1,4,35.5,null,"Spain"]
["Muadib ",3.5,12,13,-1,13,15,-2,12,8,2,3,3,35.5,null,"Germany"]
["Matt le fou ",3.5,15,17,-2,13,13,0,10,15,2,3,3,35.5,null,"France"]
["Madmatt13 ",3.5,13,12,1,10,19,-9,12,14,3,1,4,34,null,"Switzerland"]
["brocCooli ",3.5,13,12,1,17,14,3,11,11,3,1,4,33.5,null,"Viking"]
["MissSweden ",3.5,14,15,-1,11,12,-1,14,11,3,1,4,32,null,"Denmark"]
["Podfrey ",3.5,13,14,-1,9,10,-1,11,17,3,1,4,31.5,null,"England"]
["Gaunab ",3.5,15,17,-2,10,9,1,8,18,3,1,4,30.5,null,"Germany"]
["Geggster ",3.5,9,10,-1,8,13,-5,13,17,null,7,1,30,null,"England"]
["Obeliz ",3.5,7,9,-2,5,8,-3,11,15,null,7,1,29.5,null,"Spain"]
["Dirold ",3.5,9,11,-2,11,14,-3,11,10,2,3,3,29,null,"Italy"]
["SFisher91 ",3.5,14,15,-1,14,13,1,11,14,3,1,4,28.5,null,"Wales"]
["Prince ",3.5,12,13,-1,11,13,-2,10,17,2,3,3,28.5,null,"Germany"]
["nonumber ",3.5,14,15,-1,13,13,0,8,8,2,3,3,27,null,"Wales"]
["Wilzif ",3.5,10,10,0,12,17,-5,12,12,3,1,4,26,null,"England"]
["Balder ",3.5,12,14,-2,15,15,0,12,11,3,1,4,26,null,"Viking"]
["Jokaero ",3.5,10,12,-2,8,8,0,13,13,2,3,3,26,null,"Switzerland"]
["Dekra1979 ",3,10,13,-3,13,14,-1,15,9,2,2,4,35,null,"Belgium"]
["Warrior1980 ",3,13,16,-3,12,7,5,10,12,1,4,3,34.5,null,"Poland"]
["Malasnoticias ",3,13,15,-2,14,12,2,13,10,2,2,4,32,null,"Spain"]
["PurpleGoo ",3,14,15,-1,10,13,-3,11,12,1,4,3,31.5,null,"England"]
["andydavo ",3,6,8,-2,12,13,-1,12,13,1,4,3,31.5,null,"Wales"]
["FrankPedersen ",3,12,15,-3,15,11,4,17,13,2,2,4,31.5,null,"Norway"]
["Harza ",3,9,11,-2,7,14,-7,11,7,3,null,5,31,null,"Finland"]
["Favi ",3,11,14,-3,13,13,0,13,9,null,6,2,30.5,null,"Hungary"]
["swifty ",3,10,13,-3,15,10,5,11,9,2,2,4,28.5,null,"Hungary"]
["JJ ",3,17,19,-2,13,18,-5,10,11,2,2,4,28,null,"Belgium"]
["Slimaq ",3,13,16,-3,15,10,5,12,14,1,4,3,27.5,null,"Poland"]
["Purrelito ",3,9,11,-2,12,12,0,10,10,1,4,3,26,null,"Viking"]
["Joanet ",3,13,18,-5,10,15,-5,18,12,1,4,3,26,null,"Spain"]
["RoterSternHochdahl",3,10,14,-4,13,10,3,10,13,2,2,4,25,null,"Germany"]
["Tripleskull ",3,7,14,-7,6,11,-5,10,11,2,2,4,25,null,"Denmark"]
["J-Ho",3,10,13,-3,14,6,8,13,10,null,6,2,24,null,"Finland"]
["JohnnyD ",3,11,14,-3,12,14,-2,10,12,2,2,4,22.5,null,"Sweden"]
["cz ",2.5,6,10,-4,10,12,-2,15,12,1,3,4,36,null,"Hungary"]
["Tank ",2.5,7,11,-4,14,17,-3,13,10,1,3,4,34,null,"Denmark"]
["Purdindas ",2.5,10,13,-3,13,11,2,16,9,1,3,4,32.5,null,"Scotland"]
["Jonny_Kanone ",2.5,11,15,-4,12,12,0,13,13,2,1,5,31,null,"Germany"]
["HumptyTrump ",2.5,11,15,-4,11,9,2,12,12,2,1,5,30,null,"Scotland"]
["Juniooor7 ",2.5,10,13,-3,18,11,7,12,13,2,1,5,28,null,"Poland"]
["JimJimany ",2.5,12,18,-6,12,13,-1,11,14,2,1,5,27.5,null,"England"]
["Wolio ",2.5,9,13,-4,15,11,4,13,13,2,1,5,27,null,"Hungary"]
["Farina ",2.5,10,13,-3,10,11,-1,10,12,1,3,4,24.5,null,"Italy"]
["Skoberget ",2,10,14,-4,13,8,5,11,13,null,4,4,26.5,null,"Sweden"]
["BudWiser ",2,7,12,-5,9,14,-5,11,12,1,2,5,26,null,"France"]
["Valen ",2,14,18,-4,13,10,3,14,11,1,2,5,24.5,null,"Scotland"]
["Driesfield ",2,10,18,-8,11,15,-4,11,14,1,2,5,21,null,"Belgium"]
["Pidpad ",1.5,12,19,-7,14,15,-1,12,11,null,3,5,35.5,null,"Sweden"]
["JamesEs ",1.5,6,15,-9,15,15,0,11,8,1,1,6,30.5,null,"Scotland"]
["Northernknight ",1.5,8,17,-9,14,15,-1,8,15,null,3,5,29,null,"Wales"]
["Duke_Luthor_Von_Hawkfire ",1,7,15,-8,13,10,3,14,9,null,2,6,22.5,null,"Spain"]

{"sheet":"Stunty","index":4,"n_rows":12,"n_cols":16,"rows_kept":12,"cut":false,"hidden":false,"merged":[]}
["Player","Points","TD For","TD Against","TD Net","Cas For","Cas Against","Cas Net","Bonus1","Bonus2","Wins","Draws","Losses","Opp Score","Race","Group"]
["Domingo ",6.5,12,5,7,11,14,-3,14,10,6,1,1,37,"Ogres","Poland"]
["mynock ",5.5,15,10,5,8,17,-9,16,16,4,3,1,36,"Goblins","Norway"]
["Phifoe ",5,13,9,4,10,14,-4,10,16,4,2,2,35.5,"Goblins","Switzerland"]
["Mufflo ",4.5,13,14,-1,9,10,-1,14,12,4,1,3,41,"Ogres","Viking"]
["zulu ",4.5,12,11,1,15,17,-2,12,11,2,5,1,29,"Goblins","Norway"]
["Strider84 ",4,12,13,-1,7,12,-5,8,13,3,2,3,33,"Goblins","Switzerland"]
["Araznaroth ",4,15,16,-1,17,11,6,12,12,2,4,2,25,"Goblins","Belgium"]
["Lycos ",3.5,12,13,-1,15,14,1,11,12,2,3,3,36,"Ogres","England"]
["andydavo ",3,6,8,-2,12,13,-1,12,13,1,4,3,31.5,"Ogres","Wales"]
["JohnnyD ",3,11,14,-3,12,14,-2,10,12,2,2,4,22.5,"Halflings","Sweden"]
["JimJimany ",2.5,12,18,-6,12,13,-1,11,14,2,1,5,27.5,"Goblins","England"]

{"sheet":"GroupFixtures","index":5,"n_rows":17,"n_cols":14,"rows_kept":17,"cut":false,"hidden":false,"merged":[]}
["Round: 8",null,"Home","Away",null,null,null,null,null,null,null,null,"Points Before Games"]
["Swaps: 15",null,"Switzerland","France",null,null,null,null,null,null,null,null,"Switzerland",38]
[null,null,"Poland","Denmark",null,null,null,null,null,null,null,null,"Viking",36.5]
[null,null,"Belgium","Sweden",null,null,null,null,null,null,null,null,"Italy",36]
[null,null,"Finland","Hungary",null,null,null,null,null,null,null,null,"France",35]
[null,null,"England","Norway",null,null,null,null,null,null,null,null,"Norway",34]
[null,null,"Wales","Viking",null,null,null,null,null,null,null,null,"Finland",33]
[null,null,"Germany","Italy",null,null,null,null,null,null,null,null,"Poland",33]
[null,null,"Spain","Scotland",null,null,null,null,null,null,null,null,"Hungary",32.5]
[null,null,null,null,null,null,null,null,null,null,null,null,"Sweden",31.5]
[null,null,null,null,null,null,null,null,null,null,null,null,"Denmark",31]
[null,null,null,null,null,null,null,null,null,null,null,null,"Scotland",29.5]
[null,null,null,null,null,null,null,null,null,null,null,null,"England",29]
[null,null,null,null,null,null,null,null,null,null,null,null,"Belgium",29]
[null,null,null,null,null,null,null,null,null,null,null,null,"Germany",27]
[null,null,null,null,null,null,null,null,null,null,null,null,"Spain",25.5]
[null,null,null,null,null,null,null,null,null,null,null,null,"Wales",23.5]

{"sheet":"GroupMatrix","index":6,"n_rows":17,"n_cols":17,"rows_kept":17,"cut":false,"hidden":false,"merged":[]}
[null,"Belgium","Denmark","England","Finland","France","Germany","Hungary","Italy","Norway","Poland","Scotland","Spain","Sweden","Switzerland","Viking","Wales"]
["Belgium",null,null,"Rd 2 - 5.5",null,null,"Rd 1 - 2","Rd 3 - 1.5",null,null,"Rd 7 - 2.5","Rd 5 - 3.5","Rd 6 - 7.5","Rd 8 - 4.5",null,null,"Rd 4 - 6.5"]
["Denmark",null,null,null,"Rd 4 - 3.5","Rd 7 - 2",null,"Rd 2 - 6",null,"Rd 5 - 4.5","Rd 8 - 6.5",null,"Rd 3 - 7","Rd 6 - 4.5","Rd 1 - 3.5"]
["England","Rd 2 - 3.5",null,null,"Rd 1 - 1.5","Rd 4 - 2.5","Rd 5 - 5.5",null,null,"Rd 8 - 3.5",null,"Rd 6 - 5.5","Rd 7 - 4.5",null,null,null,"Rd 3 - 6"]
["Finland",null,"Rd 4 - 5.5","Rd 1 - 7.5",null,"Rd 6 - 3.5","Rd 2 - 6.5","Rd 8 - 5.5","Rd 7 - 3.5",null,null,null,null,null,"Rd 3 - 2","Rd 5 - 4.5"]
["France",null,"Rd 7 - 7","Rd 4 - 6.5","Rd 6 - 5.5",null,null,null,null,"Rd 1 - 4.5","Rd 2 - 3.5","Rd 3 - 2.5",null,"Rd 5 - 5.5","Rd 8 - 3.5"]
["Germany","Rd 1 - 7",null,"Rd 5 - 3.5","Rd 2 - 2.5",null,null,"Rd 4 - 3.5","Rd 8 - 5.5",null,null,"Rd 7 - 4.5",null,null,null,"Rd 3 - 1.5","Rd 6 - 4.5"]
["Hungary","Rd 3 - 7.5","Rd 2 - 3",null,"Rd 8 - 3.5",null,"Rd 4 - 5.5",null,"Rd 6 - 5.5",null,null,null,"Rd 5 - 4.5","Rd 1 - 3.5",null,"Rd 7 - 3"]
["Italy",null,null,null,"Rd 7 - 5.5",null,"Rd 8 - 3.5","Rd 6 - 3.5",null,null,"Rd 3 - 4.5","Rd 4 - 7.5",null,null,"Rd 5 - 4.5","Rd 2 - 4.5","Rd 1 - 6"]
["Norway",null,"Rd 5 - 4.5","Rd 8 - 5.5",null,"Rd 1 - 4.5",null,null,null,null,"Rd 4 - 6","Rd 2 - 4.5",null,"Rd 3 - 5.5","Rd 7 - 2.5","Rd 6 - 6.5"]
["Poland","Rd 7 - 6.5","Rd 8 - 2.5",null,null,"Rd 2 - 5.5",null,null,"Rd 3 - 4.5","Rd 4 - 3",null,"Rd 1 - 5.5",null,null,"Rd 6 - 3.5",null,"Rd 5 - 4.5"]
["Scotland","Rd 5 - 5.5",null,"Rd 6 - 3.5",null,"Rd 3 - 6.5","Rd 7 - 4.5",null,"Rd 4 - 1.5","Rd 2 - 4.5","Rd 1 - 3.5",null,"Rd 8 - 4.5"]
["Spain","Rd 6 - 1.5","Rd 3 - 2","Rd 7 - 4.5",null,null,null,"Rd 5 - 4.5",null,null,null,"Rd 8 - 4.5",null,"Rd 4 - 3",null,"Rd 1 - 3.5","Rd 2 - 6.5"]
["Sweden","Rd 8 - 4.5","Rd 6 - 4.5",null,null,"Rd 5 - 3.5",null,"Rd 1 - 5.5",null,"Rd 3 - 3.5",null,null,"Rd 4 - 6",null,"Rd 2 - 3",null,"Rd 7 - 5.5"]
["Switzerland",null,"Rd 1 - 5.5",null,"Rd 3 - 7","Rd 8 - 5.5",null,null,"Rd 5 - 4.5","Rd 7 - 6.5","Rd 6 - 5.5",null,null,"Rd 2 - 6",null,"Rd 4 - 3"]
["Viking",null,null,null,"Rd 5 - 4.5",null,"Rd 3 - 7.5","Rd 7 - 6","Rd 2 - 4.5","Rd 6 - 2.5",null,null,"Rd 1 - 5.5",null,"Rd 4 - 6",null,"Rd 8 - 1.5"]
["Wales","Rd 4 - 2.5",null,"Rd 3 - 3",null,null,"Rd 6 - 4.5",null,"Rd 1 - 3",null,"Rd 5 - 4.5",null,"Rd 2 - 2.5","Rd 7 - 3.5",null,"Rd 8 - 7.5"]

{"sheet":"GroupTable","index":7,"n_rows":17,"n_cols":18,"rows_kept":17,"cut":false,"hidden":false,"merged":[]}
["Group","Points","TD For","TD Against","Net TDs","Cas For","Cas Against","Net Cas","Group Total Bonus1","Group Total Bonus2","Group Wins","Groups Draws","Group Losses","Individual Wins","Individual Draws","Individual Losses","Total Individual Points","Opponent Score"]
["Switzerland",43.5,102,86,16,83,94,-11,99,113,6,1,1,30,14,20,37,303]
["Norway",39.5,93,89,4,103,91,12,105,106,4,3,1,21,26,17,34,295.5]
["Italy",39.5,93,85,8,94,106,-12,93,98,3,3,2,25,20,19,35,289]
["Finland",38.5,101,99,2,95,87,8,86,80,4,1,3,26,16,22,34,298]
["France",38.5,96,92,4,89,94,-5,84,108,4,1,3,23,22,19,34,297]
["Viking",38,101,95,6,102,97,5,101,83,4,2,2,22,22,20,33,290.5]
["Denmark",37.5,94,94,0,80,90,-10,100,84,3,2,3,24,19,21,33.5,297.5]
["Sweden",36,102,104,-2,99,106,-7,91,90,3,2,3,23,18,23,32,289.5]
["Hungary",36,91,89,2,103,89,14,99,102,3,1,4,21,23,20,32.5,285.5]
["Poland",35.5,93,92,1,99,92,7,97,97,3,2,3,20,23,21,31.5,297]
["Scotland",34,101,99,2,97,93,4,95,99,2,3,3,21,19,24,30.5,281.5]
["Belgium",33.5,99,112,-13,117,105,12,96,97,3,1,4,21,18,25,30,267.5]
["Germany",32.5,98,105,-7,102,99,3,88,110,2,2,4,21,17,26,29.5,283]
["England",32.5,97,101,-4,91,102,-11,93,108,3,1,4,18,22,24,29,277.5]
["Wales",31,93,101,-8,99,100,-1,94,98,1,2,5,18,22,24,29,277.5]
["Spain",30,97,108,-11,91,99,-8,103,95,1,3,4,17,21,26,27.5,278.5]

{"sheet":"Matrix","index":8,"n_rows":129,"n_cols":129,"rows_kept":129,"cut":false,"hidden":false,"merged":[]}
[null,"Niebling ","PurpleGoo ","Mubo ","Dirold ","The_Ref ","Tripleskull ","MissSweden ","Topper ","Joemanji ","edheim ","FrankPedersen ","Obeliz ","Northernknight ","Woete ","RoterSternHochdahl","Jonny_Kanone ","Itzla ","Farina ","Garrick ","Dark Duke ","20Phoenix ","Malodoror ","Bouzzy ","DocMaxx ","BlackOrc ","Kaltenland ","Shawass ","Malasnoticias ","Macabeo ","Corwin ","SFisher91 ","Phoenix11 ","Wolio ","Reszka ","Slimaq ","Skuld ","Balder ","Dionysian ","Harza ","Idroj ","Faccko ","MacWitt ","Pellevin ","Araznaroth ","JimJimany ","zulu ","mynock ","Strider84 ","Phifoe ","JohnnyD ","Dekra1979 ","straume ","Barry ","Tactel ","Pidpad ","Elrik ","Simon_ACP ","sann0638 ","Goss ","Muadib ","swifty ","Matte8 ","Joanet ","SpecialOne ","Prince ","GreatWhiteHope ","Bernuz ","MadeofWelsh ","Tank ","BeerBeer ","ratogre ","BudWiser ","Gros Nain ","Warrior1980 ","Juniooor7 ","Madmatt13 ","jopotzuki ","J-Ho","Verrinho ","Valen ","Lycos ","Domingo ","Mufflo ","andydavo ","Geggster ","Arioso ","Gaunab ","Alex05 ","Beppe ","Melisqus ","Dragons ","Jaqra ","Harti ","Favi ","Spartako ","DonShula ","HumptyTrump ","Purrelito ","nonumber ","Driesfield ","kfoged ","Podfrey ","valkohukka ","Skoberget ","brocCooli ","Ploppy_McPloppy ","BiBi ","Matt le fou ","Candlejack ","Purdindas ","JJ ","Wilzif ","noraal ","cz ","Loki ","gninocker ","Mewash ","Leonek ","JamesEs ","Duke_Luthor_Von_Hawkfire ","Jokaero ","Duckwing ","Justicium ","Liam ","Endalos ","bothun ","Inforthepain ","sigu70 "]
["Niebling ",null,null,null,null,null,null,null,null,null,null,null,null,null,null,null,null,null,null,null,null,null,null,null,null,null,null,null,"R3, 1 - 0",null,null,null,null,null,null,null,null,null,null,null,null,null,null,null,null,null,null,"R5, 0.5 - 0.5",null,"R1, 0.5 - 0.5",null,null,null,null,null,null,null,null,null,null,null,null,null,null,null,null,null,null,null,null,null,null,null,null,null,null,null,"R4, 0.5 - 0.5",null,null,null,null,null,null,null,null,null,null,null,null,null,"R6, 0 - 1",null,"R7, 0 - 1","R2, 1 - 0",null,null,null,null,null,"R1, 1 - 0","R5, 1 - 0","R1, 1 - 0","R3, 0 - 1",null,"R4, 1 - 0","R6, 1 - 0",null,"R1, 0.5 - 0.5","R4, 4 - 18","R2, 0 - 1",null,"R4, 1 - 0",null,"R5, 0 - 1","R7, 0.5 - 0.5","R1, 1 - 0","R8, 1 - 0","R3, 0 - 1","R3, 1 - 0","R3, 23 - 5",null,"R3, 0 - 1",null,"R1, 0 - 1",null,null,"R3, 1 - 0","R5, 1 - 0"]
["PurpleGoo ",null,null,null,null,null,null,null,null,null,null,null,null,null,null,"R5, 1 - 0",null,null,null,null,null,null,null,null,null,null,null,null,null,null,null,null,"R2, 0.5 - 0.5",null,null,null,null,null,null,"R1, 0 - 1",null,null,null,null,null,null,null,null,null,null,null,null,"R8, 0 - 1",null,null,null,null,"R4, 0.5 - 0.5","R6, 0 - 1",null,null,null,null,"R7, 0.5 - 0.5",null,null,null,null,null,null,null,null,null,null,null,null,null,null,null,null,null,null,null,null,null,null,null,null,null,null,null,null,null,null,null,null,null,null,null,"R3, 0.5 - 0.5",null,"R1, 0.5 - 0.5",null,"R4, 0.5 - 0.5","R5, 0.5 - 0.5","R2, 0 - 1","R1, 1 - 0",null,null,"R4, 0.5 - 0.5",null,"R3, 1 - 0",null,"R1, 0.5 - 0.5",null,"R3, 0.5 - 0.5",null,null,null,null,"R1, 1 - 0","R3, 0 - 1","R5, 1 - 0",null,null,"R4, 5 - 22","R6, 0 - 1"]
["Mubo ",null,null,null,null,null,null,null,null,null,null,null,null,null,null,null,null,null,null,null,null,null,null,null,null,null,null,null,null,null,null,null,null,null,null,null,null,null,null,null,null,null,null,null,null,null,null,null,null,null,null,"R2, 0.5 - 0.5",null,"R7, 1 - 0",null,null,null,null,null,null,"R5, 1 - 0",null,null,null,null,null,"R8, 0.5 - 0.5",null,null,null,null,null,null,null,null,null,null,"R1, 0 - 1",null,null,null,null,null,null,null,null,null,null,null,null,null,null,null,null,null,null,"R6, 0 - 1",null,null,null,"R1, 0.5 - 0.5","R4, 0.5 - 0.5","R1, 0 - 1","R2, 0.5 - 0.5",null,"R3, 0 - 1","R3, 1 - 0","R4, 0 - 1","R4, 0.5 - 0.5","R5, 3 - 20","R4, 0 - 1",null,null,"R5, 0 - 1","R6, 1 - 0","R6, 1 - 0","R1, 1 - 0","R3, 1 - 0","R2, 0 - 1","R1, 0.5 - 0.5","R2, 0 - 1",null,null,"R2, 0 - 1","R2, 22 - 6","R5, 0.5 - 0.5","R5, 1 - 0","R2, 0 - 1"]
["Dirold ",null,null,null,null,null,null,null,null,null,null,null,null,null,null,null,null,null,null,null,null,null,null,null,null,null,null,null,null,null,null,null,null,null,null,null,null,null,null,null,null,null,null,null,null,null,null,null,null,null,null,null,null,null,null,null,"R5, 0 - 1",null,null,null,null,null,null,null,null,null,null,null,"R1, 0.5 - 0.5",null,null,null,null,null,null,"R3, 1 - 0",null,null,"R7, 1 - 0",null,null,null,null,null,null,null,null,"R8, 0 - 1",null,null,null,null,null,null,null,null,null,null,null,null,"R4, 0 - 1","R5, 0.5 - 0.5","R1, 0 - 1","R1, 1 - 0","R1, 0.5 - 0.5","R2, 0 - 1","R4, 0.5 - 0.5","R3, 0.5 - 0.5","R7, 1 - 0",null,null,"R6, 0 - 1","R1, 0 - 1","R3, 0.5 - 0.5","R6, 0.5 - 0.5","R4, 0.5 - 0.5","R1, 1 - 0","R4, 0.5 - 0.5",null,"R2, 1 - 0","R1, 0.5 - 0.5","R3, 0 - 1",null,"R3, 21 - 4","R2, 0 - 1","R6, 0.5 - 0.5",null,"R3, 1 - 0","R6, 19 - 3"]
["The_Ref ",null,null,null,null,null,null,null,null,null,null,null,null,null,null,null,null,null,null,null,null,null,null,null,null,null,null,null,null,null,null,null,null,null,"R4, 0.5 - 0.5",null,null,null,null,null,null,null,null,null,null,null,null,null,null,null,null,null,null,null,null,null,"R7, 0 - 1",null,null,null,null,null,null,null,null,null,null,null,null,null,null,null,null,null,null,null,null,null,null,null,"R2, 1 - 0",null,null,null,null,"R8, 0.5 - 0.5",null,null,null,null,"R3, 0.5 - 0.5",null,"R5, 0.5 - 0.5",null,null,null,null,null,null,null,null,null,"R5, 0 - 1","R2, 1 - 0","R1, 0.5 - 0.5","R2, 0.5 - 0.5",null,"R1, 0 - 1","R4, 1 - 0","R5, 1 - 0","R4, 0 - 1","R1, 0 - 1","R5, 0 - 1","R3, 0.5 - 0.5","R1, 0 - 1","R1, 0.5 - 0.5",null,null,"R5, 0 - 1","R1, 0.5 - 0.5",null,null,"R6, 1 - 0","R3, 1 - 0",null,null,"R2, 1 - 0",null,"R6, 0 - 1"]
["Tripleskull ",null,null,null,null,null,null,null,null,null,null,null,null,null,null,null,null,null,null,null,null,null,null,null,null,null,null,null,null,null,null,null,null,null,null,null,null,null,null,null,null,null,null,null,null,null,null,null,null,null,null,null,null,null,null,null,null,null,null,"R1, 0 - 1",null,"R2, 0 - 1",null,null,null,null,null,null,null,null,null,null,"R7, 1 - 0",null,"R8, 0.5 - 0.5",null,null,null,null,null,null,null,null,null,null,null,null,null,null,null,null,null,null,null,null,null,null,null,null,null,"R5, 1 - 0","R1, 0 - 1","R5, 0.5 - 0.5","R4, 0 - 1","R6, 0.5 - 0.5",null,"R4, 0.5 - 0.5",null,"R4, 0.5 - 0.5","R6, 0.5 - 0.5","R1, 0.5 - 0.5","R3, 1 - 0","R3, 1 - 0","R6, 0.5 - 0.5","R3, 0.5 - 0.5","R2, 1 - 0","R2, 1 - 0","R3, 0.5 - 0.5","R1, 1 - 0","R7, 1 - 0","R3, 1 - 0","R5, 0.5 - 0.5",null,null,"R3, 1 - 0","R2, 1 - 0","R5, 0 - 1"]
["MissSweden ",null,null,null,null,null,null,null,null,null,null,"R5, 1 - 0",null,null,null,null,null,null,null,null,"R3, 1 - 0",null,null,null,null,null,null,"R8, 0 - 1",null,"R1, 0 - 1",null,null,null,"R2, 1 - 0",null,null,null,null,null,null,null,null,"R4, 0.5 - 0.5","R6, 0 - 1",null,null,null,null,null,null,null,null,null,null,null,null,null,null,null,null,null,null,null,null,null,null,null,null,null,null,null,null,null,null,null,null,null,null,null,null,null,null,null,null,null,null,null,null,null,null,null,null,null,null,null,null,null,null,null,null,"R1, 1 - 0",null,"R4, 0 - 1","R1, 1 - 0","R3, 1 - 0","R1, 1 - 0",null,"R5, 0.5 - 0.5",null,"R3, 0 - 1","R7, 0 - 1","R4, 1 - 0",null,"R2, 1 - 0",null,"R1, 0 - 1","R5, 1 - 0","R1, 1 - 0","R2, 0 - 1",null,"R1, 0.5 - 0.5",null,null,"R7, 0 - 1",null,"R3, 0.5 - 0.5","R5, 0.5 - 0.5",null,"R2, 0 - 1"]
["Topper ",null,null,null,null,null,null,null,null,null,null,null,null,null,null,null,null,null,null,null,null,null,null,null,null,null,null,null,null,null,null,null,null,null,null,null,null,null,null,null,null,null,null,null,null,null,null,null,null,null,null,null,null,"R3, 1 - 0",null,null,null,null,null,null,null,null,null,null,null,null,"R5, 0.5 - 0.5",null,null,null,null,"R4, 1 - 0",null,null,null,null,"R1, 1 - 0",null,null,null,null,null,"R8, 1 - 0",null,null,null,null,null,null,null,null,null,null,null,null,null,null,null,null,null,"R1, 0 - 1","R1, 1 - 0","R1, 0.5 - 0.5","R5, 0 - 1",null,null,"R3, 0 - 1","R7, 0.5 - 0.5",null,"R1, 1 - 0",null,"R4, 0 - 1","R4, 0 - 1","R1, 0 - 1","R2, 1 - 0",null,"R3, 0 - 1",null,"R2, 0.5 - 0.5",null,null,null,"R2, 1 - 0","R4, 19 - 4","R5, 0.5 - 0.5","R2, 0.5 - 0.5",null,"R6, 0.5 - 0.5","R3, 1 - 0"]
["Joemanji ",null,null,null,null,null,null,null,null,null,null,null,null,null,null,null,"R5, 1 - 0",null,null,null,null,null,null,null,null,null,null,null,null,null,null,null,null,null,null,null,null,null,"R3, 1 - 0",null,"R7, 1 - 0",null,null,null,null,null,null,"R8, 0.5 - 0.5",null,null,null,null,null,null,null,null,null,null,null,null,null,null,null,null,null,null,null,null,null,null,"R1, 0 - 1",null,null,"R4, 0 - 1",null,null,null,null,null,null,null,null,null,null,null,null,null,null,null,null,null,null,null,null,null,null,null,null,null,null,"R4, 1 - 0",null,"R1, 0.5 - 0.5","R3, 0 - 1","R1, 1 - 0","R2, 1 - 0","R2, 0.5 - 0.5","R2, 1 - 0","R2, 1 - 0","R1, 0.5 - 0.5","R1, 0.5 - 0.5","R2, 0.5 - 0.5","R5, 0 - 1",null,"R1, 1 - 0","R6, 1 - 0","R6, 0.5 - 0.5",null,null,"R1, 0.5 - 0.5","R2, 0 - 1","R3, 0.5 - 0.5","R1, 0.5 - 0.5","R1, 0.5 - 0.5",null,"R3, 1 - 0","R4, 1 - 0","R5, 0.5 - 0.5","R1, 1 - 0"]
["edheim ",null,null,null,null,null,null,null,null,null,null,null,null,null,null,null,null,"R8, 0 - 1",null,null,null,null,null,null,null,null,null,null,null,null,null,null,null,null,null,null,null,null,null,null,null,null,null,null,null,null,null,null,"R3, 1 - 0",null,null,null,null,null,null,null,null,null,null,null,null,null,null,null,"R4, 1 - 0","R2, 1 - 0",null,null,null,null,null,null,null,null,null,null,null,null,null,"R7, 0 - 1",null,"R1, 0 - 1",null,null,null,null,null,null,null,null,null,null,null,null,null,null,null,null,null,null,null,"R1, 1 - 0","R1, 1 - 0","R4, 1 - 0","R1, 0 - 1","R2, 1 - 0","R1, 0.5 - 0.5","R6, 0.5 - 0.5","R1, 0 - 1","R3, 1 - 0",null,"R2, 0.5 - 0.5","R2, 0.5 - 0.5","R1, 0.5 - 0.5","R2, 1 - 0","R6, 1 - 0","R7, 0.5 - 0.5","R1, 0.5 - 0.5",null,"R2, 1 - 0",null,null,"R5, 1 - 0","R5, 0 - 1",null,"R1, 0.5 - 0.5","R1, 0 - 1","R1, 0.5 - 0.5","R4, 1 - 0"]
["FrankPedersen ",null,null,null,null,null,null,"R5, 0 - 1",null,null,null,null,null,null,null,null,null,null,null,"R2, 0 - 1",null,null,null,null,null,null,null,"R4, 0.5 - 0.5",null,"R7, 0 - 1",null,null,null,null,null,null,null,"R6, 1 - 0",null,null,null,null,null,null,null,null,null,null,null,null,null,null,null,null,null,null,null,null,null,null,null,null,null,null,null,null,null,null,null,null,null,null,null,null,null,null,null,null,null,null,null,null,null,null,null,null,null,null,null,null,null,null,null,"R1, 0.5 - 0.5",null,null,null,null,null,null,"R1, 1 - 0",null,"R8, 0 - 1","R1, 0.5 - 0.5","R3, 1 - 0","R3, 0 - 1","R3, 0.5 - 0.5","R1, 1 - 0",null,"R2, 0.5 - 0.5","R2, 1 - 0","R1, 1 - 0",null,"R4, 20 - 3","R2, 1 - 0",null,"R2, 1 - 0",null,"R1, 0.5 - 0.5",null,null,"R1, 0.5 - 0.5",null,"R3, 1 - 0","R1, 1 - 0",null,"R1, 0 - 1"]
["Obeliz ",null,null,null,null,null,null,null,null,null,null,null,null,null,null,null,null,null,null,null,null,null,null,null,null,null,null,null,null,null,null,null,null,null,null,null,null,null,null,null,null,null,null,null,"R6, 0.5 - 0.5",null,null,null,null,null,null,null,null,null,null,null,null,null,null,null,null,null,null,null,null,null,null,"R1, 0.5 - 0.5",null,null,null,null,null,null,null,null,null,null,null,null,null,null,null,null,"R2, 0.5 - 0.5","R7, 0.5 - 0.5",null,null,null,null,"R4, 0 - 1",null,"R3, 0.5 - 0.5",null,"R5, 0.5 - 0.5",null,null,null,null,null,"R4, 0.5 - 0.5",null,null,"R1, 0.5 - 0.5","R1, 0.5 - 0.5","R1, 0 - 1","R2, 0.5 - 0.5","R4, 0 - 1","R3, 0 - 1","R2, 0 - 1","R3, 0.5 - 0.5","R2, 0.5 - 0.5",null,"R2, 1 - 0",null,"R8, 0.5 - 0.5","R1, 1 - 0",null,null,"R4, 0 - 1","R2, 0 - 1","R3, 0.5 - 0.5",null,null,"R4, 0 - 1","R5, 0 - 1","R1, 1 - 0","R5, 0 - 1","R1, 1 - 0"]
["Northernknight ",null,null,null,null,null,null,null,null,null,null,null,null,null,null,null,"R6, 0 - 1",null,null,null,null,null,null,null,null,null,null,null,null,null,null,null,"R4, 0 - 1",null,null,null,null,null,null,null,"R2, 0 - 1",null,null,null,null,"R3, 0 - 1",null,null,null,null,"R7, 0 - 1",null,null,null,null,null,null,null,null,null,null,null,null,null,null,null,null,null,null,null,null,null,null,null,null,null,null,null,null,null,null,null,null,null,null,null,null,null,null,null,null,null,null,null,null,null,null,null,"R8, 0.5 - 0.5",null,null,"R2, 0 - 1",null,"R1, 0.5 - 0.5","R4, 0 - 1",null,"R1, 0 - 1","R6, 1 - 0","R2, 1 - 0",null,null,null,"R2, 1 - 0","R2, 6 - 22","R6, 0.5 - 0.5",null,null,"R5, 0.5 - 0.5","R7, 0 - 1","R2, 0 - 1","R1, 1 - 0","R5, 0.5 - 0.5",null,"R1, 0.5 - 0.5","R1, 0.5 - 0.5","R6, 20 - 3","R1, 0 - 1","R1, 0 - 1"]
["Woete ",null,null,null,null,null,null,null,null,null,null,null,null,null,null,null,null,null,null,"R5, 0 - 1",null,null,null,null,null,null,null,"R7, 1 - 0",null,null,null,"R4, 1 - 0",null,null,null,null,null,null,null,null,null,null,null,null,null,null,null,null,null,null,null,null,null,"R6, 1 - 0",null,null,null,null,null,null,null,null,null,null,null,null,null,null,null,null,null,null,null,null,null,null,null,null,null,null,null,null,null,null,null,null,"R1, 0 - 1",null,null,null,null,null,null,null,null,null,null,null,null,null,"R1, 0 - 1","R1, 0.5 - 0.5","R1, 1 - 0",null,null,"R3, 0.5 - 0.5","R2, 1 - 0",null,"R3, 1 - 0","R1, 0 - 1","R1, 0.5 - 0.5",null,"R2, 1 - 0","R1, 0.5 - 0.5","R3, 0.5 - 0.5","R1, 1 - 0",null,"R2, 0.5 - 0.5","R2, 0 - 1","R6, 0 - 1",null,"R1, 0.5 - 0.5",null,"R4, 0 - 1",null,"R1, 0.5 - 0.5","R3, 1 - 0","R8, 0 - 1"]
["RoterSternHochdahl",null,"R5, 0 - 1",null,null,null,null,null,null,null,null,null,null,null,null,null,null,null,"R8, 1 - 0",null,null,null,"R1, 0 - 1",null,null,null,null,null,null,null,null,null,null,null,null,null,null,"R3, 0 - 1",null,null,null,null,null,null,null,null,null,null,null,null,null,null,null,null,null,null,null,null,null,null,null,null,null,null,null,null,null,null,null,null,null,null,null,null,null,null,null,null,"R2, 0.5 - 0.5",null,null,null,null,null,null,null,null,null,null,null,null,null,null,null,"R4, 0.5 - 0.5",null,null,null,null,"R6, 0 - 1","R1, 0.5 - 0.5","R4, 0 - 1","R1, 0.5 - 0.5",null,"R2, 0 - 1","R1, 0 - 1","R2, 19 - 3","R2, 0 - 1","R2, 1 - 0","R2, 1 - 0","R2, 1 - 0","R1, 1 - 0","R3, 0 - 1",null,null,"R5, 0.5 - 0.5","R2, 0 - 1","R1, 1 - 0","R2, 1 - 0","R7, 1 - 0",null,"R7, 1 - 0","R1, 0.5 - 0.5","R1, 1 - 0","R1, 0.5 - 0.5",null,null,"R3, 0.5 - 0.5"]
["Jonny_Kanone ",null,null,null,null,null,null,null,null,"R5, 0 - 1",null,null,null,"R6, 1 - 0",null,null,null,null,null,null,null,null,null,null,null,null,"R8, 0 - 1",null,null,null,null,null,null,null,null,null,null,null,null,null,null,null,null,null,"R1, 1 - 0",null,null,null,null,null,null,null,null,null,null,null,null,null,null,null,null,null,null,null,null,null,null,"R3, 0 - 1",null,null,null,"R2, 0 - 1",null,null,null,null,null,null,null,null,null,null,null,null,null,null,null,null,null,null,null,null,null,null,null,null,null,"R7, 0.5 - 0.5",null,null,"R1, 1 - 0","R1, 0.5 - 0.5","R4, 0.5 - 0.5",null,"R1, 0 - 1","R3, 0.5 - 0.5",null,"R2, 0.5 - 0.5",null,null,null,null,"R1, 0 - 1","R4, 0 - 1","R1, 1 - 0","R2, 0.5 - 0.5",null,null,"R1, 0.5 - 0.5","R1, 0 - 1",null,null,"R1, 1 - 0","R2, 0 - 1","R1, 1 - 0","R1, 1 - 0","R5, 0.5 - 0.5"]
["Itzla ",null,null,null,null,null,null,null,null,null,"R8, 1 - 0",null,null,null,null,null,null,null,null,null,null,null,null,null,null,null,null,null,null,null,null,null,null,null,null,null,null,null,null,null,"R5, 0 - 1","R7, 0.5 - 0.5",null,null,null,null,null,null,null,null,null,null,null,null,null,null,null,null,null,null,null,null,null,null,null,null,null,null,null,null,null,null,null,null,null,null,null,null,null,"R6, 0.5 - 0.5",null,null,null,null,null,null,"R4, 1 - 0",null,null,null,null,null,null,null,null,null,null,null,null,null,"R2, 0 - 1","R2, 0.5 - 0.5","R6, 1 - 0","R1, 1 - 0","R1, 1 - 0","R3, 0 - 1","R4, 1 - 0","R6, 0.5 - 0.5","R1, 0 - 1","R4, 1 - 0",null,"R1, 1 - 0","R2, 0.5 - 0.5",null,null,"R1, 0 - 1","R3, 1 - 0","R3, 1 - 0","R1, 0.5 - 0.5",null,"R2, 0 - 1",null,null,"R2, 1 - 0","R1, 0 - 1",null,null,"R1, 0.5 - 0.5","R2, 12 - 10"]
["Farina ",null,null,null,null,null,null,null,null,null,null,null,null,null,null,"R8, 0 - 1",null,null,null,null,null,null,null,null,null,null,null,null,null,null,null,null,null,null,null,"R3, 0 - 1",null,null,null,"R7, 1 - 0",null,null,null,null,null,null,null,null,null,null,null,null,null,null,null,null,null,null,null,null,null,null,null,null,null,null,null,null,null,null,null,null,null,null,null,null,null,null,null,null,"R4, 0.5 - 0.5",null,null,null,null,null,null,null,null,null,null,null,null,null,"R6, 0.5 - 0.5",null,null,null,"R2, 0 - 1",null,"R2, 0 - 1","R2, 1 - 0",null,"R2, 1 - 0","R3, 0.5 - 0.5",null,"R1, 0 - 1",null,"R5, 0 - 1","R4, 0.5 - 0.5","R2, 0 - 1",null,"R3, 1 - 0",null,"R4, 0 - 1",null,"R1, 1 - 0","R1, 0.5 - 0.5","R2, 0 - 1","R1, 1 - 0","R1, 0 - 1","R5, 0.5 - 0.5",null,"R1, 0 - 1","R5, 0 - 1","R1, 1 - 0",null,null,"R3, 1 - 0"]
["Garrick ",null,null,null,null,null,null,null,null,null,null,"R2, 1 - 0",null,null,"R5, 1 - 0",null,null,null,null,null,null,null,null,null,"R7, 1 - 0",null,null,null,null,null,null,null,null,null,"R1, 0.5 - 0.5",null,null,null,null,null,"R8, 1 - 0",null,null,null,null,null,null,null,null,null,null,null,null,null,null,null,null,null,null,null,null,null,null,null,null,null,null,null,null,null,null,null,null,null,null,null,null,null,null,"R4, 0 - 1",null,null,null,null,null,null,null,null,null,null,null,null,null,null,null,null,null,null,null,null,"R3, 1 - 0","R3, 0.5 - 0.5","R6, 1 - 0","R5, 1 - 0",null,null,null,"R2, 0.5 - 0.5","R3, 1 - 0","R2, 0 - 1","R4, 0.5 - 0.5","R5, 1 - 0","R3, 1 - 0","R3, 1 - 0","R1, 0.5 - 0.5","R2, 0.5 - 0.5","R4, 0.5 - 0.5","R1, 0.5 - 0.5","R4, 0 - 1",null,null,null,null,"R1, 0.5 - 0.5",null,"R1, 0 - 1","R2, 1 - 0","R3, 1 - 0"]
["Dark Duke ",null,null,null,null,null,null,"R3, 0 - 1",null,null,null,null,null,null,null,null,null,null,null,null,null,"R2, 1 - 0",null,null,null,null,null,null,null,null,null,null,"R6, 0 - 1",null,null,null,null,null,null,null,null,"R1, 0 - 1",null,null,null,null,null,null,null,null,null,null,null,null,null,null,null,null,"R8, 0.5 - 0.5",null,null,null,null,null,null,null,null,null,null,null,null,null,null,null,null,null,null,null,null,null,null,null,null,null,null,null,null,null,null,null,null,null,null,null,null,null,null,null,null,null,"R5, 1 - 0","R3, 0 - 1","R7, 1 - 0","R6, 0 - 1","R4, 1 - 0",null,"R1, 0.5 - 0.5","R4, 0.5 - 0.5",null,"R5, 1 - 0","R3, 0.5 - 0.5","R4, 0 - 1","R1, 1 - 0","R5, 0.5 - 0.5","R2, 1 - 0","R1, 1 - 0",null,"R5, 0 - 1","R1, 1 - 0","R1, 0.5 - 0.5",null,null,"R2, 0 - 1",null,"R6, 1 - 0","R1, 0.5 - 0.5","R1, 1 - 0",null,"R2, 1 - 0"]
["20Phoenix ",null,null,null,null,null,null,null,null,null,null,null,null,null,null,null,null,null,null,null,"R2, 0 - 1",null,null,null,null,null,null,null,null,null,null,null,null,null,null,null,"R7, 0.5 - 0.5",null,null,null,null,null,null,null,null,null,null,null,null,null,null,null,null,null,null,null,null,null,null,null,null,null,null,null,null,null,null,null,null,null,null,null,null,null,"R5, 1 - 0",null,null,null,null,null,null,null,null,"R8, 1 - 0",null,null,"R6, 0.5 - 0.5",null,null,"R1, 0 - 1",null,null,null,null,null,null,null,null,null,null,"R3, 22 - 4","R2, 1 - 0","R2, 0 - 1",null,"R1, 0.5 - 0.5","R2, 1 - 0","R1, 0 - 1",null,null,"R3, 0 - 1",null,"R4, 1 - 0","R3, 1 - 0","R1, 1 - 0","R3, 0.5 - 0.5","R5, 0.5 - 0.5","R3, 0.5 - 0.5",null,null,"R4, 1 - 0","R1, 0 - 1","R1, 0.5 - 0.5","R2, 1 - 0",null,"R1, 0 - 1",null,null,null,"R1, 1 - 0"]
["Malodoror ",null,null,null,null,null,null,null,null,null,null,null,null,null,null,"R1, 1 - 0",null,null,null,null,null,null,null,null,null,"R3, 0.5 - 0.5",null,null,null,null,null,null,null,null,null,null,null,null,null,null,"R6, 1 - 0",null,null,null,null,null,null,null,null,null,null,null,null,null,null,null,null,null,null,null,null,null,null,null,null,null,null,null,"R4, 0.5 - 0.5",null,null,null,null,null,null,null,null,null,null,null,null,null,"R7, 0 - 1",null,null,"R2, 1 - 0",null,null,null,null,null,"R8, 1 - 0",null,null,null,null,"R5, 0 - 1",null,null,null,"R4, 1 - 0","R1, 0 - 1","R3, 0.5 - 0.5","R2, 1 - 0","R5, 0 - 1","R1, 0.5 - 0.5",null,"R5, 0 - 1","R2, 0 - 1","R6, 0 - 1",null,"R3, 0 - 1",null,"R1, 0.5 - 0.5","R1, 1 - 0","R2, 0 - 1","R1, 0.5 - 0.5","R2, 0 - 1","R1, 0.5 - 0.5","R3, 1 - 0","R4, 0.5 - 0.5","R1, 1 - 0",null,null,"R5, 0.5 - 0.5","R2, 0.5 - 0.5",null,"R1, 1 - 0"]
["Bouzzy ",null,null,null,null,null,null,null,null,null,null,null,null,null,null,null,null,null,null,null,null,null,null,null,null,null,null,null,null,null,null,null,null,null,null,null,null,null,null,null,null,null,null,null,null,null,null,null,null,null,null,null,"R1, 0.5 - 0.5",null,null,null,"R8, 0.5 - 0.5",null,"R3, 0.5 - 0.5",null,null,null,null,null,"R7, 0.5 - 0.5",null,null,null,null,null,null,null,null,null,null,null,null,"R6, 0.5 - 0.5",null,null,null,null,null,null,null,null,null,null,null,null,"R5, 0.5 - 0.5",null,null,null,null,null,null,null,null,null,null,null,"R4, 1 - 0","R3, 0.5 - 0.5","R3, 0.5 - 0.5","R6, 1 - 0",null,"R2, 0 - 1","R3, 0 - 1","R3, 1 - 0",null,"R4, 0.5 - 0.5","R1, 1 - 0","R2, 0 - 1","R3, 1 - 0","R1, 0.5 - 0.5","R1, 1 - 0",null,"R2, 0.5 - 0.5","R1, 0.5 - 0.5","R3, 0.5 - 0.5","R2, 0.5 - 0.5","R1, 0 - 1",null,"R2, 0 - 1",null,"R1, 1 - 0","R5, 0 - 1","R4, 1 - 0"]
["DocMaxx ",null,null,null,null,null,null,null,null,null,null,null,null,null,null,null,null,null,null,"R7, 0 - 1",null,null,null,null,null,null,null,null,null,null,null,null,null,null,null,null,null,null,null,null,null,null,null,null,null,"R5, 1 - 0",null,null,null,null,null,null,null,null,null,null,null,null,null,null,null,"R4, 1 - 0",null,null,null,null,null,null,"R6, 0 - 1",null,"R2, 0.5 - 0.5",null,null,null,null,null,null,null,null,null,null,null,null,"R3, 0 - 1",null,null,null,null,null,"R8, 1 - 0",null,null,null,null,null,null,null,null,null,null,"R3, 0 - 1","R4, 0.5 - 0.5","R5, 0 - 1","R3, 0.5 - 0.5","R2, 0 - 1","R4, 0 - 1","R2, 0.5 - 0.5","R3, 0 - 1",null,null,"R5, 1 - 0","R1, 1 - 0",null,"R1, 1 - 0",null,"R3, 1 - 0","R2, 1 - 0","R2, 0 - 1",null,"R1, 0.5 - 0.5","R4, 0.5 - 0.5",null,"R1, 0.5 - 0.5","R1, 0 - 1",null,null,null,"R2, 0.5 - 0.5"]
["BlackOrc ",null,null,null,null,null,null,null,null,null,null,null,null,null,null,null,null,null,null,null,null,null,"R3, 0.5 - 0.5",null,null,null,null,null,null,null,null,null,null,null,null,null,null,null,null,null,null,null,null,null,null,null,null,null,null,null,null,null,null,"R5, 0.5 - 0.5",null,null,null,null,null,null,"R4, 0.5 - 0.5",null,null,null,null,null,null,null,null,null,null,null,null,null,null,null,null,"R8, 0 - 1",null,null,null,null,null,"R7, 1 - 0",null,null,null,null,null,"R6, 1 - 0",null,null,"R2, 1 - 0",null,null,null,null,null,null,null,"R1, 1 - 0","R2, 0 - 1",null,null,null,null,"R3, 0 - 1","R1, 1 - 0","R2, 1 - 0",null,"R3, 1 - 0",null,null,"R1, 1 - 0",null,"R5, 1 - 0","R3, 0.5 - 0.5",null,"R2, 1 - 0",null,"R3, 0 - 1","R1, 0.5 - 0.5",null,"R6, 0 - 1","R2, 0 - 1","R1, 1 - 0",null,"R1, 0.5 - 0.5","R2, 0.5 - 0.5"]
["Kaltenland ",null,null,null,null,null,null,null,null,null,null,null,null,null,null,null,"R8, 1 - 0",null,null,null,null,null,null,null,null,null,null,null,null,null,"R2, 0.5 - 0.5",null,null,null,null,null,null,null,null,null,null,null,null,null,null,null,null,null,null,null,null,null,null,null,null,null,null,null,null,null,null,null,null,null,null,null,null,null,null,null,null,null,null,null,null,null,"R5, 1 - 0",null,null,null,null,null,null,null,null,null,null,null,"R6, 0 - 1",null,null,null,null,null,null,null,null,null,null,"R1, 0.5 - 0.5","R6, 0.5 - 0.5",null,"R2, 1 - 0","R7, 0 - 1","R1, 0 - 1",null,"R1, 0.5 - 0.5","R5, 1 - 0",null,"R2, 0.5 - 0.5","R4, 1 - 0","R2, 1 - 0","R3, 0.5 - 0.5","R1, 21 - 4","R3, 0.5 - 0.5",null,null,"R1, 1 - 0","R3, 0.5 - 0.5","R5, 1 - 0","R2, 0 - 1","R1, 0.5 - 0.5","R5, 0.5 - 0.5","R5, 23 - 7","R1, 0 - 1",null,null,"R6, 0.5 - 0.5","R2, 0.5 - 0.5"]
["Shawass ",null,null,null,null,null,null,"R8, 1 - 0",null,null,null,"R4, 0.5 - 0.5",null,null,"R7, 0 - 1",null,null,null,null,null,null,null,null,null,null,null,null,null,null,null,null,null,null,null,null,null,null,null,null,null,null,null,null,null,null,null,null,null,null,null,null,null,null,null,null,null,null,null,null,"R6, 0 - 1",null,null,null,null,null,null,null,null,null,null,null,null,null,null,null,null,null,null,null,null,null,null,null,null,"R5, 1 - 0",null,null,null,null,null,null,null,null,null,null,null,null,null,null,null,null,"R2, 0 - 1",null,"R1, 0 - 1","R2, 1 - 0","R2, 0 - 1","R3, 0 - 1",null,"R2, 0 - 1","R2, 0 - 1","R1, 1 - 0",null,"R1, 0 - 1","R5, 0 - 1",null,null,null,"R2, 1 - 0","R3, 0.5 - 0.5","R5, 0 - 1","R1, 0 - 1","R6, 0.5 - 0.5","R6, 0.5 - 0.5","R3, 0.5 - 0.5","R3, 1 - 0","R1, 0.5 - 0.5",null,null,"R2, 0 - 1"]
["Malasnoticias ","R3, 0 - 1",null,null,null,null,null,null,null,null,null,null,null,null,null,null,null,null,null,null,null,null,null,null,null,null,null,null,null,null,"R1, 0.5 - 0.5",null,null,null,null,null,null,null,null,null,null,null,null,null,null,"R7, 1 - 0",null,null,null,null,null,null,null,null,null,null,null,null,null,null,null,null,null,null,null,null,null,null,null,null,null,null,null,null,null,null,null,null,null,null,null,null,null,null,null,null,null,null,"R5, 0 - 1",null,null,"R4, 0 - 1",null,null,null,null,null,null,null,"R2, 1 - 0",null,null,null,"R2, 1 - 0",null,null,"R1, 1 - 0",null,"R3, 0.5 - 0.5",null,"R8, 0.5 - 0.5","R6, 0 - 1","R2, 0 - 1","R2, 0 - 1",null,null,"R4, 0 - 1","R3, 0 - 1","R5, 0 - 1","R1, 0.5 - 0.5",null,"R1, 0.5 - 0.5","R6, 0.5 - 0.5",null,"R3, 0.5 - 0.5",null,"R2, 0 - 1",null,"R1, 0 - 1"]
["Macabeo ",null,null,null,null,null,null,"R1, 1 - 0",null,null,null,"R7, 1 - 0",null,null,null,null,null,null,null,null,null,null,null,null,null,null,null,null,null,null,null,null,null,null,null,null,null,null,null,null,null,null,"R3, 1 - 0","R2, 0 - 1",null,null,null,null,null,null,null,null,null,null,null,null,null,null,null,null,null,null,"R5, 0 - 1",null,null,null,null,"R4, 0.5 - 0.5",null,null,null,null,null,null,null,null,null,null,null,null,null,null,null,null,null,null,null,null,null,null,null,null,null,null,null,null,null,null,null,null,"R2, 0 - 1",null,"R3, 0 - 1",null,"R4, 1 - 0","R3, 0.5 - 0.5","R2, 0 - 1","R2, 0.5 - 0.5","R1, 0.5 - 0.5","R1, 0.5 - 0.5","R3, 0.5 - 0.5","R5, 0.5 - 0.5",null,"R3, 1 - 0","R5, 0 - 1","R1, 0.5 - 0.5",null,null,"R6, 0 - 1","R2, 0 - 1","R5, 0.5 - 0.5","R3, 0.5 - 0.5","R1, 1 - 0","R8, 0.5 - 0.5","R1, 0.5 - 0.5","R6, 1 - 0",null,"R1, 1 - 0"]
["Corwin ",null,null,null,null,null,null,null,null,null,null,null,null,null,null,null,null,null,null,null,null,null,null,null,null,null,"R2, 0.5 - 0.5",null,"R1, 0.5 - 0.5",null,null,null,null,null,null,null,null,null,null,"R5, 1 - 0",null,null,null,null,null,null,null,"R6, 0 - 1",null,null,null,null,null,null,null,null,null,null,null,null,"R3, 0.5 - 0.5",null,null,null,null,null,null,null,null,null,null,null,null,null,null,null,null,null,null,null,null,null,null,null,null,null,null,null,null,null,null,null,null,null,null,null,null,null,null,null,null,"R1, 1 - 0","R4, 0.5 - 0.5","R3, 1 - 20","R7, 0 - 1","R1, 1 - 0","R8, 0.5 - 0.5","R2, 1 - 0",null,null,"R2, 0.5 - 0.5","R3, 1 - 0","R1, 0 - 1","R7, 1 - 0",null,"R3, 1 - 0","R2, 0.5 - 0.5","R5, 1 - 0","R3, 0.5 - 0.5","R1, 6 - 20","R4, 1 - 0","R4, 1 - 0","R2, 0.5 - 0.5","R1, 0 - 1","R6, 0.5 - 0.5","R2, 1 - 0","R2, 0.5 - 0.5","R2, 0.5 - 0.5","R3, 1 - 0"]
["SFisher91 ",null,null,null,null,null,null,null,null,null,null,null,null,null,"R4, 0 - 1",null,null,null,null,null,null,null,null,null,null,null,null,null,null,null,null,null,null,null,null,"R5, 1 - 0",null,null,null,null,null,null,null,null,null,null,null,null,null,null,null,null,null,null,null,null,null,null,null,null,"R6, 0 - 1",null,null,null,null,null,null,"R8, 1 - 0",null,null,null,null,null,null,null,null,null,null,null,null,null,null,null,null,null,null,null,null,null,null,null,"R7, 0 - 1",null,null,null,"R1, 0 - 1",null,null,null,null,"R4, 1 - 0",null,"R3, 0.5 - 0.5",null,"R5, 0 - 1",null,null,"R3, 1 - 0","R2, 3 - 18","R2, 1 - 0","R1, 1 - 0","R3, 0 - 1",null,null,"R2, 0.5 - 0.5",null,"R3, 0.5 - 0.5",null,null,null,"R2, 1 - 0","R2, 0 - 1","R1, 0 - 1","R2, 0.5 - 0.5",null,"R2, 0.5 - 0.5","R1, 0 - 1","R2, 0.5 - 0.5","R6, 0 - 1"]
["Phoenix11 ",null,"R2, 0.5 - 0.5",null,null,null,null,null,null,null,null,null,null,"R4, 1 - 0",null,null,null,null,null,null,"R6, 1 - 0",null,null,null,null,null,null,null,null,null,null,null,null,null,"R7, 0.5 - 0.5",null,"R8, 0.5 - 0.5",null,null,null,null,null,null,null,null,null,null,null,null,null,null,null,null,null,null,null,null,null,null,null,null,null,null,null,null,null,null,null,null,null,null,null,null,null,null,null,null,null,null,null,null,null,null,null,null,null,null,"R1, 0 - 1",null,null,null,null,null,null,null,null,null,null,null,null,null,"R4, 0 - 1","R2, 1 - 0",null,null,"R1, 0.5 - 0.5",null,"R2, 0.5 - 0.5","R5, 1 - 0","R3, 0.5 - 0.5","R5, 1 - 0","R6, 20 - 5",null,"R3, 0 - 1",null,"R2, 0 - 1","R1, 0 - 1","R5, 0 - 1",null,"R3, 0 - 1","R4, 0 - 1","R1, 0 - 1","R2, 1 - 0",null,"R2, 0.5 - 0.5","R1, 1 - 0","R6, 0.5 - 0.5","R6, 0.5 - 0.5","R1, 0.5 - 0.5"]
["Wolio ",null,null,null,null,null,null,"R2, 0 - 1",null,null,null,null,null,null,null,null,null,null,null,null,null,null,null,null,null,null,null,null,null,null,null,null,null,null,null,null,null,"R7, 0 - 1",null,"R8, 0 - 1",null,null,null,"R1, 0 - 1",null,null,null,null,null,null,null,null,null,null,null,null,null,null,null,null,null,null,null,null,null,"R4, 0.5 - 0.5",null,null,null,null,null,null,null,null,null,null,null,null,null,null,null,null,null,null,null,null,null,null,null,null,null,null,null,null,null,null,null,null,null,null,"R3, 1 - 0","R1, 0 - 1",null,null,"R5, 0 - 1","R6, 1 - 0",null,"R2, 0.5 - 0.5","R5, 0 - 1","R2, 0.5 - 0.5","R1, 0.5 - 0.5",null,"R6, 1 - 0","R2, 0.5 - 0.5",null,null,"R1, 0.5 - 0.5","R4, 0.5 - 0.5",null,"R1, 1 - 0","R5, 1 - 0","R4, 0.5 - 0.5","R1, 0 - 1","R4, 0.5 - 0.5","R6, 0 - 1",null,null,"R5, 0.5 - 0.5","R3, 0.5 - 0.5"]
["Reszka ",null,null,null,null,"R4, 0.5 - 0.5",null,null,null,null,null,null,null,null,null,null,null,null,null,"R1, 0.5 - 0.5",null,null,null,null,null,null,null,null,null,null,null,null,"R7, 0.5 - 0.5",null,null,null,null,null,null,null,null,null,null,null,null,null,null,null,null,"R6, 0.5 - 0.5",null,null,null,null,null,null,null,null,null,null,null,null,null,null,null,null,null,null,null,null,null,null,null,null,null,null,null,null,null,null,null,null,null,null,null,null,null,null,null,"R3, 0 - 1",null,null,null,"R2, 0.5 - 0.5",null,null,null,null,null,"R5, 1 - 0",null,"R8, 0.5 - 0.5","R4, 1 - 0",null,null,"R1, 1 - 0","R7, 0.5 - 0.5","R1, 0 - 1","R2, 1 - 0","R1, 1 - 0",null,null,"R1, 0.5 - 0.5","R5, 0 - 1","R3, 1 - 0","R4, 0 - 1","R1, 0 - 1",null,"R4, 0.5 - 0.5","R2, 0.5 - 0.5","R4, 0.5 - 0.5","R1, 0 - 1","R4, 3 - 18","R1, 0 - 1","R6, 1 - 0",null,"R4, 0 - 1","R1, 1 - 0","R5, 0.5 - 0.5"]
["Slimaq ",null,null,null,null,null,null,null,null,null,null,null,null,null,null,null,null,null,"R3, 1 - 0",null,null,null,null,null,null,null,null,null,null,null,null,"R5, 0 - 1",null,null,null,null,null,null,null,null,null,null,null,null,null,null,null,null,null,null,null,null,null,null,null,null,null,"R2, 0.5 - 0.5",null,null,null,null,null,null,null,null,null,null,null,null,null,null,null,null,null,null,null,null,null,null,null,null,null,null,null,null,null,null,null,null,null,null,"R8, 0 - 1",null,null,null,null,"R1, 0 - 1",null,null,null,"R4, 1 - 0","R1, 0.5 - 0.5",null,null,"R3, 1 - 0","R1, 0.5 - 0.5","R6, 0.5 - 0.5","R1, 1 - 0",null,"R6, 0.5 - 0.5","R7, 0.5 - 0.5","R2, 0.5 - 0.5","R3, 0 - 1","R4, 0 - 1","R6, 0 - 1","R1, 0.5 - 0.5","R1, 1 - 0","R4, 0 - 1","R3, 0.5 - 0.5","R5, 0 - 1","R6, 0.5 - 0.5","R1, 0.5 - 0.5","R1, 0 - 1","R5, 0.5 - 0.5","R4, 0.5 - 0.5","R6, 0.5 - 0.5","R4, 0 - 1"]
["Skuld ",null,null,null,null,null,null,null,null,null,null,null,null,null,null,null,null,null,null,null,null,"R7, 0.5 - 0.5",null,null,null,null,null,null,null,null,null,null,"R8, 0.5 - 0.5",null,null,null,null,null,null,null,null,null,null,null,null,null,null,null,null,"R2, 1 - 0",null,null,null,"R4, 1 - 0",null,null,null,null,null,null,null,null,null,null,null,null,null,null,null,null,null,null,null,null,null,null,null,null,null,null,null,null,null,null,null,null,null,null,null,null,null,null,null,null,"R1, 0.5 - 0.5",null,null,null,null,null,"R1, 0 - 1","R6, 1 - 0","R5, 0.5 - 0.5",null,"R6, 20 - 5","R1, 1 - 0","R2, 0 - 1","R5, 0 - 1","R1, 23 - 3","R1, 1 - 0","R5, 0 - 1",null,"R1, 0.5 - 0.5","R1, 0 - 1","R2, 22 - 3","R1, 0 - 1","R4, 1 - 0","R3, 1 - 0","R5, 0 - 1","R4, 20 - 4","R2, 0.5 - 0.5","R1, 0 - 1","R1, 1 - 0",null,"R1, 1 - 0","R3, 1 - 0","R2, 19 - 5",null,"R1, 1 - 0"]
["Balder ",null,null,null,null,null,null,null,null,null,null,"R6, 0 - 1",null,null,null,"R3, 1 - 0",null,null,null,null,null,null,null,null,null,null,null,null,null,null,null,null,null,"R7, 1 - 0",null,null,null,null,null,null,null,null,null,null,null,null,null,null,null,"R4, 0 - 1",null,null,null,null,null,null,null,null,null,null,null,null,null,null,null,null,null,null,null,null,null,null,null,null,null,null,null,null,null,null,null,null,null,null,"R8, 0 - 1",null,null,null,null,null,null,null,null,null,null,"R2, 0 - 1",null,null,null,null,null,null,null,"R5, 0.5 - 0.5","R1, 0 - 1","R5, 0 - 1",null,"R2, 0 - 1","R6, 0 - 1","R1, 1 - 0","R1, 0 - 1",null,null,"R1, 1 - 0","R4, 0.5 - 0.5","R3, 0.5 - 0.5","R2, 0 - 1",null,null,"R4, 0.5 - 0.5","R1, 1 - 0",null,"R4, 0 - 1","R5, 0.5 - 0.5","R5, 0 - 1","R3, 1 - 0","R1, 0.5 - 0.5","R1, 0 - 1"]
["Dionysian ",null,null,null,null,null,null,null,null,"R3, 0 - 1",null,null,null,null,null,null,null,null,null,null,null,null,null,null,null,null,null,null,null,null,null,null,null,null,null,null,null,null,null,null,null,null,null,null,null,null,null,null,null,null,null,null,null,null,"R2, 0 - 1","R7, 1 - 0",null,null,null,null,null,null,null,null,null,"R6, 0.5 - 0.5",null,null,null,null,null,null,null,null,null,"R5, 1 - 0",null,null,null,"R1, 0 - 1",null,null,null,null,null,null,null,null,null,null,null,null,null,null,null,null,null,null,null,null,"R4, 0.5 - 0.5",null,"R5, 18 - 2","R1, 0.5 - 0.5",null,null,null,"R4, 19 - 2","R6, 0 - 1","R6, 0 - 1",null,"R2, 0.5 - 0.5",null,"R4, 1 - 0","R1, 1 - 0","R5, 0 - 1","R3, 0 - 1","R4, 1 - 0","R2, 1 - 0",null,"R1, 1 - 0","R5, 0 - 1","R8, 1 - 0","R1, 1 - 0",null,"R6, 1 - 0","R1, 0 - 1","R3, 1 - 0","R1, 0.5 - 0.5"]
["Harza ",null,"R1, 1 - 0",null,null,null,null,null,null,null,null,null,null,null,null,null,null,null,"R7, 0 - 1",null,null,null,null,null,null,null,null,null,null,null,"R5, 0 - 1",null,null,"R8, 1 - 0",null,null,null,null,null,null,null,null,null,null,null,null,null,null,null,null,null,null,null,null,null,null,null,"R6, 0 - 1",null,null,null,null,null,null,null,null,null,null,null,null,null,null,null,null,null,null,null,null,null,null,null,null,null,null,null,null,null,"R2, 1 - 0",null,null,null,null,null,null,null,null,null,null,null,null,"R5, 0.5 - 0.5","R4, 0 - 1",null,null,"R1, 0 - 1","R2, 0.5 - 0.5","R5, 1 - 0","R1, 1 - 0",null,"R1, 9 - 10",null,"R4, 0 - 1","R6, 0.5 - 0.5",null,"R4, 0.5 - 0.5","R1, 0 - 1","R5, 0.5 - 0.5",null,"R3, 0.5 - 0.5","R3, 1 - 0",null,"R1, 1 - 0","R5, 1 - 0","R3, 0 - 1","R4, 0.5 - 0.5",null,"R1, 0 - 1","R1, 1 - 0","R3, 0 - 1"]
["Idroj ",null,null,null,null,null,null,null,null,"R7, 0 - 1",null,null,null,"R2, 1 - 0",null,null,null,"R5, 1 - 0",null,"R8, 0 - 1",null,null,"R6, 0 - 1",null,null,null,null,null,null,null,null,null,null,null,null,null,null,null,null,null,null,null,null,"R4, 1 - 0",null,null,null,null,null,null,null,null,null,null,null,null,null,null,null,null,null,null,null,null,null,null,null,null,null,null,null,null,null,null,null,null,null,null,null,null,null,null,null,null,null,null,null,null,null,null,null,null,null,null,null,null,null,null,null,null,null,"R3, 0.5 - 0.5","R4, 0 - 1",null,null,null,"R1, 0 - 1","R3, 1 - 0",null,"R4, 1 - 0","R1, 0 - 1","R1, 0 - 1","R1, 0 - 1",null,"R5, 1 - 0","R4, 0.5 - 0.5","R2, 0 - 1",null,"R1, 0.5 - 0.5","R4, 0.5 - 0.5",null,"R1, 0 - 1","R1, 0.5 - 0.5","R3, 1 - 0","R1, 0 - 1","R1, 0 - 1","R5, 0.5 - 0.5",null,"R4, 0 - 1"]
["Faccko ",null,null,null,null,null,null,null,null,null,null,null,null,null,null,null,null,"R7, 0.5 - 0.5",null,null,"R1, 1 - 0",null,null,null,null,null,null,null,null,null,null,null,null,null,null,null,null,null,null,null,null,null,null,null,null,null,null,null,null,null,null,null,null,null,null,null,null,null,null,"R4, 1 - 0",null,null,null,null,null,null,"R6, 0.5 - 0.5",null,"R8, 0.5 - 0.5",null,null,"R5, 1 - 0",null,null,null,null,null,null,null,null,null,null,null,null,null,null,"R3, 0.5 - 0.5",null,null,"R2, 0.5 - 0.5",null,null,null,null,null,null,null,null,null,null,"R1, 0.5 - 0.5",null,null,"R6, 1 - 0",null,"R2, 20 - 3","R2, 0.5 - 0.5",null,null,"R1, 1 - 0","R1, 0 - 1","R1, 0 - 1","R1, 0.5 - 0.5","R5, 0 - 1",null,"R3, 0 - 1","R6, 0 - 1","R4, 0.5 - 0.5","R6, 0 - 1",null,null,"R2, 1 - 0",null,"R1, 1 - 0","R6, 0 - 1","R2, 0.5 - 0.5","R1, 0.5 - 0.5","R7, 1 - 0"]
["MacWitt ",null,null,null,null,null,null,"R4, 0.5 - 0.5",null,null,null,null,null,null,null,null,null,null,null,null,null,null,null,null,null,null,null,null,null,"R3, 0 - 1",null,null,null,null,null,null,null,null,null,null,null,null,null,null,null,null,null,null,null,null,null,null,null,null,null,null,null,null,null,null,"R2, 0.5 - 0.5",null,null,null,null,null,null,"R5, 1 - 0",null,null,null,null,null,null,null,null,null,null,null,null,null,null,null,null,null,null,null,null,null,"R7, 0 - 1",null,null,null,null,null,null,null,null,null,null,"R4, 0 - 1","R3, 0.5 - 0.5","R1, 1 - 0","R5, 1 - 0","R1, 0 - 1","R1, 0.5 - 0.5","R1, 1 - 0","R1, 0 - 1",null,null,null,"R1, 0 - 1","R2, 0.5 - 0.5","R3, 1 - 0","R8, 1 - 0",null,null,"R2, 0.5 - 0.5","R6, 0.5 - 0.5","R5, 0 - 1","R2, 0.5 - 0.5","R2, 1 - 0","R1, 1 - 0","R6, 0.5 - 0.5","R1, 0 - 1","R1, 0 - 1","R2, 1 - 0","R2, 0.5 - 0.5","R5, 0 - 1"]
["Pellevin ",null,null,null,null,null,null,"R6, 1 - 0",null,null,null,null,null,null,null,null,null,null,null,null,null,null,null,null,null,null,null,null,null,"R2, 1 - 0",null,null,null,"R1, 1 - 0",null,null,null,null,null,null,"R4, 0 - 1",null,null,null,null,null,null,null,null,null,null,"R8, 1 - 0",null,null,null,null,null,null,null,null,null,null,null,null,null,null,"R3, 0 - 1",null,null,null,null,null,null,null,null,null,null,null,null,null,null,null,null,null,null,null,null,null,null,null,null,null,null,null,null,null,null,null,null,null,"R5, 1 - 0","R6, 0 - 1",null,"R6, 0.5 - 0.5","R4, 0 - 1",null,"R7, 0 - 1",null,"R5, 1 - 0","R1, 0 - 1","R1, 0.5 - 0.5",null,"R1, 0.5 - 0.5","R6, 0 - 1",null,"R5, 1 - 0","R2, 1 - 0",null,null,"R3, 0 - 1","R2, 1 - 0",null,"R2, 1 - 0",null,"R3, 1 - 0","R3, 0.5 - 0.5","R2, 1 - 0","R6, 0.5 - 0.5","R2, 0 - 1"]
["Araznaroth ",null,null,null,null,null,null,null,null,null,null,null,"R6, 0.5 - 0.5",null,null,null,"R1, 0 - 1",null,null,null,null,null,null,null,null,null,null,null,null,null,null,null,null,null,null,null,null,null,null,null,null,null,null,null,null,"R2, 0.5 - 0.5",null,null,null,null,null,null,null,null,null,"R8, 1 - 0",null,null,"R5, 0 - 1",null,null,null,null,null,null,null,null,null,null,null,null,null,null,null,"R7, 0.5 - 0.5",null,null,null,null,null,null,null,null,null,null,null,null,null,null,null,null,null,null,null,"R3, 0.5 - 0.5",null,null,null,null,"R4, 1 - 0",null,null,"R4, 0.5 - 0.5",null,"R6, 0.5 - 0.5","R3, 0.5 - 0.5",null,"R1, 1 - 0","R4, 0.5 - 0.5",null,"R1, 1 - 0",null,null,"R6, 1 - 0","R1, 0.5 - 0.5","R4, 0.5 - 0.5","R3, 0 - 1","R5, 1 - 0","R2, 1 - 0","R2, 1 - 0",null,"R5, 1 - 0","R4, 1 - 0","R2, 1 - 0","R3, 0 - 1","R1, 0.5 - 0.5","R2, 1 - 0","R1, 1 - 0"]
["JimJimany ",null,null,null,null,null,null,null,null,null,null,null,null,"R3, 1 - 0",null,null,null,null,null,null,null,null,null,null,"R5, 0 - 1",null,null,null,"R7, 0 - 1",null,null,null,null,null,null,null,null,null,null,null,null,null,null,null,"R2, 0.5 - 0.5",null,null,null,null,null,null,null,null,null,null,null,null,null,null,null,null,null,null,null,null,null,null,null,null,null,null,"R1, 0 - 1",null,null,null,null,null,null,null,null,"R6, 1 - 0",null,null,null,null,null,null,null,null,null,null,null,null,"R4, 0 - 1",null,null,null,null,null,null,"R6, 0.5 - 0.5","R6, 0.5 - 0.5",null,"R4, 1 - 0","R2, 0.5 - 0.5","R1, 0 - 1","R1, 0 - 1",null,"R4, 0 - 1",null,null,null,"R1, 1 - 0",null,"R2, 1 - 0",null,null,null,"R3, 1 - 0","R3, 0.5 - 0.5","R6, 0.5 - 0.5","R1, 0 - 1",null,"R2, 1 - 0","R4, 0 - 1","R4, 0.5 - 0.5","R8, 0 - 1","R2, 0 - 1"]
["zulu ",null,null,null,null,null,null,null,null,null,null,null,null,null,null,null,null,null,null,null,null,null,null,null,null,null,null,null,null,null,null,null,null,null,null,null,null,null,null,null,null,null,null,null,null,null,null,null,null,null,null,null,null,null,null,null,null,null,null,null,null,null,null,null,null,null,null,null,null,"R5, 1 - 0",null,null,null,null,null,null,null,null,null,null,null,"R8, 0.5 - 0.5",null,null,null,null,null,null,null,null,null,null,null,null,null,null,null,null,null,null,"R6, 0.5 - 0.5",null,"R5, 0.5 - 0.5","R1, 0.5 - 0.5","R2, 0 - 1","R6, 0.5 - 0.5",null,null,"R1, 0.5 - 0.5","R3, 0 - 1","R2, 0.5 - 0.5","R1, 0 - 1",null,"R2, 0.5 - 0.5","R7, 0 - 1",null,null,"R4, 0.5 - 0.5",null,"R2, 1 - 0","R5, 0.5 - 0.5","R7, 1 - 0",null,"R2, 1 - 0","R2, 0 - 1",null,"R3, 0.5 - 0.5","R3, 0 - 1","R1, 1 - 0"]
["mynock ","R5, 0.5 - 0.5",null,null,null,null,null,null,null,"R8, 0.5 - 0.5",null,null,null,null,null,null,null,null,null,null,null,null,null,null,null,null,null,null,null,null,"R6, 1 - 0",null,null,null,null,null,null,null,null,null,null,null,null,null,null,null,null,null,null,null,null,null,null,null,null,"R3, 0.5 - 0.5",null,null,null,"R7, 1 - 0",null,null,null,null,null,null,null,null,null,null,null,null,null,null,null,null,null,null,null,null,null,null,null,null,null,null,null,null,null,null,null,null,null,null,null,null,"R2, 0 - 1",null,null,null,"R1, 0 - 1",null,null,null,null,"R1, 0.5 - 0.5","R1, 1 - 0",null,"R5, 1 - 0",null,"R2, 0 - 1",null,"R1, 0 - 1","R2, 1 - 0",null,null,"R5, 0.5 - 0.5","R6, 1 - 0","R4, 1 - 0","R2, 0 - 1","R3, 0.5 - 0.5",null,"R2, 0.5 - 0.5","R1, 1 - 0",null,null,null,null,"R2, 1 - 0"]
["Strider84 ",null,null,null,null,null,null,null,null,null,"R3, 0 - 1",null,null,null,null,null,null,null,null,null,null,null,null,null,null,null,null,null,null,null,null,null,null,null,null,null,null,null,null,null,null,null,null,null,null,null,null,null,null,null,null,null,null,null,null,null,null,null,null,null,null,null,null,null,null,null,null,null,null,null,null,null,null,null,null,"R6, 1 - 0",null,null,null,null,null,null,null,null,null,null,null,null,null,null,null,null,null,null,null,null,null,null,"R4, 1 - 0",null,null,"R1, 0 - 1","R6, 1 - 0",null,null,null,null,"R4, 0 - 1","R8, 1 - 0",null,"R1, 1 - 0","R1, 0.5 - 0.5",null,"R4, 0 - 1","R3, 0 - 1","R6, 0 - 1","R2, 0 - 1",null,"R3, 1 - 0",null,null,"R2, 0.5 - 0.5",null,"R2, 1 - 0","R5, 0 - 1","R7, 0.5 - 0.5","R6, 0 - 1","R2, 0.5 - 0.5","R4, 0.5 - 0.5"]
["Phifoe ","R1, 0.5 - 0.5",null,null,null,null,null,null,null,null,null,null,null,null,null,null,null,null,null,null,null,null,null,null,null,null,null,null,null,null,null,null,null,null,"R6, 0.5 - 0.5",null,"R2, 0 - 1","R4, 1 - 0",null,null,null,null,null,null,null,null,null,null,null,null,null,null,"R7, 1 - 0",null,null,null,null,null,null,null,null,null,null,null,null,null,null,null,null,null,null,null,null,"R8, 0 - 1",null,null,null,null,null,null,null,null,null,null,null,null,null,null,null,null,null,null,null,null,null,"R5, 1 - 0",null,null,null,null,"R5, 1 - 0",null,"R3, 0 - 1","R3, 1 - 0","R3, 0.5 - 0.5","R1, 0 - 1","R2, 0.5 - 0.5","R3, 1 - 0",null,"R5, 0 - 1","R1, 0 - 1",null,"R1, 0.5 - 0.5","R6, 0.5 - 0.5","R1, 0 - 1",null,null,"R6, 10 - 11","R2, 1 - 0","R2, 0 - 1","R2, 1 - 0","R1, 1 - 0",null,"R4, 1 - 0","R4, 0 - 1",null,null,"R1, 0 - 1","R3, 1 - 0"]
["JohnnyD ",null,null,null,null,null,null,null,null,null,null,null,null,"R7, 1 - 0",null,null,null,null,null,null,null,null,null,null,null,null,null,null,null,null,null,null,null,null,null,null,null,null,null,null,null,null,null,null,null,null,null,null,null,null,null,null,null,null,null,null,null,"R5, 0 - 1",null,null,null,null,null,null,null,null,null,null,null,"R6, 0 - 1",null,null,null,null,null,null,"R2, 0 - 1",null,null,null,null,null,null,null,null,null,null,null,null,null,null,null,null,null,null,null,null,null,null,null,null,"R1, 0 - 1","R1, 0.5 - 0.5",null,null,"R1, 1 - 0",null,null,"R1, 1 - 0",null,"R1, 0.5 - 0.5","R8, 1 - 0",null,"R2, 0.5 - 0.5","R1, 0 - 1",null,"R6, 0 - 1",null,"R6, 1 - 0","R6, 0.5 - 0.5","R4, 0.5 - 0.5",null,"R4, 1 - 0",null,"R1, 1 - 0","R2, 0 - 1","R3, 0.5 - 0.5","R4, 1 - 0"]
["Dekra1979 ",null,null,"R2, 0.5 - 0.5",null,null,null,null,null,null,null,null,null,null,null,null,null,null,null,null,null,null,null,null,null,null,null,null,null,null,null,null,null,null,null,null,null,null,null,null,null,null,null,"R8, 0 - 1",null,null,null,null,null,null,null,null,null,null,null,null,null,null,null,null,null,null,null,"R6, 1 - 0",null,null,null,null,null,null,null,null,null,null,null,null,null,null,null,null,null,null,null,null,null,null,null,null,"R3, 0 - 1",null,null,null,null,null,null,null,null,null,null,null,"R1, 0.5 - 0.5",null,"R2, 0 - 1",null,null,"R1, 0.5 - 0.5","R4, 1 - 0","R1, 1 - 0","R1, 0.5 - 0.5","R1, 0 - 1","R2, 0.5 - 0.5",null,"R3, 0 - 1","R1, 0.5 - 0.5",null,"R5, 0.5 - 0.5","R6, 1 - 0",null,"R7, 0 - 1",null,null,"R4, 0.5 - 0.5",null,"R6, 0.5 - 0.5","R4, 1 - 0",null,"R1, 0.5 - 0.5","R1, 1 - 0","R5, 1 - 0"]
["straume ",null,"R8, 1 - 0",null,null,null,null,null,null,null,null,null,null,null,null,null,null,null,null,null,null,null,null,"R1, 0.5 - 0.5",null,null,null,null,null,null,null,null,null,null,null,null,null,null,null,null,null,null,null,null,null,null,null,null,null,"R7, 0 - 1",null,null,null,null,null,null,null,null,"R2, 0.5 - 0.5",null,null,null,null,null,null,null,null,null,null,null,null,null,null,null,"R4, 1 - 0",null,null,null,null,null,null,null,null,"R6, 0 - 1",null,null,null,null,null,null,null,"R3, 1 - 0",null,null,null,null,null,null,null,null,"R3, 1 - 0","R5, 0.5 - 0.5","R5, 0 - 1","R3, 0 - 1",null,null,"R1, 0.5 - 0.5","R5, 0.5 - 0.5",null,"R3, 0 - 1","R1, 0.5 - 0.5","R1, 1 - 0","R1, 1 - 0","R4, 0.5 - 0.5","R6, 0.5 - 0.5","R2, 0.5 - 0.5",null,"R2, 1 - 0","R4, 0.5 - 0.5",null,null,"R4, 0 - 1",null,null,"R6, 1 - 0","R1, 1 - 0","R4, 0.5 - 0.5","R2, 0.5 - 0.5","R6, 0.5 - 0.5"]
["Barry ",null,null,"R7, 0 - 1",null,null,null,null,"R3, 0 - 1",null,null,null,null,null,"R6, 0 - 1",null,null,null,null,null,null,null,null,null,null,"R5, 0.5 - 0.5",null,null,null,null,null,null,null,null,null,null,"R4, 0 - 1",null,null,null,null,null,null,null,null,null,null,null,null,null,null,null,null,null,null,null,null,null,null,null,null,null,null,null,null,null,null,null,null,null,null,null,null,null,null,null,null,null,null,null,null,null,null,null,null,null,null,null,null,null,null,null,null,null,null,null,null,"R8, 1 - 0","R1, 1 - 0",null,"R3, 0.5 - 0.5","R2, 1 - 0",null,"R3, 0 - 1","R1, 0 - 1","R1, 1 - 0","R2, 1 - 0","R1, 0 - 1","R1, 1 - 0","R1, 1 - 0",null,"R5, 1 - 0","R7, 0.5 - 0.5","R2, 0 - 1",null,null,null,"R2, 0 - 1",null,"R6, 0.5 - 0.5","R1, 0.5 - 0.5","R2, 0.5 - 0.5","R4, 0 - 1",null,"R1, 1 - 0","R4, 0.5 - 0.5"]
["Tactel ",null,null,null,null,null,null,null,null,null,null,null,null,null,null,null,null,null,null,null,null,null,null,null,null,null,null,null,null,null,null,null,null,null,null,null,null,null,"R2, 1 - 0",null,null,null,null,null,null,null,null,null,null,null,null,null,null,null,null,null,null,null,null,null,null,null,null,null,null,null,null,null,null,"R3, 1 - 0",null,null,null,null,null,null,null,null,null,null,null,"R7, 1 - 0",null,"R1, 0 - 1",null,null,null,null,null,null,null,null,null,null,null,null,"R8, 0.5 - 0.5",null,null,null,"R3, 3 - 20",null,"R1, 0.5 - 0.5","R1, 0.5 - 0.5","R1, 0 - 1",null,null,"R1, 1 - 0","R1, 0.5 - 0.5","R1, 1 - 0",null,"R3, 1 - 0","R5, 1 - 0",null,"R5, 1 - 0",null,"R6, 1 - 0","R6, 0.5 - 0.5",null,"R1, 1 - 0",null,"R2, 0.5 - 0.5","R6, 0 - 1","R3, 1 - 0",null,"R3, 1 - 0","R4, 1 - 0","R4, 0 - 1","R1, 0 - 1"]
["Pidpad ",null,null,null,null,null,null,null,null,null,null,null,null,null,null,null,null,null,null,null,null,null,null,null,null,null,null,null,null,null,null,null,null,null,null,null,null,null,"R7, 0 - 1",null,null,null,null,null,"R8, 0 - 1",null,null,"R3, 0.5 - 0.5",null,null,null,null,null,null,null,null,"R2, 0 - 1",null,null,null,null,null,null,"R4, 0.5 - 0.5",null,null,null,null,null,null,null,null,null,null,null,null,null,null,null,null,null,null,null,null,null,null,null,null,null,null,null,null,"R6, 0 - 1",null,null,null,null,null,null,null,"R1, 1 - 0","R3, 1 - 0","R3, 0 - 1","R1, 0.5 - 0.5",null,"R5, 0.5 - 0.5",null,null,"R3, 0.5 - 0.5","R1, 1 - 0","R1, 0.5 - 0.5","R1, 1 - 0","R1, 0 - 1","R1, 0.5 - 0.5","R4, 0 - 1",null,null,"R1, 0 - 1",null,null,"R6, 0 - 1","R6, 1 - 0","R1, 1 - 0","R5, 0 - 1","R4, 0.5 - 0.5","R4, 0 - 1","R1, 1 - 0","R6, 5 - 18","R2, 0.5 - 0.5"]
["Elrik ",null,null,null,"R5, 1 - 0","R7, 1 - 0",null,null,null,null,null,null,null,null,null,null,null,null,null,null,null,null,null,"R8, 0.5 - 0.5",null,null,null,null,null,null,null,null,null,null,null,null,null,null,null,null,null,null,null,null,null,null,null,null,null,null,null,null,null,null,null,"R2, 1 - 0",null,null,null,null,null,null,null,null,"R1, 1 - 0",null,null,null,null,null,null,"R3, 0 - 1",null,null,"R6, 1 - 0",null,null,null,null,null,null,null,null,null,null,null,null,null,null,null,null,null,null,null,null,null,null,null,null,null,null,null,null,"R4, 1 - 0","R3, 1 - 0","R3, 0.5 - 0.5","R1, 0.5 - 0.5",null,null,null,null,"R1, 1 - 0",null,null,"R2, 0.5 - 0.5","R6, 0 - 1","R5, 1 - 0",null,null,null,null,"R6, 0 - 1","R4, 0 - 1","R1, 1 - 0",null,"R1, 11 - 11",null,"R6, 0 - 1","R4, 0 - 1"]
["Simon_ACP ",null,"R4, 0.5 - 0.5",null,null,null,null,null,null,null,null,null,null,null,null,null,null,null,null,null,null,null,null,null,null,null,null,null,null,null,null,null,null,null,null,"R2, 0.5 - 0.5",null,null,null,"R6, 1 - 0",null,null,null,null,null,null,null,null,null,null,"R5, 1 - 0",null,null,null,null,null,null,null,null,null,null,null,null,null,null,null,"R1, 0 - 1",null,null,null,null,null,null,null,null,null,"R8, 0.5 - 0.5",null,null,null,null,null,null,null,null,null,null,null,null,null,null,null,"R7, 1 - 0",null,null,null,null,null,null,null,"R5, 0.5 - 0.5","R6, 1 - 0","R4, 0.5 - 0.5","R2, 0.5 - 0.5","R2, 0 - 1","R1, 0.5 - 0.5","R1, 0 - 1","R6, 0 - 1","R2, 1 - 0",null,"R3, 0 - 1","R4, 0.5 - 0.5",null,null,null,"R1, 0.5 - 0.5","R1, 0 - 1",null,"R3, 0 - 1",null,"R1, 0 - 1","R2, 1 - 0",null,null,"R7, 0 - 1","R3, 0.5 - 0.5",null,"R2, 0 - 1"]
["sann0638 ",null,"R6, 1 - 0",null,null,null,null,null,null,null,null,null,null,null,null,null,null,null,null,null,"R8, 0.5 - 0.5",null,null,"R3, 0.5 - 0.5",null,null,null,null,null,null,null,null,null,null,null,null,null,null,null,null,null,null,null,null,"R5, 1 - 0",null,null,null,null,null,null,null,"R2, 0.5 - 0.5",null,null,null,null,null,null,null,"R7, 1 - 0",null,"R4, 0.5 - 0.5",null,null,null,null,null,null,null,null,null,null,null,null,null,null,null,null,null,null,null,null,null,null,null,null,null,null,null,null,null,null,null,null,null,null,null,null,null,"R1, 0 - 1","R2, 0.5 - 0.5","R2, 0.5 - 0.5","R1, 0.5 - 0.5",null,"R2, 0.5 - 0.5","R5, 0.5 - 0.5","R2, 18 - 4","R1, 1 - 0","R5, 1 - 0","R4, 0.5 - 0.5","R2, 0 - 1","R1, 0 - 1","R3, 0 - 1","R3, 0 - 1",null,null,"R4, 1 - 0","R1, 0.5 - 0.5","R1, 0.5 - 0.5","R3, 0 - 1","R3, 1 - 0","R2, 0 - 1","R1, 0 - 1","R1, 0.5 - 0.5",null,"R2, 1 - 0","R6, 0.5 - 0.5","R2, 0.5 - 0.5"]
["Goss ",null,null,null,null,null,"R1, 1 - 0",null,null,null,null,null,null,null,null,null,null,null,null,null,null,null,null,null,null,null,null,"R6, 1 - 0",null,null,null,null,null,null,null,null,null,null,null,null,null,"R4, 0 - 1",null,null,null,null,null,"R7, 0 - 1",null,null,null,null,null,null,null,null,null,null,null,null,null,null,null,null,null,null,null,null,null,null,null,null,null,null,null,null,null,"R3, 1 - 0",null,"R5, 0.5 - 0.5",null,null,null,null,null,null,null,null,null,null,"R2, 1 - 0",null,null,"R8, 1 - 0",null,null,null,null,null,null,null,"R2, 0 - 1",null,"R5, 0.5 - 0.5","R1, 0 - 1",null,"R2, 0 - 1","R1, 0.5 - 0.5","R2, 0.5 - 0.5","R2, 21 - 4","R1, 0.5 - 0.5",null,"R4, 1 - 0","R1, 1 - 0","R1, 1 - 0","R2, 1 - 0",null,null,"R3, 0.5 - 0.5","R3, 0.5 - 0.5",null,"R5, 0 - 1","R1, 0.5 - 0.5","R2, 1 - 0",null,"R2, 0.5 - 0.5","R6, 0 - 1",null,"R2, 0.5 - 0.5"]
["Muadib ",null,null,"R5, 0 - 1",null,null,null,null,null,null,null,null,null,null,null,null,null,null,null,null,null,null,null,null,null,"R4, 0.5 - 0.5",null,null,null,null,"R3, 0.5 - 0.5","R6, 1 - 0",null,null,null,null,null,null,null,null,null,null,"R2, 0.5 - 0.5",null,null,null,null,null,null,null,null,null,null,null,null,null,null,null,"R7, 0 - 1",null,null,null,null,null,null,null,null,null,null,null,null,null,null,null,null,null,null,null,null,null,null,null,null,null,null,null,null,null,null,null,null,null,null,null,null,null,null,null,null,null,"R1, 1 - 0","R6, 1 - 0","R1, 1 - 0","R5, 0.5 - 0.5","R2, 0 - 1",null,"R4, 1 - 0","R3, 0 - 1",null,"R3, 0 - 1","R1, 1 - 0","R4, 0.5 - 0.5","R1, 1 - 0","R2, 0.5 - 0.5",null,"R3, 0 - 1",null,"R1, 1 - 0",null,"R3, 0 - 1","R1, 0.5 - 0.5","R5, 0.5 - 0.5","R2, 0 - 1","R3, 0 - 1","R8, 0 - 1","R3, 0.5 - 0.5","R1, 1 - 0","R2, 0 - 1"]
["swifty ",null,null,null,null,null,"R2, 1 - 0",null,null,null,null,null,null,null,null,null,null,null,null,null,null,null,null,null,"R4, 0 - 1",null,null,null,null,null,null,null,null,null,null,null,null,null,null,null,null,null,null,null,null,null,null,null,null,null,null,null,null,null,null,null,null,null,null,null,null,null,null,"R5, 0.5 - 0.5",null,null,null,"R7, 0 - 1",null,null,null,null,null,null,null,null,null,null,"R8, 0.5 - 0.5",null,null,null,null,null,null,null,null,null,null,null,"R1, 0 - 1",null,null,null,null,"R6, 0 - 1",null,null,null,null,"R2, 1 - 0","R1, 1 - 0","R2, 0 - 1","R6, 0 - 1","R1, 1 - 0","R4, 0 - 1","R2, 0.5 - 0.5","R4, 0.5 - 0.5","R1, 1 - 0","R4, 1 - 0",null,"R3, 1 - 0","R5, 0.5 - 0.5","R3, 0 - 1","R3, 0 - 1","R1, 0.5 - 0.5","R3, 1 - 0","R2, 0.5 - 0.5","R1, 0.5 - 0.5","R3, 1 - 0","R5, 0.5 - 0.5",null,"R4, 0.5 - 0.5",null,"R2, 0.5 - 0.5","R2, 1 - 0","R7, 0 - 1","R1, 1 - 0","R3, 0 - 1"]
["Matte8 ",null,null,null,null,null,null,null,null,null,null,null,null,null,null,null,null,null,null,null,null,null,null,null,null,null,null,null,null,"R5, 1 - 0",null,null,null,null,null,null,null,null,null,null,null,null,null,null,null,null,null,null,null,null,null,null,null,null,null,null,null,null,"R4, 0.5 - 0.5",null,null,null,null,null,null,"R8, 0.5 - 0.5",null,null,null,null,"R7, 0 - 1",null,null,null,null,null,null,null,null,null,null,null,null,null,"R1, 0.5 - 0.5",null,null,null,null,null,null,null,null,null,null,null,null,null,null,null,"R5, 0 - 1","R1, 0.5 - 0.5","R2, 0.5 - 0.5","R2, 1 - 0","R5, 1 - 0","R5, 0 - 1",null,null,"R4, 0.5 - 0.5","R1, 0.5 - 0.5",null,"R1, 0.5 - 0.5","R4, 0 - 1","R6, 0 - 1","R1, 0 - 1",null,"R1, 0.5 - 0.5","R3, 1 - 0","R2, 0 - 1",null,null,"R2, 0 - 1","R2, 0.5 - 0.5",null,"R2, 0 - 1",null,null,null,"R5, 1 - 0"]
["Joanet ",null,"R7, 0.5 - 0.5",null,null,null,null,null,null,null,null,null,null,null,null,null,null,null,null,null,null,null,null,null,null,null,null,null,null,null,null,null,null,null,null,null,null,null,null,null,null,null,null,null,null,null,null,null,null,null,null,"R6, 0 - 1",null,null,null,"R4, 0.5 - 0.5",null,null,null,null,null,"R5, 0.5 - 0.5",null,null,"R3, 0 - 1",null,null,null,"R2, 0 - 1",null,null,null,null,null,null,null,null,null,null,null,"R8, 0.5 - 0.5",null,null,null,null,null,null,null,null,null,null,null,null,null,null,null,null,null,null,null,"R4, 0.5 - 0.5",null,"R7, 0 - 1",null,"R5, 0 - 1","R1, 1 - 0","R1, 1 - 0","R5, 0 - 1",null,"R2, 1 - 0","R4, 0 - 1","R1, 0.5 - 0.5","R4, 0 - 1","R1, 1 - 0","R3, 1 - 0","R3, 1 - 0","R2, 0 - 1","R1, 1 - 0","R5, 0.5 - 0.5",null,"R3, 0.5 - 0.5",null,"R3, 0.5 - 0.5","R2, 0 - 1",null,"R5, 1 - 0","R1, 0.5 - 0.5","R2, 0 - 1","R3, 0 - 1"]
["SpecialOne ",null,null,null,null,null,null,null,null,null,"R4, 0 - 1",null,null,null,null,null,null,null,null,null,null,null,null,"R7, 0.5 - 0.5",null,null,null,null,null,null,null,null,null,null,null,null,null,null,null,null,null,null,null,null,null,null,null,null,null,null,null,null,null,null,null,null,"R1, 0 - 1",null,null,null,null,null,null,"R3, 1 - 0",null,null,null,null,null,null,null,null,null,null,null,null,null,null,null,null,null,null,null,null,null,null,null,null,null,null,"R6, 1 - 0",null,null,null,null,null,null,null,null,null,"R1, 0 - 1","R2, 0 - 1","R6, 1 - 0","R4, 0.5 - 0.5",null,null,"R4, 1 - 0","R1, 1 - 0","R5, 1 - 0","R1, 0 - 1","R2, 1 - 0","R2, 4 - 21","R4, 0.5 - 0.5","R2, 1 - 0","R2, 0.5 - 0.5","R1, 1 - 0",null,"R3, 0 - 1","R8, 1 - 0","R3, 0.5 - 0.5",null,null,"R2, 0 - 1",null,"R5, 0.5 - 0.5","R5, 1 - 0","R2, 1 - 0","R4, 0.5 - 0.5","R2, 0.5 - 0.5"]
["Prince ",null,null,null,null,null,null,null,null,null,"R2, 0 - 1",null,null,null,null,null,null,null,null,null,null,null,null,null,null,null,null,null,null,null,null,null,null,"R4, 0.5 - 0.5",null,null,null,null,"R6, 0.5 - 0.5",null,null,null,null,null,null,null,null,null,null,null,null,null,null,null,null,null,null,null,null,null,null,null,"R8, 0.5 - 0.5",null,null,null,null,null,null,null,null,null,null,null,null,null,null,null,null,null,null,null,null,null,null,null,null,null,null,null,null,null,null,null,null,null,null,null,null,null,"R1, 0 - 1","R1, 0 - 1",null,"R3, 0.5 - 0.5",null,"R3, 0 - 1","R1, 0.5 - 0.5","R2, 0 - 1","R3, 1 - 0",null,"R7, 1 - 0","R5, 0.5 - 0.5","R5, 1 - 0","R4, 0 - 1","R1, 6 - 22","R4, 0.5 - 0.5","R1, 0 - 1","R2, 0.5 - 0.5","R5, 0.5 - 0.5","R4, 0.5 - 0.5","R4, 0.5 - 0.5","R1, 0 - 1","R5, 0 - 1","R3, 1 - 0","R1, 1 - 0","R6, 0 - 1","R3, 0 - 1","R3, 1 - 0","R2, 1 - 0"]
["GreatWhiteHope ",null,null,"R8, 0.5 - 0.5",null,null,null,null,"R5, 0.5 - 0.5",null,null,null,null,null,null,null,null,null,null,null,null,null,null,null,null,null,null,null,null,null,null,null,null,null,null,null,null,null,null,null,null,"R6, 0.5 - 0.5",null,"R3, 1 - 0",null,null,null,null,null,null,null,null,null,null,null,null,null,"R1, 1 - 0",null,null,null,null,null,null,null,null,null,null,null,null,null,null,null,null,null,null,null,null,null,null,null,null,"R4, 0 - 1",null,null,null,null,null,null,null,null,null,null,null,null,null,null,"R2, 1 - 0",null,null,null,null,"R6, 0.5 - 0.5","R1, 1 - 0","R2, 0 - 1","R2, 1 - 0","R2, 1 - 0","R2, 0 - 1","R2, 0 - 1","R1, 0.5 - 0.5",null,null,"R4, 0 - 1","R7, 0 - 1","R4, 0 - 1","R2, 0.5 - 0.5","R1, 1 - 0","R5, 1 - 0",null,null,null,"R1, 0 - 1",null,null,null,"R3, 1 - 0","R3, 0 - 1","R1, 0.5 - 0.5","R7, 0 - 1"]
["Bernuz ",null,null,null,null,null,null,null,null,null,null,null,"R1, 0.5 - 0.5",null,null,null,"R3, 1 - 0",null,null,null,null,null,null,null,null,null,null,null,null,"R4, 0.5 - 0.5",null,"R8, 0 - 1",null,null,null,null,null,null,null,null,null,null,"R5, 0 - 1",null,null,null,null,null,null,null,null,null,null,null,null,null,null,null,null,null,null,"R7, 1 - 0",null,null,null,null,null,null,null,null,null,null,null,null,null,null,null,null,null,null,null,null,null,null,null,null,null,null,null,null,null,null,null,null,null,null,null,null,null,null,"R2, 0 - 1",null,null,"R1, 1 - 0",null,"R2, 0.5 - 0.5","R2, 1 - 0","R1, 1 - 0","R2, 0 - 1",null,null,null,"R2, 0 - 1","R4, 1 - 0","R4, 0.5 - 0.5","R4, 0.5 - 0.5",null,"R5, 1 - 0","R4, 0.5 - 0.5","R4, 0.5 - 0.5","R5, 0.5 - 0.5",null,"R3, 1 - 0",null,"R2, 0.5 - 0.5","R3, 1 - 0","R6, 0.5 - 0.5","R5, 0 - 1"]
["MadeofWelsh ",null,null,null,"R1, 0.5 - 0.5",null,null,null,null,null,null,null,null,null,null,null,null,null,null,null,null,null,"R4, 0.5 - 0.5",null,"R6, 1 - 0",null,null,null,null,null,null,null,null,null,null,null,null,null,null,null,null,"R8, 0.5 - 0.5",null,null,null,null,null,null,null,null,null,null,null,null,null,null,null,null,null,null,null,null,null,"R2, 1 - 0",null,null,null,null,null,null,null,null,null,null,null,null,null,null,null,null,null,"R3, 0.5 - 0.5","R5, 0 - 1",null,null,null,null,null,null,null,null,null,null,null,null,null,null,null,null,null,"R2, 1 - 0","R1, 0.5 - 0.5",null,null,null,"R2, 0.5 - 0.5","R5, 0.5 - 0.5","R2, 4 - 21","R2, 1 - 0","R2, 1 - 0",null,"R1, 0.5 - 0.5","R4, 1 - 0","R4, 0.5 - 0.5","R5, 0 - 1",null,"R1, 9 - 10","R5, 1 - 0","R4, 0 - 1","R3, 0.5 - 0.5",null,null,"R1, 0.5 - 0.5","R1, 0.5 - 0.5","R3, 1 - 0","R3, 0 - 1","R5, 1 - 0","R7, 0.5 - 0.5"]
["Tank ",null,null,null,null,null,null,null,null,null,null,null,null,null,null,null,null,null,null,null,null,null,null,null,null,null,null,null,null,null,null,null,null,null,null,null,null,null,null,null,null,null,null,null,null,null,"R5, 0 - 1",null,null,null,"R6, 1 - 0",null,null,null,"R3, 0 - 1",null,null,null,null,null,null,null,null,null,null,null,null,null,null,null,null,null,null,null,null,"R8, 0.5 - 0.5",null,null,"R4, 0.5 - 0.5",null,null,null,null,null,null,null,null,null,"R2, 0.5 - 0.5",null,null,null,null,null,null,null,null,null,null,null,null,"R3, 0 - 1","R2, 0 - 1","R2, 1 - 0","R1, 1 - 0","R1, 0.5 - 0.5",null,"R2, 0 - 1","R7, 0 - 1","R2, 0.5 - 0.5","R2, 0.5 - 0.5","R2, 1 - 0",null,"R4, 1 - 0",null,"R5, 0 - 1",null,"R5, 23 - 4","R2, 0 - 1","R4, 1 - 0","R4, 1 - 0",null,null,"R3, 0 - 1","R3, 0.5 - 0.5","R3, 0 - 1","R2, 0 - 1","R3, 1 - 0","R1, 0 - 1"]
["BeerBeer ",null,null,null,null,null,null,null,null,"R1, 1 - 0",null,null,null,null,null,null,null,null,null,null,null,null,null,null,"R2, 0.5 - 0.5",null,null,null,null,null,null,null,null,null,null,null,null,null,null,null,null,null,null,null,null,null,null,null,null,null,null,null,null,null,null,null,null,null,null,null,null,null,"R7, 1 - 0",null,null,null,null,null,null,null,null,null,null,null,null,null,"R3, 0 - 1",null,null,null,null,null,null,"R5, 0 - 1",null,null,null,null,null,null,null,null,"R4, 1 - 0",null,null,null,null,null,null,null,"R1, 1 - 0","R2, 0.5 - 0.5","R2, 0.5 - 0.5",null,"R3, 0 - 1",null,"R2, 0 - 1",null,"R6, 0.5 - 0.5","R2, 0.5 - 0.5","R2, 0.5 - 0.5","R7, 0 - 1",null,"R8, 0 - 1","R5, 0.5 - 0.5","R5, 1 - 0","R4, 1 - 0","R3, 0 - 1","R5, 0 - 1","R4, 1 - 0",null,"R3, 1 - 0","R3, 0 - 1","R5, 1 - 0","R2, 1 - 0",null,"R1, 0.5 - 0.5",null,"R3, 0.5 - 0.5"]
["ratogre ",null,null,null,null,null,null,null,"R4, 0 - 1",null,null,null,null,null,null,null,"R2, 1 - 0",null,null,null,null,null,null,null,null,null,null,null,null,null,null,null,null,null,null,null,null,null,null,null,null,"R5, 0 - 1",null,null,null,"R1, 1 - 0",null,null,null,null,null,null,null,null,null,null,"R3, 1 - 0",null,null,null,null,null,null,null,null,null,null,null,null,null,null,null,null,null,null,null,null,null,null,null,null,null,null,null,null,null,null,null,"R8, 0 - 1",null,null,null,null,"R6, 1 - 0",null,null,null,null,null,null,null,null,"R2, 0 - 1","R2, 1 - 0","R6, 0.5 - 0.5",null,"R5, 0 - 1","R2, 1 - 0","R5, 1 - 0","R2, 1 - 0","R1, 1 - 0","R2, 1 - 0",null,"R5, 0 - 1","R4, 0.5 - 0.5","R5, 0.5 - 0.5","R5, 1 - 0",null,null,"R6, 1 - 0","R4, 1 - 0","R5, 1 - 0",null,"R1, 1 - 0","R7, 0.5 - 0.5","R1, 0.5 - 0.5",null,"R5, 0 - 1","R3, 1 - 0"]
["BudWiser ",null,null,null,null,null,"R7, 0 - 1",null,null,null,null,null,null,null,null,null,null,null,null,null,null,null,null,null,null,null,null,null,null,null,null,null,null,null,null,null,null,null,null,null,null,null,null,null,null,null,null,null,null,null,null,null,null,null,null,null,null,null,null,null,null,null,null,null,null,null,null,null,null,null,null,null,null,null,"R2, 0 - 1",null,null,null,"R6, 0.5 - 0.5",null,null,null,null,null,null,null,null,null,null,null,null,null,null,null,null,null,null,null,null,null,null,"R6, 0.5 - 0.5","R3, 0 - 1","R1, 1 - 0","R5, 1 - 0","R2, 1 - 0",null,null,"R2, 0 - 1","R4, 1 - 0","R2, 1 - 0",null,"R4, 0 - 1",null,null,"R3, 0 - 1","R5, 0 - 1",null,"R4, 0 - 1","R5, 1 - 0","R1, 9 - 11","R8, 0 - 1","R3, 0 - 1","R5, 1 - 0",null,"R1, 0.5 - 0.5",null,"R3, 0.5 - 0.5","R3, 1 - 0"]
["Gros Nain ",null,null,null,null,null,null,null,null,"R4, 1 - 0",null,null,null,null,null,null,null,null,null,null,null,null,null,null,null,null,null,null,null,null,null,null,null,null,null,null,null,null,null,null,null,null,null,null,null,null,null,null,null,"R8, 1 - 0",null,null,null,null,null,null,null,null,null,null,null,null,null,null,null,null,null,null,null,null,null,null,null,null,null,null,null,null,null,null,null,null,"R2, 0 - 1",null,null,null,null,null,null,null,null,"R5, 0 - 1",null,null,null,null,null,"R3, 0 - 1",null,null,"R4, 0.5 - 0.5","R7, 1 - 0","R1, 0 - 1","R6, 1 - 0","R5, 0 - 1","R1, 0.5 - 0.5","R3, 1 - 0",null,"R1, 1 - 0",null,"R2, 1 - 0","R4, 0.5 - 0.5",null,null,null,"R1, 0.5 - 0.5","R6, 1 - 0","R2, 0.5 - 0.5","R6, 0.5 - 0.5","R1, 0 - 1",null,null,"R5, 1 - 0",null,null,null,"R1, 1 - 0","R1, 0.5 - 0.5","R1, 20 - 5"]
["Warrior1980 ",null,null,null,null,null,"R8, 0.5 - 0.5",null,null,null,null,null,null,null,null,null,null,null,null,null,null,"R5, 0 - 1",null,null,null,null,null,null,null,null,null,null,null,null,null,null,null,null,null,null,null,null,null,null,"R7, 0.5 - 0.5",null,null,null,null,null,null,null,"R4, 0 - 1",null,null,null,"R6, 0 - 1",null,null,null,null,null,null,null,null,null,null,null,null,null,null,null,"R2, 1 - 0",null,null,null,null,null,null,"R3, 0.5 - 0.5",null,null,null,null,null,null,null,null,null,null,null,null,null,null,null,null,null,null,null,null,null,"R5, 0 - 1","R3, 0 - 1",null,"R6, 0 - 1","R5, 0 - 1",null,"R2, 0.5 - 0.5",null,null,"R1, 0.5 - 0.5",null,"R6, 1 - 0","R6, 0 - 1","R6, 1 - 0","R1, 0.5 - 0.5","R1, 0 - 1",null,null,"R2, 0.5 - 0.5","R5, 1 - 0",null,null,"R5, 0.5 - 0.5","R1, 4 - 20","R1, 0.5 - 0.5",null,null,"R1, 1 - 0"]
["Juniooor7 ",null,null,null,"R3, 0 - 1",null,null,null,null,null,null,null,null,null,null,null,null,null,null,null,null,null,null,null,null,null,null,null,null,null,null,null,null,null,null,null,null,null,"R5, 0 - 1",null,null,null,null,null,null,null,null,null,"R6, 0 - 1",null,null,null,null,null,null,null,null,null,null,null,null,null,null,null,null,null,null,null,null,"R8, 0.5 - 0.5",null,null,null,null,null,null,null,null,null,null,"R1, 1 - 0",null,null,null,null,null,null,null,null,null,null,null,null,null,null,null,null,null,null,null,"R7, 1 - 0","R3, 20 - 6","R2, 0 - 1","R1, 0.5 - 0.5","R3, 0 - 1","R1, 0.5 - 0.5","R5, 0.5 - 0.5","R2, 0 - 1",null,"R1, 0 - 1","R4, 0.5 - 0.5","R2, 1 - 0",null,null,"R2, 1 - 0",null,null,"R6, 0 - 1",null,"R6, 0 - 1",null,null,null,null,"R1, 1 - 0","R5, 1 - 0","R4, 0 - 1",null,"R2, 0 - 1"]
["Madmatt13 ",null,null,null,null,null,null,null,"R1, 0 - 1",null,null,null,null,null,null,null,null,null,null,null,null,null,null,null,null,null,"R5, 0 - 1",null,null,null,null,null,null,null,null,null,null,null,null,null,null,null,null,null,null,null,null,null,null,null,"R2, 1 - 0",null,null,null,null,null,null,"R8, 0.5 - 0.5",null,null,null,null,null,null,null,null,null,null,null,null,"R3, 1 - 0",null,null,null,null,null,null,null,null,null,null,null,null,null,null,null,null,null,null,null,null,null,null,null,null,null,null,null,null,null,"R3, 1 - 0","R1, 0 - 1","R1, 0.5 - 0.5","R6, 1 - 0",null,"R4, 0 - 1","R2, 1 - 0","R1, 0.5 - 0.5",null,"R5, 1 - 0",null,"R1, 1 - 0",null,null,"R1, 1 - 0",null,"R2, 0 - 1","R6, 0 - 1","R6, 0.5 - 0.5","R1, 1 - 0","R6, 0.5 - 0.5","R1, 1 - 0",null,"R4, 1 - 0","R5, 1 - 0",null,"R7, 1 - 0","R5, 0 - 1"]
["jopotzuki ","R4, 0.5 - 0.5",null,"R1, 1 - 0",null,null,null,null,null,null,null,null,null,null,null,null,null,null,null,null,null,null,null,"R6, 0.5 - 0.5",null,"R8, 1 - 0",null,null,null,null,null,null,null,null,null,null,null,null,null,null,null,null,null,null,null,null,null,null,null,null,null,null,null,null,null,null,null,null,null,"R3, 0 - 1",null,null,null,null,null,null,null,null,null,null,null,null,null,null,null,null,null,null,null,null,null,null,null,null,null,null,null,null,null,null,null,null,null,null,null,"R7, 1 - 0",null,null,null,null,"R2, 1 - 0","R6, 1 - 0","R3, 0.5 - 0.5","R5, 0.5 - 0.5","R1, 0.5 - 0.5","R5, 1 - 0","R1, 0 - 1",null,"R5, 1 - 0","R2, 1 - 0","R4, 0 - 1",null,"R2, 0 - 1","R2, 1 - 0",null,"R6, 1 - 0",null,null,"R2, 0 - 1",null,"R1, 0 - 1","R4, 0.5 - 0.5",null,"R1, 1 - 0",null,null,"R1, 1 - 0","R5, 0.5 - 0.5"]
["J-Ho",null,null,null,"R7, 0 - 1",null,null,null,null,null,null,null,null,null,null,"R2, 0.5 - 0.5",null,null,null,null,null,null,null,null,null,null,null,null,null,null,null,null,null,null,null,null,null,null,null,null,null,null,null,null,null,null,null,null,null,null,null,null,null,null,null,null,null,null,null,null,null,"R8, 0.5 - 0.5",null,null,null,null,null,null,null,"R4, 0.5 - 0.5",null,null,"R6, 0.5 - 0.5",null,null,null,null,null,null,null,null,null,null,null,null,"R1, 0.5 - 0.5",null,null,null,null,null,null,null,null,null,null,null,null,"R5, 0.5 - 0.5",null,"R6, 1 - 0",null,null,"R1, 1 - 0",null,null,"R4, 0 - 1","R1, 0 - 1","R2, 1 - 0",null,null,"R1, 1 - 0","R3, 1 - 0",null,"R6, 0 - 1","R2, 1 - 0",null,"R6, 1 - 0",null,null,"R6, 1 - 0","R3, 0 - 1","R4, 0 - 1",null,"R1, 0.5 - 0.5",null,"R1, 20 - 4","R1, 1 - 0","R1, 1 - 0"]
["Verrinho ",null,null,null,null,null,null,null,null,null,"R7, 1 - 0",null,null,null,null,null,null,"R6, 0.5 - 0.5",null,"R4, 1 - 0",null,null,null,null,null,null,null,null,null,null,null,null,null,null,null,null,null,null,"R1, 1 - 0",null,null,null,null,null,null,null,null,null,null,null,null,null,null,null,null,null,null,null,null,"R5, 0.5 - 0.5",null,null,null,null,null,null,null,null,null,null,null,null,null,null,"R3, 0.5 - 0.5",null,null,null,null,null,null,null,null,"R2, 1 - 0",null,null,"R8, 1 - 0",null,null,null,null,null,null,null,null,null,null,null,null,null,"R5, 0.5 - 0.5","R1, 0.5 - 0.5","R3, 1 - 0",null,"R3, 0 - 1",null,null,"R7, 1 - 0","R2, 0 - 1","R1, 0 - 1",null,null,"R1, 0 - 1","R2, 1 - 0",null,"R6, 0 - 1","R6, 1 - 0",null,"R1, 0.5 - 0.5",null,"R2, 1 - 0","R1, 1 - 0","R1, 1 - 0","R1, 2 - 17",null,null,null,null,"R5, 0.5 - 0.5"]
["Valen ",null,null,null,null,"R2, 0 - 1",null,null,null,null,null,null,null,null,null,null,null,null,"R4, 0.5 - 0.5",null,null,null,null,null,null,null,null,null,null,null,null,null,null,null,null,null,null,null,null,null,null,null,null,null,null,"R6, 0 - 1",null,null,null,null,null,null,null,null,null,null,null,null,null,null,null,null,null,"R8, 0.5 - 0.5",null,null,null,null,null,null,null,null,null,null,null,"R1, 0 - 1",null,null,null,null,null,null,null,null,null,null,null,"R7, 0 - 1",null,null,null,null,null,null,null,null,null,null,null,null,"R5, 1 - 0",null,"R4, 0.5 - 0.5","R2, 1 - 0","R1, 1 - 0","R2, 0.5 - 0.5","R6, 1 - 0",null,"R1, 0.5 - 0.5",null,null,"R5, 0.5 - 0.5","R1, 1 - 0","R1, 0.5 - 0.5",null,"R2, 6 - 19",null,null,null,"R6, 1 - 0","R2, 0 - 1","R5, 0 - 1","R1, 0.5 - 0.5","R3, 0 - 1","R6, 0 - 1","R1, 1 - 0","R5, 1 - 0"]
["Lycos ",null,null,null,null,null,null,null,null,null,"R1, 1 - 0",null,null,null,null,null,null,null,null,null,null,null,null,null,null,null,null,null,null,null,null,null,null,null,null,null,null,null,null,null,null,null,null,null,null,null,"R8, 0.5 - 0.5",null,null,null,null,null,null,null,"R7, 0 - 1",null,null,null,null,null,null,null,null,null,null,null,null,null,"R3, 0.5 - 0.5",null,null,null,null,null,null,null,null,null,null,null,null,null,null,null,null,null,"R5, 0 - 1",null,null,null,null,null,null,null,null,null,null,"R6, 1 - 0",null,null,"R2, 20 - 8",null,"R1, 1 - 0",null,"R1, 0.5 - 0.5",null,"R3, 0 - 1","R4, 0 - 1","R1, 0.5 - 0.5",null,null,"R1, 1 - 0",null,"R1, 0 - 1","R6, 0 - 1","R2, 0 - 1","R2, 0.5 - 0.5","R3, 0.5 - 0.5","R1, 1 - 0","R4, 1 - 0","R7, 1 - 0","R2, 0.5 - 0.5","R3, 1 - 0",null,"R1, 0.5 - 0.5","R2, 1 - 0","R2, 0.5 - 0.5","R6, 0 - 1"]
["Domingo ",null,null,null,null,null,null,null,"R8, 0 - 1",null,null,null,null,null,null,null,null,null,null,null,null,null,"R7, 1 - 0",null,null,null,null,null,null,null,null,null,null,null,null,null,null,null,null,null,null,null,null,null,null,null,null,null,null,null,null,null,null,null,null,null,null,null,null,null,null,null,null,null,null,null,"R4, 1 - 0",null,"R5, 1 - 0",null,null,null,null,"R2, 1 - 0",null,null,null,null,null,null,null,null,null,null,null,null,null,null,null,null,null,null,null,null,null,"R3, 1 - 0",null,null,null,null,"R6, 1 - 0","R1, 1 - 0",null,"R3, 1 - 0",null,"R3, 0 - 1",null,"R1, 1 - 0","R4, 6 - 21","R3, 1 - 0",null,null,"R3, 1 - 0",null,"R1, 0.5 - 0.5","R6, 0 - 1",null,null,"R5, 0 - 1","R1, 1 - 0","R1, 0.5 - 0.5","R6, 0 - 1","R2, 0.5 - 0.5",null,"R2, 1 - 0","R2, 0.5 - 0.5","R2, 0.5 - 0.5",null,"R6, 0.5 - 0.5"]
["Mufflo ",null,null,null,null,null,null,null,null,null,null,null,null,null,null,null,null,null,null,null,null,"R8, 0 - 1",null,null,"R3, 1 - 0","R7, 0 - 1",null,null,null,null,null,null,null,null,null,null,null,null,null,null,null,null,null,null,null,null,null,null,null,null,null,null,"R6, 1 - 0",null,"R1, 1 - 0",null,null,null,null,null,null,null,null,null,null,null,null,null,null,null,"R5, 1 - 0",null,null,null,null,null,null,null,null,"R2, 0 - 1",null,null,null,null,null,null,null,null,null,null,null,null,null,null,null,null,null,null,null,null,"R5, 0.5 - 0.5","R6, 1 - 0","R1, 0.5 - 0.5",null,"R1, 0.5 - 0.5",null,"R1, 1 - 0",null,null,null,"R1, 0.5 - 0.5","R3, 1 - 0","R3, 0 - 1",null,null,"R1, 0.5 - 0.5","R6, 0.5 - 0.5","R3, 0 - 1","R6, 0 - 1","R6, 0.5 - 0.5","R1, 1 - 0","R1, 0.5 - 0.5","R6, 1 - 0","R1, 1 - 0","R2, 1 - 0",null,null,null,"R4, 0.5 - 0.5"]
["andydavo ",null,null,null,null,null,null,null,null,null,null,null,"R2, 0.5 - 0.5",null,null,null,null,null,null,null,null,null,null,null,null,null,null,"R5, 0 - 1",null,null,null,null,null,null,null,null,null,"R8, 1 - 0",null,null,null,null,null,null,null,null,null,null,null,null,null,null,null,null,null,null,null,null,null,null,null,null,"R1, 0.5 - 0.5",null,null,null,null,null,null,null,null,null,null,null,null,null,null,null,null,null,null,null,null,null,null,"R3, 0.5 - 0.5",null,null,null,null,"R7, 0 - 1",null,null,null,null,null,null,null,null,null,"R2, 0 - 1","R5, 1 - 0",null,"R1, 0 - 1",null,"R2, 0.5 - 0.5","R3, 1 - 0","R3, 0.5 - 0.5",null,"R6, 0 - 1","R1, 0.5 - 0.5","R1, 1 - 0","R3, 0 - 1","R1, 1 - 0",null,null,"R4, 0.5 - 0.5","R7, 0 - 1","R2, 0.5 - 0.5",null,"R1, 0 - 1","R1, 0 - 1",null,"R6, 0 - 1","R3, 0 - 1",null,"R3, 1 - 0","R2, 0.5 - 0.5","R1, 0 - 1"]
["Geggster ",null,null,null,null,"R8, 0.5 - 0.5",null,null,null,null,null,null,"R7, 0.5 - 0.5",null,null,null,null,null,null,null,null,null,"R2, 0 - 1",null,null,null,null,null,null,null,null,null,null,null,null,null,null,null,null,null,null,null,null,null,null,null,null,null,null,null,null,null,null,null,null,null,null,null,null,null,null,null,null,null,null,null,null,null,null,null,null,null,null,null,null,null,null,null,"R1, 0.5 - 0.5",null,null,null,null,null,"R3, 0.5 - 0.5",null,null,null,null,null,null,null,null,null,null,null,null,null,null,null,"R1, 0 - 1","R2, 9 - 8","R1, 10 - 10",null,"R6, 1 - 0","R3, 0.5 - 0.5","R1, 0.5 - 0.5",null,"R1, 1 - 0","R5, 0.5 - 0.5","R6, 0.5 - 0.5","R4, 1 - 0",null,"R6, 0 - 1","R1, 1 - 0","R4, 0 - 1","R2, 0 - 1","R1, 1 - 0","R6, 0 - 1","R1, 0.5 - 0.5","R2, 0.5 - 0.5","R2, 1 - 0","R2, 1 - 0","R4, 0.5 - 0.5","R2, 1 - 0","R5, 1 - 0",null,"R1, 0 - 1","R6, 1 - 0"]
["Arioso ",null,null,null,null,null,null,null,null,null,null,null,null,null,"R1, 1 - 0",null,null,"R4, 0 - 1",null,null,null,"R6, 0.5 - 0.5",null,null,null,null,null,null,null,null,null,null,null,null,null,null,null,null,null,null,null,"R3, 0.5 - 0.5",null,null,null,null,null,null,null,null,null,null,null,null,null,null,null,null,null,null,null,null,null,null,null,null,null,null,null,null,null,null,null,null,null,null,null,null,null,"R8, 0 - 1",null,"R5, 1 - 0",null,null,null,null,null,null,null,null,null,null,null,null,null,null,"R7, 0.5 - 0.5",null,null,null,"R1, 1 - 0","R1, 0.5 - 0.5","R5, 0.5 - 0.5","R2, 1 - 0",null,"R3, 0 - 1","R4, 0 - 1",null,null,null,"R3, 1 - 0","R3, 0 - 1","R1, 0.5 - 0.5","R6, 0 - 1","R2, 0 - 1","R1, 0.5 - 0.5","R1, 0 - 1","R6, 0 - 1","R1, 1 - 0","R3, 1 - 0",null,null,"R2, 1 - 0","R3, 0.5 - 0.5","R2, 0 - 1","R3, 1 - 0",null,"R2, 0 - 1","R2, 0.5 - 0.5"]
["Gaunab ",null,null,null,"R8, 1 - 0",null,null,null,null,null,null,null,null,null,null,null,null,null,null,null,null,null,null,null,null,null,null,null,null,null,null,null,"R1, 1 - 0",null,null,null,null,null,null,"R2, 0 - 1",null,null,null,null,null,null,null,null,null,null,null,null,null,null,null,null,null,null,null,null,null,null,null,null,null,null,null,null,null,null,null,null,null,null,null,null,null,null,null,null,"R7, 1 - 0",null,null,null,null,null,null,null,"R4, 0.5 - 0.5",null,null,null,null,null,null,null,null,null,null,null,null,"R1, 0 - 1","R5, 0 - 1","R1, 0 - 1","R1, 11 - 11",null,"R6, 0 - 1","R3, 1 - 0",null,"R1, 0.5 - 0.5","R5, 1 - 0",null,"R1, 0.5 - 0.5","R3, 1 - 0","R1, 1 - 0","R3, 0.5 - 0.5",null,"R1, 1 - 0","R1, 0 - 1",null,"R2, 0 - 1","R2, 1 - 0","R3, 0 - 1","R2, 0 - 1","R2, 0 - 1","R2, 0.5 - 0.5","R6, 0.5 - 0.5","R2, 0.5 - 0.5","R3, 0 - 1"]
["Alex05 ",null,null,null,null,null,null,null,null,null,null,null,null,null,null,null,null,null,null,null,null,null,null,null,null,null,"R6, 1 - 0",null,"R5, 1 - 0",null,null,null,null,null,null,null,null,null,null,null,null,null,null,null,null,null,null,null,null,null,null,"R3, 1 - 0",null,null,null,null,null,null,null,null,null,null,null,null,null,null,null,null,null,"R2, 0.5 - 0.5",null,"R8, 1 - 0",null,null,null,null,null,null,null,null,null,null,null,null,null,null,null,"R4, 0.5 - 0.5",null,null,null,"R1, 0 - 1",null,null,null,null,null,null,null,null,null,null,null,"R1, 1 - 0","R2, 0 - 1","R7, 1 - 0","R3, 0 - 1","R1, 0 - 1","R3, 0 - 1",null,"R3, 1 - 0","R6, 1 - 0",null,"R1, 1 - 0",null,"R6, 0.5 - 0.5","R1, 0.5 - 0.5",null,"R3, 0.5 - 0.5","R1, 1 - 0",null,null,"R4, 0.5 - 0.5","R2, 1 - 0",null,"R7, 0 - 1","R2, 0.5 - 0.5","R3, 0.5 - 0.5","R2, 0.5 - 0.5"]
["Beppe ",null,null,null,null,null,null,null,null,null,null,null,null,null,null,null,null,null,null,null,null,"R1, 1 - 0",null,null,"R8, 0 - 1","R6, 0 - 1",null,null,null,null,null,null,null,null,"R3, 1 - 0",null,null,null,null,null,null,"R2, 0.5 - 0.5","R7, 1 - 0",null,null,null,null,null,null,null,null,null,null,null,null,null,null,null,null,null,null,null,null,null,null,null,null,null,null,null,null,null,null,null,null,null,null,null,null,null,null,null,null,null,null,null,null,null,null,null,null,null,null,null,null,null,"R4, 1 - 0",null,null,null,"R3, 0 - 1","R3, 0 - 1","R1, 0 - 1","R2, 0.5 - 0.5","R3, 1 - 0",null,"R4, 0 - 1",null,null,"R5, 0.5 - 0.5","R4, 0.5 - 0.5",null,null,null,"R6, 1 - 0","R2, 0 - 1","R1, 0.5 - 0.5",null,"R1, 0 - 1","R4, 1 - 0",null,null,"R3, 12 - 15","R7, 0 - 1",null,"R1, 0 - 1","R1, 1 - 0",null,"R5, 0 - 1"]
["Melisqus ",null,null,null,null,"R3, 0.5 - 0.5",null,null,null,null,null,null,"R4, 1 - 0",null,null,null,null,null,null,null,null,null,null,"R5, 0.5 - 0.5",null,null,null,null,null,null,null,null,null,null,null,null,null,null,null,null,null,null,null,null,null,null,null,null,null,null,null,null,null,null,null,null,null,null,null,"R2, 0 - 1",null,"R1, 1 - 0",null,null,"R6, 0 - 1",null,null,null,null,null,null,null,null,null,null,null,null,null,null,null,null,null,null,null,"R7, 1 - 0",null,null,null,null,null,null,null,null,null,null,null,null,null,null,null,null,"R3, 1 - 0","R2, 1 - 0","R1, 0.5 - 0.5","R2, 1 - 0",null,"R4, 0 - 1","R1, 1 - 0",null,null,null,null,"R1, 1 - 0","R2, 1 - 0","R1, 0.5 - 0.5","R4, 1 - 0","R8, 0 - 1",null,null,null,"R1, 0 - 1","R1, 1 - 0","R7, 0 - 1",null,null,"R2, 1 - 0","R4, 0 - 1",null,"R3, 19 - 4"]
["Dragons ","R6, 1 - 0",null,null,null,null,null,null,null,null,null,null,null,null,null,null,null,null,null,null,null,null,"R8, 0 - 1",null,null,null,null,null,"R4, 1 - 0",null,null,"R7, 1 - 0",null,null,null,null,null,null,null,null,null,null,null,null,null,null,null,null,null,null,null,null,"R3, 0 - 1",null,null,null,null,null,null,null,null,null,null,null,null,null,null,null,null,null,null,null,null,"R5, 1 - 0",null,null,null,null,null,null,null,null,null,null,null,null,null,null,"R1, 1 - 0",null,null,null,null,null,null,null,null,null,null,null,null,"R2, 0 - 1","R2, 1 - 0","R1, 0 - 1",null,"R7, 1 - 0",null,null,null,"R6, 0.5 - 0.5","R6, 0 - 1","R1, 0 - 1",null,"R1, 0 - 1","R4, 1 - 0","R1, 0.5 - 0.5",null,null,null,null,"R6, 0.5 - 0.5","R6, 0 - 1","R4, 0 - 1","R1, 1 - 0","R1, 0.5 - 0.5","R3, 22 - 2",null,null,"R2, 0 - 1"]
["Jaqra ",null,null,null,null,"R5, 0.5 - 0.5",null,null,null,null,null,null,"R3, 0.5 - 0.5",null,null,null,null,null,null,null,null,null,null,null,null,"R2, 0 - 1",null,null,null,null,null,null,null,null,null,"R8, 1 - 0",null,null,null,null,null,null,null,null,null,null,null,null,null,null,null,null,null,null,null,"R6, 1 - 0",null,"R7, 0 - 1",null,null,null,null,null,null,null,null,null,null,null,null,"R4, 0 - 1",null,null,null,null,null,null,null,null,null,null,null,null,null,null,null,null,null,null,null,null,null,null,null,null,null,null,null,null,null,"R1, 0.5 - 0.5","R2, 1 - 0","R2, 1 - 0","R2, 0.5 - 0.5",null,null,null,null,"R5, 0.5 - 0.5",null,"R1, 0.5 - 0.5",null,"R6, 0.5 - 0.5","R6, 0.5 - 0.5",null,null,"R2, 0.5 - 0.5","R2, 0.5 - 0.5","R1, 0 - 1",null,"R4, 1 - 0","R1, 1 - 0","R5, 0 - 1","R4, 0.5 - 0.5","R1, 1 - 0","R4, 0 - 1","R1, 1 - 0"]
["Harti ","R7, 1 - 0",null,null,null,null,null,null,null,null,null,"R1, 0.5 - 0.5",null,null,null,null,null,null,null,null,null,null,null,null,null,null,null,null,null,null,null,null,null,null,"R2, 0.5 - 0.5",null,null,null,null,null,null,null,null,null,null,"R4, 1 - 0",null,null,null,null,null,null,null,null,null,null,null,null,null,"R8, 0 - 1",null,null,null,null,null,null,null,null,null,null,null,"R6, 0 - 1",null,null,null,null,null,null,null,null,null,null,null,null,null,null,null,null,null,null,null,null,null,null,null,null,null,null,null,null,"R2, 0.5 - 0.5","R1, 0.5 - 0.5",null,"R3, 0 - 1","R2, 0 - 1",null,"R6, 0.5 - 0.5","R3, 0 - 1",null,"R1, 1 - 0",null,null,"R5, 0 - 1",null,"R1, 1 - 0","R1, 1 - 0","R4, 0.5 - 0.5","R1, 0 - 1",null,"R3, 1 - 0","R2, 1 - 0","R4, 0.5 - 0.5","R1, 0 - 1","R6, 0.5 - 0.5",null,"R1, 1 - 0",null,"R5, 0 - 1"]
["Favi ","R2, 0 - 1",null,null,null,null,null,null,null,null,null,null,"R5, 0.5 - 0.5",null,null,"R4, 0.5 - 0.5",null,null,"R6, 0.5 - 0.5",null,null,null,null,null,null,null,null,null,null,null,null,null,null,null,null,null,"R1, 0.5 - 0.5",null,null,null,null,null,null,null,"R3, 0.5 - 0.5",null,null,null,null,null,null,null,null,null,null,null,null,null,null,null,null,null,null,null,null,null,null,null,null,null,null,null,null,null,null,null,null,null,null,null,null,null,null,null,null,null,null,null,null,null,null,null,null,null,null,null,null,null,"R7, 0.5 - 0.5",null,"R3, 1 - 0","R1, 1 - 0","R2, 0 - 1","R8, 0 - 1","R3, 0.5 - 0.5",null,"R5, 1 - 0",null,null,null,null,null,"R1, 0.5 - 0.5","R1, 1 - 0","R1, 0 - 1",null,null,"R4, 0 - 1",null,"R6, 1 - 0",null,null,null,"R1, 1 - 0",null,null,"R6, 1 - 0","R1, 0.5 - 0.5","R1, 0 - 1"]
["Spartako ",null,null,null,null,null,null,null,null,null,null,null,null,null,null,null,null,null,null,null,null,null,null,null,null,null,null,null,null,null,null,"R1, 1 - 0",null,null,null,null,null,"R2, 1 - 0",null,null,null,null,null,null,null,null,null,null,null,"R5, 0 - 1",null,null,null,null,null,null,null,null,null,null,null,"R6, 1 - 0",null,null,null,null,null,null,null,null,null,null,null,null,null,null,null,"R7, 0 - 1",null,null,null,null,"R3, 0 - 1",null,null,null,null,null,null,null,null,null,null,null,null,null,null,"R4, 1 - 0",null,null,"R2, 0.5 - 0.5",null,"R3, 0.5 - 0.5","R3, 1 - 0","R6, 1 - 0","R5, 6 - 20",null,null,"R1, 0.5 - 0.5","R8, 0 - 1","R5, 0.5 - 0.5",null,null,"R4, 1 - 0",null,null,"R5, 0 - 1","R6, 0.5 - 0.5","R2, 0 - 1","R1, 0.5 - 0.5","R1, 0.5 - 0.5",null,"R1, 0 - 1",null,"R4, 1 - 0",null,"R3, 19 - 5","R6, 0 - 1","R1, 1 - 0"]
["DonShula ",null,null,"R6, 1 - 0",null,null,null,null,null,null,null,null,null,null,null,null,null,null,null,null,null,null,"R5, 1 - 0",null,null,null,null,null,null,null,null,null,null,null,null,null,null,null,null,null,null,null,null,null,null,null,null,"R2, 1 - 0",null,null,null,null,null,null,"R8, 0.5 - 0.5",null,null,null,null,null,null,null,null,null,null,null,null,null,null,null,null,null,null,null,null,null,null,null,null,null,null,null,null,null,null,null,"R7, 0.5 - 0.5",null,null,"R4, 0 - 1",null,null,null,null,null,null,null,null,null,null,"R3, 1 - 0","R7, 1 - 0","R6, 1 - 0",null,null,"R1, 1 - 0",null,"R3, 1 - 0",null,null,"R4, 0.5 - 0.5","R5, 0 - 1",null,null,null,null,"R2, 0.5 - 0.5","R1, 1 - 0","R4, 0.5 - 0.5","R2, 0 - 1","R1, 0 - 1",null,"R3, 11 - 12",null,"R3, 0 - 1","R6, 0 - 1",null,"R1, 0.5 - 0.5","R1, 1 - 0"]
["HumptyTrump ",null,null,null,null,null,null,null,null,null,null,null,null,null,null,null,"R7, 0.5 - 0.5",null,null,null,null,null,null,null,null,null,null,null,null,null,null,null,null,null,null,"R1, 1 - 0",null,null,null,null,null,null,null,null,null,null,null,null,null,null,null,null,null,"R8, 0 - 1",null,null,null,null,null,null,null,null,null,null,null,null,"R2, 0 - 1",null,null,null,null,null,null,"R3, 1 - 0",null,null,null,null,null,null,null,"R6, 0 - 1",null,null,null,null,null,null,null,null,null,null,null,null,null,"R4, 0 - 1",null,null,null,null,"R2, 0.5 - 0.5",null,null,null,null,"R2, 0 - 1",null,"R3, 0.5 - 0.5","R3, 0 - 1","R5, 0 - 1","R6, 0 - 1",null,"R4, 0.5 - 0.5","R1, 0.5 - 0.5","R3, 0 - 1","R1, 0.5 - 0.5","R5, 0 - 1","R1, 0.5 - 0.5","R2, 0.5 - 0.5","R3, 0 - 1",null,null,"R1, 0.5 - 0.5",null,null,"R1, 0 - 1",null,null,"R2, 0 - 1"]
["Purrelito ",null,null,null,null,null,null,null,null,null,null,null,null,"R8, 0.5 - 0.5",null,null,null,null,"R2, 1 - 0",null,null,null,null,null,null,null,null,null,null,null,null,null,null,null,null,null,null,null,null,null,null,null,null,null,null,null,null,null,"R4, 0 - 1",null,null,null,null,"R1, 0 - 1",null,null,null,null,null,null,null,null,null,null,null,null,null,null,null,null,null,null,null,null,null,null,null,null,"R5, 0.5 - 0.5",null,null,null,null,null,null,null,null,null,null,null,null,null,null,null,"R7, 0.5 - 0.5",null,null,null,null,null,null,null,null,null,null,null,"R5, 1 - 0","R3, 0.5 - 0.5","R5, 0 - 1","R3, 0.5 - 0.5",null,"R2, 1 - 0","R6, 0.5 - 0.5",null,"R1, 0 - 1",null,"R3, 0 - 1","R5, 0.5 - 0.5","R3, 0.5 - 0.5","R2, 1 - 0",null,null,null,null,null,"R6, 0 - 1","R2, 0 - 1","R2, 1 - 0","R1, 1 - 0"]
["nonumber ",null,"R3, 0.5 - 0.5",null,null,null,null,null,null,null,null,null,null,null,null,"R6, 1 - 0",null,null,null,null,null,null,null,null,null,null,"R1, 0.5 - 0.5",null,"R2, 0 - 1",null,null,null,null,null,"R5, 0 - 1",null,null,null,null,null,null,null,null,null,"R4, 0 - 1",null,null,null,null,null,null,null,null,null,null,null,null,null,null,null,null,null,null,null,null,null,null,null,null,null,null,null,null,null,null,null,null,null,null,null,null,null,null,null,null,null,null,null,null,null,null,null,null,null,null,null,null,null,null,null,null,null,null,null,"R7, 0.5 - 0.5","R8, 1 - 0",null,"R6, 0.5 - 0.5","R6, 0.5 - 0.5","R4, 1 - 0","R2, 0 - 1",null,null,null,"R1, 0.5 - 0.5","R5, 0 - 1","R2, 0.5 - 0.5",null,"R1, 0.5 - 0.5",null,"R3, 1 - 0","R2, 0.5 - 0.5",null,null,"R4, 1 - 0","R3, 1 - 0"]
["Driesfield ",null,null,null,null,null,null,null,null,null,null,null,null,null,null,null,null,null,null,null,null,null,null,null,null,null,null,null,null,null,null,null,null,"R3, 0 - 1",null,null,null,null,"R4, 0.5 - 0.5",null,null,null,null,null,null,null,null,null,null,null,null,null,null,null,null,null,null,null,null,null,"R1, 0 - 1",null,null,null,null,null,null,null,null,null,null,null,null,null,null,"R7, 0 - 1",null,null,null,null,"R5, 0 - 1",null,null,null,null,null,null,null,null,null,null,null,null,null,null,null,null,null,null,null,null,"R6, 1 - 0","R2, 0 - 1","R7, 0.5 - 0.5","R8, 0.5 - 0.5","R5, 1 - 0","R2, 1 - 0",null,"R5, 2 - 18","R6, 1 - 0","R5, 0 - 1","R6, 0 - 1",null,null,"R2, 1 - 0","R1, 0 - 1","R3, 1 - 0","R1, 0.5 - 0.5",null,null,"R6, 1 - 0","R6, 0.5 - 0.5","R3, 1 - 0",null,null,"R1, 1 - 0",null,"R2, 1 - 0"]
["kfoged ",null,null,null,null,null,null,null,null,null,null,null,null,null,null,null,null,"R2, 0.5 - 0.5",null,null,null,null,null,null,null,null,null,null,null,null,null,null,null,null,"R8, 0.5 - 0.5",null,"R6, 0 - 1",null,null,"R4, 1 - 0","R3, 0.5 - 0.5",null,null,null,null,null,null,null,"R1, 1 - 0",null,null,null,"R5, 0.5 - 0.5",null,null,null,null,null,null,null,null,null,null,null,null,null,null,null,null,null,null,null,null,"R7, 0 - 1",null,null,null,null,null,null,null,null,null,null,null,null,null,null,null,null,null,null,null,null,null,null,null,null,null,null,"R6, 0 - 1",null,null,"R4, 1 - 0","R4, 0.5 - 0.5","R6, 0 - 1","R6, 1 - 0","R6, 1 - 0","R2, 1 - 0",null,null,"R3, 0 - 1","R5, 0.5 - 0.5","R1, 0 - 1","R6, 20 - 3",null,null,"R2, 1 - 0",null,null,"R5, 0 - 1",null,"R1, 1 - 0","R5, 0.5 - 0.5",null,"R2, 1 - 0","R1, 1 - 0"]
["Podfrey ",null,null,null,null,null,null,null,null,null,null,"R8, 1 - 0",null,null,null,null,null,null,null,"R6, 0 - 1","R7, 0 - 1",null,null,"R4, 0 - 1",null,null,null,null,null,null,null,"R3, 0.5 - 0.5",null,null,null,null,null,null,null,null,null,null,"R1, 0 - 1",null,null,null,null,null,null,null,null,null,null,null,null,null,null,null,null,null,null,null,null,null,null,null,null,null,null,null,null,null,null,null,null,null,null,null,null,null,null,null,null,null,null,null,null,"R5, 1 - 0",null,null,null,null,null,null,null,null,null,null,null,null,"R2, 1 - 0",null,null,null,"R1, 0 - 1","R3, 0.5 - 0.5","R5, 0.5 - 0.5","R2, 0.5 - 0.5","R6, 0.5 - 0.5","R1, 19 - 5",null,null,null,null,"R3, 0 - 1",null,"R1, 1 - 0",null,"R5, 0 - 1",null,"R1, 0.5 - 0.5","R1, 0 - 1",null,"R2, 0 - 1",null,null,null,null,"R1, 0 - 1"]
["valkohukka ",null,null,null,null,null,"R4, 1 - 0",null,null,null,null,null,null,null,null,null,null,null,null,null,null,null,null,null,null,null,"R7, 1 - 0",null,null,null,null,null,null,null,null,null,null,"R5, 0.5 - 0.5",null,null,null,null,null,null,null,null,null,null,null,"R3, 0 - 1",null,null,null,null,null,null,null,null,null,null,null,null,null,null,null,null,null,null,null,null,null,null,null,"R6, 0 - 1",null,null,null,null,null,null,null,null,null,null,null,null,"R2, 0 - 1",null,null,null,null,null,null,null,"R8, 1 - 0",null,null,null,null,null,"R7, 0.5 - 0.5","R4, 0 - 1",null,null,null,"R6, 0 - 1","R6, 1 - 0","R5, 0.5 - 0.5",null,null,"R1, 11 - 12",null,"R1, 1 - 0","R3, 1 - 0",null,null,"R6, 1 - 0","R2, 0.5 - 0.5","R1, 0.5 - 0.5","R1, 0 - 1","R1, 0.5 - 0.5",null,"R2, 1 - 0","R1, 0 - 1",null,"R4, 0 - 1",null,"R1, 0.5 - 0.5"]
["Skoberget ",null,null,null,null,null,"R6, 0.5 - 0.5",null,null,null,null,"R3, 0 - 1",null,null,null,null,null,"R1, 0 - 1",null,null,"R4, 0 - 1",null,null,null,null,null,null,null,null,null,null,null,null,null,null,null,null,null,null,null,null,null,null,null,null,null,null,null,null,null,null,null,null,null,null,null,null,null,null,null,null,null,null,null,null,null,null,null,null,null,null,null,"R5, 0 - 1",null,null,null,null,null,null,null,null,null,null,null,null,null,null,null,null,null,null,null,null,null,null,null,null,null,null,"R7, 0.5 - 0.5","R8, 0.5 - 0.5","R4, 0.5 - 0.5","R1, 1 - 0",null,null,"R5, 0 - 1",null,null,"R2, 0 - 1","R2, 1 - 0","R6, 1 - 0","R5, 1 - 0","R2, 0 - 1","R5, 0.5 - 0.5","R3, 10 - 10","R6, 0.5 - 0.5","R1, 0.5 - 0.5",null,null,"R1, 0.5 - 0.5","R2, 13 - 15","R2, 0.5 - 0.5",null,"R1, 0.5 - 0.5","R2, 1 - 0"]
["brocCooli ",null,null,null,"R2, 1 - 0",null,null,null,null,null,null,null,null,null,null,null,null,null,null,null,null,null,null,null,null,null,null,null,null,null,null,null,null,null,null,null,null,null,null,null,null,null,null,null,null,null,"R6, 0.5 - 0.5",null,null,null,null,null,null,null,null,null,null,null,null,null,null,null,null,"R1, 0 - 1",null,"R3, 1 - 0",null,null,null,null,null,null,null,null,null,null,"R4, 1 - 0","R5, 0 - 1",null,null,null,null,null,null,null,null,null,null,"R7, 0 - 1",null,null,null,null,null,null,null,null,null,null,"R8, 0 - 1","R5, 0 - 1","R6, 1 - 0","R3, 0.5 - 0.5","R6, 1 - 0","R5, 1 - 0",null,"R1, 1 - 0",null,null,null,null,"R2, 0.5 - 0.5",null,"R4, 1 - 0","R6, 0 - 1","R5, 1 - 0","R2, 1 - 0","R6, 0 - 1","R1, 0.5 - 0.5","R1, 1 - 0","R2, 0 - 1",null,"R2, 1 - 0","R6, 1 - 0","R3, 1 - 0","R2, 0.5 - 0.5","R6, 0.5 - 0.5","R6, 0.5 - 0.5","R1, 0.5 - 0.5"]
["Ploppy_McPloppy ",null,null,"R3, 0 - 1",null,null,null,null,null,null,null,null,null,null,null,null,null,null,"R1, 1 - 0",null,null,null,null,null,null,null,null,null,null,null,"R8, 0.5 - 0.5",null,null,null,null,null,null,null,null,null,null,null,null,"R7, 1 - 0",null,null,null,null,null,null,null,"R4, 0 - 1",null,"R2, 0 - 1",null,null,null,null,null,null,null,null,null,null,null,null,null,null,null,null,null,null,null,null,null,null,null,null,null,null,null,null,null,null,null,null,null,"R6, 1 - 0",null,null,null,null,null,null,null,null,null,null,null,null,"R2, 0 - 1","R6, 0 - 1","R5, 0.5 - 0.5","R6, 0 - 1",null,"R1, 0 - 1",null,null,null,null,null,null,null,"R3, 0 - 1","R2, 0.5 - 0.5","R1, 0.5 - 0.5",null,"R3, 0.5 - 0.5","R5, 0.5 - 0.5","R2, 0 - 1",null,"R3, 0.5 - 0.5",null,"R1, 1 - 0","R6, 1 - 0",null,"R2, 0.5 - 0.5","R6, 0.5 - 0.5","R5, 1 - 0"]
["BiBi ",null,null,null,null,"R1, 1 - 0",null,null,"R7, 0.5 - 0.5",null,"R6, 0.5 - 0.5",null,null,null,null,null,null,null,null,null,null,null,null,null,null,null,null,null,null,null,null,null,null,null,null,null,"R5, 1 - 0",null,null,null,null,null,null,null,null,null,null,null,null,null,null,null,null,null,null,null,null,null,null,null,null,null,null,null,null,null,null,null,null,null,null,null,null,null,null,"R2, 1 - 0",null,null,null,null,null,"R4, 1 - 0",null,null,null,null,null,null,null,null,null,null,null,null,null,null,"R3, 0 - 1",null,null,null,null,"R6, 0 - 1","R2, 0.5 - 0.5","R5, 0.5 - 0.5",null,null,null,null,"R6, 10 - 11",null,"R5, 19 - 4",null,null,"R2, 0.5 - 0.5",null,"R2, 0.5 - 0.5","R4, 1 - 0","R1, 0 - 1","R1, 0 - 1","R2, 1 - 0","R5, 0.5 - 0.5",null,"R1, 0 - 1","R1, 1 - 0","R6, 0.5 - 0.5","R3, 0.5 - 0.5","R6, 0 - 1",null,"R8, 1 - 0"]
["Matt le fou ",null,null,"R4, 0.5 - 0.5",null,null,null,null,null,null,null,null,null,null,null,null,null,null,null,"R3, 0 - 1",null,null,null,null,null,null,null,"R2, 1 - 0",null,null,null,null,null,null,null,null,null,null,null,null,null,null,null,"R5, 0 - 1",null,null,"R1, 0.5 - 0.5",null,"R8, 0 - 1",null,null,null,null,null,null,null,null,null,null,null,null,null,null,null,null,null,null,null,null,"R7, 1 - 0","R6, 0.5 - 0.5",null,null,null,null,null,null,null,null,null,null,null,null,null,null,null,null,null,null,null,null,null,null,null,null,null,null,null,null,null,"R5, 18 - 2","R2, 0 - 1","R6, 0.5 - 0.5",null,"R2, 1 - 0",null,null,"R6, 11 - 10",null,"R2, 1 - 0","R1, 0.5 - 0.5",null,null,null,"R2, 1 - 0","R1, 0.5 - 0.5","R1, 0 - 1","R1, 0 - 1","R2, 0 - 1",null,"R1, 1 - 0","R4, 0 - 1","R6, 1 - 0","R6, 0.5 - 0.5","R1, 1 - 0","R1, 0 - 1",null,null,"R3, 0.5 - 0.5"]
["Candlejack ",null,null,null,null,null,null,null,null,null,null,null,null,null,null,null,null,null,null,null,null,null,null,null,null,null,null,null,null,null,null,null,null,null,null,null,null,null,null,null,null,null,null,null,null,null,null,null,null,null,null,"R1, 1 - 0",null,null,null,null,null,null,null,null,null,null,null,null,null,null,null,null,null,null,null,null,null,null,null,null,null,"R2, 0 - 1",null,null,null,null,null,null,"R6, 1 - 0","R5, 0.5 - 0.5",null,null,null,null,null,null,null,null,null,"R8, 1 - 0",null,null,"R3, 0.5 - 0.5",null,"R6, 0 - 1",null,"R1, 5 - 19",null,"R2, 0 - 1",null,null,null,"R2, 0 - 1",null,null,"R2, 0 - 1","R6, 0 - 1","R5, 0 - 1","R4, 0.5 - 0.5","R7, 0 - 1","R1, 1 - 0","R1, 0 - 1","R1, 0.5 - 0.5","R5, 0 - 1","R1, 0.5 - 0.5","R6, 1 - 0","R6, 22 - 5","R6, 1 - 0",null,"R1, 1 - 0","R1, 1 - 0","R5, 0.5 - 0.5","R7, 0.5 - 0.5"]
["Purdindas ",null,null,null,null,null,null,null,null,null,null,null,null,null,null,null,null,null,null,null,null,null,null,null,null,null,"R4, 0 - 1","R1, 0 - 1","R8, 0.5 - 0.5",null,null,null,"R5, 0 - 1",null,null,null,null,null,null,null,null,null,null,null,null,null,"R2, 0.5 - 0.5",null,null,null,null,null,null,null,null,null,null,"R3, 1 - 0",null,null,null,null,null,null,null,"R7, 0 - 1",null,null,null,null,null,null,null,null,null,null,null,null,null,null,null,null,null,null,null,"R6, 0.5 - 0.5",null,null,null,null,null,null,null,null,null,null,null,null,null,null,"R5, 1 - 0",null,null,"R1, 12 - 11","R6, 0 - 1",null,null,"R5, 4 - 19","R1, 0.5 - 0.5",null,null,"R5, 1 - 0",null,"R3, 0.5 - 0.5","R1, 1 - 0","R2, 0 - 1","R2, 1 - 0","R2, 1 - 0","R1, 0.5 - 0.5","R5, 0 - 1",null,"R6, 0.5 - 0.5","R3, 0 - 1","R4, 1 - 0",null,null,"R3, 0 - 1","R2, 1 - 0","R2, 0 - 1"]
["JJ ",null,null,null,null,null,null,null,null,"R2, 0.5 - 0.5",null,null,null,null,null,null,null,null,null,null,null,"R4, 0 - 1",null,null,"R1, 0 - 1",null,null,null,"R6, 1 - 0",null,null,null,null,null,null,"R7, 0.5 - 0.5",null,null,null,null,null,null,null,null,null,null,null,null,null,null,"R8, 0 - 1",null,null,null,null,null,null,null,null,null,null,"R3, 0 - 1",null,null,null,null,null,null,null,null,null,null,null,null,null,null,null,null,null,null,null,null,null,null,null,null,null,null,null,null,null,null,null,null,null,null,null,null,null,null,"R6, 1 - 0","R3, 1 - 0",null,null,"R5, 0 - 1","R2, 0.5 - 0.5",null,null,null,"R2, 1 - 0","R5, 0 - 1",null,null,"R1, 0 - 1","R1, 0 - 1",null,"R4, 1 - 0","R5, 0.5 - 0.5","R2, 1 - 0","R5, 1 - 0","R2, 0.5 - 0.5","R1, 1 - 0","R6, 0.5 - 0.5","R5, 1 - 0","R4, 0.5 - 0.5",null,"R1, 1 - 0","R3, 0 - 1","R6, 0.5 - 0.5"]
["Wilzif ",null,null,null,null,null,null,null,null,null,null,null,null,null,"R2, 0 - 1",null,null,null,null,null,null,"R3, 0 - 1",null,null,null,null,null,null,null,null,null,null,null,null,null,null,null,null,null,null,null,null,null,null,null,null,null,null,null,null,null,null,null,null,null,null,null,null,null,null,null,null,null,null,null,"R5, 0 - 1",null,null,null,null,null,null,"R4, 1 - 0",null,null,null,null,null,null,null,null,null,null,null,null,null,null,null,null,null,null,null,null,null,null,null,null,null,null,null,null,"R5, 0.5 - 0.5",null,"R1, 0 - 1","R2, 1 - 0",null,null,null,null,"R6, 1 - 0",null,null,null,"R1, 0.5 - 0.5",null,null,"R5, 0.5 - 0.5","R2, 0.5 - 0.5","R1, 0.5 - 0.5","R6, 1 - 0","R7, 1 - 0",null,"R3, 0.5 - 0.5",null,"R5, 1 - 0","R8, 0.5 - 0.5","R4, 1 - 0",null,"R3, 0.5 - 0.5"]
["noraal ",null,null,null,null,null,null,null,null,null,null,null,null,null,null,null,"R4, 1 - 0",null,null,null,"R5, 0.5 - 0.5",null,null,null,null,null,null,null,null,null,"R7, 0 - 1",null,"R3, 1 - 0",null,null,null,null,null,null,null,null,null,null,null,null,null,null,null,null,null,null,null,null,null,null,"R1, 0.5 - 0.5",null,null,null,null,null,null,"R6, 1 - 0",null,"R2, 0 - 1",null,null,null,null,null,"R8, 1 - 0",null,null,null,null,null,null,null,null,null,null,null,null,null,null,null,null,null,null,null,null,null,null,null,null,null,null,null,null,null,null,"R1, 1 - 0",null,"R3, 0 - 1","R5, 0.5 - 0.5","R4, 0 - 1","R3, 1 - 0","R2, 0.5 - 0.5",null,"R5, 1 - 0","R3, 0.5 - 0.5","R1, 1 - 0","R1, 0.5 - 0.5",null,null,"R3, 1 - 0",null,"R3, 20 - 3",null,null,null,null,null,null,"R2, 0.5 - 0.5","R1, 0.5 - 0.5","R2, 1 - 0",null,"R1, 0 - 1"]
["cz ",null,null,null,"R6, 0.5 - 0.5",null,null,null,"R2, 0 - 1",null,null,null,null,null,"R3, 0.5 - 0.5",null,null,null,null,null,null,null,null,null,null,null,null,null,null,null,null,null,null,null,null,null,null,null,null,null,null,null,"R8, 0 - 1",null,null,null,null,null,null,null,"R1, 1 - 0",null,null,null,"R5, 0 - 1",null,null,null,null,null,null,null,null,null,null,null,null,null,null,null,null,null,null,null,null,null,null,null,null,null,null,null,null,null,null,null,null,null,null,null,null,null,null,null,null,null,null,null,null,null,"R2, 0 - 1","R6, 3 - 20","R3, 1 - 0",null,"R3, 10 - 10","R6, 1 - 0","R2, 0.5 - 0.5",null,"R2, 0 - 1","R4, 0.5 - 0.5","R1, 0 - 1","R1, 1 - 0",null,null,null,null,null,null,null,null,null,null,"R7, 0 - 1","R1, 0.5 - 0.5","R2, 1 - 0","R6, 1 - 0",null,"R2, 0.5 - 0.5"]
["Loki ",null,null,null,"R4, 0.5 - 0.5",null,null,null,null,"R6, 0 - 1",null,null,"R8, 0.5 - 0.5",null,null,null,null,null,null,null,null,null,null,null,null,null,null,null,null,null,null,null,null,null,null,null,null,null,null,null,null,null,null,null,null,null,null,null,null,null,null,"R5, 0.5 - 0.5",null,null,null,null,null,null,null,null,null,null,null,null,null,null,null,null,null,null,null,null,"R3, 1 - 0",null,"R1, 0.5 - 0.5",null,null,null,null,null,null,null,null,null,null,null,null,null,null,null,null,null,null,null,null,null,null,null,null,null,"R1, 1 - 0",null,null,null,"R6, 0.5 - 0.5","R5, 0 - 1","R1, 0.5 - 0.5","R2, 0.5 - 0.5","R1, 0.5 - 0.5","R7, 1 - 0","R2, 1 - 0",null,null,"R3, 0 - 1",null,null,"R3, 0 - 1",null,null,null,"R5, 0 - 1","R2, 0.5 - 0.5","R6, 0 - 1",null,null,"R2, 0 - 1","R1, 1 - 0",null,"R4, 0 - 1"]
["gninocker ",null,null,null,null,null,null,null,null,null,null,null,null,null,null,null,null,"R3, 0 - 1",null,null,null,null,null,null,null,null,null,null,null,null,null,null,null,null,null,null,null,null,null,null,null,null,null,null,null,null,null,null,null,null,null,null,null,null,"R6, 0 - 1",null,null,null,null,null,null,null,null,null,null,"R1, 1 - 0",null,null,null,null,null,null,null,null,null,null,null,null,null,null,null,"R2, 0.5 - 0.5",null,null,"R4, 0.5 - 0.5",null,null,null,null,null,"R8, 1 - 0",null,null,null,null,null,null,"R5, 1 - 0",null,null,"R3, 0 - 1",null,"R1, 0 - 1","R6, 0 - 1","R1, 0.5 - 0.5","R2, 0 - 1",null,"R4, 0 - 1","R1, 1 - 0","R1, 0 - 1","R2, 0 - 1","R4, 0 - 1","R5, 0.5 - 0.5",null,null,"R3, 1 - 0",null,"R7, 0 - 1",null,"R2, 1 - 0",null,"R2, 1 - 0","R2, 1 - 0",null,"R6, 0 - 1","R5, 22 - 8","R4, 0 - 1",null,"R1, 1 - 0"]
["Mewash ","R8, 0 - 1",null,null,null,null,null,null,null,null,null,null,null,"R5, 0.5 - 0.5",null,null,null,null,null,null,null,null,null,null,null,null,null,null,null,null,null,null,null,null,null,null,null,null,null,null,null,null,null,null,null,null,"R4, 0.5 - 0.5",null,null,null,null,null,null,null,null,null,null,null,null,null,null,null,"R3, 0 - 1",null,null,null,null,null,null,null,null,null,null,null,null,null,"R6, 1 - 0",null,null,null,null,null,null,null,null,null,null,null,null,null,null,null,null,null,null,null,"R1, 0 - 1",null,null,null,"R1, 0.5 - 0.5","R2, 0 - 1",null,"R2, 0.5 - 0.5",null,"R6, 1 - 0","R3, 0.5 - 0.5","R1, 1 - 0","R1, 1 - 0","R1, 1 - 0","R2, 0 - 1","R5, 0.5 - 0.5","R2, 0.5 - 0.5","R3, 3 - 20",null,null,"R7, 1 - 0",null,null,null,null,"R1, 0 - 1","R3, 0 - 1","R2, 1 - 0",null,"R4, 0.5 - 0.5","R6, 0.5 - 0.5","R2, 0.5 - 0.5","R4, 1 - 0"]
["Leonek ",null,null,null,null,null,null,null,null,null,null,null,null,null,null,null,null,null,null,null,null,null,null,"R2, 0.5 - 0.5",null,null,"R3, 0.5 - 0.5",null,null,"R6, 1 - 0",null,null,null,null,null,null,null,null,null,null,null,null,null,null,null,null,null,"R4, 0 - 1",null,null,null,"R7, 1 - 0",null,null,null,null,null,null,"R1, 0.5 - 0.5",null,null,null,null,null,"R8, 0 - 1",null,null,null,null,null,null,null,null,null,null,null,null,null,null,null,null,null,null,null,null,null,null,null,null,null,null,null,null,null,null,null,null,null,null,null,null,null,"R5, 1 - 0","R1, 0.5 - 0.5",null,"R1, 0.5 - 0.5","R5, 0.5 - 0.5","R1, 1 - 0","R2, 1 - 0","R1, 0.5 - 0.5","R1, 0.5 - 0.5","R2, 0 - 1","R1, 0.5 - 0.5",null,null,null,null,null,null,null,"R4, 19 - 2","R2, 1 - 0","R1, 0 - 1","R2, 1 - 0",null,null,null,"R1, 1 - 0"]
["JamesEs ",null,null,null,null,null,null,null,null,null,null,null,null,null,null,"R7, 0 - 1",null,null,null,null,null,null,null,null,null,null,null,null,null,null,null,null,null,null,null,null,null,null,null,null,null,null,null,null,null,null,null,null,null,null,null,null,null,null,null,null,null,null,null,null,null,null,null,null,null,null,null,null,null,null,null,null,null,null,null,null,null,null,null,null,null,null,"R1, 0 - 1",null,null,null,null,null,null,null,null,null,null,"R3, 0 - 1",null,null,null,null,null,null,null,null,null,"R1, 1 - 0","R1, 0.5 - 0.5","R1, 0 - 1","R2, 1 - 0","R2, 0 - 1",null,"R5, 1 - 0","R5, 1 - 0","R5, 0 - 1","R6, 0 - 1",null,null,null,"R2, 0 - 1",null,null,null,"R8, 0.5 - 0.5",null,"R2, 0 - 1",null,"R4, 0 - 1","R2, 0 - 1","R2, 1 - 0","R6, 0 - 1"]
["Duke_Luthor_Von_Hawkfire ",null,null,null,null,null,"R3, 0 - 1",null,null,null,null,null,null,null,null,null,null,null,null,null,null,null,null,null,null,null,null,null,null,null,null,"R2, 0 - 1",null,"R5, 0 - 1",null,null,null,"R1, 0 - 1",null,null,null,null,null,null,null,null,null,null,null,null,"R4, 0.5 - 0.5",null,null,null,null,null,null,null,null,null,null,null,null,null,null,null,null,null,null,null,null,null,null,null,null,null,null,null,null,null,null,null,null,null,null,null,null,null,null,null,null,null,null,null,null,null,null,null,null,null,"R6, 0 - 1","R5, 1 - 0","R1, 0.5 - 0.5","R1, 0.5 - 0.5","R2, 15 - 13","R2, 1 - 0",null,"R5, 0.5 - 0.5","R1, 0 - 1","R1, 0.5 - 0.5",null,"R2, 0.5 - 0.5","R7, 0 - 1",null,null,"R5, 1 - 0",null,null,"R4, 2 - 19","R8, 0.5 - 0.5",null,"R6, 0 - 1","R6, 1 - 0","R4, 0 - 1","R1, 0.5 - 0.5","R3, 0 - 1",null,null,"R2, 0 - 1"]
["Jokaero ",null,null,null,null,null,null,null,null,null,null,null,null,null,null,null,null,null,"R5, 0.5 - 0.5",null,null,null,null,null,null,null,null,null,null,null,"R4, 0 - 1",null,null,null,null,"R6, 0.5 - 0.5",null,null,null,null,null,null,null,null,null,null,"R7, 0 - 1",null,null,null,null,null,null,null,null,null,null,null,null,null,null,null,null,null,null,null,null,null,null,null,null,null,"R8, 1 - 0",null,null,null,null,null,"R3, 1 - 0",null,null,null,null,null,null,null,null,null,null,null,null,null,"R1, 0 - 1",null,null,null,null,null,null,null,"R6, 0.5 - 0.5",null,"R1, 1 - 0",null,"R2, 0.5 - 0.5",null,"R3, 0.5 - 0.5",null,"R4, 1 - 0","R6, 0 - 1","R6, 0.5 - 0.5","R1, 0 - 1",null,null,null,"R2, 0.5 - 0.5","R2, 0 - 1","R1, 1 - 0","R2, 0 - 1",null,"R6, 1 - 0",null,null,"R6, 10 - 10"]
["Duckwing ",null,null,null,null,"R6, 0 - 1",null,null,null,null,"R5, 0 - 1",null,null,null,null,null,null,null,null,null,null,null,null,null,null,null,null,null,null,null,null,null,null,null,null,null,null,null,"R8, 0 - 1",null,"R1, 0.5 - 0.5",null,null,null,null,null,null,null,null,null,null,null,null,null,null,null,"R4, 1 - 0",null,null,null,null,null,"R2, 0.5 - 0.5",null,null,null,null,null,null,null,null,null,null,null,null,null,null,null,null,null,null,null,null,null,null,null,null,"R3, 1 - 0",null,null,null,null,null,null,null,null,null,null,null,null,"R3, 0 - 1","R1, 0 - 1",null,"R2, 0 - 1",null,"R2, 0 - 1",null,"R1, 1 - 0","R6, 0 - 1","R6, 5 - 22","R3, 1 - 0","R6, 0.5 - 0.5","R3, 0.5 - 0.5",null,"R7, 1 - 0","R6, 1 - 0","R2, 0 - 1","R3, 1 - 0","R1, 1 - 0","R2, 1 - 0","R6, 0 - 1",null,null,"R5, 0 - 1",null,null,null,null,"R6, 0.5 - 0.5"]
["Justicium ",null,null,null,null,null,null,"R7, 1 - 0",null,null,null,null,null,null,null,null,null,null,null,null,null,null,null,null,null,null,null,null,null,"R8, 0.5 - 0.5",null,null,null,null,null,null,null,null,null,null,null,null,"R6, 0.5 - 0.5",null,null,null,null,"R1, 0 - 1",null,null,null,null,null,null,null,"R5, 1 - 0",null,null,null,null,null,null,null,null,null,null,null,null,null,null,null,null,null,null,null,null,null,null,null,null,"R3, 1 - 0",null,null,null,null,"R4, 0.5 - 0.5",null,null,null,null,null,null,null,null,null,null,null,null,null,null,null,"R5, 0.5 - 0.5","R2, 1 - 0","R1, 1 - 0","R1, 0.5 - 0.5","R6, 0 - 1","R1, 0 - 1","R1, 0 - 1","R6, 0.5 - 0.5","R6, 0 - 1","R4, 0 - 1","R5, 0 - 1",null,null,"R1, 0.5 - 0.5",null,null,"R2, 0 - 1","R2, 0 - 1",null,"R4, 1 - 0","R6, 10 - 10","R5, 1 - 0"]
["Liam ",null,null,null,null,null,null,null,null,null,null,null,null,"R1, 0.5 - 0.5",null,null,null,null,null,null,null,null,null,null,null,null,null,"R3, 0 - 1",null,null,null,null,null,"R6, 1 - 0",null,null,null,null,null,null,null,null,null,null,null,null,null,null,"R5, 1 - 0",null,null,null,null,null,null,null,null,null,null,null,"R8, 1 - 0",null,null,null,null,null,null,"R2, 0.5 - 0.5",null,null,null,"R7, 0.5 - 0.5",null,null,null,null,null,null,null,null,null,null,null,null,null,null,null,null,null,null,null,null,null,null,null,null,null,null,null,null,null,null,null,null,"R2, 0 - 1","R3, 0 - 1","R6, 0 - 1","R6, 0.5 - 0.5","R1, 0 - 1",null,null,"R4, 0.5 - 0.5","R5, 0 - 1","R2, 0.5 - 0.5","R2, 0 - 1",null,"R6, 1 - 0",null,null,"R4, 1 - 0","R1, 0.5 - 0.5"]
["Endalos ",null,null,null,null,null,null,null,null,null,null,null,null,null,null,null,null,null,null,null,null,null,null,null,null,null,null,null,null,null,null,null,null,null,null,"R4, 0.5 - 0.5","R3, 0 - 1",null,null,null,null,null,null,null,null,null,null,null,"R7, 0.5 - 0.5",null,null,null,null,null,null,null,null,null,null,null,null,null,null,null,"R5, 0 - 1",null,null,null,null,null,null,null,"R1, 0.5 - 0.5",null,null,null,null,null,null,null,null,null,null,null,null,null,null,null,null,null,null,null,null,null,null,null,null,null,"R6, 1 - 0",null,"R1, 0 - 1","R2, 0 - 1",null,"R4, 1 - 0",null,"R2, 0.5 - 0.5",null,"R3, 0.5 - 0.5","R1, 1 - 0","R1, 0 - 1",null,null,"R8, 0.5 - 0.5","R1, 0.5 - 0.5","R6, 0 - 1","R2, 1 - 0","R5, 8 - 22","R4, 0.5 - 0.5",null,"R2, 1 - 0","R3, 1 - 0",null,null,null,null,null,"R6, 0.5 - 0.5"]
["bothun ",null,null,null,null,null,"R5, 1 - 0",null,null,null,null,null,null,null,null,null,null,null,null,null,null,null,null,null,null,null,null,null,null,null,null,null,null,null,null,null,null,null,null,null,null,null,null,null,null,"R8, 1 - 0",null,null,null,null,"R3, 0.5 - 0.5",null,null,null,null,null,null,null,null,null,null,null,null,null,null,null,null,"R6, 0.5 - 0.5",null,null,null,null,null,"R1, 0 - 1",null,"R4, 1 - 0","R7, 0 - 1",null,null,null,null,null,null,null,null,null,null,null,null,null,null,null,null,null,null,null,null,null,null,null,null,"R1, 0 - 1",null,null,null,"R6, 0.5 - 0.5","R2, 0.5 - 0.5","R6, 1 - 0",null,"R1, 0 - 1","R3, 1 - 0","R1, 0 - 1","R4, 0 - 1","R2, 0 - 1",null,"R1, 0 - 1","R4, 1 - 0","R6, 0.5 - 0.5",null,"R2, 0 - 1",null,null,null,null,null,"R6, 0.5 - 0.5",null,"R3, 1 - 0"]
["Inforthepain ",null,null,null,null,null,null,null,"R6, 0.5 - 0.5",null,null,null,null,null,"R8, 1 - 0",null,null,null,null,null,null,null,null,null,null,"R1, 0.5 - 0.5",null,null,null,null,null,null,null,null,null,null,null,null,null,null,null,null,null,null,null,null,"R3, 1 - 0",null,"R2, 0.5 - 0.5",null,null,null,null,null,"R4, 1 - 0",null,null,null,null,null,null,null,null,null,null,null,null,null,"R7, 0.5 - 0.5",null,null,null,null,null,null,null,null,null,null,null,null,null,null,null,null,null,null,null,null,null,null,null,null,"R5, 1 - 0",null,null,null,null,null,null,"R2, 0 - 1",null,null,"R1, 0.5 - 0.5",null,"R6, 0.5 - 0.5","R6, 0.5 - 0.5",null,null,"R5, 0.5 - 0.5","R2, 0 - 1","R3, 1 - 0",null,null,"R2, 0.5 - 0.5",null,null,"R2, 0.5 - 0.5","R1, 0 - 1","R6, 1 - 0",null,null,null,null,null,null,"R3, 0 - 1"]
["sigu70 ",null,null,null,null,null,null,null,null,null,null,null,null,null,null,null,null,null,null,null,null,null,null,null,null,null,null,null,null,null,null,null,null,null,null,null,null,null,null,"R3, 1 - 0",null,null,null,null,null,null,null,null,null,null,null,null,null,null,null,null,null,null,null,null,null,null,null,null,null,null,"R7, 1 - 0",null,null,"R1, 1 - 0",null,null,null,null,null,null,null,null,null,null,null,null,"R6, 0.5 - 0.5","R4, 0.5 - 0.5",null,null,null,null,null,"R5, 1 - 0",null,"R2, 1 - 0",null,null,null,null,null,null,null,null,null,null,"R1, 1 - 0",null,null,"R1, 0.5 - 0.5","R5, 0 - 1","R8, 0 - 1","R3, 0.5 - 0.5","R7, 0.5 - 0.5","R2, 1 - 0","R6, 0.5 - 0.5","R3, 0.5 - 0.5","R1, 1 - 0",null,"R4, 1 - 0","R1, 0 - 1","R4, 0 - 1",null,null,"R2, 1 - 0",null,"R6, 0.5 - 0.5"]

{"sheet":"Round1","index":9,"n_rows":129,"n_cols":33,"rows_kept":129,"cut":false,"hidden":false,"merged":[]}
[null,"Home Player","Away Player","Home Points","Away Points","Home TD","Away TD","Home Cas","Away Cas","Home Bonus1","Away Bonus1","Home Bonus2","Away Bonus2","Home Group","Away Group",null,null,null,"Points Before Games",null,null,"Points After Games",null,null,"Group Results","Group","Points",null,"Group Points Before Games",null,null,"Group Points After Games"]
[null,"Leonek ","sann0638 ",{"$f":"fctScore(F2,G2,H2,J2,L2)","v":0.5},{"$f":"fctScore(G2,F2,I2,K2,M2)","v":0.5},2,2,2,1,1,2,0,2,"Poland","Scotland",null,null,null,"Alex05 ",0,null,"Domingo ",1,null,null,"Belgium",2,null,"Poland",0,null,"Finland",7.5]
[null,"Warrior1980 ","Loki ",{"$f":"fctScore(F3,G3,H3,J3,L3)","v":0.5},{"$f":"fctScore(G3,F3,I3,K3,M3)","v":0.5},2,2,0,1,3,2,1,3,"Poland","Scotland",null,null,null,"MissSweden ",0,null,"Muadib ",1,null,null,"Denmark",3.5,null,"Scotland",0,null,"Germany",7]
[null,"Domingo ","JamesEs ",1,0,3,0,3,1,2,2,0,2,"Poland","Scotland",null,null,null,"MacWitt ",0,null,"Goss ",1,null,null,"England",1.5,null,"Spain",0,null,"Italy",6]
[null,"Reszka ","Garrick ",0.5,0.5,1,1,2,2,1,1,2,2,"Poland","Scotland",null,null,null,"kfoged ",0,null,"Arioso ",1,null,null,"Finland",7.5,null,"Viking",0,null,"Viking",5.5]
[null,"Slimaq ","HumptyTrump ",0,1,2,3,3,1,2,3,1,2,"Poland","Scotland",null,null,null,"BiBi ",0,null,"DonShula ",1,null,null,"France",4.5,null,"Finland",0,null,"Switzerland",5.5]
[null,"Mewash ","DonShula ",0,1,0,3,2,0,2,0,0,2,"Poland","Scotland",null,null,null,"Macabeo ",0,null,"Faccko ",1,null,null,"Germany",7,null,"England",0,null,"Sweden",5.5]
[null,"Juniooor7 ","Valen ",1,0,1,0,1,1,1,3,3,1,"Poland","Scotland",null,null,null,"Strider84 ",0,null,"Mufflo ",1,null,null,"Hungary",3.5,null,"Wales",0,null,"Poland",5.5]
[null,"Shawass ","Purdindas ",1,0,1,0,0,2,1,1,2,1,"Poland","Scotland",null,null,null,"Gros Nain ",0,null,"DocMaxx ",1,null,null,"Italy",6,null,"Italy",0,null,"France",4.5]
[null,"Barry ","Purrelito ",1,0,2,1,1,2,0,1,3,1,"Spain","Viking",null,null,null,"sigu70 ",0,null,"Lycos ",1,null,null,"Norway",4.5,null,"Denmark",0,null,"Norway",4.5]
[null,"Joanet ","brocCooli ",1,0,2,1,1,3,2,2,1,0,"Spain","Viking",null,null,null,"Leonek ",0,null,"Beppe ",1,null,null,"Poland",5.5,null,"Switzerland",0,null,"Scotland",3.5]
[null,"Idroj ","Duckwing ",0.5,0.5,2,2,3,3,0,2,3,1,"Spain","Viking",null,null,null,"Harti ",0,null,"Gaunab ",1,null,null,"Scotland",3.5,null,"Germany",0,null,"Hungary",3.5]
[null,"Malasnoticias ","Corwin ",0.5,0.5,2,2,2,1,1,1,1,0,"Spain","Viking",null,null,null,"Warrior1980 ",0,null,"Melisqus ",1,null,null,"Spain",3.5,null,"Belgium",0,null,"Denmark",3.5]
[null,"Tactel ","Mufflo ",0,1,1,3,0,1,1,1,0,1,"Spain","Viking",null,null,null,"Ploppy_McPloppy ",0,null,"MacWitt ",1,null,null,"Sweden",5.5,null,"Norway",0,null,"Spain",3.5]
[null,"Duke_Luthor_Von_Hawkfire ","Balder ",0,1,1,2,2,0,3,2,2,1,"Spain","Viking",null,null,null,"Tank ",0,null,"Gros Nain ",1,null,null,"Switzerland",5.5,null,"France",0,null,"Wales",3]
[null,"Dark Duke ","Faccko ",0,1,0,2,1,2,2,2,0,1,"Spain","Viking",null,null,null,"jopotzuki ",0,null,"valkohukka ",1,null,null,"Viking",5.5,null,"Sweden",0,null,"Belgium",2]
[null,"Obeliz ","Bernuz ",0.5,0.5,0,0,1,0,0,2,2,2,"Spain","Viking",null,null,null,"Purrelito ",0,null,"Verrinho ",1,null,null,"Wales",3,null,"Hungary",0,null,"England",1.5]
[null,"MacWitt ","Podfrey ",1,0,2,0,1,2,1,1,0,2,"Finland","England",null,null,null,"The_Ref ",0,null,"mynock ",1]
[null,"jopotzuki ","Mubo ",1,0,3,2,0,2,1,1,1,1,"Finland","England",null,null,null,"brocCooli ",0,null,"BeerBeer ",1]
[null,"BeerBeer ","Joemanji ",1,0,1,0,2,1,3,0,1,1,"Finland","England",null,null,null,"sann0638 ",0,null,"GreatWhiteHope ",1]
[null,"ratogre ","JimJimany ",1,0,3,2,1,2,1,0,0,1,"Finland","England",null,null,null,"Niebling ",0,null,"sigu70 ",1]
[null,"Harza ","PurpleGoo ",1,0,2,1,1,1,1,1,0,1,"Finland","England",null,null,null,"Araznaroth ",0,null,"gninocker ",1]
[null,"edheim ","Lycos ",0,1,1,3,2,2,3,1,2,0,"Finland","England",null,null,null,"swifty ",0,null,"Topper ",1]
[null,"valkohukka ","Wilzif ",1,0,2,1,3,0,3,2,1,0,"Finland","England",null,null,null,"Podfrey ",0,null,"cz ",1]
[null,"J-Ho","Geggster ",0.5,0.5,1,1,3,0,0,1,2,3,"Finland","England",null,null,null,"cz ",0,null,"Malodoror ",1]
[null,"Ploppy_McPloppy ","Farina ",1,0,2,1,3,2,2,2,3,1,"Wales","Italy",null,null,null,"Loki ",0,null,"Ploppy_McPloppy ",1]
[null,"MadeofWelsh ","Dirold ",0.5,0.5,1,1,2,1,1,2,2,2,"Wales","Italy",null,null,null,"noraal ",0,null,"Spartako ",1]
[null,"SFisher91 ","Spartako ",0,1,1,2,1,2,1,2,3,1,"Wales","Italy",null,null,null,"bothun ",0,null,"Macabeo ",1]
[null,"andydavo ","Matte8 ",0.5,0.5,1,1,0,2,1,2,1,3,"Wales","Italy",null,null,null,"Mubo ",0,null,"Harza ",1]
[null,"nonumber ","Kaltenland ",0.5,0.5,1,1,2,2,2,2,0,2,"Wales","Italy",null,null,null,"Favi ",0,null,"kfoged ",1]
[null,"20Phoenix ","Beppe ",0,1,1,3,0,0,2,1,1,0,"Wales","Italy",null,null,null,"Itzla ",0,null,"Juniooor7 ",1]
[null,"Dionysian ","Verrinho ",0,1,0,1,0,2,2,2,1,1,"Wales","Italy",null,null,null,"Joemanji ",0,null,"Itzla ",1]
[null,"Northernknight ","Liam ",0.5,0.5,2,2,1,3,2,0,2,2,"Wales","Italy",null,null,null,"FrankPedersen ",0,null,"Dragons ",1]
[null,"MissSweden ","Macabeo ",0,1,0,1,1,1,3,2,2,1,"Denmark","Switzerland",null,null,null,"Jonny_Kanone ",0,null,"Jaqra ",1]
[null,"kfoged ","Strider84 ",1,0,2,1,1,1,3,0,2,1,"Denmark","Switzerland",null,null,null,"Duckwing ",0,null,"Jonny_Kanone ",1]
[null,"Tank ","sigu70 ",0,1,0,1,0,1,3,2,1,3,"Denmark","Switzerland",null,null,null,"mynock ",0,null,"Pellevin ",1]
[null,"Niebling ","Phifoe ",0.5,0.5,1,1,1,1,2,0,2,3,"Denmark","Switzerland",null,null,null,"Barry ",0,null,"BiBi ",1]
[null,"SpecialOne ","Elrik ",0,1,2,3,2,1,2,0,2,2,"Denmark","Switzerland",null,null,null,"Dragons ",0,null,"Elrik ",1]
[null,"Jaqra ","Jokaero ",1,0,1,0,1,1,2,0,2,2,"Denmark","Switzerland",null,null,null,"BeerBeer ",0,null,"ratogre ",1]
[null,"Topper ","Madmatt13 ",1,0,2,1,3,2,2,3,3,1,"Denmark","Switzerland",null,null,null,"Farina ",0,null,"Barry ",1]
[null,"Tripleskull ","Goss ",0,1,0,3,2,2,1,0,1,0,"Denmark","Switzerland",null,null,null,"Gaunab ",0,null,"HumptyTrump ",1]
[null,"Jonny_Kanone ","Araznaroth ",1,0,2,1,0,1,2,3,1,1,"Germany","Belgium",null,null,null,"Melisqus ",0,null,"Balder ",1]
[null,"Gaunab ","Phoenix11 ",1,0,3,1,1,2,1,1,1,3,"Germany","Belgium",null,null,null,"SpecialOne ",0,null,"Shawass ",1]
[null,"Candlejack ","Dekra1979 ",1,0,2,1,1,3,2,3,2,1,"Germany","Belgium",null,null,null,"Dirold ",0,null,"Joanet ",1]
[null,"DocMaxx ","JJ ",1,0,3,1,1,1,1,0,2,3,"Germany","Belgium",null,null,null,"JohnnyD ",0,null,"jopotzuki ",1]
[null,"RoterSternHochdahl","Malodoror ",0,1,1,2,1,2,2,1,0,1,"Germany","Belgium",null,null,null,"JamesEs ",0,null,"Candlejack ",1]
[null,"Prince ","gninocker ",0,1,1,2,1,2,0,2,3,1,"Germany","Belgium",null,null,null,"Justicium ",0,null,"J-Ho",0.5]
[null,"Muadib ","Driesfield ",1,0,3,0,3,2,2,3,2,1,"Germany","Belgium",null,null,null,"Garrick ",0,null,"Matte8 ",0.5]
[null,"Arioso ","Woete ",1,0,3,0,1,2,1,1,1,2,"Germany","Belgium",null,null,null,"Pidpad ",0,null,"Liam ",0.5]
[null,"The_Ref ","BiBi ",0,1,1,2,1,0,3,0,2,3,"Norway","France",null,null,null,"Spartako ",0,null,"Pidpad ",0.5]
[null,"bothun ","Gros Nain ",0,1,1,3,3,1,1,2,3,1,"Norway","France",null,null,null,"Corwin ",0,null,"BlackOrc ",0.5]
[null,"FrankPedersen ","Harti ",0.5,0.5,1,1,1,0,2,0,1,2,"Norway","France",null,null,null,"Joanet ",0,null,"Loki ",0.5]
[null,"mynock ","Justicium ",1,0,2,1,3,1,0,1,1,2,"Norway","France",null,null,null,"Phoenix11 ",0,null,"Leonek ",0.5]
[null,"GreatWhiteHope ","Simon_ACP ",1,0,3,2,1,0,0,0,1,1,"Norway","France",null,null,null,"JimJimany ",0,null,"Endalos ",0.5]
[null,"zulu ","Matt le fou ",0.5,0.5,3,3,2,2,0,1,0,2,"Norway","France",null,null,null,"GreatWhiteHope ",0,null,"MadeofWelsh ",0.5]
[null,"straume ","Bouzzy ",0.5,0.5,2,2,1,1,2,2,2,1,"Norway","France",null,null,null,"Phifoe ",0,null,"FrankPedersen ",0.5]
[null,"Endalos ","BudWiser ",0.5,0.5,1,1,2,1,2,1,2,0,"Norway","France",null,null,null,"PurpleGoo ",0,null,"Malasnoticias ",0.5]
[null,"Dragons ","Alex05 ",1,0,2,1,3,3,3,3,1,2,"Sweden","Hungary",null,null,null,"BlackOrc ",0,null,"Obeliz ",0.5]
[null,"Melisqus ","swifty ",1,0,3,1,1,2,0,1,2,0,"Sweden","Hungary",null,null,null,"ratogre ",0,null,"Favi ",0.5]
[null,"JohnnyD ","cz ",0,1,0,1,1,2,1,1,2,1,"Sweden","Hungary",null,null,null,"Dekra1979 ",0,null,"Idroj ",0.5]
[null,"Pidpad ","noraal ",0.5,0.5,1,1,3,1,2,2,1,3,"Sweden","Hungary",null,null,null,"Domingo ",0,null,"Duckwing ",0.5]
[null,"Skuld ","Favi ",0.5,0.5,2,2,1,2,2,1,3,1,"Sweden","Hungary",null,null,null,"Lycos ",0,null,"straume ",0.5]
[null,"Skoberget ","Itzla ",0,1,2,3,1,1,0,1,3,2,"Sweden","Hungary",null,null,null,"JJ ",0,null,"Garrick ",0.5]
[null,"Inforthepain ","BlackOrc ",0.5,0.5,2,2,1,2,2,3,0,2,"Sweden","Hungary",null,null,null,"Reszka ",0,null,"nonumber ",0.5]
[null,"Pellevin ","Wolio ",1,0,1,0,1,2,1,1,3,3,"Sweden","Hungary",null,null,null,"Matte8 ",0,null,"zulu ",0.5]
[null,null,null,null,null,null,null,null,null,null,null,null,null,null,null,null,null,null,"Kaltenland ",0,null,"Niebling ",0.5]
[null,null,null,null,null,null,null,null,null,null,null,null,null,null,null,null,null,null,"Malodoror ",0,null,"Reszka ",0.5]
[null,null,null,null,null,null,null,null,null,null,null,null,null,null,null,null,null,null,"Skuld ",0,null,"Phifoe ",0.5]
[null,null,null,null,null,null,null,null,null,null,null,null,null,null,null,null,null,null,"Beppe ",0,null,"Matt le fou ",0.5]
[null,null,null,null,null,null,null,null,null,null,null,null,null,null,null,null,null,null,"MadeofWelsh ",0,null,"Kaltenland ",0.5]
[null,null,null,null,null,null,null,null,null,null,null,null,null,null,null,null,null,null,"Jaqra ",0,null,"Bouzzy ",0.5]
[null,null,null,null,null,null,null,null,null,null,null,null,null,null,null,null,null,null,"Slimaq ",0,null,"Harti ",0.5]
[null,null,null,null,null,null,null,null,null,null,null,null,null,null,null,null,null,null,"Simon_ACP ",0,null,"Skuld ",0.5]
[null,null,null,null,null,null,null,null,null,null,null,null,null,null,null,null,null,null,"Candlejack ",0,null,"Inforthepain ",0.5]
[null,null,null,null,null,null,null,null,null,null,null,null,null,null,null,null,null,null,"Elrik ",0,null,"Warrior1980 ",0.5]
[null,null,null,null,null,null,null,null,null,null,null,null,null,null,null,null,null,null,"SFisher91 ",0,null,"Bernuz ",0.5]
[null,null,null,null,null,null,null,null,null,null,null,null,null,null,null,null,null,null,"Idroj ",0,null,"BudWiser ",0.5]
[null,null,null,null,null,null,null,null,null,null,null,null,null,null,null,null,null,null,"Malasnoticias ",0,null,"sann0638 ",0.5]
[null,null,null,null,null,null,null,null,null,null,null,null,null,null,null,null,null,null,"DocMaxx ",0,null,"Corwin ",0.5]
[null,null,null,null,null,null,null,null,null,null,null,null,null,null,null,null,null,null,"gninocker ",0,null,"Dirold ",0.5]
[null,null,null,null,null,null,null,null,null,null,null,null,null,null,null,null,null,null,"RoterSternHochdahl",0,null,"andydavo ",0.5]
[null,null,null,null,null,null,null,null,null,null,null,null,null,null,null,null,null,null,"Prince ",0,null,"noraal ",0.5]
[null,null,null,null,null,null,null,null,null,null,null,null,null,null,null,null,null,null,"Skoberget ",0,null,"Northernknight ",0.5]
[null,null,null,null,null,null,null,null,null,null,null,null,null,null,null,null,null,null,"Matt le fou ",0,null,"Geggster ",0.5]
[null,null,null,null,null,null,null,null,null,null,null,null,null,null,null,null,null,null,"zulu ",0,null,"Slimaq ",0]
[null,null,null,null,null,null,null,null,null,null,null,null,null,null,null,null,null,null,"HumptyTrump ",0,null,"Mubo ",0]
[null,null,null,null,null,null,null,null,null,null,null,null,null,null,null,null,null,null,"Harza ",0,null,"Purdindas ",0]
[null,null,null,null,null,null,null,null,null,null,null,null,null,null,null,null,null,null,"edheim ",0,null,"brocCooli ",0]
[null,null,null,null,null,null,null,null,null,null,null,null,null,null,null,null,null,null,"Topper ",0,null,"Duke_Luthor_Von_Hawkfire ",0]
[null,null,null,null,null,null,null,null,null,null,null,null,null,null,null,null,null,null,"Mufflo ",0,null,"Dekra1979 ",0]
[null,null,null,null,null,null,null,null,null,null,null,null,null,null,null,null,null,null,"Mewash ",0,null,"Purrelito ",0]
[null,null,null,null,null,null,null,null,null,null,null,null,null,null,null,null,null,null,"Bouzzy ",0,null,"SpecialOne ",0]
[null,null,null,null,null,null,null,null,null,null,null,null,null,null,null,null,null,null,"Jokaero ",0,null,"The_Ref ",0]
[null,null,null,null,null,null,null,null,null,null,null,null,null,null,null,null,null,null,"andydavo ",0,null,"Wolio ",0]
[null,null,null,null,null,null,null,null,null,null,null,null,null,null,null,null,null,null,"Tripleskull ",0,null,"Araznaroth ",0]
[null,null,null,null,null,null,null,null,null,null,null,null,null,null,null,null,null,null,"valkohukka ",0,null,"JimJimany ",0]
[null,null,null,null,null,null,null,null,null,null,null,null,null,null,null,null,null,null,"straume ",0,null,"Skoberget ",0]
[null,null,null,null,null,null,null,null,null,null,null,null,null,null,null,null,null,null,"Wilzif ",0,null,"Strider84 ",0]
[null,null,null,null,null,null,null,null,null,null,null,null,null,null,null,null,null,null,"Verrinho ",0,null,"MissSweden ",0]
[null,null,null,null,null,null,null,null,null,null,null,null,null,null,null,null,null,null,"Balder ",0,null,"Jokaero ",0]
[null,null,null,null,null,null,null,null,null,null,null,null,null,null,null,null,null,null,"Driesfield ",0,null,"Alex05 ",0]
[null,null,null,null,null,null,null,null,null,null,null,null,null,null,null,null,null,null,"DonShula ",0,null,"PurpleGoo ",0]
[null,null,null,null,null,null,null,null,null,null,null,null,null,null,null,null,null,null,"Endalos ",0,null,"Valen ",0]
[null,null,null,null,null,null,null,null,null,null,null,null,null,null,null,null,null,null,"Liam ",0,null,"Joemanji ",0]
[null,null,null,null,null,null,null,null,null,null,null,null,null,null,null,null,null,null,"Juniooor7 ",0,null,"SFisher91 ",0]
[null,null,null,null,null,null,null,null,null,null,null,null,null,null,null,null,null,null,"Wolio ",0,null,"Simon_ACP ",0]
[null,null,null,null,null,null,null,null,null,null,null,null,null,null,null,null,null,null,"Woete ",0,null,"RoterSternHochdahl",0]
[null,null,null,null,null,null,null,null,null,null,null,null,null,null,null,null,null,null,"Tactel ",0,null,"JohnnyD ",0]
[null,null,null,null,null,null,null,null,null,null,null,null,null,null,null,null,null,null,"Duke_Luthor_Von_Hawkfire ",0,null,"Madmatt13 ",0]
[null,null,null,null,null,null,null,null,null,null,null,null,null,null,null,null,null,null,"Madmatt13 ",0,null,"Farina ",0]
[null,null,null,null,null,null,null,null,null,null,null,null,null,null,null,null,null,null,"nonumber ",0,null,"Prince ",0]
[null,null,null,null,null,null,null,null,null,null,null,null,null,null,null,null,null,null,"Shawass ",0,null,"Tank ",0]
[null,null,null,null,null,null,null,null,null,null,null,null,null,null,null,null,null,null,"Faccko ",0,null,"Justicium ",0]
[null,null,null,null,null,null,null,null,null,null,null,null,null,null,null,null,null,null,"J-Ho",0,null,"Dionysian ",0]
[null,null,null,null,null,null,null,null,null,null,null,null,null,null,null,null,null,null,"Dark Duke ",0,null,"Wilzif ",0]
[null,null,null,null,null,null,null,null,null,null,null,null,null,null,null,null,null,null,"Obeliz ",0,null,"bothun ",0]
[null,null,null,null,null,null,null,null,null,null,null,null,null,null,null,null,null,null,"20Phoenix ",0,null,"Podfrey ",0]
[null,null,null,null,null,null,null,null,null,null,null,null,null,null,null,null,null,null,"Muadib ",0,null,"Phoenix11 ",0]
[null,null,null,null,null,null,null,null,null,null,null,null,null,null,null,null,null,null,"Geggster ",0,null,"swifty ",0]
[null,null,null,null,null,null,null,null,null,null,null,null,null,null,null,null,null,null,"Valen ",0,null,"edheim ",0]
[null,null,null,null,null,null,null,null,null,null,null,null,null,null,null,null,null,null,"BudWiser ",0,null,"JJ ",0]
[null,null,null,null,null,null,null,null,null,null,null,null,null,null,null,null,null,null,"Inforthepain ",0,null,"20Phoenix ",0]
[null,null,null,null,null,null,null,null,null,null,null,null,null,null,null,null,null,null,"Pellevin ",0,null,"Tactel ",0]
[null,null,null,null,null,null,null,null,null,null,null,null,null,null,null,null,null,null,"Purdindas ",0,null,"Dark Duke ",0]
[null,null,null,null,null,null,null,null,null,null,null,null,null,null,null,null,null,null,"Goss ",0,null,"Mewash ",0]
[null,null,null,null,null,null,null,null,null,null,null,null,null,null,null,null,null,null,"Arioso ",0,null,"Woete ",0]
[null,null,null,null,null,null,null,null,null,null,null,null,null,null,null,null,null,null,"Dionysian ",0,null,"Tripleskull ",0]
[null,null,null,null,null,null,null,null,null,null,null,null,null,null,null,null,null,null,"Northernknight ",0,null,"Driesfield ",0]
[null,null,null,null,null,null,null,null,null,null,null,null,null,null,null,null,null,null,"Bernuz ",0,null,"JamesEs ",0]

{"sheet":"Round2","index":10,"n_rows":129,"n_cols":33,"rows_kept":129,"cut":false,"hidden":false,"merged":[]}
[null,"Home Player","Away Player","Home Points","Away Points","Home TD","Away TD","Home Cas","Away Cas","Home Bonus1","Away Bonus1","Home Bonus2","Away Bonus2","Home Group","Away Group",null,null,null,"Points Before Games",null,null,"Points After Games",null,null,"Group Results","Group","Points",null,"Group Points Before Games",null,null,"Group Points After Games"]
[null,"MacWitt ","Muadib ",{"$f":"fctScore(F2,G2,H2,J2,L2)","v":0.5},{"$f":"fctScore(G2,F2,I2,K2,M2)","v":0.5},2,2,2,0,1,1,0,0,"Finland","Germany",null,null,null,"Domingo ",1,null,"DonShula ",2,null,null,"Belgium",5.5,null,"Finland",7.5,null,"Finland",14]
[null,"valkohukka ","Arioso ",{"$f":"fctScore(F3,G3,H3,J3,L3)","v":0},{"$f":"fctScore(G3,F3,I3,K3,M3)","v":1},1,2,2,2,0,1,0,1,"Finland","Germany",null,null,null,"Muadib ",1,null,"Domingo ",2,null,null,"Denmark",6,null,"Germany",7,null,"Switzerland",11.5]
[null,"BeerBeer ","DocMaxx ",0.5,0.5,2,2,2,1,3,2,2,1,"Finland","Germany",null,null,null,"Goss ",1,null,"Arioso ",2,null,null,"England",3.5,null,"Italy",6,null,"Poland",11]
[null,"Harza ","Gaunab ",1,0,2,0,0,1,2,3,1,2,"Finland","Germany",null,null,null,"Arioso ",1,null,"Spartako ",2,null,null,"Finland",6.5,null,"Viking",5.5,null,"Italy",10.5]
[null,"ratogre ","Jonny_Kanone ",1,0,2,0,2,1,1,2,3,3,"Finland","Germany",null,null,null,"DonShula ",1,null,"Barry ",2,null,null,"France",3.5,null,"Switzerland",5.5,null,"Viking",10]
[null,"jopotzuki ","Candlejack ",1,0,2,0,2,3,0,3,0,1,"Finland","Germany",null,null,null,"Faccko ",1,null,"Topper ",2,null,null,"Germany",2.5,null,"Sweden",5.5,null,"Spain",10]
[null,"J-Ho","RoterSternHochdahl",0.5,0.5,2,2,0,0,2,1,1,2,"Finland","Germany",null,null,null,"Mufflo ",1,null,"BiBi ",2,null,null,"Hungary",3,null,"Poland",5.5,null,"Germany",9.5]
[null,"edheim ","Prince ",1,0,2,1,1,0,1,2,2,2,"Finland","Germany",null,null,null,"DocMaxx ",1,null,"ratogre ",2,null,null,"Italy",4.5,null,"France",4.5,null,"Denmark",9.5]
[null,"Beppe ","Faccko ",0.5,0.5,2,2,1,2,2,2,2,1,"Italy","Viking",null,null,null,"Lycos ",1,null,"Elrik ",2,null,null,"Norway",4.5,null,"Norway",4.5,null,"Norway",9]
[null,"Verrinho ","Mufflo ",1,0,2,0,1,3,2,1,1,1,"Italy","Viking",null,null,null,"Beppe ",1,null,"Harza ",2,null,null,"Poland",5.5,null,"Scotland",3.5,null,"Sweden",8.5]
[null,"Spartako ","Balder ",1,0,3,1,1,2,2,2,2,1,"Italy","Viking",null,null,null,"Gaunab ",1,null,"jopotzuki ",2,null,null,"Scotland",4.5,null,"Hungary",3.5,null,"Scotland",8]
[null,"Matte8 ","Duckwing ",0.5,0.5,2,2,3,1,1,2,1,1,"Italy","Viking",null,null,null,"Melisqus ",1,null,"GreatWhiteHope ",2,null,null,"Spain",6.5,null,"Denmark",3.5,null,"France",8]
[null,"Liam ","Bernuz ",0.5,0.5,2,2,0,0,2,3,2,1,"Italy","Viking",null,null,null,"MacWitt ",1,null,"sigu70 ",2,null,null,"Sweden",3,null,"Spain",3.5,null,"Belgium",7.5]
[null,"Kaltenland ","Corwin ",0.5,0.5,1,1,3,2,1,1,2,2,"Italy","Viking",null,null,null,"Gros Nain ",1,null,"Goss ",2,null,null,"Switzerland",6,null,"Wales",3,null,"Hungary",6.5]
[null,"Dirold ","brocCooli ",0,1,0,2,3,1,0,1,2,1,"Italy","Viking",null,null,null,"valkohukka ",1,null,"Verrinho ",2,null,null,"Viking",4.5,null,"Belgium",2,null,"Wales",5.5]
[null,"Farina ","Purrelito ",0,1,1,2,1,2,2,1,1,0,"Italy","Viking",null,null,null,"Verrinho ",1,null,"Malodoror ",2,null,null,"Wales",2.5,null,"England",1.5,null,"England",5]
[null,"Goss ","Melisqus ",1,0,3,1,2,1,3,1,2,1,"Switzerland","Sweden",null,null,null,"mynock ",1,null,"Pellevin ",2]
[null,"sigu70 ","Dragons ",1,0,1,0,1,1,2,0,1,0,"Switzerland","Sweden",null,null,null,"BeerBeer ",1,null,"Faccko ",1.5]
[null,"Macabeo ","Pellevin ",0,1,1,2,2,3,2,2,2,1,"Switzerland","Sweden",null,null,null,"GreatWhiteHope ",1,null,"MacWitt ",1.5]
[null,"Elrik ","Pidpad ",1,0,3,1,2,2,2,2,2,2,"Switzerland","Sweden",null,null,null,"sigu70 ",1,null,"Lycos ",1.5]
[null,"Phifoe ","Skuld ",0,1,1,2,2,2,1,1,1,3,"Switzerland","Sweden",null,null,null,"gninocker ",1,null,"DocMaxx ",1.5]
[null,"Strider84 ","Inforthepain ",0.5,0.5,2,2,1,0,1,0,2,0,"Switzerland","Sweden",null,null,null,"Topper ",1,null,"BeerBeer ",1.5]
[null,"Jokaero ","Skoberget ",0.5,0.5,1,1,0,2,2,1,1,1,"Switzerland","Sweden",null,null,null,"cz ",1,null,"BlackOrc ",1.5]
[null,"Madmatt13 ","JohnnyD ",1,0,2,1,0,3,0,1,2,2,"Switzerland","Sweden",null,null,null,"Malodoror ",1,null,"kfoged ",1.5]
[null,"Domingo ","Gros Nain ",1,0,2,1,1,3,2,1,1,1,"Poland","France",null,null,null,"Ploppy_McPloppy ",1,null,"Itzla ",1.5]
[null,"Juniooor7 ","BiBi ",0,1,1,2,2,2,2,0,2,1,"Poland","France",null,null,null,"Spartako ",1,null,"Matt le fou ",1.5]
[null,"Shawass ","Matt le fou ",0,1,0,1,3,1,2,1,1,1,"Poland","France",null,null,null,"Macabeo ",1,null,"MadeofWelsh ",1.5]
[null,"Leonek ","Bouzzy ",0.5,0.5,1,1,1,2,1,2,2,2,"Poland","France",null,null,null,"Harza ",1,null,"Muadib ",1.5]
[null,"Reszka ","Harti ",0.5,0.5,0,0,0,1,1,2,1,3,"Poland","France",null,null,null,"kfoged ",1,null,"Garrick ",1.5]
[null,"Warrior1980 ","BudWiser ",1,0,3,2,1,0,1,0,2,3,"Poland","France",null,null,null,"Juniooor7 ",1,null,"Beppe ",1.5]
[null,"Slimaq ","Simon_ACP ",0.5,0.5,1,1,3,0,2,2,2,2,"Poland","France",null,null,null,"Itzla ",1,null,"Idroj ",1.5]
[null,"Mewash ","Justicium ",1,0,3,0,1,2,1,2,1,3,"Poland","France",null,null,null,"Dragons ",1,null,"gninocker ",1.5]
[null,"mynock ","DonShula ",0,1,1,3,1,2,3,1,3,3,"Norway","Scotland",null,null,null,"Jaqra ",1,null,"Malasnoticias ",1.5]
[null,"GreatWhiteHope ","HumptyTrump ",1,0,3,2,2,1,0,2,2,3,"Norway","Scotland",null,null,null,"Jonny_Kanone ",1,null,"Endalos ",1.5]
[null,"Endalos ","Loki ",1,0,1,0,2,0,1,1,1,3,"Norway","Scotland",null,null,null,"Pellevin ",1,null,"Niebling ",1.5]
[null,"FrankPedersen ","Garrick ",0,1,0,2,2,2,0,2,1,3,"Norway","Scotland",null,null,null,"BiBi ",1,null,"Warrior1980 ",1.5]
[null,"straume ","sann0638 ",0.5,0.5,1,1,1,1,1,2,2,1,"Norway","Scotland",null,null,null,"Elrik ",1,null,"Skuld ",1.5]
[null,"zulu ","Purdindas ",0.5,0.5,2,2,3,3,1,2,2,1,"Norway","Scotland",null,null,null,"ratogre ",1,null,"Mufflo ",1]
[null,"The_Ref ","Valen ",1,0,2,1,1,0,3,1,2,2,"Norway","Scotland",null,null,null,"Barry ",1,null,"Macabeo ",1]
[null,"bothun ","JamesEs ",0,1,0,2,2,2,1,0,1,2,"Norway","Scotland",null,null,null,"HumptyTrump ",1,null,"Melisqus ",1]
[null,"cz ","Topper ",0,1,0,1,0,0,1,3,2,1,"Hungary","Denmark",null,null,null,"Balder ",1,null,"SpecialOne ",1]
[null,"Itzla ","kfoged ",0.5,0.5,1,1,0,1,1,3,1,1,"Hungary","Denmark",null,null,null,"Shawass ",1,null,"Dragons ",1]
[null,"BlackOrc ","Jaqra ",1,0,2,1,2,1,1,0,2,1,"Hungary","Denmark",null,null,null,"Joanet ",1,null,"Gaunab ",1]
[null,"Favi ","Niebling ",0,1,2,3,1,2,1,0,0,0,"Hungary","Denmark",null,null,null,"jopotzuki ",1,null,"Reszka ",1]
[null,"noraal ","SpecialOne ",0,1,0,2,1,0,0,2,3,2,"Hungary","Denmark",null,null,null,"Candlejack ",1,null,"Corwin ",1]
[null,"Wolio ","MissSweden ",0,1,2,3,2,0,2,1,1,2,"Hungary","Denmark",null,null,null,"J-Ho",0.5,null,"Duckwing ",1]
[null,"Alex05 ","Tank ",0.5,0.5,1,1,1,3,0,1,2,2,"Hungary","Denmark",null,null,null,"Matte8 ",0.5,null,"HumptyTrump ",1]
[null,"swifty ","Tripleskull ",1,0,2,0,1,0,2,3,1,1,"Hungary","Denmark",null,null,null,"Liam ",0.5,null,"Candlejack ",1]
[null,"Barry ","Ploppy_McPloppy ",1,0,3,1,1,1,1,3,2,2,"Spain","Wales",null,null,null,"Pidpad ",0.5,null,"Jonny_Kanone ",1]
[null,"Joanet ","MadeofWelsh ",0,1,0,3,0,2,2,1,3,1,"Spain","Wales",null,null,null,"BlackOrc ",0.5,null,"Joanet ",1]
[null,"Malasnoticias ","nonumber ",1,0,2,1,1,2,2,1,2,2,"Spain","Wales",null,null,null,"Loki ",0.5,null,"Gros Nain ",1]
[null,"Obeliz ","andydavo ",0.5,0.5,0,0,0,0,2,3,1,1,"Spain","Wales",null,null,null,"Leonek ",0.5,null,"Matte8 ",1]
[null,"Idroj ","Northernknight ",1,0,3,1,1,3,0,0,3,3,"Spain","Wales",null,null,null,"Endalos ",0.5,null,"valkohukka ",1]
[null,"Duke_Luthor_Von_Hawkfire ","SFisher91 ",0,1,2,3,1,2,2,3,1,0,"Spain","Wales",null,null,null,"MadeofWelsh ",0.5,null,"Purrelito ",1]
[null,"Tactel ","Dionysian ",1,0,3,0,1,2,1,2,3,2,"Spain","Wales",null,null,null,"FrankPedersen ",0.5,null,"The_Ref ",1]
[null,"Dark Duke ","20Phoenix ",1,0,3,2,1,2,2,1,0,0,"Spain","Wales",null,null,null,"Malasnoticias ",0.5,null,"Bouzzy ",1]
[null,"gninocker ","Lycos ",0.5,0.5,1,1,1,2,1,1,0,3,"Belgium","England",null,null,null,"Obeliz ",0.5,null,"cz ",1]
[null,"Malodoror ","Geggster ",1,0,1,0,2,2,1,2,3,3,"Belgium","England",null,null,null,"Favi ",0.5,null,"Obeliz ",1]
[null,"Dekra1979 ","Mubo ",0.5,0.5,1,1,3,3,2,3,2,1,"Belgium","England",null,null,null,"Idroj ",0.5,null,"Mewash ",1]
[null,"Araznaroth ","JimJimany ",0.5,0.5,2,2,3,0,2,2,3,3,"Belgium","England",null,null,null,"Duckwing ",0.5,null,"straume ",1]
[null,"Phoenix11 ","PurpleGoo ",0.5,0.5,2,2,1,2,2,0,1,1,"Belgium","England",null,null,null,"straume ",0.5,null,"SFisher91 ",1]
[null,"JJ ","Joemanji ",0.5,0.5,3,3,1,3,2,3,1,2,"Belgium","England",null,null,null,"Garrick ",0.5,null,"Shawass ",1]
[null,"Woete ","Wilzif ",1,0,1,0,3,2,3,2,2,3,"Belgium","England",null,null,null,"nonumber ",0.5,null,"Leonek ",1]
[null,"Driesfield ","Podfrey ",0,1,0,2,1,1,0,3,3,1,"Belgium","England",null,null,null,"zulu ",0.5,null,"zulu ",1]
[null,null,null,null,null,null,null,null,null,null,null,null,null,null,null,null,null,null,"Niebling ",0.5,null,"Juniooor7 ",1]
[null,null,null,null,null,null,null,null,null,null,null,null,null,null,null,null,null,null,"Reszka ",0.5,null,"Jaqra ",1]
[null,null,null,null,null,null,null,null,null,null,null,null,null,null,null,null,null,null,"Phifoe ",0.5,null,"Bernuz ",1]
[null,null,null,null,null,null,null,null,null,null,null,null,null,null,null,null,null,null,"Matt le fou ",0.5,null,"sann0638 ",1]
[null,null,null,null,null,null,null,null,null,null,null,null,null,null,null,null,null,null,"Kaltenland ",0.5,null,"Inforthepain ",1]
[null,null,null,null,null,null,null,null,null,null,null,null,null,null,null,null,null,null,"Bouzzy ",0.5,null,"andydavo ",1]
[null,null,null,null,null,null,null,null,null,null,null,null,null,null,null,null,null,null,"Harti ",0.5,null,"Madmatt13 ",1]
[null,null,null,null,null,null,null,null,null,null,null,null,null,null,null,null,null,null,"Skuld ",0.5,null,"mynock ",1]
[null,null,null,null,null,null,null,null,null,null,null,null,null,null,null,null,null,null,"Inforthepain ",0.5,null,"Ploppy_McPloppy ",1]
[null,null,null,null,null,null,null,null,null,null,null,null,null,null,null,null,null,null,"Warrior1980 ",0.5,null,"Balder ",1]
[null,null,null,null,null,null,null,null,null,null,null,null,null,null,null,null,null,null,"Bernuz ",0.5,null,"JamesEs ",1]
[null,null,null,null,null,null,null,null,null,null,null,null,null,null,null,null,null,null,"BudWiser ",0.5,null,"Woete ",1]
[null,null,null,null,null,null,null,null,null,null,null,null,null,null,null,null,null,null,"sann0638 ",0.5,null,"brocCooli ",1]
[null,null,null,null,null,null,null,null,null,null,null,null,null,null,null,null,null,null,"Corwin ",0.5,null,"Liam ",1]
[null,null,null,null,null,null,null,null,null,null,null,null,null,null,null,null,null,null,"Dirold ",0.5,null,"Podfrey ",1]
[null,null,null,null,null,null,null,null,null,null,null,null,null,null,null,null,null,null,"andydavo ",0.5,null,"Kaltenland ",1]
[null,null,null,null,null,null,null,null,null,null,null,null,null,null,null,null,null,null,"noraal ",0.5,null,"Harti ",1]
[null,null,null,null,null,null,null,null,null,null,null,null,null,null,null,null,null,null,"Northernknight ",0.5,null,"edheim ",1]
[null,null,null,null,null,null,null,null,null,null,null,null,null,null,null,null,null,null,"Geggster ",0.5,null,"Dark Duke ",1]
[null,null,null,null,null,null,null,null,null,null,null,null,null,null,null,null,null,null,"Slimaq ",0,null,"Tactel ",1]
[null,null,null,null,null,null,null,null,null,null,null,null,null,null,null,null,null,null,"Mubo ",0,null,"J-Ho",1]
[null,null,null,null,null,null,null,null,null,null,null,null,null,null,null,null,null,null,"Purdindas ",0,null,"swifty ",1]
[null,null,null,null,null,null,null,null,null,null,null,null,null,null,null,null,null,null,"brocCooli ",0,null,"MissSweden ",1]
[null,null,null,null,null,null,null,null,null,null,null,null,null,null,null,null,null,null,"Duke_Luthor_Von_Hawkfire ",0,null,"Favi ",0.5]
[null,null,null,null,null,null,null,null,null,null,null,null,null,null,null,null,null,null,"Dekra1979 ",0,null,"Phifoe ",0.5]
[null,null,null,null,null,null,null,null,null,null,null,null,null,null,null,null,null,null,"Purrelito ",0,null,"Loki ",0.5]
[null,null,null,null,null,null,null,null,null,null,null,null,null,null,null,null,null,null,"SpecialOne ",0,null,"RoterSternHochdahl",0.5]
[null,null,null,null,null,null,null,null,null,null,null,null,null,null,null,null,null,null,"The_Ref ",0,null,"BudWiser ",0.5]
[null,null,null,null,null,null,null,null,null,null,null,null,null,null,null,null,null,null,"Wolio ",0,null,"Geggster ",0.5]
[null,null,null,null,null,null,null,null,null,null,null,null,null,null,null,null,null,null,"Araznaroth ",0,null,"Mubo ",0.5]
[null,null,null,null,null,null,null,null,null,null,null,null,null,null,null,null,null,null,"JimJimany ",0,null,"Tank ",0.5]
[null,null,null,null,null,null,null,null,null,null,null,null,null,null,null,null,null,null,"Skoberget ",0,null,"Strider84 ",0.5]
[null,null,null,null,null,null,null,null,null,null,null,null,null,null,null,null,null,null,"Strider84 ",0,null,"PurpleGoo ",0.5]
[null,null,null,null,null,null,null,null,null,null,null,null,null,null,null,null,null,null,"MissSweden ",0,null,"nonumber ",0.5]
[null,null,null,null,null,null,null,null,null,null,null,null,null,null,null,null,null,null,"Jokaero ",0,null,"JimJimany ",0.5]
[null,null,null,null,null,null,null,null,null,null,null,null,null,null,null,null,null,null,"Alex05 ",0,null,"Simon_ACP ",0.5]
[null,null,null,null,null,null,null,null,null,null,null,null,null,null,null,null,null,null,"PurpleGoo ",0,null,"Pidpad ",0.5]
[null,null,null,null,null,null,null,null,null,null,null,null,null,null,null,null,null,null,"Valen ",0,null,"FrankPedersen ",0.5]
[null,null,null,null,null,null,null,null,null,null,null,null,null,null,null,null,null,null,"Joemanji ",0,null,"Dirold ",0.5]
[null,null,null,null,null,null,null,null,null,null,null,null,null,null,null,null,null,null,"SFisher91 ",0,null,"Northernknight ",0.5]
[null,null,null,null,null,null,null,null,null,null,null,null,null,null,null,null,null,null,"Simon_ACP ",0,null,"Purdindas ",0.5]
[null,null,null,null,null,null,null,null,null,null,null,null,null,null,null,null,null,null,"RoterSternHochdahl",0,null,"Skoberget ",0.5]
[null,null,null,null,null,null,null,null,null,null,null,null,null,null,null,null,null,null,"JohnnyD ",0,null,"Joemanji ",0.5]
[null,null,null,null,null,null,null,null,null,null,null,null,null,null,null,null,null,null,"Madmatt13 ",0,null,"JJ ",0.5]
[null,null,null,null,null,null,null,null,null,null,null,null,null,null,null,null,null,null,"Farina ",0,null,"Slimaq ",0.5]
[null,null,null,null,null,null,null,null,null,null,null,null,null,null,null,null,null,null,"Prince ",0,null,"Araznaroth ",0.5]
[null,null,null,null,null,null,null,null,null,null,null,null,null,null,null,null,null,null,"Tank ",0,null,"Dekra1979 ",0.5]
[null,null,null,null,null,null,null,null,null,null,null,null,null,null,null,null,null,null,"Justicium ",0,null,"Jokaero ",0.5]
[null,null,null,null,null,null,null,null,null,null,null,null,null,null,null,null,null,null,"Dionysian ",0,null,"Alex05 ",0.5]
[null,null,null,null,null,null,null,null,null,null,null,null,null,null,null,null,null,null,"Wilzif ",0,null,"Phoenix11 ",0.5]
[null,null,null,null,null,null,null,null,null,null,null,null,null,null,null,null,null,null,"bothun ",0,null,"noraal ",0.5]
[null,null,null,null,null,null,null,null,null,null,null,null,null,null,null,null,null,null,"Podfrey ",0,null,"Wolio ",0]
[null,null,null,null,null,null,null,null,null,null,null,null,null,null,null,null,null,null,"Phoenix11 ",0,null,"Dionysian ",0]
[null,null,null,null,null,null,null,null,null,null,null,null,null,null,null,null,null,null,"swifty ",0,null,"Tripleskull ",0]
[null,null,null,null,null,null,null,null,null,null,null,null,null,null,null,null,null,null,"edheim ",0,null,"Prince ",0]
[null,null,null,null,null,null,null,null,null,null,null,null,null,null,null,null,null,null,"JJ ",0,null,"20Phoenix ",0]
[null,null,null,null,null,null,null,null,null,null,null,null,null,null,null,null,null,null,"20Phoenix ",0,null,"Driesfield ",0]
[null,null,null,null,null,null,null,null,null,null,null,null,null,null,null,null,null,null,"Tactel ",0,null,"JohnnyD ",0]
[null,null,null,null,null,null,null,null,null,null,null,null,null,null,null,null,null,null,"Dark Duke ",0,null,"Duke_Luthor_Von_Hawkfire ",0]
[null,null,null,null,null,null,null,null,null,null,null,null,null,null,null,null,null,null,"Mewash ",0,null,"Valen ",0]
[null,null,null,null,null,null,null,null,null,null,null,null,null,null,null,null,null,null,"Woete ",0,null,"Farina ",0]
[null,null,null,null,null,null,null,null,null,null,null,null,null,null,null,null,null,null,"Tripleskull ",0,null,"Wilzif ",0]
[null,null,null,null,null,null,null,null,null,null,null,null,null,null,null,null,null,null,"Driesfield ",0,null,"bothun ",0]
[null,null,null,null,null,null,null,null,null,null,null,null,null,null,null,null,null,null,"JamesEs ",0,null,"Justicium ",0]

{"sheet":"Round3","index":11,"n_rows":129,"n_cols":33,"rows_kept":129,"cut":false,"hidden":false,"merged":[]}
[null,"Home Player","Away Player","Home Points","Away Points","Home TD","Away TD","Home Cas","Away Cas","Home Bonus1","Away Bonus1","Home Bonus2","Away Bonus2","Home Group","Away Group",null,null,null,"Points Before Games",null,null,"Points After Games",null,null,"Group Results","Group","Points",null,"Group Points Before Games",null,null,"Group Points After Games"]
[null,"ratogre ","Elrik ",{"$f":"fctScore(F2,G2,H2,J2,L2)","v":1},{"$f":"fctScore(G2,F2,I2,K2,M2)","v":0},2,1,1,1,0,2,2,3,"Finland","Switzerland",null,null,null,"DonShula ",2,null,"Topper ",3,null,null,"Belgium",1.5,null,"Finland",14,null,"Switzerland",18.5]
[null,"Harza ","sigu70 ",{"$f":"fctScore(F3,G3,H3,J3,L3)","v":0},{"$f":"fctScore(G3,F3,I3,K3,M3)","v":1},0,1,2,1,1,3,1,3,"Finland","Switzerland",null,null,null,"Domingo ",2,null,"Goss ",3,null,null,"Denmark",7,null,"Switzerland",11.5,null,"Viking",17.5]
[null,"jopotzuki ","Goss ",0,1,1,2,2,2,1,2,2,2,"Finland","Switzerland",null,null,null,"Arioso ",2,null,"DonShula ",3,null,null,"England",6,null,"Poland",11,null,"Denmark",16.5]
[null,"MacWitt ","Macabeo ",0,1,0,3,0,0,1,1,1,3,"Finland","Switzerland",null,null,null,"Spartako ",2,null,"GreatWhiteHope ",3,null,null,"Finland",2,null,"Italy",10.5,null,"Finland",16]
[null,"BeerBeer ","Madmatt13 ",0,1,0,3,1,0,2,0,0,2,"Finland","Switzerland",null,null,null,"Barry ",2,null,"ratogre ",3,null,null,"France",2.5,null,"Viking",10,null,"Poland",15.5]
[null,"valkohukka ","Phifoe ",0,1,1,3,1,1,2,2,2,0,"Finland","Switzerland",null,null,null,"Topper ",2,null,"Domingo ",3,null,null,"Germany",1.5,null,"Spain",10,null,"Italy",15]
[null,"edheim ","Strider84 ",1,0,3,1,1,0,3,1,1,3,"Finland","Switzerland",null,null,null,"BiBi ",2,null,"sigu70 ",3,null,null,"Hungary",7.5,null,"Germany",9.5,null,"Scotland",14.5]
[null,"J-Ho","Jokaero ",0,1,1,2,0,2,1,2,1,0,"Finland","Switzerland",null,null,null,"ratogre ",2,null,"Arioso ",2.5,null,null,"Italy",4.5,null,"Denmark",9.5,null,"Norway",14.5]
[null,"Domingo ","Spartako ",1,0,2,1,1,1,1,2,0,1,"Poland","Italy",null,null,null,"Elrik ",2,null,"Garrick ",2.5,null,null,"Norway",5.5,null,"Norway",9,null,"Hungary",14]
[null,"Warrior1980 ","Verrinho ",0.5,0.5,2,2,2,1,0,2,2,2,"Poland","Italy",null,null,null,"Harza ",2,null,"Beppe ",2.5,null,null,"Poland",4.5,null,"Sweden",8.5,null,"Sweden",12]
[null,"Reszka ","Beppe ",0,1,1,2,0,3,1,2,0,1,"Poland","Italy",null,null,null,"jopotzuki ",2,null,"Skuld ",2.5,null,null,"Scotland",6.5,null,"Scotland",8,null,"Spain",12]
[null,"Mewash ","Matte8 ",0,1,0,2,3,1,1,2,0,2,"Poland","Italy",null,null,null,"GreatWhiteHope ",2,null,"Verrinho ",2.5,null,null,"Spain",2,null,"France",8,null,"Germany",11]
[null,"Shawass ","Liam ",1,0,3,0,2,0,3,3,2,2,"Poland","Italy",null,null,null,"sigu70 ",2,null,"Itzla ",2.5,null,null,"Sweden",3.5,null,"Belgium",7.5,null,"England",11]
[null,"Leonek ","Kaltenland ",0.5,0.5,1,1,3,2,3,0,0,1,"Poland","Italy",null,null,null,"Goss ",2,null,"Niebling ",2.5,null,null,"Switzerland",7,null,"Hungary",6.5,null,"France",10.5]
[null,"Juniooor7 ","Dirold ",0,1,0,1,3,1,2,2,0,2,"Poland","Italy",null,null,null,"Verrinho ",2,null,"Malodoror ",2.5,null,null,"Viking",7.5,null,"Wales",5.5,null,"Belgium",9]
[null,"Slimaq ","Farina ",1,0,2,1,0,2,0,2,1,3,"Poland","Italy",null,null,null,"Malodoror ",2,null,"Spartako ",2,null,null,"Wales",3,null,"England",5,null,"Wales",8.5]
[null,"Faccko ","Arioso ",0.5,0.5,1,1,2,1,1,0,0,3,"Viking","Germany",null,null,null,"Pellevin ",2,null,"Faccko ",2]
[null,"Mufflo ","DocMaxx ",1,0,2,1,1,1,3,1,2,1,"Viking","Germany",null,null,null,"Faccko ",1.5,null,"Elrik ",2]
[null,"Corwin ","Muadib ",0.5,0.5,1,1,1,0,2,2,1,1,"Viking","Germany",null,null,null,"MacWitt ",1.5,null,"jopotzuki ",2]
[null,"Duckwing ","Gaunab ",1,0,3,2,1,3,1,0,3,2,"Viking","Germany",null,null,null,"Lycos ",1.5,null,"BlackOrc ",2]
[null,"Purrelito ","Candlejack ",0.5,0.5,2,2,1,3,1,1,1,2,"Viking","Germany",null,null,null,"DocMaxx ",1.5,null,"Mufflo ",2]
[null,"Bernuz ","Jonny_Kanone ",1,0,3,0,3,2,3,2,1,2,"Viking","Germany",null,null,null,"BeerBeer ",1.5,null,"Pellevin ",2]
[null,"Balder ","RoterSternHochdahl",1,0,2,0,2,1,2,0,0,3,"Viking","Germany",null,null,null,"BlackOrc ",1.5,null,"Macabeo ",2]
[null,"brocCooli ","Prince ",1,0,3,0,2,3,0,1,1,3,"Viking","Germany",null,null,null,"kfoged ",1.5,null,"Lycos ",2]
[null,"Barry ","Topper ",0,1,1,2,2,1,0,3,1,2,"Spain","Denmark",null,null,null,"Itzla ",1.5,null,"Barry ",2]
[null,"Idroj ","kfoged ",0.5,0.5,0,0,3,1,3,1,1,1,"Spain","Denmark",null,null,null,"Matt le fou ",1.5,null,"BiBi ",2]
[null,"Malasnoticias ","Niebling ",0,1,2,3,1,1,3,3,1,2,"Spain","Denmark",null,null,null,"MadeofWelsh ",1.5,null,"HumptyTrump ",2]
[null,"Joanet ","SpecialOne ",0,1,1,3,1,0,1,2,1,2,"Spain","Denmark",null,null,null,"Muadib ",1.5,null,"Madmatt13 ",2]
[null,"Obeliz ","Jaqra ",0.5,0.5,2,2,1,0,1,1,3,1,"Spain","Denmark",null,null,null,"Garrick ",1.5,null,"Harza ",2]
[null,"Dark Duke ","MissSweden ",0,1,2,3,1,1,2,2,1,0,"Spain","Denmark",null,null,null,"Beppe ",1.5,null,"kfoged ",2]
[null,"Tactel ","Tank ",1,0,2,0,1,3,2,1,2,1,"Spain","Denmark",null,null,null,"Idroj ",1.5,null,"Duckwing ",2]
[null,"Duke_Luthor_Von_Hawkfire ","Tripleskull ",0,1,0,1,3,0,3,0,2,1,"Spain","Denmark",null,null,null,"gninocker ",1.5,null,"MadeofWelsh ",2]
[null,"GreatWhiteHope ","Pellevin ",1,0,3,0,2,1,3,1,2,2,"Norway","Sweden",null,null,null,"Malasnoticias ",1.5,null,"SpecialOne ",2]
[null,"Endalos ","Skuld ",0,1,0,2,2,2,1,3,0,2,"Norway","Sweden",null,null,null,"Endalos ",1.5,null,"Matte8 ",2]
[null,"The_Ref ","Melisqus ",0.5,0.5,2,2,1,3,3,1,2,1,"Norway","Sweden",null,null,null,"Niebling ",1.5,null,"Idroj ",2]
[null,"straume ","Dragons ",1,0,3,2,1,0,2,0,2,1,"Norway","Sweden",null,null,null,"Warrior1980 ",1.5,null,"Warrior1980 ",2]
[null,"zulu ","Inforthepain ",0,1,0,2,2,2,3,3,1,0,"Norway","Sweden",null,null,null,"Skuld ",1.5,null,"Shawass ",2]
[null,"mynock ","Pidpad ",0.5,0.5,2,2,1,3,2,1,2,1,"Norway","Sweden",null,null,null,"Mufflo ",1,null,"straume ",2]
[null,"FrankPedersen ","Skoberget ",1,0,2,1,2,2,1,1,3,1,"Norway","Sweden",null,null,null,"Macabeo ",1,null,"MissSweden ",2]
[null,"bothun ","JohnnyD ",0.5,0.5,0,0,1,1,2,3,1,1,"Norway","Sweden",null,null,null,"Melisqus ",1,null,"Bernuz ",2]
[null,"DonShula ","BiBi ",1,0,2,1,2,1,0,3,1,2,"Scotland","France",null,null,null,"SpecialOne ",1,null,"Harti ",2]
[null,"Garrick ","Matt le fou ",1,0,3,1,1,1,2,1,3,2,"Scotland","France",null,null,null,"Dragons ",1,null,"Inforthepain ",2]
[null,"HumptyTrump ","Gros Nain ",1,0,1,0,1,1,3,0,1,2,"Scotland","France",null,null,null,"Gaunab ",1,null,"Muadib ",2]
[null,"sann0638 ","Bouzzy ",0.5,0.5,1,1,0,1,1,3,0,2,"Scotland","France",null,null,null,"Reszka ",1,null,"swifty ",2]
[null,"JamesEs ","Harti ",0,1,0,2,2,2,1,2,1,3,"Scotland","France",null,null,null,"Corwin ",1,null,"brocCooli ",2]
[null,"Loki ","BudWiser ",1,0,1,0,1,2,0,3,0,1,"Scotland","France",null,null,null,"Duckwing ",1,null,"Tactel ",2]
[null,"Purdindas ","Simon_ACP ",1,0,3,1,3,1,2,2,1,0,"Scotland","France",null,null,null,"HumptyTrump ",1,null,"edheim ",2]
[null,"Valen ","Justicium ",0,1,2,3,2,2,1,1,2,1,"Scotland","France",null,null,null,"Candlejack ",1,null,"Balder ",2]
[null,"Malodoror ","BlackOrc ",0.5,0.5,2,2,1,3,2,2,0,1,"Belgium","Hungary",null,null,null,"Jonny_Kanone ",1,null,"Melisqus ",1.5]
[null,"gninocker ","Itzla ",0,1,0,2,2,1,0,2,2,3,"Belgium","Hungary",null,null,null,"Joanet ",1,null,"Phifoe ",1.5]
[null,"Woete ","cz ",0.5,0.5,1,1,2,1,2,2,2,0,"Belgium","Hungary",null,null,null,"Gros Nain ",1,null,"MacWitt ",1.5]
[null,"JJ ","swifty ",0,1,2,3,2,3,0,1,2,1,"Belgium","Hungary",null,null,null,"Matte8 ",1,null,"Matt le fou ",1.5]
[null,"Araznaroth ","Favi ",0.5,0.5,3,3,3,3,1,3,0,2,"Belgium","Hungary",null,null,null,"valkohukka ",1,null,"Bouzzy ",1.5]
[null,"Dekra1979 ","Alex05 ",0,1,2,3,1,3,1,1,1,2,"Belgium","Hungary",null,null,null,"Purrelito ",1,null,"Obeliz ",1.5]
[null,"Phoenix11 ","noraal ",0,1,0,1,2,0,1,0,3,1,"Belgium","Hungary",null,null,null,"The_Ref ",1,null,"Malasnoticias ",1.5]
[null,"Driesfield ","Wolio ",0,1,2,3,2,1,2,1,0,1,"Belgium","Hungary",null,null,null,"Bouzzy ",1,null,"cz ",1.5]
[null,"MadeofWelsh ","Lycos ",0.5,0.5,1,1,1,2,1,3,1,1,"Wales","England",null,null,null,"cz ",1,null,"Corwin ",1.5]
[null,"SFisher91 ","Podfrey ",0.5,0.5,2,2,3,0,2,0,2,1,"Wales","England",null,null,null,"Obeliz ",1,null,"sann0638 ",1.5]
[null,"andydavo ","Geggster ",0.5,0.5,1,1,3,2,2,1,3,3,"Wales","England",null,null,null,"Mewash ",1,null,"Jaqra ",1.5]
[null,"Ploppy_McPloppy ","Mubo ",0,1,1,3,2,1,3,1,3,0,"Wales","England",null,null,null,"straume ",1,null,"FrankPedersen ",1.5]
[null,"nonumber ","PurpleGoo ",0.5,0.5,3,3,1,1,1,2,1,3,"Wales","England",null,null,null,"SFisher91 ",1,null,"Dirold ",1.5]
[null,"Northernknight ","JimJimany ",0,1,1,2,0,3,0,1,1,0,"Wales","England",null,null,null,"Shawass ",1,null,"mynock ",1.5]
[null,"Dionysian ","Joemanji ",0,1,0,1,0,3,3,2,0,2,"Wales","England",null,null,null,"Leonek ",1,null,"BeerBeer ",1.5]
[null,"20Phoenix ","Wilzif ",1,0,2,1,2,0,2,1,2,3,"Wales","England",null,null,null,"zulu ",1,null,"Leonek ",1.5]
[null,null,null,null,null,null,null,null,null,null,null,null,null,null,null,null,null,null,"Juniooor7 ",1,null,"JimJimany ",1.5]
[null,null,null,null,null,null,null,null,null,null,null,null,null,null,null,null,null,null,"Jaqra ",1,null,"andydavo ",1.5]
[null,null,null,null,null,null,null,null,null,null,null,null,null,null,null,null,null,null,"Bernuz ",1,null,"Endalos ",1.5]
[null,null,null,null,null,null,null,null,null,null,null,null,null,null,null,null,null,null,"sann0638 ",1,null,"gninocker ",1.5]
[null,null,null,null,null,null,null,null,null,null,null,null,null,null,null,null,null,null,"Inforthepain ",1,null,"DocMaxx ",1.5]
[null,null,null,null,null,null,null,null,null,null,null,null,null,null,null,null,null,null,"andydavo ",1,null,"Kaltenland ",1.5]
[null,null,null,null,null,null,null,null,null,null,null,null,null,null,null,null,null,null,"Madmatt13 ",1,null,"Loki ",1.5]
[null,null,null,null,null,null,null,null,null,null,null,null,null,null,null,null,null,null,"mynock ",1,null,"Candlejack ",1.5]
[null,null,null,null,null,null,null,null,null,null,null,null,null,null,null,null,null,null,"Ploppy_McPloppy ",1,null,"Woete ",1.5]
[null,null,null,null,null,null,null,null,null,null,null,null,null,null,null,null,null,null,"Balder ",1,null,"Purdindas ",1.5]
[null,null,null,null,null,null,null,null,null,null,null,null,null,null,null,null,null,null,"JamesEs ",1,null,"Mubo ",1.5]
[null,null,null,null,null,null,null,null,null,null,null,null,null,null,null,null,null,null,"Woete ",1,null,"SFisher91 ",1.5]
[null,null,null,null,null,null,null,null,null,null,null,null,null,null,null,null,null,null,"brocCooli ",1,null,"Purrelito ",1.5]
[null,null,null,null,null,null,null,null,null,null,null,null,null,null,null,null,null,null,"Liam ",1,null,"The_Ref ",1.5]
[null,null,null,null,null,null,null,null,null,null,null,null,null,null,null,null,null,null,"Podfrey ",1,null,"noraal ",1.5]
[null,null,null,null,null,null,null,null,null,null,null,null,null,null,null,null,null,null,"Kaltenland ",1,null,"Jokaero ",1.5]
[null,null,null,null,null,null,null,null,null,null,null,null,null,null,null,null,null,null,"Harti ",1,null,"Podfrey ",1.5]
[null,null,null,null,null,null,null,null,null,null,null,null,null,null,null,null,null,null,"edheim ",1,null,"Slimaq ",1.5]
[null,null,null,null,null,null,null,null,null,null,null,null,null,null,null,null,null,null,"Dark Duke ",1,null,"Joemanji ",1.5]
[null,null,null,null,null,null,null,null,null,null,null,null,null,null,null,null,null,null,"Tactel ",1,null,"Alex05 ",1.5]
[null,null,null,null,null,null,null,null,null,null,null,null,null,null,null,null,null,null,"J-Ho",1,null,"Reszka ",1]
[null,null,null,null,null,null,null,null,null,null,null,null,null,null,null,null,null,null,"swifty ",1,null,"Dragons ",1]
[null,null,null,null,null,null,null,null,null,null,null,null,null,null,null,null,null,null,"MissSweden ",1,null,"Favi ",1]
[null,null,null,null,null,null,null,null,null,null,null,null,null,null,null,null,null,null,"Favi ",0.5,null,"Mewash ",1]
[null,null,null,null,null,null,null,null,null,null,null,null,null,null,null,null,null,null,"Phifoe ",0.5,null,"Jonny_Kanone ",1]
[null,null,null,null,null,null,null,null,null,null,null,null,null,null,null,null,null,null,"Loki ",0.5,null,"Joanet ",1]
[null,null,null,null,null,null,null,null,null,null,null,null,null,null,null,null,null,null,"RoterSternHochdahl",0.5,null,"Gros Nain ",1]
[null,null,null,null,null,null,null,null,null,null,null,null,null,null,null,null,null,null,"BudWiser ",0.5,null,"JamesEs ",1]
[null,null,null,null,null,null,null,null,null,null,null,null,null,null,null,null,null,null,"Geggster ",0.5,null,"Geggster ",1]
[null,null,null,null,null,null,null,null,null,null,null,null,null,null,null,null,null,null,"Mubo ",0.5,null,"Pidpad ",1]
[null,null,null,null,null,null,null,null,null,null,null,null,null,null,null,null,null,null,"Tank ",0.5,null,"zulu ",1]
[null,null,null,null,null,null,null,null,null,null,null,null,null,null,null,null,null,null,"Strider84 ",0.5,null,"Dark Duke ",1]
[null,null,null,null,null,null,null,null,null,null,null,null,null,null,null,null,null,null,"PurpleGoo ",0.5,null,"Tripleskull ",1]
[null,null,null,null,null,null,null,null,null,null,null,null,null,null,null,null,null,null,"nonumber ",0.5,null,"Gaunab ",1]
[null,null,null,null,null,null,null,null,null,null,null,null,null,null,null,null,null,null,"JimJimany ",0.5,null,"Liam ",1]
[null,null,null,null,null,null,null,null,null,null,null,null,null,null,null,null,null,null,"Simon_ACP ",0.5,null,"Wolio ",1]
[null,null,null,null,null,null,null,null,null,null,null,null,null,null,null,null,null,null,"Pidpad ",0.5,null,"nonumber ",1]
[null,null,null,null,null,null,null,null,null,null,null,null,null,null,null,null,null,null,"FrankPedersen ",0.5,null,"valkohukka ",1]
[null,null,null,null,null,null,null,null,null,null,null,null,null,null,null,null,null,null,"Dirold ",0.5,null,"Araznaroth ",1]
[null,null,null,null,null,null,null,null,null,null,null,null,null,null,null,null,null,null,"Northernknight ",0.5,null,"Juniooor7 ",1]
[null,null,null,null,null,null,null,null,null,null,null,null,null,null,null,null,null,null,"Purdindas ",0.5,null,"PurpleGoo ",1]
[null,null,null,null,null,null,null,null,null,null,null,null,null,null,null,null,null,null,"Skoberget ",0.5,null,"20Phoenix ",1]
[null,null,null,null,null,null,null,null,null,null,null,null,null,null,null,null,null,null,"Joemanji ",0.5,null,"Ploppy_McPloppy ",1]
[null,null,null,null,null,null,null,null,null,null,null,null,null,null,null,null,null,null,"JJ ",0.5,null,"J-Ho",1]
[null,null,null,null,null,null,null,null,null,null,null,null,null,null,null,null,null,null,"Slimaq ",0.5,null,"Justicium ",1]
[null,null,null,null,null,null,null,null,null,null,null,null,null,null,null,null,null,null,"Araznaroth ",0.5,null,"Tank ",0.5]
[null,null,null,null,null,null,null,null,null,null,null,null,null,null,null,null,null,null,"Dekra1979 ",0.5,null,"Strider84 ",0.5]
[null,null,null,null,null,null,null,null,null,null,null,null,null,null,null,null,null,null,"Jokaero ",0.5,null,"Simon_ACP ",0.5]
[null,null,null,null,null,null,null,null,null,null,null,null,null,null,null,null,null,null,"Alex05 ",0.5,null,"Skoberget ",0.5]
[null,null,null,null,null,null,null,null,null,null,null,null,null,null,null,null,null,null,"Phoenix11 ",0.5,null,"RoterSternHochdahl",0.5]
[null,null,null,null,null,null,null,null,null,null,null,null,null,null,null,null,null,null,"noraal ",0.5,null,"BudWiser ",0.5]
[null,null,null,null,null,null,null,null,null,null,null,null,null,null,null,null,null,null,"Wolio ",0,null,"JJ ",0.5]
[null,null,null,null,null,null,null,null,null,null,null,null,null,null,null,null,null,null,"Dionysian ",0,null,"Dekra1979 ",0.5]
[null,null,null,null,null,null,null,null,null,null,null,null,null,null,null,null,null,null,"Tripleskull ",0,null,"Northernknight ",0.5]
[null,null,null,null,null,null,null,null,null,null,null,null,null,null,null,null,null,null,"Prince ",0,null,"JohnnyD ",0.5]
[null,null,null,null,null,null,null,null,null,null,null,null,null,null,null,null,null,null,"20Phoenix ",0,null,"Phoenix11 ",0.5]
[null,null,null,null,null,null,null,null,null,null,null,null,null,null,null,null,null,null,"Driesfield ",0,null,"bothun ",0.5]
[null,null,null,null,null,null,null,null,null,null,null,null,null,null,null,null,null,null,"JohnnyD ",0,null,"Dionysian ",0]
[null,null,null,null,null,null,null,null,null,null,null,null,null,null,null,null,null,null,"Duke_Luthor_Von_Hawkfire ",0,null,"Prince ",0]
[null,null,null,null,null,null,null,null,null,null,null,null,null,null,null,null,null,null,"Valen ",0,null,"Duke_Luthor_Von_Hawkfire ",0]
[null,null,null,null,null,null,null,null,null,null,null,null,null,null,null,null,null,null,"Farina ",0,null,"Driesfield ",0]
[null,null,null,null,null,null,null,null,null,null,null,null,null,null,null,null,null,null,"Wilzif ",0,null,"Farina ",0]
[null,null,null,null,null,null,null,null,null,null,null,null,null,null,null,null,null,null,"bothun ",0,null,"Valen ",0]
[null,null,null,null,null,null,null,null,null,null,null,null,null,null,null,null,null,null,"Justicium ",0,null,"Wilzif ",0]

{"sheet":"Round4","index":12,"n_rows":129,"n_cols":33,"rows_kept":129,"cut":false,"hidden":false,"merged":[]}
[null,"Home Player","Away Player","Home Points","Away Points","Home TD","Away TD","Home Cas","Away Cas","Home Bonus1","Away Bonus1","Home Bonus2","Away Bonus2","Home Group","Away Group",null,null,null,"Points Before Games",null,null,"Points After Games",null,null,"Group Results","Group","Points",null,"Group Points Before Games",null,null,"Group Points After Games"]
[null,"Goss ","Faccko ",{"$f":"fctScore(F2,G2,H2,J2,L2)","v":0},{"$f":"fctScore(G2,F2,I2,K2,M2)","v":1},2,3,1,2,0,2,2,3,"Switzerland","Viking",null,null,null,"Topper ",3,null,"Domingo ",4,null,null,"Belgium",6.5,null,"Switzerland",18.5,null,"Viking",23.5]
[null,"sigu70 ","Mufflo ",{"$f":"fctScore(F3,G3,H3,J3,L3)","v":0.5},{"$f":"fctScore(G3,F3,I3,K3,M3)","v":0.5},2,2,1,1,2,0,0,3,"Switzerland","Viking",null,null,null,"Goss ",3,null,"Topper ",4,null,null,"Denmark",3.5,null,"Viking",17.5,null,"Italy",22.5]
[null,"Elrik ","Duckwing ",0,1,1,3,2,1,3,1,1,0,"Switzerland","Viking",null,null,null,"DonShula ",3,null,"Beppe ",3.5,null,null,"England",2.5,null,"Denmark",16.5,null,"Switzerland",21.5]
[null,"Macabeo ","Bernuz ",0.5,0.5,1,1,2,1,3,2,0,1,"Switzerland","Viking",null,null,null,"GreatWhiteHope ",3,null,"Skuld ",3.5,null,null,"Finland",5.5,null,"Finland",16,null,"Finland",21.5]
[null,"Madmatt13 ","brocCooli ",0,1,1,2,1,3,1,1,3,2,"Switzerland","Viking",null,null,null,"ratogre ",3,null,"Itzla ",3.5,null,null,"France",6.5,null,"Poland",15.5,null,"Norway",20.5]
[null,"Phifoe ","Balder ",1,0,3,1,1,2,0,0,2,1,"Switzerland","Viking",null,null,null,"Domingo ",3,null,"Verrinho ",3.5,null,null,"Germany",3.5,null,"Italy",15,null,"Denmark",20]
[null,"Jokaero ","Corwin ",0,1,1,2,1,1,1,1,3,2,"Switzerland","Viking",null,null,null,"sigu70 ",3,null,"sigu70 ",3.5,null,null,"Hungary",5.5,null,"Scotland",14.5,null,"Hungary",19.5]
[null,"Strider84 ","Purrelito ",1,0,2,1,1,3,2,1,2,0,"Switzerland","Viking",null,null,null,"Arioso ",2.5,null,"Faccko ",3,null,null,"Italy",7.5,null,"Norway",14.5,null,"Poland",18.5]
[null,"Topper ","ratogre ",1,0,3,1,2,0,1,2,0,3,"Denmark","Finland",null,null,null,"Garrick ",2.5,null,"DonShula ",3,null,null,"Norway",6,null,"Hungary",14,null,"Sweden",18]
[null,"Niebling ","jopotzuki ",0.5,0.5,3,3,3,3,1,3,1,1,"Denmark","Finland",null,null,null,"Beppe ",2.5,null,"kfoged ",3,null,null,"Poland",3,null,"Sweden",12,null,"France",17]
[null,"kfoged ","Harza ",1,0,3,2,2,1,0,2,0,0,"Denmark","Finland",null,null,null,"Skuld ",2.5,null,"Spartako ",3,null,null,"Scotland",1.5,null,"Spain",12,null,"Scotland",16]
[null,"SpecialOne ","edheim ",0,1,1,2,1,2,2,1,1,1,"Denmark","Finland",null,null,null,"Verrinho ",2.5,null,"Goss ",3,null,null,"Spain",3,null,"Germany",11,null,"Belgium",15.5]
[null,"MissSweden ","MacWitt ",0.5,0.5,1,1,3,1,1,3,1,1,"Denmark","Finland",null,null,null,"Itzla ",2.5,null,"GreatWhiteHope ",3,null,null,"Sweden",6,null,"England",11,null,"Spain",15]
[null,"Jaqra ","BeerBeer ",0,1,1,2,2,3,1,2,1,1,"Denmark","Finland",null,null,null,"Niebling ",2.5,null,"Duckwing ",3,null,null,"Switzerland",3,null,"France",10.5,null,"Germany",14.5]
[null,"Tripleskull ","valkohukka ",0,1,0,2,1,1,1,0,3,2,"Denmark","Finland",null,null,null,"Malodoror ",2.5,null,"Idroj ",3,null,null,"Viking",6,null,"Belgium",9,null,"England",13.5]
[null,"Tank ","J-Ho",0.5,0.5,1,1,1,3,2,3,1,0,"Denmark","Finland",null,null,null,"Spartako ",2,null,"straume ",3,null,null,"Wales",2.5,null,"Wales",8.5,null,"Wales",11]
[null,"Domingo ","GreatWhiteHope ",1,0,1,0,0,1,3,2,2,0,"Poland","Norway",null,null,null,"Faccko ",2,null,"ratogre ",3]
[null,"Warrior1980 ","straume ",0,1,1,2,3,2,1,2,2,3,"Poland","Norway",null,null,null,"Elrik ",2,null,"Niebling ",3]
[null,"Shawass ","FrankPedersen ",0.5,0.5,2,2,1,1,2,3,2,3,"Poland","Norway",null,null,null,"jopotzuki ",2,null,"BiBi ",3]
[null,"Leonek ","mynock ",0,1,0,3,3,1,3,1,2,2,"Poland","Norway",null,null,null,"BlackOrc ",2,null,"Inforthepain ",3]
[null,"Slimaq ","Endalos ",0.5,0.5,1,1,2,2,2,0,2,3,"Poland","Norway",null,null,null,"Mufflo ",2,null,"Malodoror ",3]
[null,"Reszka ","The_Ref ",0.5,0.5,1,1,3,2,1,1,2,1,"Poland","Norway",null,null,null,"Pellevin ",2,null,"brocCooli ",3]
[null,"Mewash ","zulu ",0.5,0.5,2,2,0,2,1,2,1,2,"Poland","Norway",null,null,null,"Macabeo ",2,null,"Harti ",3]
[null,"Juniooor7 ","bothun ",0,1,1,2,2,1,1,0,2,1,"Poland","Norway",null,null,null,"Lycos ",2,null,"edheim ",3]
[null,"Beppe ","DonShula ",1,0,2,1,1,3,1,1,0,1,"Italy","Scotland",null,null,null,"Barry ",2,null,"Mufflo ",2.5]
[null,"Verrinho ","Garrick ",1,0,3,0,3,1,1,2,1,2,"Italy","Scotland",null,null,null,"BiBi ",2,null,"Arioso ",2.5]
[null,"Spartako ","HumptyTrump ",1,0,2,1,0,2,0,0,0,1,"Italy","Scotland",null,null,null,"HumptyTrump ",2,null,"Phifoe ",2.5]
[null,"Matte8 ","sann0638 ",0.5,0.5,1,1,2,2,1,1,2,3,"Italy","Scotland",null,null,null,"Madmatt13 ",2,null,"jopotzuki ",2.5]
[null,"Dirold ","Loki ",0.5,0.5,1,1,2,1,0,2,1,2,"Italy","Scotland",null,null,null,"Harza ",2,null,"BlackOrc ",2.5]
[null,"Kaltenland ","Purdindas ",1,0,1,0,2,2,1,1,2,2,"Italy","Scotland",null,null,null,"kfoged ",2,null,"Macabeo ",2.5]
[null,"Liam ","JamesEs ",1,0,3,2,1,3,2,0,0,0,"Italy","Scotland",null,null,null,"Duckwing ",2,null,"Garrick ",2.5]
[null,"Farina ","Valen ",0.5,0.5,1,1,0,2,1,1,2,0,"Italy","Scotland",null,null,null,"MadeofWelsh ",2,null,"MadeofWelsh ",2.5]
[null,"Itzla ","Arioso ",1,0,1,0,2,2,3,1,1,3,"Hungary","Germany",null,null,null,"SpecialOne ",2,null,"Matte8 ",2.5]
[null,"BlackOrc ","Muadib ",0.5,0.5,1,1,3,1,2,0,1,2,"Hungary","Germany",null,null,null,"Matte8 ",2,null,"Melisqus ",2.5]
[null,"swifty ","DocMaxx ",0,1,0,1,0,1,1,2,2,3,"Hungary","Germany",null,null,null,"Idroj ",2,null,"Bouzzy ",2.5]
[null,"cz ","Candlejack ",0.5,0.5,2,2,2,3,1,1,2,3,"Hungary","Germany",null,null,null,"Warrior1980 ",2,null,"MissSweden ",2.5]
[null,"noraal ","Jonny_Kanone ",1,0,3,2,1,0,2,0,1,1,"Hungary","Germany",null,null,null,"Shawass ",2,null,"Corwin ",2.5]
[null,"Alex05 ","Gaunab ",0.5,0.5,3,3,1,0,1,2,3,2,"Hungary","Germany",null,null,null,"straume ",2,null,"Shawass ",2.5]
[null,"Favi ","RoterSternHochdahl",0.5,0.5,1,1,1,2,2,0,2,0,"Hungary","Germany",null,null,null,"MissSweden ",2,null,"Muadib ",2.5]
[null,"Wolio ","Prince ",0.5,0.5,1,1,1,3,2,2,3,1,"Hungary","Germany",null,null,null,"Bernuz ",2,null,"DocMaxx ",2.5]
[null,"Barry ","Skuld ",0,1,1,3,2,2,3,2,2,1,"Spain","Sweden",null,null,null,"Harti ",2,null,"mynock ",2.5]
[null,"Idroj ","Pellevin ",1,0,2,0,1,2,0,1,0,2,"Spain","Sweden",null,null,null,"Inforthepain ",2,null,"BeerBeer ",2.5]
[null,"Tactel ","Inforthepain ",0,1,1,2,1,1,2,2,2,1,"Spain","Sweden",null,null,null,"Muadib ",2,null,"Bernuz ",2.5]
[null,"Obeliz ","Melisqus ",0,1,0,2,1,1,2,2,2,2,"Spain","Sweden",null,null,null,"swifty ",2,null,"Woete ",2.5]
[null,"Malasnoticias ","Dragons ",0,1,0,1,2,2,2,2,0,2,"Spain","Sweden",null,null,null,"brocCooli ",2,null,"Kaltenland ",2.5]
[null,"Joanet ","Pidpad ",0.5,0.5,3,3,2,2,2,1,2,1,"Spain","Sweden",null,null,null,"Tactel ",2,null,"noraal ",2.5]
[null,"Dark Duke ","Skoberget ",1,0,2,1,1,1,1,3,1,0,"Spain","Sweden",null,null,null,"edheim ",2,null,"Madmatt13 ",2]
[null,"Duke_Luthor_Von_Hawkfire ","JohnnyD ",0.5,0.5,2,2,2,1,0,1,2,2,"Spain","Sweden",null,null,null,"Balder ",2,null,"Lycos ",2]
[null,"Lycos ","BiBi ",0,1,2,3,2,3,1,0,0,2,"England","France",null,null,null,"Melisqus ",1.5,null,"Barry ",2]
[null,"JimJimany ","Harti ",0,1,0,1,0,1,1,2,3,2,"England","France",null,null,null,"Phifoe ",1.5,null,"Dragons ",2]
[null,"Mubo ","Matt le fou ",0.5,0.5,3,3,2,1,2,2,1,3,"England","France",null,null,null,"MacWitt ",1.5,null,"HumptyTrump ",2]
[null,"Podfrey ","Bouzzy ",0,1,1,2,0,0,2,1,2,1,"England","France",null,null,null,"Matt le fou ",1.5,null,"Pellevin ",2]
[null,"Joemanji ","Gros Nain ",0,1,0,1,0,1,1,2,2,0,"England","France",null,null,null,"Bouzzy ",1.5,null,"Harza ",2]
[null,"Geggster ","Justicium ",0.5,0.5,2,2,1,1,2,3,3,1,"England","France",null,null,null,"Obeliz ",1.5,null,"Elrik ",2]
[null,"PurpleGoo ","Simon_ACP ",0.5,0.5,1,1,2,3,1,1,1,1,"England","France",null,null,null,"Malasnoticias ",1.5,null,"cz ",2]
[null,"Wilzif ","BudWiser ",1,0,2,0,2,2,3,3,2,3,"England","France",null,null,null,"cz ",1.5,null,"sann0638 ",2]
[null,"Malodoror ","MadeofWelsh ",0.5,0.5,1,1,3,3,2,0,1,1,"Belgium","Wales",null,null,null,"Corwin ",1.5,null,"SpecialOne ",2]
[null,"gninocker ","andydavo ",0.5,0.5,0,0,2,2,3,0,3,2,"Belgium","Wales",null,null,null,"sann0638 ",1.5,null,"Gros Nain ",2]
[null,"Woete ","SFisher91 ",1,0,2,1,2,2,0,1,2,2,"Belgium","Wales",null,null,null,"Jaqra ",1.5,null,"Warrior1980 ",2]
[null,"Araznaroth ","nonumber ",1,0,3,2,2,2,0,0,2,2,"Belgium","Wales",null,null,null,"FrankPedersen ",1.5,null,"MacWitt ",2]
[null,"JJ ","20Phoenix ",0,1,1,2,2,3,1,0,2,2,"Belgium","Wales",null,null,null,"Dirold ",1.5,null,"FrankPedersen ",2]
[null,"Dekra1979 ","Ploppy_McPloppy ",1,0,2,1,1,0,2,2,0,2,"Belgium","Wales",null,null,null,"mynock ",1.5,null,"Dirold ",2]
[null,"Phoenix11 ","Northernknight ",1,0,3,1,2,2,1,0,2,2,"Belgium","Wales",null,null,null,"BeerBeer ",1.5,null,"Matt le fou ",2]
[null,"Driesfield ","Dionysian ",0.5,0.5,2,2,1,1,1,1,2,2,"Belgium","Wales",null,null,null,"Leonek ",1.5,null,"Endalos ",2]
[null,null,null,null,null,null,null,null,null,null,null,null,null,null,null,null,null,null,"JimJimany ",1.5,null,"gninocker ",2]
[null,null,null,null,null,null,null,null,null,null,null,null,null,null,null,null,null,null,"andydavo ",1.5,null,"Dark Duke ",2]
[null,null,null,null,null,null,null,null,null,null,null,null,null,null,null,null,null,null,"Endalos ",1.5,null,"andydavo ",2]
[null,null,null,null,null,null,null,null,null,null,null,null,null,null,null,null,null,null,"gninocker ",1.5,null,"The_Ref ",2]
[null,null,null,null,null,null,null,null,null,null,null,null,null,null,null,null,null,null,"DocMaxx ",1.5,null,"Candlejack ",2]
[null,null,null,null,null,null,null,null,null,null,null,null,null,null,null,null,null,null,"Kaltenland ",1.5,null,"Tactel ",2]
[null,null,null,null,null,null,null,null,null,null,null,null,null,null,null,null,null,null,"Loki ",1.5,null,"Mubo ",2]
[null,null,null,null,null,null,null,null,null,null,null,null,null,null,null,null,null,null,"Candlejack ",1.5,null,"valkohukka ",2]
[null,null,null,null,null,null,null,null,null,null,null,null,null,null,null,null,null,null,"Woete ",1.5,null,"20Phoenix ",2]
[null,null,null,null,null,null,null,null,null,null,null,null,null,null,null,null,null,null,"Purdindas ",1.5,null,"Balder ",2]
[null,null,null,null,null,null,null,null,null,null,null,null,null,null,null,null,null,null,"Mubo ",1.5,null,"swifty ",2]
[null,null,null,null,null,null,null,null,null,null,null,null,null,null,null,null,null,null,"SFisher91 ",1.5,null,"Loki ",2]
[null,null,null,null,null,null,null,null,null,null,null,null,null,null,null,null,null,null,"Purrelito ",1.5,null,"Liam ",2]
[null,null,null,null,null,null,null,null,null,null,null,null,null,null,null,null,null,null,"The_Ref ",1.5,null,"Alex05 ",2]
[null,null,null,null,null,null,null,null,null,null,null,null,null,null,null,null,null,null,"noraal ",1.5,null,"Slimaq ",2]
[null,null,null,null,null,null,null,null,null,null,null,null,null,null,null,null,null,null,"Jokaero ",1.5,null,"Araznaroth ",2]
[null,null,null,null,null,null,null,null,null,null,null,null,null,null,null,null,null,null,"Podfrey ",1.5,null,"Reszka ",1.5]
[null,null,null,null,null,null,null,null,null,null,null,null,null,null,null,null,null,null,"Slimaq ",1.5,null,"Strider84 ",1.5]
[null,null,null,null,null,null,null,null,null,null,null,null,null,null,null,null,null,null,"Joemanji ",1.5,null,"Favi ",1.5]
[null,null,null,null,null,null,null,null,null,null,null,null,null,null,null,null,null,null,"Alex05 ",1.5,null,"Leonek ",1.5]
[null,null,null,null,null,null,null,null,null,null,null,null,null,null,null,null,null,null,"Reszka ",1,null,"Joanet ",1.5]
[null,null,null,null,null,null,null,null,null,null,null,null,null,null,null,null,null,null,"Dragons ",1,null,"Gaunab ",1.5]
[null,null,null,null,null,null,null,null,null,null,null,null,null,null,null,null,null,null,"Favi ",1,null,"Malasnoticias ",1.5]
[null,null,null,null,null,null,null,null,null,null,null,null,null,null,null,null,null,null,"Mewash ",1,null,"JimJimany ",1.5]
[null,null,null,null,null,null,null,null,null,null,null,null,null,null,null,null,null,null,"Jonny_Kanone ",1,null,"Pidpad ",1.5]
[null,null,null,null,null,null,null,null,null,null,null,null,null,null,null,null,null,null,"Joanet ",1,null,"Obeliz ",1.5]
[null,null,null,null,null,null,null,null,null,null,null,null,null,null,null,null,null,null,"Gros Nain ",1,null,"Mewash ",1.5]
[null,null,null,null,null,null,null,null,null,null,null,null,null,null,null,null,null,null,"JamesEs ",1,null,"Jaqra ",1.5]
[null,null,null,null,null,null,null,null,null,null,null,null,null,null,null,null,null,null,"Geggster ",1,null,"Geggster ",1.5]
[null,null,null,null,null,null,null,null,null,null,null,null,null,null,null,null,null,null,"Pidpad ",1,null,"zulu ",1.5]
[null,null,null,null,null,null,null,null,null,null,null,null,null,null,null,null,null,null,"zulu ",1,null,"Purdindas ",1.5]
[null,null,null,null,null,null,null,null,null,null,null,null,null,null,null,null,null,null,"Dark Duke ",1,null,"SFisher91 ",1.5]
[null,null,null,null,null,null,null,null,null,null,null,null,null,null,null,null,null,null,"Tripleskull ",1,null,"Dekra1979 ",1.5]
[null,null,null,null,null,null,null,null,null,null,null,null,null,null,null,null,null,null,"Gaunab ",1,null,"Podfrey ",1.5]
[null,null,null,null,null,null,null,null,null,null,null,null,null,null,null,null,null,null,"Liam ",1,null,"Purrelito ",1.5]
[null,null,null,null,null,null,null,null,null,null,null,null,null,null,null,null,null,null,"Wolio ",1,null,"Phoenix11 ",1.5]
[null,null,null,null,null,null,null,null,null,null,null,null,null,null,null,null,null,null,"nonumber ",1,null,"Jokaero ",1.5]
[null,null,null,null,null,null,null,null,null,null,null,null,null,null,null,null,null,null,"valkohukka ",1,null,"Justicium ",1.5]
[null,null,null,null,null,null,null,null,null,null,null,null,null,null,null,null,null,null,"Araznaroth ",1,null,"Joemanji ",1.5]
[null,null,null,null,null,null,null,null,null,null,null,null,null,null,null,null,null,null,"Juniooor7 ",1,null,"PurpleGoo ",1.5]
[null,null,null,null,null,null,null,null,null,null,null,null,null,null,null,null,null,null,"PurpleGoo ",1,null,"Wolio ",1.5]
[null,null,null,null,null,null,null,null,null,null,null,null,null,null,null,null,null,null,"20Phoenix ",1,null,"J-Ho",1.5]
[null,null,null,null,null,null,null,null,null,null,null,null,null,null,null,null,null,null,"Ploppy_McPloppy ",1,null,"bothun ",1.5]
[null,null,null,null,null,null,null,null,null,null,null,null,null,null,null,null,null,null,"J-Ho",1,null,"JamesEs ",1]
[null,null,null,null,null,null,null,null,null,null,null,null,null,null,null,null,null,null,"Justicium ",1,null,"Jonny_Kanone ",1]
[null,null,null,null,null,null,null,null,null,null,null,null,null,null,null,null,null,null,"Tank ",0.5,null,"Tank ",1]
[null,null,null,null,null,null,null,null,null,null,null,null,null,null,null,null,null,null,"Strider84 ",0.5,null,"RoterSternHochdahl",1]
[null,null,null,null,null,null,null,null,null,null,null,null,null,null,null,null,null,null,"Simon_ACP ",0.5,null,"Simon_ACP ",1]
[null,null,null,null,null,null,null,null,null,null,null,null,null,null,null,null,null,null,"Skoberget ",0.5,null,"nonumber ",1]
[null,null,null,null,null,null,null,null,null,null,null,null,null,null,null,null,null,null,"RoterSternHochdahl",0.5,null,"Tripleskull ",1]
[null,null,null,null,null,null,null,null,null,null,null,null,null,null,null,null,null,null,"BudWiser ",0.5,null,"Wilzif ",1]
[null,null,null,null,null,null,null,null,null,null,null,null,null,null,null,null,null,null,"JJ ",0.5,null,"Juniooor7 ",1]
[null,null,null,null,null,null,null,null,null,null,null,null,null,null,null,null,null,null,"Dekra1979 ",0.5,null,"JohnnyD ",1]
[null,null,null,null,null,null,null,null,null,null,null,null,null,null,null,null,null,null,"Northernknight ",0.5,null,"Ploppy_McPloppy ",1]
[null,null,null,null,null,null,null,null,null,null,null,null,null,null,null,null,null,null,"JohnnyD ",0.5,null,"Prince ",0.5]
[null,null,null,null,null,null,null,null,null,null,null,null,null,null,null,null,null,null,"Phoenix11 ",0.5,null,"Skoberget ",0.5]
[null,null,null,null,null,null,null,null,null,null,null,null,null,null,null,null,null,null,"bothun ",0.5,null,"JJ ",0.5]
[null,null,null,null,null,null,null,null,null,null,null,null,null,null,null,null,null,null,"Dionysian ",0,null,"Northernknight ",0.5]
[null,null,null,null,null,null,null,null,null,null,null,null,null,null,null,null,null,null,"Prince ",0,null,"Dionysian ",0.5]
[null,null,null,null,null,null,null,null,null,null,null,null,null,null,null,null,null,null,"Duke_Luthor_Von_Hawkfire ",0,null,"BudWiser ",0.5]
[null,null,null,null,null,null,null,null,null,null,null,null,null,null,null,null,null,null,"Driesfield ",0,null,"Driesfield ",0.5]
[null,null,null,null,null,null,null,null,null,null,null,null,null,null,null,null,null,null,"Farina ",0,null,"Duke_Luthor_Von_Hawkfire ",0.5]
[null,null,null,null,null,null,null,null,null,null,null,null,null,null,null,null,null,null,"Valen ",0,null,"Valen ",0.5]
[null,null,null,null,null,null,null,null,null,null,null,null,null,null,null,null,null,null,"Wilzif ",0,null,"Farina ",0.5]

{"sheet":"Round5","index":13,"n_rows":129,"n_cols":33,"rows_kept":129,"cut":false,"hidden":false,"merged":[]}
[null,"Home Player","Away Player","Home Points","Away Points","Home TD","Away TD","Home Cas","Away Cas","Home Bonus1","Away Bonus1","Home Bonus2","Away Bonus2","Home Group","Away Group",null,null,null,"Points Before Games",null,null,"Points After Games",null,null,"Group Results","Group","Points",null,"Group Points Before Games",null,null,"Group Points After Games"]
[null,"Faccko ","ratogre ",{"$f":"fctScore(F2,G2,H2,J2,L2)","v":1},{"$f":"fctScore(G2,F2,I2,K2,M2)","v":0},2,1,0,1,1,2,1,1,"Viking","Finland",null,null,null,"Domingo ",4,null,"Domingo ",5,null,null,"Belgium",3.5,null,"Viking",23.5,null,"Viking",28]
[null,"Duckwing ","edheim ",{"$f":"fctScore(F3,G3,H3,J3,L3)","v":0},{"$f":"fctScore(G3,F3,I3,K3,M3)","v":1},2,3,1,2,3,0,1,1,"Viking","Finland",null,null,null,"Topper ",4,null,"Topper ",4.5,null,null,"Denmark",4.5,null,"Italy",22.5,null,"Italy",27]
[null,"brocCooli ","jopotzuki ",0,1,1,2,3,0,1,2,2,2,"Viking","Finland",null,null,null,"Beppe ",3.5,null,"sigu70 ",4.5,null,null,"England",5.5,null,"Switzerland",21.5,null,"Switzerland",26]
[null,"Mufflo ","BeerBeer ",1,0,3,2,2,3,2,3,1,0,"Viking","Finland",null,null,null,"Skuld ",3.5,null,"Faccko ",4,null,null,"Finland",4.5,null,"Finland",21.5,null,"Finland",26]
[null,"Corwin ","Harza ",1,0,2,0,2,0,0,1,1,0,"Viking","Finland",null,null,null,"Itzla ",3.5,null,"DonShula ",4,null,null,"France",5.5,null,"Norway",20.5,null,"Norway",25]
[null,"Bernuz ","MacWitt ",0,1,2,3,3,2,2,1,1,2,"Viking","Finland",null,null,null,"Verrinho ",3.5,null,"Verrinho ",4,null,null,"Germany",3.5,null,"Denmark",20,null,"Denmark",24.5]
[null,"Balder ","valkohukka ",0.5,0.5,3,3,2,3,2,1,0,2,"Viking","Finland",null,null,null,"sigu70 ",3.5,null,"Idroj ",4,null,null,"Hungary",4.5,null,"Hungary",19.5,null,"Hungary",24]
[null,"Purrelito ","J-Ho",0.5,0.5,1,1,1,1,2,3,1,1,"Viking","Finland",null,null,null,"Faccko ",3,null,"BiBi ",4,null,null,"Italy",4.5,null,"Poland",18.5,null,"Poland",23]
[null,"Beppe ","sigu70 ",0,1,0,1,1,1,0,1,2,3,"Italy","Switzerland",null,null,null,"DonShula ",3,null,"Inforthepain ",4,null,null,"Norway",4.5,null,"Sweden",18,null,"France",22.5]
[null,"Verrinho ","Goss ",0.5,0.5,0,0,1,3,2,3,2,2,"Italy","Switzerland",null,null,null,"kfoged ",3,null,"edheim ",4,null,null,"Poland",4.5,null,"France",17,null,"Sweden",21.5]
[null,"Spartako ","Phifoe ",0,1,1,2,2,1,3,1,2,2,"Italy","Switzerland",null,null,null,"Spartako ",3,null,"Beppe ",3.5,null,null,"Scotland",5.5,null,"Scotland",16,null,"Scotland",21.5]
[null,"Matte8 ","Macabeo ",1,0,2,1,1,1,2,3,3,2,"Italy","Switzerland",null,null,null,"Goss ",3,null,"Mufflo ",3.5,null,null,"Spain",4.5,null,"Belgium",15.5,null,"Spain",19.5]
[null,"Kaltenland ","Madmatt13 ",1,0,3,1,2,3,2,2,1,0,"Italy","Switzerland",null,null,null,"GreatWhiteHope ",3,null,"GreatWhiteHope ",3.5,null,null,"Sweden",3.5,null,"Spain",15,null,"England",19]
[null,"Dirold ","Elrik ",0,1,1,3,2,1,0,3,0,1,"Italy","Switzerland",null,null,null,"Duckwing ",3,null,"Goss ",3.5,null,null,"Switzerland",4.5,null,"Germany",14.5,null,"Belgium",19]
[null,"Liam ","Strider84 ",1,0,1,0,2,3,0,0,1,2,"Italy","Switzerland",null,null,null,"Idroj ",3,null,"jopotzuki ",3.5,null,null,"Viking",4.5,null,"England",13.5,null,"Germany",18]
[null,"Farina ","Jokaero ",0.5,0.5,2,2,0,1,1,3,2,2,"Italy","Switzerland",null,null,null,"straume ",3,null,"Phifoe ",3.5,null,null,"Wales",4.5,null,"Wales",11,null,"Wales",15.5]
[null,"GreatWhiteHope ","Topper ",0.5,0.5,2,2,1,0,1,0,0,1,"Norway","Denmark",null,null,null,"ratogre ",3,null,"Arioso ",3.5]
[null,"straume ","kfoged ",0.5,0.5,2,2,0,1,2,2,1,2,"Norway","Denmark",null,null,null,"Niebling ",3,null,"Itzla ",3.5]
[null,"mynock ","Niebling ",0.5,0.5,2,2,0,1,3,2,1,2,"Norway","Denmark",null,null,null,"BiBi ",3,null,"kfoged ",3.5]
[null,"FrankPedersen ","MissSweden ",0,1,1,3,3,1,2,1,0,3,"Norway","Denmark",null,null,null,"Inforthepain ",3,null,"straume ",3.5]
[null,"Endalos ","SpecialOne ",0,1,0,1,2,2,2,2,2,1,"Norway","Denmark",null,null,null,"Malodoror ",3,null,"Skuld ",3.5]
[null,"The_Ref ","Jaqra ",0.5,0.5,2,2,1,2,0,1,1,1,"Norway","Denmark",null,null,null,"brocCooli ",3,null,"Niebling ",3.5]
[null,"zulu ","Tank ",1,0,1,0,3,3,1,2,0,2,"Norway","Denmark",null,null,null,"Harti ",3,null,"Garrick ",3.5]
[null,"bothun ","Tripleskull ",1,0,2,0,2,0,1,2,2,0,"Norway","Denmark",null,null,null,"edheim ",3,null,"Matte8 ",3.5]
[null,"Itzla ","Idroj ",0,1,0,1,2,3,2,1,1,1,"Hungary","Spain",null,null,null,"Mufflo ",2.5,null,"MissSweden ",3.5]
[null,"BlackOrc ","Barry ",0.5,0.5,3,3,1,1,2,2,2,1,"Hungary","Spain",null,null,null,"Arioso ",2.5,null,"DocMaxx ",3.5]
[null,"noraal ","Dark Duke ",0.5,0.5,1,1,2,1,1,1,1,0,"Hungary","Spain",null,null,null,"Phifoe ",2.5,null,"Corwin ",3.5]
[null,"cz ","Tactel ",0,1,1,3,2,2,2,3,2,2,"Hungary","Spain",null,null,null,"jopotzuki ",2.5,null,"Shawass ",3.5]
[null,"swifty ","Joanet ",0.5,0.5,1,1,3,2,0,3,0,2,"Hungary","Spain",null,null,null,"BlackOrc ",2.5,null,"Kaltenland ",3.5]
[null,"Alex05 ","Malasnoticias ",1,0,1,0,2,2,3,1,2,1,"Hungary","Spain",null,null,null,"Macabeo ",2.5,null,"Duckwing ",3]
[null,"Favi ","Obeliz ",0.5,0.5,1,1,2,1,0,2,0,1,"Hungary","Spain",null,null,null,"Garrick ",2.5,null,"Spartako ",3]
[null,"Wolio ","Duke_Luthor_Von_Hawkfire ",1,0,2,0,2,1,1,1,0,0,"Hungary","Spain",null,null,null,"MadeofWelsh ",2.5,null,"Dragons ",3]
[null,"Skuld ","BiBi ",0,1,0,3,0,3,0,1,1,1,"Sweden","France",null,null,null,"Matte8 ",2.5,null,"Pellevin ",3]
[null,"Inforthepain ","Harti ",1,0,2,0,3,1,0,0,3,1,"Sweden","France",null,null,null,"Melisqus ",2.5,null,"sann0638 ",3]
[null,"Melisqus ","Bouzzy ",0.5,0.5,2,2,0,2,3,0,0,2,"Sweden","France",null,null,null,"Bouzzy ",2.5,null,"SpecialOne ",3]
[null,"Dragons ","Gros Nain ",1,0,2,1,2,0,3,1,0,3,"Sweden","France",null,null,null,"MissSweden ",2.5,null,"BlackOrc ",3]
[null,"Pellevin ","Matt le fou ",1,0,3,2,2,3,1,0,3,3,"Sweden","France",null,null,null,"Corwin ",2.5,null,"Bouzzy ",3]
[null,"Pidpad ","Justicium ",0,1,1,2,2,2,0,3,3,1,"Sweden","France",null,null,null,"Shawass ",2.5,null,"ratogre ",3]
[null,"JohnnyD ","Simon_ACP ",0,1,1,3,1,3,1,3,0,1,"Sweden","France",null,null,null,"Muadib ",2.5,null,"Melisqus ",3]
[null,"Skoberget ","BudWiser ",0,1,1,2,3,3,3,0,3,2,"Sweden","France",null,null,null,"DocMaxx ",2.5,null,"mynock ",3]
[null,"MadeofWelsh ","Domingo ",0,1,0,1,2,2,2,1,1,1,"Wales","Poland",null,null,null,"mynock ",2.5,null,"MacWitt ",3]
[null,"andydavo ","Shawass ",0,1,1,2,2,1,1,1,2,3,"Wales","Poland",null,null,null,"BeerBeer ",2.5,null,"Elrik ",3]
[null,"20Phoenix ","Warrior1980 ",1,0,2,0,1,3,2,1,1,1,"Wales","Poland",null,null,null,"Bernuz ",2.5,null,"Malodoror ",3]
[null,"SFisher91 ","Slimaq ",1,0,3,2,1,2,3,0,2,3,"Wales","Poland",null,null,null,"Woete ",2.5,null,"Tactel ",3]
[null,"nonumber ","Reszka ",0,1,0,2,1,3,1,1,2,2,"Wales","Poland",null,null,null,"Kaltenland ",2.5,null,"Mubo ",3]
[null,"Ploppy_McPloppy ","Leonek ",0.5,0.5,2,2,2,2,1,1,2,3,"Wales","Poland",null,null,null,"noraal ",2.5,null,"brocCooli ",3]
[null,"Northernknight ","Mewash ",0.5,0.5,0,0,1,1,1,2,0,1,"Wales","Poland",null,null,null,"Madmatt13 ",2,null,"Harti ",3]
[null,"Dionysian ","Juniooor7 ",1,0,2,0,1,2,2,1,1,1,"Wales","Poland",null,null,null,"Lycos ",2,null,"gninocker ",3]
[null,"Malodoror ","DonShula ",0,1,1,3,1,0,3,1,2,1,"Belgium","Scotland",null,null,null,"Barry ",2,null,"20Phoenix ",3]
[null,"Woete ","Garrick ",0,1,1,2,3,2,2,2,2,2,"Belgium","Scotland",null,null,null,"Dragons ",2,null,"noraal ",3]
[null,"gninocker ","HumptyTrump ",1,0,2,1,0,2,2,1,1,3,"Belgium","Scotland",null,null,null,"HumptyTrump ",2,null,"Liam ",3]
[null,"Araznaroth ","sann0638 ",0,1,0,3,2,2,2,1,1,0,"Belgium","Scotland",null,null,null,"Pellevin ",2,null,"Alex05 ",3]
[null,"Dekra1979 ","Loki ",0.5,0.5,1,1,2,3,2,3,0,2,"Belgium","Scotland",null,null,null,"Harza ",2,null,"Macabeo ",2.5]
[null,"Phoenix11 ","Purdindas ",1,0,2,1,2,1,1,3,3,2,"Belgium","Scotland",null,null,null,"Elrik ",2,null,"Barry ",2.5]
[null,"JJ ","JamesEs ",1,0,2,0,1,3,1,2,1,1,"Belgium","Scotland",null,null,null,"cz ",2,null,"MadeofWelsh ",2.5]
[null,"Driesfield ","Valen ",0,1,2,3,1,3,0,1,3,3,"Belgium","Scotland",null,null,null,"sann0638 ",2,null,"Dark Duke ",2.5]
[null,"Lycos ","Arioso ",0,1,1,3,3,2,0,0,2,1,"England","Germany",null,null,null,"SpecialOne ",2,null,"Reszka ",2.5]
[null,"Mubo ","Muadib ",1,0,2,1,0,2,1,0,2,1,"England","Germany",null,null,null,"Gros Nain ",2,null,"BeerBeer ",2.5]
[null,"JimJimany ","DocMaxx ",0,1,0,3,2,3,1,2,1,2,"England","Germany",null,null,null,"Warrior1980 ",2,null,"Muadib ",2.5]
[null,"Geggster ","Candlejack ",0.5,0.5,2,2,1,1,1,2,2,1,"England","Germany",null,null,null,"MacWitt ",2,null,"The_Ref ",2.5]
[null,"Podfrey ","Gaunab ",1,0,2,1,2,0,1,0,3,3,"England","Germany",null,null,null,"FrankPedersen ",2,null,"Woete ",2.5]
[null,"Joemanji ","Jonny_Kanone ",1,0,3,2,0,2,1,3,1,2,"England","Germany",null,null,null,"Dirold ",2,null,"Bernuz ",2.5]
[null,"PurpleGoo ","RoterSternHochdahl",1,0,3,1,0,2,1,2,1,3,"England","Germany",null,null,null,"Matt le fou ",2,null,"valkohukka ",2.5]
[null,"Wilzif ","Prince ",0,1,1,3,3,3,0,1,1,3,"England","Germany",null,null,null,"Endalos ",2,null,"Candlejack ",2.5]
[null,null,null,null,null,null,null,null,null,null,null,null,null,null,null,null,null,null,"gninocker ",2,null,"swifty ",2.5]
[null,null,null,null,null,null,null,null,null,null,null,null,null,null,null,null,null,null,"Dark Duke ",2,null,"SFisher91 ",2.5]
[null,null,null,null,null,null,null,null,null,null,null,null,null,null,null,null,null,null,"andydavo ",2,null,"Podfrey ",2.5]
[null,null,null,null,null,null,null,null,null,null,null,null,null,null,null,null,null,null,"The_Ref ",2,null,"zulu ",2.5]
[null,null,null,null,null,null,null,null,null,null,null,null,null,null,null,null,null,null,"Candlejack ",2,null,"Balder ",2.5]
[null,null,null,null,null,null,null,null,null,null,null,null,null,null,null,null,null,null,"Tactel ",2,null,"Justicium ",2.5]
[null,null,null,null,null,null,null,null,null,null,null,null,null,null,null,null,null,null,"Mubo ",2,null,"Phoenix11 ",2.5]
[null,null,null,null,null,null,null,null,null,null,null,null,null,null,null,null,null,null,"valkohukka ",2,null,"Loki ",2.5]
[null,null,null,null,null,null,null,null,null,null,null,null,null,null,null,null,null,null,"20Phoenix ",2,null,"Wolio ",2.5]
[null,null,null,null,null,null,null,null,null,null,null,null,null,null,null,null,null,null,"Balder ",2,null,"PurpleGoo ",2.5]
[null,null,null,null,null,null,null,null,null,null,null,null,null,null,null,null,null,null,"swifty ",2,null,"Joemanji ",2.5]
[null,null,null,null,null,null,null,null,null,null,null,null,null,null,null,null,null,null,"Loki ",2,null,"bothun ",2.5]
[null,null,null,null,null,null,null,null,null,null,null,null,null,null,null,null,null,null,"Liam ",2,null,"Lycos ",2]
[null,null,null,null,null,null,null,null,null,null,null,null,null,null,null,null,null,null,"Alex05 ",2,null,"Harza ",2]
[null,null,null,null,null,null,null,null,null,null,null,null,null,null,null,null,null,null,"Slimaq ",2,null,"Matt le fou ",2]
[null,null,null,null,null,null,null,null,null,null,null,null,null,null,null,null,null,null,"Araznaroth ",2,null,"Gros Nain ",2]
[null,null,null,null,null,null,null,null,null,null,null,null,null,null,null,null,null,null,"Reszka ",1.5,null,"Madmatt13 ",2]
[null,null,null,null,null,null,null,null,null,null,null,null,null,null,null,null,null,null,"Strider84 ",1.5,null,"Warrior1980 ",2]
[null,null,null,null,null,null,null,null,null,null,null,null,null,null,null,null,null,null,"Favi ",1.5,null,"andydavo ",2]
[null,null,null,null,null,null,null,null,null,null,null,null,null,null,null,null,null,null,"Leonek ",1.5,null,"FrankPedersen ",2]
[null,null,null,null,null,null,null,null,null,null,null,null,null,null,null,null,null,null,"Joanet ",1.5,null,"Leonek ",2]
[null,null,null,null,null,null,null,null,null,null,null,null,null,null,null,null,null,null,"Gaunab ",1.5,null,"HumptyTrump ",2]
[null,null,null,null,null,null,null,null,null,null,null,null,null,null,null,null,null,null,"Malasnoticias ",1.5,null,"Mewash ",2]
[null,null,null,null,null,null,null,null,null,null,null,null,null,null,null,null,null,null,"JimJimany ",1.5,null,"cz ",2]
[null,null,null,null,null,null,null,null,null,null,null,null,null,null,null,null,null,null,"Pidpad ",1.5,null,"Dekra1979 ",2]
[null,null,null,null,null,null,null,null,null,null,null,null,null,null,null,null,null,null,"Obeliz ",1.5,null,"Endalos ",2]
[null,null,null,null,null,null,null,null,null,null,null,null,null,null,null,null,null,null,"Mewash ",1.5,null,"Joanet ",2]
[null,null,null,null,null,null,null,null,null,null,null,null,null,null,null,null,null,null,"Jaqra ",1.5,null,"Favi ",2]
[null,null,null,null,null,null,null,null,null,null,null,null,null,null,null,null,null,null,"Geggster ",1.5,null,"Jaqra ",2]
[null,null,null,null,null,null,null,null,null,null,null,null,null,null,null,null,null,null,"zulu ",1.5,null,"Geggster ",2]
[null,null,null,null,null,null,null,null,null,null,null,null,null,null,null,null,null,null,"Purdindas ",1.5,null,"Dirold ",2]
[null,null,null,null,null,null,null,null,null,null,null,null,null,null,null,null,null,null,"SFisher91 ",1.5,null,"Obeliz ",2]
[null,null,null,null,null,null,null,null,null,null,null,null,null,null,null,null,null,null,"Dekra1979 ",1.5,null,"Simon_ACP ",2]
[null,null,null,null,null,null,null,null,null,null,null,null,null,null,null,null,null,null,"Podfrey ",1.5,null,"Slimaq ",2]
[null,null,null,null,null,null,null,null,null,null,null,null,null,null,null,null,null,null,"Purrelito ",1.5,null,"Purrelito ",2]
[null,null,null,null,null,null,null,null,null,null,null,null,null,null,null,null,null,null,"Phoenix11 ",1.5,null,"Jokaero ",2]
[null,null,null,null,null,null,null,null,null,null,null,null,null,null,null,null,null,null,"Jokaero ",1.5,null,"Araznaroth ",2]
[null,null,null,null,null,null,null,null,null,null,null,null,null,null,null,null,null,null,"Justicium ",1.5,null,"J-Ho",2]
[null,null,null,null,null,null,null,null,null,null,null,null,null,null,null,null,null,null,"Joemanji ",1.5,null,"Strider84 ",1.5]
[null,null,null,null,null,null,null,null,null,null,null,null,null,null,null,null,null,null,"PurpleGoo ",1.5,null,"Purdindas ",1.5]
[null,null,null,null,null,null,null,null,null,null,null,null,null,null,null,null,null,null,"Wolio ",1.5,null,"Malasnoticias ",1.5]
[null,null,null,null,null,null,null,null,null,null,null,null,null,null,null,null,null,null,"J-Ho",1.5,null,"Pidpad ",1.5]
[null,null,null,null,null,null,null,null,null,null,null,null,null,null,null,null,null,null,"bothun ",1.5,null,"Prince ",1.5]
[null,null,null,null,null,null,null,null,null,null,null,null,null,null,null,null,null,null,"JamesEs ",1,null,"Gaunab ",1.5]
[null,null,null,null,null,null,null,null,null,null,null,null,null,null,null,null,null,null,"Jonny_Kanone ",1,null,"JJ ",1.5]
[null,null,null,null,null,null,null,null,null,null,null,null,null,null,null,null,null,null,"Tank ",1,null,"JimJimany ",1.5]
[null,null,null,null,null,null,null,null,null,null,null,null,null,null,null,null,null,null,"RoterSternHochdahl",1,null,"Dionysian ",1.5]
[null,null,null,null,null,null,null,null,null,null,null,null,null,null,null,null,null,null,"Simon_ACP ",1,null,"Ploppy_McPloppy ",1.5]
[null,null,null,null,null,null,null,null,null,null,null,null,null,null,null,null,null,null,"nonumber ",1,null,"BudWiser ",1.5]
[null,null,null,null,null,null,null,null,null,null,null,null,null,null,null,null,null,null,"Tripleskull ",1,null,"Valen ",1.5]
[null,null,null,null,null,null,null,null,null,null,null,null,null,null,null,null,null,null,"Wilzif ",1,null,"Tank ",1]
[null,null,null,null,null,null,null,null,null,null,null,null,null,null,null,null,null,null,"Juniooor7 ",1,null,"JamesEs ",1]
[null,null,null,null,null,null,null,null,null,null,null,null,null,null,null,null,null,null,"JohnnyD ",1,null,"Northernknight ",1]
[null,null,null,null,null,null,null,null,null,null,null,null,null,null,null,null,null,null,"Ploppy_McPloppy ",1,null,"Jonny_Kanone ",1]
[null,null,null,null,null,null,null,null,null,null,null,null,null,null,null,null,null,null,"Prince ",0.5,null,"nonumber ",1]
[null,null,null,null,null,null,null,null,null,null,null,null,null,null,null,null,null,null,"Skoberget ",0.5,null,"RoterSternHochdahl",1]
[null,null,null,null,null,null,null,null,null,null,null,null,null,null,null,null,null,null,"JJ ",0.5,null,"Juniooor7 ",1]
[null,null,null,null,null,null,null,null,null,null,null,null,null,null,null,null,null,null,"Northernknight ",0.5,null,"Tripleskull ",1]
[null,null,null,null,null,null,null,null,null,null,null,null,null,null,null,null,null,null,"Dionysian ",0.5,null,"Wilzif ",1]
[null,null,null,null,null,null,null,null,null,null,null,null,null,null,null,null,null,null,"BudWiser ",0.5,null,"Farina ",1]
[null,null,null,null,null,null,null,null,null,null,null,null,null,null,null,null,null,null,"Driesfield ",0.5,null,"JohnnyD ",1]
[null,null,null,null,null,null,null,null,null,null,null,null,null,null,null,null,null,null,"Duke_Luthor_Von_Hawkfire ",0.5,null,"Skoberget ",0.5]
[null,null,null,null,null,null,null,null,null,null,null,null,null,null,null,null,null,null,"Valen ",0.5,null,"Driesfield ",0.5]
[null,null,null,null,null,null,null,null,null,null,null,null,null,null,null,null,null,null,"Farina ",0.5,null,"Duke_Luthor_Von_Hawkfire ",0.5]

{"sheet":"Round6","index":14,"n_rows":129,"n_cols":33,"rows_kept":129,"cut":false,"hidden":false,"merged":[]}
[null,"Home Player","Away Player","Home Points","Away Points","Home TD","Away TD","Home Cas","Away Cas","Home Bonus1","Away Bonus1","Home Bonus2","Away Bonus2","Home Group","Away Group",null,null,null,"Points Before Games",null,null,"Points After Games",null,null,"Group Results","Group","Points",null,"Group Points Before Games",null,null,"Group Points After Games"]
[null,"Faccko ","GreatWhiteHope ",{"$f":"fctScore(F2,G2,H2,J2,L2)","v":0.5},{"$f":"fctScore(G2,F2,I2,K2,M2)","v":0.5},2,2,1,1,1,1,2,3,"Viking","Norway",null,null,null,"Domingo ",5,null,"Domingo ",5.5,null,null,"Belgium",7.5,null,"Viking",28,null,"Switzerland",31.5]
[null,"Mufflo ","straume ",{"$f":"fctScore(F3,G3,H3,J3,L3)","v":1},{"$f":"fctScore(G3,F3,I3,K3,M3)","v":0},1,0,1,1,1,3,1,3,"Viking","Norway",null,null,null,"Topper ",4.5,null,"DonShula ",5,null,null,"Denmark",4.5,null,"Italy",27,null,"Norway",31.5]
[null,"Corwin ","mynock ",0,1,0,1,2,1,0,3,1,3,"Viking","Norway",null,null,null,"sigu70 ",4.5,null,"sigu70 ",5,null,null,"England",5.5,null,"Switzerland",26,null,"Viking",30.5]
[null,"Duckwing ","The_Ref ",0,1,1,2,1,2,1,2,0,1,"Viking","Norway",null,null,null,"Faccko ",4,null,"Topper ",5,null,null,"Finland",3.5,null,"Finland",26,null,"Italy",30.5]
[null,"brocCooli ","zulu ",0.5,0.5,1,1,3,2,3,1,1,2,"Viking","Norway",null,null,null,"DonShula ",4,null,"Mufflo ",4.5,null,null,"France",5.5,null,"Norway",25,null,"Finland",29.5]
[null,"Bernuz ","bothun ",0.5,0.5,1,1,1,3,1,1,2,1,"Viking","Norway",null,null,null,"Verrinho ",4,null,"Faccko ",4.5,null,null,"Germany",4.5,null,"Denmark",24.5,null,"Hungary",29.5]
[null,"Balder ","FrankPedersen ",0,1,1,3,2,3,1,3,2,0,"Viking","Norway",null,null,null,"Idroj ",4,null,"Verrinho ",4.5,null,null,"Hungary",5.5,null,"Hungary",24,null,"Denmark",29]
[null,"Purrelito ","Endalos ",0,1,1,2,2,3,0,1,2,2,"Viking","Norway",null,null,null,"BiBi ",4,null,"Inforthepain ",4.5,null,null,"Italy",3.5,null,"Poland",23,null,"France",28]
[null,"Verrinho ","Itzla ",0.5,0.5,1,1,3,2,3,2,2,0,"Italy","Hungary",null,null,null,"Inforthepain ",4,null,"BiBi ",4.5,null,null,"Norway",6.5,null,"France",22.5,null,"Poland",26.5]
[null,"Beppe ","BlackOrc ",0,1,1,3,2,1,1,2,2,3,"Italy","Hungary",null,null,null,"edheim ",4,null,"Goss ",4.5,null,null,"Poland",3.5,null,"Sweden",21.5,null,"Belgium",26.5]
[null,"Matte8 ","noraal ",0,1,0,2,1,1,3,2,2,3,"Italy","Hungary",null,null,null,"Beppe ",3.5,null,"Skuld ",4.5,null,null,"Scotland",3.5,null,"Scotland",21.5,null,"Sweden",26]
[null,"Kaltenland ","Alex05 ",0,1,0,2,0,1,3,1,1,3,"Italy","Hungary",null,null,null,"Mufflo ",3.5,null,"edheim ",4.5,null,null,"Spain",1.5,null,"Spain",19.5,null,"Scotland",25]
[null,"Spartako ","swifty ",1,0,2,1,0,3,1,1,1,1,"Italy","Hungary",null,null,null,"GreatWhiteHope ",3.5,null,"Garrick ",4.5,null,null,"Sweden",4.5,null,"England",19,null,"England",24.5]
[null,"Liam ","Wolio ",1,0,2,0,1,1,2,3,1,3,"Italy","Hungary",null,null,null,"Goss ",3.5,null,"GreatWhiteHope ",4,null,null,"Switzerland",5.5,null,"Belgium",19,null,"Germany",22.5]
[null,"Dirold ","cz ",0.5,0.5,1,1,1,2,2,3,1,0,"Italy","Hungary",null,null,null,"jopotzuki ",3.5,null,"jopotzuki ",4,null,null,"Viking",2.5,null,"Germany",18,null,"Spain",21]
[null,"Farina ","Favi ",0.5,0.5,1,1,1,1,0,3,1,1,"Italy","Hungary",null,null,null,"Phifoe ",3.5,null,"Arioso ",4,null,null,"Wales",4.5,null,"Wales",15.5,null,"Wales",20]
[null,"edheim ","BiBi ",0.5,0.5,1,1,3,3,0,1,0,1,"Finland","France",null,null,null,"Arioso ",3.5,null,"BlackOrc ",4]
[null,"jopotzuki ","Bouzzy ",0.5,0.5,1,1,2,1,0,1,1,3,"Finland","France",null,null,null,"Itzla ",3.5,null,"ratogre ",4]
[null,"ratogre ","Harti ",1,0,3,2,1,1,0,2,3,3,"Finland","France",null,null,null,"kfoged ",3.5,null,"SpecialOne ",4]
[null,"MacWitt ","Justicium ",0.5,0.5,2,2,2,1,1,1,3,2,"Finland","France",null,null,null,"straume ",3.5,null,"Dragons ",4]
[null,"BeerBeer ","Matt le fou ",0.5,0.5,2,2,1,0,0,3,1,0,"Finland","France",null,null,null,"Skuld ",3.5,null,"Phifoe ",4]
[null,"valkohukka ","Gros Nain ",0,1,1,2,2,1,2,1,2,2,"Finland","France",null,null,null,"Niebling ",3.5,null,"Itzla ",4]
[null,"Harza ","Simon_ACP ",0,1,0,1,1,2,1,3,1,1,"Finland","France",null,null,null,"Garrick ",3.5,null,"Malodoror ",4]
[null,"J-Ho","BudWiser ",0.5,0.5,1,1,3,0,2,0,0,1,"Finland","France",null,null,null,"Matte8 ",3.5,null,"Idroj ",4]
[null,"sigu70 ","Domingo ",0.5,0.5,2,2,2,0,0,1,3,2,"Switzerland","Poland",null,null,null,"MissSweden ",3.5,null,"mynock ",4]
[null,"Goss ","Shawass ",1,0,3,2,2,0,0,1,3,1,"Switzerland","Poland",null,null,null,"DocMaxx ",3.5,null,"Spartako ",4]
[null,"Phifoe ","Reszka ",0.5,0.5,1,1,2,1,3,1,3,1,"Switzerland","Poland",null,null,null,"Corwin ",3.5,null,"Pellevin ",4]
[null,"Elrik ","Warrior1980 ",1,0,1,0,0,0,3,1,0,2,"Switzerland","Poland",null,null,null,"Shawass ",3.5,null,"Tactel ",4]
[null,"Macabeo ","Leonek ",0,1,0,2,2,1,0,3,1,0,"Switzerland","Poland",null,null,null,"Kaltenland ",3.5,null,"sann0638 ",4]
[null,"Madmatt13 ","Mewash ",0,1,1,3,1,3,2,1,3,2,"Switzerland","Poland",null,null,null,"Duckwing ",3,null,"Elrik ",4]
[null,"Jokaero ","Slimaq ",0.5,0.5,2,2,2,3,1,3,2,2,"Switzerland","Poland",null,null,null,"Spartako ",3,null,"noraal ",4]
[null,"Strider84 ","Juniooor7 ",1,0,3,2,0,2,3,0,0,1,"Switzerland","Poland",null,null,null,"Dragons ",3,null,"Alex05 ",4]
[null,"Topper ","Inforthepain ",0.5,0.5,2,2,0,2,1,0,2,1,"Denmark","Sweden",null,null,null,"Pellevin ",3,null,"Liam ",4]
[null,"kfoged ","Skuld ",0,1,0,2,1,2,2,3,0,0,"Denmark","Sweden",null,null,null,"sann0638 ",3,null,"Beppe ",3.5]
[null,"Niebling ","Dragons ",0,1,0,2,3,2,2,1,0,0,"Denmark","Sweden",null,null,null,"SpecialOne ",3,null,"straume ",3.5]
[null,"MissSweden ","Pellevin ",0,1,2,3,0,2,2,0,0,1,"Denmark","Sweden",null,null,null,"BlackOrc ",3,null,"MadeofWelsh ",3.5]
[null,"SpecialOne ","Melisqus ",1,0,3,1,2,0,0,2,0,2,"Denmark","Sweden",null,null,null,"Bouzzy ",3,null,"kfoged ",3.5]
[null,"Jaqra ","Pidpad ",1,0,2,1,2,1,2,3,1,0,"Denmark","Sweden",null,null,null,"ratogre ",3,null,"Bouzzy ",3.5]
[null,"Tank ","JohnnyD ",1,0,2,1,1,2,2,1,0,3,"Denmark","Sweden",null,null,null,"Melisqus ",3,null,"Niebling ",3.5]
[null,"Tripleskull ","Skoberget ",0.5,0.5,2,2,0,1,1,1,1,1,"Denmark","Sweden",null,null,null,"mynock ",3,null,"DocMaxx ",3.5]
[null,"Malodoror ","Idroj ",1,0,3,2,2,2,2,2,2,2,"Belgium","Spain",null,null,null,"MacWitt ",3,null,"Matte8 ",3.5]
[null,"gninocker ","Tactel ",0,1,0,3,2,1,3,0,0,1,"Belgium","Spain",null,null,null,"Elrik ",3,null,"Shawass ",3.5]
[null,"Woete ","Barry ",1,0,2,1,2,2,2,2,2,2,"Belgium","Spain",null,null,null,"Malodoror ",3,null,"Muadib ",3.5]
[null,"Phoenix11 ","Dark Duke ",1,0,3,1,2,1,0,1,1,1,"Belgium","Spain",null,null,null,"Tactel ",3,null,"MissSweden ",3.5]
[null,"Dekra1979 ","Joanet ",1,0,1,0,1,2,3,3,2,0,"Belgium","Spain",null,null,null,"Mubo ",3,null,"The_Ref ",3.5]
[null,"Araznaroth ","Obeliz ",0.5,0.5,1,1,3,1,0,1,1,2,"Belgium","Spain",null,null,null,"brocCooli ",3,null,"MacWitt ",3.5]
[null,"JJ ","Malasnoticias ",1,0,3,2,2,3,3,2,1,3,"Belgium","Spain",null,null,null,"Harti ",3,null,"Woete ",3.5]
[null,"Driesfield ","Duke_Luthor_Von_Hawkfire ",1,0,2,1,1,0,2,1,2,0,"Belgium","Spain",null,null,null,"gninocker ",3,null,"Corwin ",3.5]
[null,"Mubo ","DonShula ",0,1,1,2,3,2,2,2,3,0,"England","Scotland",null,null,null,"20Phoenix ",3,null,"20Phoenix ",3.5]
[null,"Podfrey ","Garrick ",0,1,1,2,1,1,1,1,3,3,"England","Scotland",null,null,null,"noraal ",3,null,"Kaltenland ",3.5]
[null,"PurpleGoo ","sann0638 ",0,1,1,2,0,2,3,0,0,1,"England","Scotland",null,null,null,"Liam ",3,null,"Candlejack ",3.5]
[null,"Joemanji ","Loki ",1,0,3,1,0,1,1,1,2,3,"England","Scotland",null,null,null,"Alex05 ",3,null,"brocCooli ",3.5]
[null,"Lycos ","HumptyTrump ",1,0,2,1,0,3,3,1,3,2,"England","Scotland",null,null,null,"Macabeo ",2.5,null,"Joemanji ",3.5]
[null,"Geggster ","Purdindas ",0.5,0.5,2,2,1,2,1,3,2,0,"England","Scotland",null,null,null,"Barry ",2.5,null,"Phoenix11 ",3.5]
[null,"JimJimany ","Valen ",1,0,3,2,2,1,1,2,3,0,"England","Scotland",null,null,null,"MadeofWelsh ",2.5,null,"Lycos ",3]
[null,"Wilzif ","JamesEs ",1,0,2,1,1,2,1,2,2,0,"England","Scotland",null,null,null,"Dark Duke ",2.5,null,"Duckwing ",3]
[null,"Arioso ","20Phoenix ",0.5,0.5,1,1,2,2,2,3,2,2,"Germany","Wales",null,null,null,"Reszka ",2.5,null,"Mubo ",3]
[null,"DocMaxx ","MadeofWelsh ",0,1,0,1,3,3,2,2,1,2,"Germany","Wales",null,null,null,"BeerBeer ",2.5,null,"Reszka ",3]
[null,"Muadib ","SFisher91 ",1,0,2,1,2,2,3,1,1,3,"Germany","Wales",null,null,null,"Muadib ",2.5,null,"Gros Nain ",3]
[null,"Candlejack ","andydavo ",1,0,1,0,2,1,2,2,2,1,"Germany","Wales",null,null,null,"The_Ref ",2.5,null,"Melisqus ",3]
[null,"Prince ","Dionysian ",0.5,0.5,3,3,0,1,1,0,2,1,"Germany","Wales",null,null,null,"Woete ",2.5,null,"Leonek ",3]
[null,"Gaunab ","Ploppy_McPloppy ",0,1,1,3,1,1,0,3,3,3,"Germany","Wales",null,null,null,"Bernuz ",2.5,null,"BeerBeer ",3]
[null,"Jonny_Kanone ","Northernknight ",1,0,3,0,3,3,2,2,0,2,"Germany","Wales",null,null,null,"valkohukka ",2.5,null,"Harti ",3]
[null,"RoterSternHochdahl","nonumber ",0,1,1,3,3,2,3,0,2,1,"Germany","Wales",null,null,null,"Candlejack ",2.5,null,"FrankPedersen ",3]
[null,null,null,null,null,null,null,null,null,null,null,null,null,null,null,null,null,null,"swifty ",2.5,null,"Bernuz ",3]
[null,null,null,null,null,null,null,null,null,null,null,null,null,null,null,null,null,null,"SFisher91 ",2.5,null,"Mewash ",3]
[null,null,null,null,null,null,null,null,null,null,null,null,null,null,null,null,null,null,"Podfrey ",2.5,null,"Dekra1979 ",3]
[null,null,null,null,null,null,null,null,null,null,null,null,null,null,null,null,null,null,"zulu ",2.5,null,"Endalos ",3]
[null,null,null,null,null,null,null,null,null,null,null,null,null,null,null,null,null,null,"Balder ",2.5,null,"zulu ",3]
[null,null,null,null,null,null,null,null,null,null,null,null,null,null,null,null,null,null,"Justicium ",2.5,null,"Jaqra ",3]
[null,null,null,null,null,null,null,null,null,null,null,null,null,null,null,null,null,null,"Phoenix11 ",2.5,null,"gninocker ",3]
[null,null,null,null,null,null,null,null,null,null,null,null,null,null,null,null,null,null,"Loki ",2.5,null,"Justicium ",3]
[null,null,null,null,null,null,null,null,null,null,null,null,null,null,null,null,null,null,"Wolio ",2.5,null,"Simon_ACP ",3]
[null,null,null,null,null,null,null,null,null,null,null,null,null,null,null,null,null,null,"PurpleGoo ",2.5,null,"bothun ",3]
[null,null,null,null,null,null,null,null,null,null,null,null,null,null,null,null,null,null,"Joemanji ",2.5,null,"Barry ",2.5]
[null,null,null,null,null,null,null,null,null,null,null,null,null,null,null,null,null,null,"bothun ",2.5,null,"Matt le fou ",2.5]
[null,null,null,null,null,null,null,null,null,null,null,null,null,null,null,null,null,null,"Lycos ",2,null,"Macabeo ",2.5]
[null,null,null,null,null,null,null,null,null,null,null,null,null,null,null,null,null,null,"Harza ",2,null,"Dark Duke ",2.5]
[null,null,null,null,null,null,null,null,null,null,null,null,null,null,null,null,null,null,"Matt le fou ",2,null,"cz ",2.5]
[null,null,null,null,null,null,null,null,null,null,null,null,null,null,null,null,null,null,"Gros Nain ",2,null,"Strider84 ",2.5]
[null,null,null,null,null,null,null,null,null,null,null,null,null,null,null,null,null,null,"Madmatt13 ",2,null,"valkohukka ",2.5]
[null,null,null,null,null,null,null,null,null,null,null,null,null,null,null,null,null,null,"Warrior1980 ",2,null,"Podfrey ",2.5]
[null,null,null,null,null,null,null,null,null,null,null,null,null,null,null,null,null,null,"andydavo ",2,null,"Geggster ",2.5]
[null,null,null,null,null,null,null,null,null,null,null,null,null,null,null,null,null,null,"FrankPedersen ",2,null,"Dirold ",2.5]
[null,null,null,null,null,null,null,null,null,null,null,null,null,null,null,null,null,null,"Leonek ",2,null,"swifty ",2.5]
[null,null,null,null,null,null,null,null,null,null,null,null,null,null,null,null,null,null,"HumptyTrump ",2,null,"SFisher91 ",2.5]
[null,null,null,null,null,null,null,null,null,null,null,null,null,null,null,null,null,null,"Mewash ",2,null,"Loki ",2.5]
[null,null,null,null,null,null,null,null,null,null,null,null,null,null,null,null,null,null,"cz ",2,null,"Obeliz ",2.5]
[null,null,null,null,null,null,null,null,null,null,null,null,null,null,null,null,null,null,"Dekra1979 ",2,null,"PurpleGoo ",2.5]
[null,null,null,null,null,null,null,null,null,null,null,null,null,null,null,null,null,null,"Endalos ",2,null,"Wolio ",2.5]
[null,null,null,null,null,null,null,null,null,null,null,null,null,null,null,null,null,null,"Joanet ",2,null,"Favi ",2.5]
[null,null,null,null,null,null,null,null,null,null,null,null,null,null,null,null,null,null,"Favi ",2,null,"JJ ",2.5]
[null,null,null,null,null,null,null,null,null,null,null,null,null,null,null,null,null,null,"Jaqra ",2,null,"Araznaroth ",2.5]
[null,null,null,null,null,null,null,null,null,null,null,null,null,null,null,null,null,null,"Geggster ",2,null,"JimJimany ",2.5]
[null,null,null,null,null,null,null,null,null,null,null,null,null,null,null,null,null,null,"Dirold ",2,null,"Balder ",2.5]
[null,null,null,null,null,null,null,null,null,null,null,null,null,null,null,null,null,null,"Obeliz ",2,null,"Slimaq ",2.5]
[null,null,null,null,null,null,null,null,null,null,null,null,null,null,null,null,null,null,"Simon_ACP ",2,null,"Ploppy_McPloppy ",2.5]
[null,null,null,null,null,null,null,null,null,null,null,null,null,null,null,null,null,null,"Slimaq ",2,null,"Jokaero ",2.5]
[null,null,null,null,null,null,null,null,null,null,null,null,null,null,null,null,null,null,"Purrelito ",2,null,"J-Ho",2.5]
[null,null,null,null,null,null,null,null,null,null,null,null,null,null,null,null,null,null,"Jokaero ",2,null,"Warrior1980 ",2]
[null,null,null,null,null,null,null,null,null,null,null,null,null,null,null,null,null,null,"Araznaroth ",2,null,"HumptyTrump ",2]
[null,null,null,null,null,null,null,null,null,null,null,null,null,null,null,null,null,null,"J-Ho",2,null,"Tank ",2]
[null,null,null,null,null,null,null,null,null,null,null,null,null,null,null,null,null,null,"Strider84 ",1.5,null,"Purdindas ",2]
[null,null,null,null,null,null,null,null,null,null,null,null,null,null,null,null,null,null,"Purdindas ",1.5,null,"Harza ",2]
[null,null,null,null,null,null,null,null,null,null,null,null,null,null,null,null,null,null,"Malasnoticias ",1.5,null,"Madmatt13 ",2]
[null,null,null,null,null,null,null,null,null,null,null,null,null,null,null,null,null,null,"Pidpad ",1.5,null,"andydavo ",2]
[null,null,null,null,null,null,null,null,null,null,null,null,null,null,null,null,null,null,"Prince ",1.5,null,"Jonny_Kanone ",2]
[null,null,null,null,null,null,null,null,null,null,null,null,null,null,null,null,null,null,"Gaunab ",1.5,null,"Joanet ",2]
[null,null,null,null,null,null,null,null,null,null,null,null,null,null,null,null,null,null,"JJ ",1.5,null,"Prince ",2]
[null,null,null,null,null,null,null,null,null,null,null,null,null,null,null,null,null,null,"JimJimany ",1.5,null,"Dionysian ",2]
[null,null,null,null,null,null,null,null,null,null,null,null,null,null,null,null,null,null,"Dionysian ",1.5,null,"Purrelito ",2]
[null,null,null,null,null,null,null,null,null,null,null,null,null,null,null,null,null,null,"Ploppy_McPloppy ",1.5,null,"Wilzif ",2]
[null,null,null,null,null,null,null,null,null,null,null,null,null,null,null,null,null,null,"BudWiser ",1.5,null,"nonumber ",2]
[null,null,null,null,null,null,null,null,null,null,null,null,null,null,null,null,null,null,"Valen ",1.5,null,"BudWiser ",2]
[null,null,null,null,null,null,null,null,null,null,null,null,null,null,null,null,null,null,"Tank ",1,null,"Pidpad ",1.5]
[null,null,null,null,null,null,null,null,null,null,null,null,null,null,null,null,null,null,"JamesEs ",1,null,"Malasnoticias ",1.5]
[null,null,null,null,null,null,null,null,null,null,null,null,null,null,null,null,null,null,"Northernknight ",1,null,"Gaunab ",1.5]
[null,null,null,null,null,null,null,null,null,null,null,null,null,null,null,null,null,null,"Jonny_Kanone ",1,null,"Tripleskull ",1.5]
[null,null,null,null,null,null,null,null,null,null,null,null,null,null,null,null,null,null,"nonumber ",1,null,"Farina ",1.5]
[null,null,null,null,null,null,null,null,null,null,null,null,null,null,null,null,null,null,"RoterSternHochdahl",1,null,"Valen ",1.5]
[null,null,null,null,null,null,null,null,null,null,null,null,null,null,null,null,null,null,"Juniooor7 ",1,null,"Driesfield ",1.5]
[null,null,null,null,null,null,null,null,null,null,null,null,null,null,null,null,null,null,"Tripleskull ",1,null,"JamesEs ",1]
[null,null,null,null,null,null,null,null,null,null,null,null,null,null,null,null,null,null,"Wilzif ",1,null,"Northernknight ",1]
[null,null,null,null,null,null,null,null,null,null,null,null,null,null,null,null,null,null,"Farina ",1,null,"Juniooor7 ",1]
[null,null,null,null,null,null,null,null,null,null,null,null,null,null,null,null,null,null,"JohnnyD ",1,null,"RoterSternHochdahl",1]
[null,null,null,null,null,null,null,null,null,null,null,null,null,null,null,null,null,null,"Skoberget ",0.5,null,"Skoberget ",1]
[null,null,null,null,null,null,null,null,null,null,null,null,null,null,null,null,null,null,"Driesfield ",0.5,null,"JohnnyD ",1]
[null,null,null,null,null,null,null,null,null,null,null,null,null,null,null,null,null,null,"Duke_Luthor_Von_Hawkfire ",0.5,null,"Duke_Luthor_Von_Hawkfire ",0.5]

{"sheet":"Round7","index":15,"n_rows":129,"n_cols":33,"rows_kept":129,"cut":false,"hidden":false,"merged":[]}
[null,"Home Player","Away Player","Home Points","Away Points","Home TD","Away TD","Home Cas","Away Cas","Home Bonus1","Away Bonus1","Home Bonus2","Away Bonus2","Home Group","Away Group",null,null,null,"Points Before Games",null,null,"Points After Games",null,null,"Group Results","Group","Points",null,"Group Points Before Games",null,null,"Group Points After Games"]
[null,"sigu70 ","GreatWhiteHope ",{"$f":"fctScore(F2,G2,H2,J2,L2)","v":1},{"$f":"fctScore(G2,F2,I2,K2,M2)","v":0},3,2,1,2,2,0,1,2,"Switzerland","Norway",null,null,null,"Domingo ",5.5,null,"Domingo ",6.5,null,null,"Belgium",2.5,null,"Switzerland",31.5,null,"Switzerland",38]
[null,"Goss ","mynock ",{"$f":"fctScore(F3,G3,H3,J3,L3)","v":0},{"$f":"fctScore(G3,F3,I3,K3,M3)","v":1},1,3,2,1,3,2,3,2,"Switzerland","Norway",null,null,null,"DonShula ",5,null,"sigu70 ",6,null,null,"Denmark",2,null,"Norway",31.5,null,"Viking",36.5]
[null,"Phifoe ","straume ",1,0,1,0,1,3,2,3,2,1,"Switzerland","Norway",null,null,null,"sigu70 ",5,null,"DonShula ",5.5,null,null,"England",4.5,null,"Viking",30.5,null,"Italy",36]
[null,"Elrik ","The_Ref ",1,0,3,2,2,3,1,1,1,2,"Switzerland","Norway",null,null,null,"Topper ",5,null,"Verrinho ",5.5,null,null,"Finland",3.5,null,"Italy",30.5,null,"France",35]
[null,"Macabeo ","FrankPedersen ",1,0,2,1,2,1,2,3,2,2,"Switzerland","Norway",null,null,null,"Mufflo ",4.5,null,"Topper ",5.5,null,null,"France",7,null,"Finland",29.5,null,"Norway",34]
[null,"Strider84 ","Endalos ",0.5,0.5,1,1,0,1,0,1,1,1,"Switzerland","Norway",null,null,null,"Faccko ",4.5,null,"Garrick ",5.5,null,null,"Germany",4.5,null,"Hungary",29.5,null,"Finland",33]
[null,"Jokaero ","zulu ",0,1,0,2,1,0,2,1,0,2,"Switzerland","Norway",null,null,null,"Verrinho ",4.5,null,"Inforthepain ",5,null,null,"Hungary",3,null,"Denmark",29,null,"Poland",33]
[null,"Madmatt13 ","bothun ",1,0,3,0,2,3,1,2,1,2,"Switzerland","Norway",null,null,null,"Inforthepain ",4.5,null,"Faccko ",5,null,null,"Italy",5.5,null,"France",28,null,"Hungary",32.5]
[null,"Mufflo ","BlackOrc ",0,1,2,3,0,2,3,0,1,2,"Viking","Hungary",null,null,null,"BiBi ",4.5,null,"BiBi ",5,null,null,"Norway",2.5,null,"Poland",26.5,null,"Sweden",31.5]
[null,"Faccko ","Itzla ",0.5,0.5,2,2,1,2,2,1,1,2,"Viking","Hungary",null,null,null,"Goss ",4.5,null,"mynock ",5,null,null,"Poland",6.5,null,"Belgium",26.5,null,"Denmark",31]
[null,"Corwin ","noraal ",1,0,2,1,1,2,2,0,1,1,"Viking","Hungary",null,null,null,"Skuld ",4.5,null,"jopotzuki ",5,null,null,"Scotland",4.5,null,"Sweden",26,null,"Scotland",29.5]
[null,"brocCooli ","Alex05 ",0,1,1,3,1,2,1,1,1,2,"Viking","Hungary",null,null,null,"edheim ",4.5,null,"Dragons ",5,null,null,"Spain",4.5,null,"Scotland",25,null,"England",29]
[null,"Duckwing ","cz ",1,0,1,0,3,0,3,2,2,3,"Viking","Hungary",null,null,null,"Garrick ",4.5,null,"BlackOrc ",5,null,null,"Sweden",5.5,null,"England",24.5,null,"Belgium",29]
[null,"Bernuz ","swifty ",1,0,2,0,2,2,2,2,1,2,"Viking","Hungary",null,null,null,"GreatWhiteHope ",4,null,"Phifoe ",5,null,null,"Switzerland",6.5,null,"Germany",22.5,null,"Germany",27]
[null,"Balder ","Wolio ",1,0,2,0,2,3,2,2,3,2,"Viking","Hungary",null,null,null,"jopotzuki ",4,null,"Skuld ",5,null,null,"Viking",6,null,"Spain",21,null,"Spain",25.5]
[null,"Purrelito ","Favi ",0.5,0.5,0,0,1,1,3,2,2,1,"Viking","Hungary",null,null,null,"Arioso ",4,null,"sann0638 ",5,null,null,"Wales",3.5,null,"Wales",20,null,"Wales",23.5]
[null,"Verrinho ","edheim ",1,0,2,1,1,0,2,1,1,1,"Italy","Finland",null,null,null,"BlackOrc ",4,null,"Elrik ",5]
[null,"Spartako ","jopotzuki ",0,1,0,3,3,2,2,0,3,1,"Italy","Finland",null,null,null,"ratogre ",4,null,"Tactel ",5]
[null,"Liam ","ratogre ",0.5,0.5,1,1,1,2,1,0,3,1,"Italy","Finland",null,null,null,"SpecialOne ",4,null,"Alex05 ",5]
[null,"Beppe ","MacWitt ",1,0,3,1,2,3,1,0,1,2,"Italy","Finland",null,null,null,"Dragons ",4,null,"Beppe ",4.5]
[null,"Matte8 ","BeerBeer ",0,1,2,3,1,2,1,3,1,0,"Italy","Finland",null,null,null,"Phifoe ",4,null,"Mufflo ",4.5]
[null,"Kaltenland ","valkohukka ",0,1,0,1,1,0,2,1,2,1,"Italy","Finland",null,null,null,"Itzla ",4,null,"Goss ",4.5]
[null,"Dirold ","J-Ho",1,0,3,1,1,2,2,2,1,3,"Italy","Finland",null,null,null,"Malodoror ",4,null,"Arioso ",4.5]
[null,"Farina ","Harza ",1,0,2,1,2,1,0,1,0,2,"Italy","Finland",null,null,null,"Idroj ",4,null,"ratogre ",4.5]
[null,"Topper ","BiBi ",0.5,0.5,1,1,0,2,2,0,1,0,"Denmark","France",null,null,null,"mynock ",4,null,"edheim ",4.5]
[null,"SpecialOne ","Bouzzy ",0.5,0.5,3,3,1,0,2,0,2,2,"Denmark","France",null,null,null,"Spartako ",4,null,"SpecialOne ",4.5]
[null,"kfoged ","Gros Nain ",0,1,0,1,0,2,1,3,1,2,"Denmark","France",null,null,null,"Pellevin ",4,null,"Itzla ",4.5]
[null,"Niebling ","Harti ",0,1,2,3,1,2,1,1,0,3,"Denmark","France",null,null,null,"Tactel ",4,null,"Joemanji ",4.5]
[null,"MissSweden ","Justicium ",0,1,0,2,3,1,1,2,1,2,"Denmark","France",null,null,null,"sann0638 ",4,null,"Woete ",4.5]
[null,"Jaqra ","Simon_ACP ",0,1,1,2,1,1,1,1,3,3,"Denmark","France",null,null,null,"Elrik ",4,null,"Corwin ",4.5]
[null,"Tank ","Matt le fou ",0,1,1,2,1,3,2,0,0,2,"Denmark","France",null,null,null,"noraal ",4,null,"Liam ",4.5]
[null,"Tripleskull ","BudWiser ",1,0,1,0,2,0,2,2,2,0,"Denmark","France",null,null,null,"Alex05 ",4,null,"GreatWhiteHope ",4]
[null,"Domingo ","Malodoror ",1,0,1,0,2,2,1,1,3,1,"Poland","Belgium",null,null,null,"Liam ",4,null,"Malodoror ",4]
[null,"Shawass ","Woete ",0,1,1,3,2,1,0,1,3,0,"Poland","Belgium",null,null,null,"Beppe ",3.5,null,"Gros Nain ",4]
[null,"Reszka ","Phoenix11 ",0.5,0.5,2,2,0,3,1,1,2,2,"Poland","Belgium",null,null,null,"straume ",3.5,null,"Bouzzy ",4]
[null,"Leonek ","Dekra1979 ",1,0,3,1,0,1,2,2,2,2,"Poland","Belgium",null,null,null,"MadeofWelsh ",3.5,null,"MadeofWelsh ",4]
[null,"Mewash ","gninocker ",1,0,3,2,0,2,3,1,3,2,"Poland","Belgium",null,null,null,"kfoged ",3.5,null,"Leonek ",4]
[null,"Slimaq ","JJ ",0.5,0.5,3,3,1,2,2,2,1,1,"Poland","Belgium",null,null,null,"Bouzzy ",3.5,null,"Spartako ",4]
[null,"Warrior1980 ","Araznaroth ",0.5,0.5,2,2,2,1,1,2,2,2,"Poland","Belgium",null,null,null,"Niebling ",3.5,null,"Mubo ",4]
[null,"Juniooor7 ","Driesfield ",1,0,3,1,3,3,2,2,2,1,"Poland","Belgium",null,null,null,"DocMaxx ",3.5,null,"20Phoenix ",4]
[null,"DonShula ","Arioso ",0.5,0.5,2,2,2,1,2,3,2,1,"Scotland","Germany",null,null,null,"Matte8 ",3.5,null,"Idroj ",4]
[null,"Garrick ","DocMaxx ",1,0,3,0,1,2,1,2,3,1,"Scotland","Germany",null,null,null,"Shawass ",3.5,null,"Duckwing ",4]
[null,"sann0638 ","Muadib ",1,0,3,1,2,2,2,3,2,1,"Scotland","Germany",null,null,null,"Muadib ",3.5,null,"BeerBeer ",4]
[null,"Loki ","Candlejack ",1,0,3,1,2,1,1,2,1,1,"Scotland","Germany",null,null,null,"MissSweden ",3.5,null,"Pellevin ",4]
[null,"HumptyTrump ","Jonny_Kanone ",0.5,0.5,1,1,0,1,1,0,0,2,"Scotland","Germany",null,null,null,"The_Ref ",3.5,null,"Mewash ",4]
[null,"Purdindas ","Prince ",0,1,0,2,0,0,3,1,1,2,"Scotland","Germany",null,null,null,"MacWitt ",3.5,null,"noraal ",4]
[null,"Valen ","Gaunab ",0,1,2,3,2,2,3,0,1,2,"Scotland","Germany",null,null,null,"Woete ",3.5,null,"Melisqus ",4]
[null,"JamesEs ","RoterSternHochdahl",0,1,0,2,1,3,1,2,1,1,"Scotland","Germany",null,null,null,"Corwin ",3.5,null,"Harti ",4]
[null,"MadeofWelsh ","Inforthepain ",0.5,0.5,1,1,3,1,1,2,2,1,"Wales","Sweden",null,null,null,"20Phoenix ",3.5,null,"Bernuz ",4]
[null,"20Phoenix ","Skuld ",0.5,0.5,2,2,1,1,2,2,3,2,"Wales","Sweden",null,null,null,"Kaltenland ",3.5,null,"zulu ",4]
[null,"SFisher91 ","Dragons ",0,1,1,3,2,2,0,1,1,2,"Wales","Sweden",null,null,null,"Candlejack ",3.5,null,"Justicium ",4]
[null,"Ploppy_McPloppy ","Pellevin ",1,0,2,1,0,2,1,2,1,0,"Wales","Sweden",null,null,null,"brocCooli ",3.5,null,"Phoenix11 ",4]
[null,"andydavo ","Melisqus ",0,1,2,3,3,1,1,1,1,2,"Wales","Sweden",null,null,null,"Joemanji ",3.5,null,"Simon_ACP ",4]
[null,"Dionysian ","Pidpad ",1,0,3,2,3,0,3,2,2,3,"Wales","Sweden",null,null,null,"Phoenix11 ",3.5,null,"straume ",3.5]
[null,"nonumber ","Skoberget ",0.5,0.5,1,1,1,0,1,1,0,3,"Wales","Sweden",null,null,null,"Lycos ",3,null,"Niebling ",3.5]
[null,"Northernknight ","JohnnyD ",0,1,2,3,3,2,2,2,3,2,"Wales","Sweden",null,null,null,"Duckwing ",3,null,"Reszka ",3.5]
[null,"Idroj ","Joemanji ",0,1,1,2,2,2,0,2,1,1,"Spain","England",null,null,null,"Mubo ",3,null,"Matt le fou ",3.5]
[null,"Tactel ","Lycos ",1,0,2,1,1,1,1,1,1,0,"Spain","England",null,null,null,"Reszka ",3,null,"Matte8 ",3.5]
[null,"Barry ","Mubo ",0,1,0,2,3,1,1,0,2,2,"Spain","England",null,null,null,"Gros Nain ",3,null,"brocCooli ",3.5]
[null,"Dark Duke ","Podfrey ",1,0,3,2,2,2,3,3,3,3,"Spain","England",null,null,null,"Melisqus ",3,null,"DocMaxx ",3.5]
[null,"Obeliz ","Geggster ",0.5,0.5,1,1,0,1,2,3,2,0,"Spain","England",null,null,null,"Leonek ",3,null,"Muadib ",3.5]
[null,"Joanet ","PurpleGoo ",0.5,0.5,3,3,1,2,3,2,1,2,"Spain","England",null,null,null,"BeerBeer ",3,null,"valkohukka ",3.5]
[null,"Malasnoticias ","JimJimany ",1,0,3,2,1,2,0,2,2,2,"Spain","England",null,null,null,"Harti ",3,null,"The_Ref ",3.5]
[null,"Duke_Luthor_Von_Hawkfire ","Wilzif ",0,1,0,2,2,3,2,2,2,1,"Spain","England",null,null,null,"FrankPedersen ",3,null,"kfoged ",3.5]
[null,null,null,null,null,null,null,null,null,null,null,null,null,null,null,null,null,null,"Bernuz ",3,null,"Macabeo ",3.5]
[null,null,null,null,null,null,null,null,null,null,null,null,null,null,null,null,null,null,"Mewash ",3,null,"MacWitt ",3.5]
[null,null,null,null,null,null,null,null,null,null,null,null,null,null,null,null,null,null,"Dekra1979 ",3,null,"Kaltenland ",3.5]
[null,null,null,null,null,null,null,null,null,null,null,null,null,null,null,null,null,null,"Endalos ",3,null,"Dark Duke ",3.5]
[null,null,null,null,null,null,null,null,null,null,null,null,null,null,null,null,null,null,"zulu ",3,null,"Shawass ",3.5]
[null,null,null,null,null,null,null,null,null,null,null,null,null,null,null,null,null,null,"Jaqra ",3,null,"MissSweden ",3.5]
[null,null,null,null,null,null,null,null,null,null,null,null,null,null,null,null,null,null,"gninocker ",3,null,"Endalos ",3.5]
[null,null,null,null,null,null,null,null,null,null,null,null,null,null,null,null,null,null,"Justicium ",3,null,"Dirold ",3.5]
[null,null,null,null,null,null,null,null,null,null,null,null,null,null,null,null,null,null,"Simon_ACP ",3,null,"Loki ",3.5]
[null,null,null,null,null,null,null,null,null,null,null,null,null,null,null,null,null,null,"bothun ",3,null,"Ploppy_McPloppy ",3.5]
[null,null,null,null,null,null,null,null,null,null,null,null,null,null,null,null,null,null,"Barry ",2.5,null,"Candlejack ",3.5]
[null,null,null,null,null,null,null,null,null,null,null,null,null,null,null,null,null,null,"Matt le fou ",2.5,null,"Balder ",3.5]
[null,null,null,null,null,null,null,null,null,null,null,null,null,null,null,null,null,null,"Macabeo ",2.5,null,"Lycos ",3]
[null,null,null,null,null,null,null,null,null,null,null,null,null,null,null,null,null,null,"Dark Duke ",2.5,null,"Dekra1979 ",3]
[null,null,null,null,null,null,null,null,null,null,null,null,null,null,null,null,null,null,"cz ",2.5,null,"Madmatt13 ",3]
[null,null,null,null,null,null,null,null,null,null,null,null,null,null,null,null,null,null,"Strider84 ",2.5,null,"Strider84 ",3]
[null,null,null,null,null,null,null,null,null,null,null,null,null,null,null,null,null,null,"valkohukka ",2.5,null,"FrankPedersen ",3]
[null,null,null,null,null,null,null,null,null,null,null,null,null,null,null,null,null,null,"Podfrey ",2.5,null,"gninocker ",3]
[null,null,null,null,null,null,null,null,null,null,null,null,null,null,null,null,null,null,"Geggster ",2.5,null,"Jaqra ",3]
[null,null,null,null,null,null,null,null,null,null,null,null,null,null,null,null,null,null,"Dirold ",2.5,null,"Dionysian ",3]
[null,null,null,null,null,null,null,null,null,null,null,null,null,null,null,null,null,null,"swifty ",2.5,null,"PurpleGoo ",3]
[null,null,null,null,null,null,null,null,null,null,null,null,null,null,null,null,null,null,"SFisher91 ",2.5,null,"Obeliz ",3]
[null,null,null,null,null,null,null,null,null,null,null,null,null,null,null,null,null,null,"Loki ",2.5,null,"Prince ",3]
[null,null,null,null,null,null,null,null,null,null,null,null,null,null,null,null,null,null,"Obeliz ",2.5,null,"Favi ",3]
[null,null,null,null,null,null,null,null,null,null,null,null,null,null,null,null,null,null,"PurpleGoo ",2.5,null,"Geggster ",3]
[null,null,null,null,null,null,null,null,null,null,null,null,null,null,null,null,null,null,"Wolio ",2.5,null,"JJ ",3]
[null,null,null,null,null,null,null,null,null,null,null,null,null,null,null,null,null,null,"Favi ",2.5,null,"Araznaroth ",3]
[null,null,null,null,null,null,null,null,null,null,null,null,null,null,null,null,null,null,"JJ ",2.5,null,"Slimaq ",3]
[null,null,null,null,null,null,null,null,null,null,null,null,null,null,null,null,null,null,"Araznaroth ",2.5,null,"Wilzif ",3]
[null,null,null,null,null,null,null,null,null,null,null,null,null,null,null,null,null,null,"JimJimany ",2.5,null,"bothun ",3]
[null,null,null,null,null,null,null,null,null,null,null,null,null,null,null,null,null,null,"Balder ",2.5,null,"Barry ",2.5]
[null,null,null,null,null,null,null,null,null,null,null,null,null,null,null,null,null,null,"Slimaq ",2.5,null,"cz ",2.5]
[null,null,null,null,null,null,null,null,null,null,null,null,null,null,null,null,null,null,"Ploppy_McPloppy ",2.5,null,"Warrior1980 ",2.5]
[null,null,null,null,null,null,null,null,null,null,null,null,null,null,null,null,null,null,"Jokaero ",2.5,null,"Malasnoticias ",2.5]
[null,null,null,null,null,null,null,null,null,null,null,null,null,null,null,null,null,null,"J-Ho",2.5,null,"HumptyTrump ",2.5]
[null,null,null,null,null,null,null,null,null,null,null,null,null,null,null,null,null,null,"Warrior1980 ",2,null,"swifty ",2.5]
[null,null,null,null,null,null,null,null,null,null,null,null,null,null,null,null,null,null,"HumptyTrump ",2,null,"Jonny_Kanone ",2.5]
[null,null,null,null,null,null,null,null,null,null,null,null,null,null,null,null,null,null,"Tank ",2,null,"Podfrey ",2.5]
[null,null,null,null,null,null,null,null,null,null,null,null,null,null,null,null,null,null,"Purdindas ",2,null,"SFisher91 ",2.5]
[null,null,null,null,null,null,null,null,null,null,null,null,null,null,null,null,null,null,"Harza ",2,null,"Gaunab ",2.5]
[null,null,null,null,null,null,null,null,null,null,null,null,null,null,null,null,null,null,"Madmatt13 ",2,null,"Joanet ",2.5]
[null,null,null,null,null,null,null,null,null,null,null,null,null,null,null,null,null,null,"andydavo ",2,null,"Jokaero ",2.5]
[null,null,null,null,null,null,null,null,null,null,null,null,null,null,null,null,null,null,"Jonny_Kanone ",2,null,"Purrelito ",2.5]
[null,null,null,null,null,null,null,null,null,null,null,null,null,null,null,null,null,null,"Joanet ",2,null,"Wolio ",2.5]
[null,null,null,null,null,null,null,null,null,null,null,null,null,null,null,null,null,null,"Prince ",2,null,"JimJimany ",2.5]
[null,null,null,null,null,null,null,null,null,null,null,null,null,null,null,null,null,null,"Dionysian ",2,null,"nonumber ",2.5]
[null,null,null,null,null,null,null,null,null,null,null,null,null,null,null,null,null,null,"Purrelito ",2,null,"Farina ",2.5]
[null,null,null,null,null,null,null,null,null,null,null,null,null,null,null,null,null,null,"Wilzif ",2,null,"J-Ho",2.5]
[null,null,null,null,null,null,null,null,null,null,null,null,null,null,null,null,null,null,"nonumber ",2,null,"Tripleskull ",2.5]
[null,null,null,null,null,null,null,null,null,null,null,null,null,null,null,null,null,null,"BudWiser ",2,null,"Tank ",2]
[null,null,null,null,null,null,null,null,null,null,null,null,null,null,null,null,null,null,"Pidpad ",1.5,null,"Harza ",2]
[null,null,null,null,null,null,null,null,null,null,null,null,null,null,null,null,null,null,"Malasnoticias ",1.5,null,"Purdindas ",2]
[null,null,null,null,null,null,null,null,null,null,null,null,null,null,null,null,null,null,"Gaunab ",1.5,null,"andydavo ",2]
[null,null,null,null,null,null,null,null,null,null,null,null,null,null,null,null,null,null,"Tripleskull ",1.5,null,"Juniooor7 ",2]
[null,null,null,null,null,null,null,null,null,null,null,null,null,null,null,null,null,null,"Farina ",1.5,null,"RoterSternHochdahl",2]
[null,null,null,null,null,null,null,null,null,null,null,null,null,null,null,null,null,null,"Valen ",1.5,null,"BudWiser ",2]
[null,null,null,null,null,null,null,null,null,null,null,null,null,null,null,null,null,null,"Driesfield ",1.5,null,"JohnnyD ",2]
[null,null,null,null,null,null,null,null,null,null,null,null,null,null,null,null,null,null,"JamesEs ",1,null,"Pidpad ",1.5]
[null,null,null,null,null,null,null,null,null,null,null,null,null,null,null,null,null,null,"Northernknight ",1,null,"Skoberget ",1.5]
[null,null,null,null,null,null,null,null,null,null,null,null,null,null,null,null,null,null,"Juniooor7 ",1,null,"Valen ",1.5]
[null,null,null,null,null,null,null,null,null,null,null,null,null,null,null,null,null,null,"RoterSternHochdahl",1,null,"Driesfield ",1.5]
[null,null,null,null,null,null,null,null,null,null,null,null,null,null,null,null,null,null,"Skoberget ",1,null,"JamesEs ",1]
[null,null,null,null,null,null,null,null,null,null,null,null,null,null,null,null,null,null,"JohnnyD ",1,null,"Northernknight ",1]
[null,null,null,null,null,null,null,null,null,null,null,null,null,null,null,null,null,null,"Duke_Luthor_Von_Hawkfire ",0.5,null,"Duke_Luthor_Von_Hawkfire ",0.5]

{"sheet":"Round8","index":16,"n_rows":129,"n_cols":33,"rows_kept":129,"cut":false,"hidden":false,"merged":[]}
[null,"Home Player","Away Player","Home Points","Away Points","Home TD","Away TD","Home Cas","Away Cas","Home Bonus1","Away Bonus1","Home Bonus2","Away Bonus2","Home Group","Away Group",null,null,null,"Points Before Games",null,null,"Points After Games",null,null,"Group Results","Group","Points",null,"Group Points Before Games",null,null,"Group Points After Games"]
[null,"sigu70 ","BiBi ",{"$f":"fctScore(F2,G2,H2,J2,L2)","v":0},{"$f":"fctScore(G2,F2,I2,K2,M2)","v":1},1,2,2,1,2,1,3,0,"Switzerland","France",null,null,null,"Domingo ",6.5,null,"Verrinho ",6.5,null,null,"Belgium",4.5,null,"Switzerland",38,null,"Switzerland",43.5]
[null,"Phifoe ","Gros Nain ",{"$f":"fctScore(F3,G3,H3,J3,L3)","v":0},{"$f":"fctScore(G3,F3,I3,K3,M3)","v":1},1,2,1,2,1,0,3,3,"Switzerland","France",null,null,null,"sigu70 ",6,null,"Domingo ",6.5,null,null,"Denmark",6.5,null,"Viking",36.5,null,"Norway",39.5]
[null,"Elrik ","Bouzzy ",0.5,0.5,1,1,1,2,2,3,2,0,"Switzerland","France",null,null,null,"DonShula ",5.5,null,"Topper ",6.5,null,null,"England",3.5,null,"Italy",36,null,"Italy",39.5]
[null,"Goss ","Harti ",1,0,2,1,1,1,0,0,1,1,"Switzerland","France",null,null,null,"Verrinho ",5.5,null,"Garrick ",6.5,null,null,"Finland",5.5,null,"France",35,null,"Finland",38.5]
[null,"Macabeo ","Justicium ",0.5,0.5,1,1,3,2,2,1,2,3,"Switzerland","France",null,null,null,"Topper ",5.5,null,"DonShula ",6,null,null,"France",3.5,null,"Norway",34,null,"France",38.5]
[null,"Madmatt13 ","Simon_ACP ",0.5,0.5,1,1,1,1,3,0,2,2,"Switzerland","France",null,null,null,"Garrick ",5.5,null,"BiBi ",6,null,null,"Germany",5.5,null,"Finland",33,null,"Viking",38]
[null,"Strider84 ","Matt le fou ",1,0,2,1,1,2,1,2,2,2,"Switzerland","France",null,null,null,"Inforthepain ",5,null,"Inforthepain ",6,null,null,"Hungary",3.5,null,"Poland",33,null,"Denmark",37.5]
[null,"Jokaero ","BudWiser ",1,0,2,1,0,1,2,2,3,2,"Switzerland","France",null,null,null,"Faccko ",5,null,"sigu70 ",6,null,null,"Italy",3.5,null,"Hungary",32.5,null,"Sweden",36]
[null,"Domingo ","Topper ",0,1,0,1,2,2,3,1,1,1,"Poland","Denmark",null,null,null,"BiBi ",5,null,"jopotzuki ",6,null,null,"Norway",5.5,null,"Sweden",31.5,null,"Hungary",36]
[null,"Leonek ","SpecialOne ",0,1,0,1,2,2,1,2,2,2,"Poland","Denmark",null,null,null,"mynock ",5,null,"Alex05 ",6,null,null,"Poland",2.5,null,"Denmark",31,null,"Poland",35.5]
[null,"Mewash ","Niebling ",0,1,1,2,0,2,2,1,2,0,"Poland","Denmark",null,null,null,"jopotzuki ",5,null,"Goss ",5.5,null,null,"Scotland",4.5,null,"Scotland",29.5,null,"Scotland",34]
[null,"Reszka ","kfoged ",0.5,0.5,0,0,0,1,2,2,2,2,"Poland","Denmark",null,null,null,"Dragons ",5,null,"Faccko ",5.5,null,null,"Spain",4.5,null,"England",29,null,"Belgium",33.5]
[null,"Shawass ","MissSweden ",1,0,3,2,1,2,2,3,1,2,"Poland","Denmark",null,null,null,"BlackOrc ",5,null,"mynock ",5.5,null,null,"Sweden",4.5,null,"Belgium",29,null,"Germany",32.5]
[null,"Slimaq ","Jaqra ",0,1,0,2,1,0,1,2,2,3,"Poland","Denmark",null,null,null,"Phifoe ",5,null,"Itzla ",5.5,null,null,"Switzerland",5.5,null,"Germany",27,null,"England",32.5]
[null,"Warrior1980 ","Tripleskull ",0.5,0.5,3,3,1,1,2,0,0,2,"Poland","Denmark",null,null,null,"Skuld ",5,null,"Skuld ",5.5,null,null,"Viking",1.5,null,"Spain",25.5,null,"Wales",31]
[null,"Juniooor7 ","Tank ",0.5,0.5,2,2,3,2,3,0,2,3,"Poland","Denmark",null,null,null,"sann0638 ",5,null,"SpecialOne ",5.5,null,null,"Wales",7.5,null,"Wales",23.5,null,"Spain",30]
[null,"Woete ","Inforthepain ",0,1,1,2,3,2,2,0,1,2,"Belgium","Sweden",null,null,null,"Elrik ",5,null,"Tactel ",5.5]
[null,"Malodoror ","Dragons ",1,0,3,1,2,1,0,2,0,1,"Belgium","Sweden",null,null,null,"Tactel ",5,null,"sann0638 ",5.5]
[null,"Phoenix11 ","Skuld ",0.5,0.5,2,2,2,1,2,1,1,1,"Belgium","Sweden",null,null,null,"Alex05 ",5,null,"Elrik ",5.5]
[null,"Dekra1979 ","Pellevin ",0,1,1,2,1,2,0,2,1,3,"Belgium","Sweden",null,null,null,"Beppe ",4.5,null,"Liam ",5.5]
[null,"gninocker ","Melisqus ",1,0,1,0,3,2,2,3,3,1,"Belgium","Sweden",null,null,null,"Mufflo ",4.5,null,"Dragons ",5]
[null,"JJ ","JohnnyD ",0,1,2,3,2,1,1,0,0,0,"Belgium","Sweden",null,null,null,"Goss ",4.5,null,"Malodoror ",5]
[null,"Araznaroth ","Pidpad ",1,0,3,1,2,1,2,1,2,0,"Belgium","Sweden",null,null,null,"Arioso ",4.5,null,"BlackOrc ",5]
[null,"Driesfield ","Skoberget ",0.5,0.5,1,1,0,3,1,1,2,1,"Belgium","Sweden",null,null,null,"ratogre ",4.5,null,"Gros Nain ",5]
[null,"jopotzuki ","BlackOrc ",1,0,3,0,0,2,0,2,0,3,"Finland","Hungary",null,null,null,"edheim ",4.5,null,"Phifoe ",5]
[null,"ratogre ","Alex05 ",0,1,0,1,1,1,0,1,3,0,"Finland","Hungary",null,null,null,"SpecialOne ",4.5,null,"20Phoenix ",5]
[null,"edheim ","Itzla ",0,1,0,3,1,0,3,2,0,2,"Finland","Hungary",null,null,null,"Itzla ",4.5,null,"Joemanji ",5]
[null,"BeerBeer ","noraal ",0,1,0,2,3,2,2,1,2,2,"Finland","Hungary",null,null,null,"Joemanji ",4.5,null,"Corwin ",5]
[null,"valkohukka ","Favi ",1,0,3,1,2,2,1,1,3,2,"Finland","Hungary",null,null,null,"Woete ",4.5,null,"noraal ",5]
[null,"MacWitt ","cz ",1,0,1,0,0,1,1,3,2,2,"Finland","Hungary",null,null,null,"Corwin ",4.5,null,"Pellevin ",5]
[null,"J-Ho","swifty ",0.5,0.5,2,2,2,1,0,3,2,2,"Finland","Hungary",null,null,null,"Liam ",4.5,null,"GreatWhiteHope ",4.5]
[null,"Harza ","Wolio ",1,0,2,1,1,3,2,1,2,0,"Finland","Hungary",null,null,null,"GreatWhiteHope ",4,null,"Arioso ",4.5]
[null,"Joemanji ","mynock ",0.5,0.5,1,1,3,0,2,2,2,2,"England","Norway",null,null,null,"Malodoror ",4,null,"Mufflo ",4.5]
[null,"Mubo ","GreatWhiteHope ",0.5,0.5,0,0,1,0,2,3,1,1,"England","Norway",null,null,null,"Gros Nain ",4,null,"Beppe ",4.5]
[null,"Lycos ","zulu ",0.5,0.5,1,1,3,1,1,3,3,2,"England","Norway",null,null,null,"Bouzzy ",4,null,"Bouzzy ",4.5]
[null,"PurpleGoo ","straume ",0,1,0,1,2,2,1,1,3,2,"England","Norway",null,null,null,"MadeofWelsh ",4,null,"edheim ",4.5]
[null,"Geggster ","The_Ref ",0.5,0.5,0,0,0,1,2,2,1,1,"England","Norway",null,null,null,"Leonek ",4,null,"ratogre ",4.5]
[null,"Wilzif ","Endalos ",0.5,0.5,1,1,1,0,1,1,0,3,"England","Norway",null,null,null,"Spartako ",4,null,"MadeofWelsh ",4.5]
[null,"Podfrey ","FrankPedersen ",1,0,3,2,1,2,0,3,2,3,"England","Norway",null,null,null,"Mubo ",4,null,"Niebling ",4.5]
[null,"JimJimany ","bothun ",0,1,1,3,1,3,3,2,1,2,"England","Norway",null,null,null,"20Phoenix ",4,null,"straume ",4.5]
[null,"MadeofWelsh ","Faccko ",0.5,0.5,2,2,0,3,2,3,0,1,"Wales","Viking",null,null,null,"Idroj ",4,null,"Woete ",4.5]
[null,"20Phoenix ","Mufflo ",1,0,3,0,1,0,0,3,1,2,"Wales","Viking",null,null,null,"Duckwing ",4,null,"Mubo ",4.5]
[null,"Ploppy_McPloppy ","Corwin ",0.5,0.5,1,1,0,1,2,3,1,0,"Wales","Viking",null,null,null,"BeerBeer ",4,null,"DocMaxx ",4.5]
[null,"Dionysian ","Duckwing ",1,0,3,2,1,2,3,1,0,2,"Wales","Viking",null,null,null,"Pellevin ",4,null,"valkohukka ",4.5]
[null,"SFisher91 ","Bernuz ",1,0,2,0,1,2,0,1,1,2,"Wales","Viking",null,null,null,"Mewash ",4,null,"Kaltenland ",4.5]
[null,"nonumber ","brocCooli ",1,0,3,2,2,1,2,2,0,3,"Wales","Viking",null,null,null,"noraal ",4,null,"Shawass ",4.5]
[null,"andydavo ","Balder ",1,0,1,0,1,3,2,1,2,3,"Wales","Viking",null,null,null,"Melisqus ",4,null,"MacWitt ",4.5]
[null,"Northernknight ","Purrelito ",0.5,0.5,1,1,1,0,1,1,2,3,"Wales","Viking",null,null,null,"Harti ",4,null,"Phoenix11 ",4.5]
[null,"Arioso ","Verrinho ",0,1,1,3,1,2,1,1,3,3,"Germany","Italy",null,null,null,"Bernuz ",4,null,"zulu ",4.5]
[null,"DocMaxx ","Beppe ",1,0,3,2,3,1,1,0,1,2,"Germany","Italy",null,null,null,"zulu ",4,null,"Candlejack ",4.5]
[null,"Muadib ","Liam ",0,1,1,3,3,3,1,2,0,2,"Germany","Italy",null,null,null,"Justicium ",4,null,"Justicium ",4.5]
[null,"Candlejack ","Spartako ",1,0,2,0,2,0,0,1,2,1,"Germany","Italy",null,null,null,"Phoenix11 ",4,null,"Simon_ACP ",4.5]
[null,"Prince ","Matte8 ",0.5,0.5,1,1,1,3,2,0,1,1,"Germany","Italy",null,null,null,"Simon_ACP ",4,null,"Idroj ",4]
[null,"Jonny_Kanone ","Kaltenland ",0,1,1,2,3,2,2,1,2,3,"Germany","Italy",null,null,null,"straume ",3.5,null,"Leonek ",4]
[null,"Gaunab ","Dirold ",1,0,2,1,2,0,2,3,3,1,"Germany","Italy",null,null,null,"Niebling ",3.5,null,"Reszka ",4]
[null,"RoterSternHochdahl","Farina ",1,0,2,1,1,2,0,2,2,2,"Germany","Italy",null,null,null,"Reszka ",3.5,null,"kfoged ",4]
[null,"Tactel ","DonShula ",0.5,0.5,2,2,2,1,2,0,1,2,"Spain","Scotland",null,null,null,"Matt le fou ",3.5,null,"Dark Duke ",4]
[null,"Idroj ","Garrick ",0,1,1,3,1,1,3,2,2,2,"Spain","Scotland",null,null,null,"Matte8 ",3.5,null,"Spartako ",4]
[null,"Dark Duke ","sann0638 ",0.5,0.5,2,2,2,2,3,1,3,2,"Spain","Scotland",null,null,null,"brocCooli ",3.5,null,"BeerBeer ",4]
[null,"Obeliz ","Loki ",0.5,0.5,2,2,0,1,1,2,2,2,"Spain","Scotland",null,null,null,"DocMaxx ",3.5,null,"Matte8 ",4]
[null,"Barry ","HumptyTrump ",1,0,3,1,2,1,2,1,2,0,"Spain","Scotland",null,null,null,"Muadib ",3.5,null,"The_Ref ",4]
[null,"Malasnoticias ","Purdindas ",0.5,0.5,2,2,2,0,2,1,0,1,"Spain","Scotland",null,null,null,"valkohukka ",3.5,null,"Melisqus ",4]
[null,"Joanet ","Valen ",0.5,0.5,3,3,1,2,2,2,2,2,"Spain","Scotland",null,null,null,"The_Ref ",3.5,null,"Strider84 ",4]
[null,"Duke_Luthor_Von_Hawkfire ","JamesEs ",0.5,0.5,1,1,2,1,2,3,0,1,"Spain","Scotland",null,null,null,"kfoged ",3.5,null,"Macabeo ",4]
[null,null,null,null,null,null,null,null,null,null,null,null,null,null,null,null,null,null,"Macabeo ",3.5,null,"Mewash ",4]
[null,null,null,null,null,null,null,null,null,null,null,null,null,null,null,null,null,null,"MacWitt ",3.5,null,"Duckwing ",4]
[null,null,null,null,null,null,null,null,null,null,null,null,null,null,null,null,null,null,"Kaltenland ",3.5,null,"Harti ",4]
[null,null,null,null,null,null,null,null,null,null,null,null,null,null,null,null,null,null,"Dark Duke ",3.5,null,"gninocker ",4]
[null,null,null,null,null,null,null,null,null,null,null,null,null,null,null,null,null,null,"Shawass ",3.5,null,"Ploppy_McPloppy ",4]
[null,null,null,null,null,null,null,null,null,null,null,null,null,null,null,null,null,null,"MissSweden ",3.5,null,"Bernuz ",4]
[null,null,null,null,null,null,null,null,null,null,null,null,null,null,null,null,null,null,"Endalos ",3.5,null,"Endalos ",4]
[null,null,null,null,null,null,null,null,null,null,null,null,null,null,null,null,null,null,"Dirold ",3.5,null,"Dionysian ",4]
[null,null,null,null,null,null,null,null,null,null,null,null,null,null,null,null,null,null,"Loki ",3.5,null,"Jaqra ",4]
[null,null,null,null,null,null,null,null,null,null,null,null,null,null,null,null,null,null,"Ploppy_McPloppy ",3.5,null,"Loki ",4]
[null,null,null,null,null,null,null,null,null,null,null,null,null,null,null,null,null,null,"Candlejack ",3.5,null,"Araznaroth ",4]
[null,null,null,null,null,null,null,null,null,null,null,null,null,null,null,null,null,null,"Balder ",3.5,null,"bothun ",4]
[null,null,null,null,null,null,null,null,null,null,null,null,null,null,null,null,null,null,"Lycos ",3,null,"Lycos ",3.5]
[null,null,null,null,null,null,null,null,null,null,null,null,null,null,null,null,null,null,"Dekra1979 ",3,null,"Barry ",3.5]
[null,null,null,null,null,null,null,null,null,null,null,null,null,null,null,null,null,null,"Madmatt13 ",3,null,"Muadib ",3.5]
[null,null,null,null,null,null,null,null,null,null,null,null,null,null,null,null,null,null,"Strider84 ",3,null,"Matt le fou ",3.5]
[null,null,null,null,null,null,null,null,null,null,null,null,null,null,null,null,null,null,"FrankPedersen ",3,null,"Madmatt13 ",3.5]
[null,null,null,null,null,null,null,null,null,null,null,null,null,null,null,null,null,null,"gninocker ",3,null,"brocCooli ",3.5]
[null,null,null,null,null,null,null,null,null,null,null,null,null,null,null,null,null,null,"Jaqra ",3,null,"MissSweden ",3.5]
[null,null,null,null,null,null,null,null,null,null,null,null,null,null,null,null,null,null,"Dionysian ",3,null,"Podfrey ",3.5]
[null,null,null,null,null,null,null,null,null,null,null,null,null,null,null,null,null,null,"PurpleGoo ",3,null,"Gaunab ",3.5]
[null,null,null,null,null,null,null,null,null,null,null,null,null,null,null,null,null,null,"Obeliz ",3,null,"Geggster ",3.5]
[null,null,null,null,null,null,null,null,null,null,null,null,null,null,null,null,null,null,"Prince ",3,null,"Obeliz ",3.5]
[null,null,null,null,null,null,null,null,null,null,null,null,null,null,null,null,null,null,"Favi ",3,null,"Dirold ",3.5]
[null,null,null,null,null,null,null,null,null,null,null,null,null,null,null,null,null,null,"Geggster ",3,null,"SFisher91 ",3.5]
[null,null,null,null,null,null,null,null,null,null,null,null,null,null,null,null,null,null,"JJ ",3,null,"Prince ",3.5]
[null,null,null,null,null,null,null,null,null,null,null,null,null,null,null,null,null,null,"Araznaroth ",3,null,"nonumber ",3.5]
[null,null,null,null,null,null,null,null,null,null,null,null,null,null,null,null,null,null,"Slimaq ",3,null,"Wilzif ",3.5]
[null,null,null,null,null,null,null,null,null,null,null,null,null,null,null,null,null,null,"Wilzif ",3,null,"Balder ",3.5]
[null,null,null,null,null,null,null,null,null,null,null,null,null,null,null,null,null,null,"bothun ",3,null,"Jokaero ",3.5]
[null,null,null,null,null,null,null,null,null,null,null,null,null,null,null,null,null,null,"Barry ",2.5,null,"Dekra1979 ",3]
[null,null,null,null,null,null,null,null,null,null,null,null,null,null,null,null,null,null,"cz ",2.5,null,"Warrior1980 ",3]
[null,null,null,null,null,null,null,null,null,null,null,null,null,null,null,null,null,null,"Warrior1980 ",2.5,null,"Malasnoticias ",3]
[null,null,null,null,null,null,null,null,null,null,null,null,null,null,null,null,null,null,"Malasnoticias ",2.5,null,"PurpleGoo ",3]
[null,null,null,null,null,null,null,null,null,null,null,null,null,null,null,null,null,null,"HumptyTrump ",2.5,null,"andydavo ",3]
[null,null,null,null,null,null,null,null,null,null,null,null,null,null,null,null,null,null,"swifty ",2.5,null,"FrankPedersen ",3]
[null,null,null,null,null,null,null,null,null,null,null,null,null,null,null,null,null,null,"Jonny_Kanone ",2.5,null,"Harza ",3]
[null,null,null,null,null,null,null,null,null,null,null,null,null,null,null,null,null,null,"Podfrey ",2.5,null,"Favi ",3]
[null,null,null,null,null,null,null,null,null,null,null,null,null,null,null,null,null,null,"SFisher91 ",2.5,null,"swifty ",3]
[null,null,null,null,null,null,null,null,null,null,null,null,null,null,null,null,null,null,"Gaunab ",2.5,null,"JJ ",3]
[null,null,null,null,null,null,null,null,null,null,null,null,null,null,null,null,null,null,"Joanet ",2.5,null,"Slimaq ",3]
[null,null,null,null,null,null,null,null,null,null,null,null,null,null,null,null,null,null,"Jokaero ",2.5,null,"Purrelito ",3]
[null,null,null,null,null,null,null,null,null,null,null,null,null,null,null,null,null,null,"Purrelito ",2.5,null,"Joanet ",3]
[null,null,null,null,null,null,null,null,null,null,null,null,null,null,null,null,null,null,"Wolio ",2.5,null,"RoterSternHochdahl",3]
[null,null,null,null,null,null,null,null,null,null,null,null,null,null,null,null,null,null,"JimJimany ",2.5,null,"Tripleskull ",3]
[null,null,null,null,null,null,null,null,null,null,null,null,null,null,null,null,null,null,"nonumber ",2.5,null,"J-Ho",3]
[null,null,null,null,null,null,null,null,null,null,null,null,null,null,null,null,null,null,"Farina ",2.5,null,"JohnnyD ",3]
[null,null,null,null,null,null,null,null,null,null,null,null,null,null,null,null,null,null,"J-Ho",2.5,null,"cz ",2.5]
[null,null,null,null,null,null,null,null,null,null,null,null,null,null,null,null,null,null,"Tripleskull ",2.5,null,"Tank ",2.5]
[null,null,null,null,null,null,null,null,null,null,null,null,null,null,null,null,null,null,"Tank ",2,null,"Purdindas ",2.5]
[null,null,null,null,null,null,null,null,null,null,null,null,null,null,null,null,null,null,"Harza ",2,null,"Jonny_Kanone ",2.5]
[null,null,null,null,null,null,null,null,null,null,null,null,null,null,null,null,null,null,"Purdindas ",2,null,"HumptyTrump ",2.5]
[null,null,null,null,null,null,null,null,null,null,null,null,null,null,null,null,null,null,"andydavo ",2,null,"Juniooor7 ",2.5]
[null,null,null,null,null,null,null,null,null,null,null,null,null,null,null,null,null,null,"Juniooor7 ",2,null,"JimJimany ",2.5]
[null,null,null,null,null,null,null,null,null,null,null,null,null,null,null,null,null,null,"RoterSternHochdahl",2,null,"Wolio ",2.5]
[null,null,null,null,null,null,null,null,null,null,null,null,null,null,null,null,null,null,"BudWiser ",2,null,"Farina ",2.5]
[null,null,null,null,null,null,null,null,null,null,null,null,null,null,null,null,null,null,"JohnnyD ",2,null,"Skoberget ",2]
[null,null,null,null,null,null,null,null,null,null,null,null,null,null,null,null,null,null,"Pidpad ",1.5,null,"BudWiser ",2]
[null,null,null,null,null,null,null,null,null,null,null,null,null,null,null,null,null,null,"Skoberget ",1.5,null,"Valen ",2]
[null,null,null,null,null,null,null,null,null,null,null,null,null,null,null,null,null,null,"Valen ",1.5,null,"Driesfield ",2]
[null,null,null,null,null,null,null,null,null,null,null,null,null,null,null,null,null,null,"Driesfield ",1.5,null,"Pidpad ",1.5]
[null,null,null,null,null,null,null,null,null,null,null,null,null,null,null,null,null,null,"JamesEs ",1,null,"JamesEs ",1.5]
[null,null,null,null,null,null,null,null,null,null,null,null,null,null,null,null,null,null,"Northernknight ",1,null,"Northernknight ",1.5]
[null,null,null,null,null,null,null,null,null,null,null,null,null,null,null,null,null,null,"Duke_Luthor_Von_Hawkfire ",0.5,null,"Duke_Luthor_Von_Hawkfire ",1]

{"sheet":"Round9","index":17,"n_rows":0,"n_cols":0,"rows_kept":0,"cut":false,"hidden":false,"merged":[]}

{"sheet":"NAF","index":18,"n_rows":861,"n_cols":1,"rows_kept":861,"cut":false,"hidden":false,"merged":[]}
["<?xml version=\"1.0\" encoding=\"UTF-8\"?>"]
["<nafReport xmlns:blo=\"http://www.bloodbowl.net\">"]
["<organiser>Mike</organiser>"]
["<coaches>"]
["<coach>"]
["<name>Alex</name>"]
["<number>16761</number>"]
["<team>Skaven</team>"]
["</coach>"]
["<coach>"]
["<name>Mike</name>"]
["<number>10468</number>"]
["<team>Elves</team>"]
["</coach>"]
["<coach>"]
["<name>Linus</name>"]
["<number>15676</number>"]
["<team>Dwarves</team>"]
["</coach>"]
["<coach>"]
["<name>Player4</name>"]
["<number>9106</number>"]
["<team>Wood Elves</team>"]
["</coach>"]
["<coach>"]
["<name>Player5</name>"]
["<number>12789</number>"]
["<team>Dark Elves</team>"]
["</coach>"]
["<coach>"]
["<name>Player6</name>"]
["<number>18136</number>"]
["<team>Wood Elves</team>"]
["</coach>"]
["<coach>"]
["<name>Player7</name>"]
["<number>9672</number>"]
["<team>Wood Elves</team>"]
["</coach>"]
["<coach>"]
["<name>Player8</name>"]
["<number>4118</number>"]
["<team>Chaos Dwarves</team>"]
["</coach>"]
["<coach>"]
["<name>Player9</name>"]
["<number>14129</number>"]
["<team>Nurgle's Rotters</team>"]
["</coach>"]
["<coach>"]
["<name>Player10</name>"]
["<number>1739</number>"]
["<team>Lizardmen</team>"]
["</coach>"]
["<coach>"]
["<name>Player11</name>"]
["<number>19602</number>"]
["<team>Slann</team>"]
["</coach>"]
["<coach>"]
["<name>Player12</name>"]
["<number>15064</number>"]
["<team>Wood Elves</team>"]
["</coach>"]
["<coach>"]
["<name>Player13</name>"]
["<number>6092</number>"]
["<team>Amazons</team>"]
["</coach>"]
["<coach>"]
["<name>Player14</name>"]
["<number>9080</number>"]
["<team>Dwarves</team>"]
["</coach>"]
["<coach>"]
["<name>Player15</name>"]
["<number>7960</number>"]
["<team>Undead</team>"]
["</coach>"]
["<coach>"]
["<name>Player16</name>"]
["<number>15062</number>"]
["<team>Goblins</team>"]
["</coach>"]
["<coach>"]
["<name>Player17</name>"]
["<number>7106</number>"]
["<team>Wood Elves</team>"]
["</coach>"]
["<coach>"]
["<name>Player18</name>"]
["<number>7371</number>"]
["<team>Khemri</team>"]
["</coach>"]
["</coaches>"]
["<game>"]
["<timestamp>2016-09-18 01:00</timestamp>"]
["<playerRecord>"]
["<name>Player7</name>"]
["<number>9672</number>"]
["<teamRating>100</teamRating>"]
["<touchDowns>12</touchDowns>"]
["<badlyHurt>2</badlyHurt>"]
["</playerRecord>"]
["<playerRecord>"]
["<name>Player9</name>"]
["<number>14129</number>"]
["<teamRating>100</teamRating>"]
["<touchDowns>7</touchDowns>"]
["<badlyHurt>1</badlyHurt>"]
["</playerRecord>"]
["</game>"]
["<game>"]
["<timestamp>2016-09-18 01:00</timestamp>"]
["<playerRecord>"]
["<name>Player6</name>"]
["<number>18136</number>"]
["<teamRating>100</teamRating>"]
["<touchDowns>12</touchDowns>"]
["<badlyHurt>2</badlyHurt>"]
["</playerRecord>"]
["<playerRecord>"]
["<name>Player11</name>"]
["<number>19602</number>"]
["<teamRating>100</teamRating>"]
["<touchDowns>12</touchDowns>"]
["<badlyHurt>2</badlyHurt>"]
["</playerRecord>"]
["</game>"]
["<game>"]
["<timestamp>2016-09-18 01:00</timestamp>"]
["<playerRecord>"]
["<name>Player17</name>"]
["<number>7106</number>"]
["<teamRating>100</teamRating>"]
["<touchDowns>10</touchDowns>"]
["<badlyHurt>2</badlyHurt>"]
["</playerRecord>"]
["<playerRecord>"]
["<name>Player13</name>"]
["<number>6092</number>"]
["<teamRating>100</teamRating>"]
["<touchDowns>8</touchDowns>"]
["<badlyHurt>2</badlyHurt>"]
["</playerRecord>"]
["</game>"]
["<game>"]
["<timestamp>2016-09-18 01:00</timestamp>"]
["<playerRecord>"]
["<name>Player8</name>"]
["<number>4118</number>"]
["<teamRating>100</teamRating>"]
["<touchDowns>3</touchDowns>"]
["<badlyHurt>1</badlyHurt>"]
["</playerRecord>"]
["<playerRecord>"]
["<name>Linus</name>"]
["<number>15676</number>"]
["<teamRating>100</teamRating>"]
["<touchDowns>16</touchDowns>"]
["<badlyHurt>3</badlyHurt>"]
["</playerRecord>"]
["</game>"]
["<game>"]
["<timestamp>2016-09-18 01:00</timestamp>"]
["<playerRecord>"]
["<name>Player14</name>"]
["<number>9080</number>"]
["<teamRating>100</teamRating>"]
["<touchDowns>9</touchDowns>"]
["<badlyHurt>1</badlyHurt>"]
["</playerRecord>"]
["<playerRecord>"]
["<name>Player10</name>"]
["<number>1739</number>"]
["<teamRating>100</teamRating>"]
["<touchDowns>11</touchDowns>"]
["<badlyHurt>2</badlyHurt>"]
["</playerRecord>"]
["</game>"]
["<game>"]
["<timestamp>2016-09-18 01:00</timestamp>"]
["<playerRecord>"]
["<name>Mike</name>"]
["<number>10468</number>"]
["<teamRating>100</teamRating>"]
["<touchDowns>4</touchDowns>"]
["<badlyHurt>0</badlyHurt>"]
["</playerRecord>"]
["<playerRecord>"]
["<name>Player5</name>"]
["<number>12789</number>"]
["<teamRating>100</teamRating>"]
["<touchDowns>17</touchDowns>"]
["<badlyHurt>2</badlyHurt>"]
["</playerRecord>"]
["</game>"]
["<game>"]
["<timestamp>2016-09-18 01:00</timestamp>"]
["<playerRecord>"]
["<name>Player15</name>"]
["<number>7960</number>"]
["<teamRating>100</teamRating>"]
["<touchDowns>7</touchDowns>"]
["<badlyHurt>0</badlyHurt>"]
["</playerRecord>"]
["<playerRecord>"]
["<name>Player16</name>"]
["<number>15062</number>"]
["<teamRating>100</teamRating>"]
["<touchDowns>8</touchDowns>"]
["<badlyHurt>0</badlyHurt>"]
["</playerRecord>"]
["</game>"]
["<game>"]
["<timestamp>2016-09-18 01:00</timestamp>"]
["<playerRecord>"]
["<name>Player18</name>"]
["<number>7371</number>"]
["<teamRating>100</teamRating>"]
["<touchDowns>14</touchDowns>"]
["<badlyHurt>2</badlyHurt>"]
["</playerRecord>"]
["<playerRecord>"]
["<name>Player12</name>"]
["<number>15064</number>"]
["<teamRating>100</teamRating>"]
["<touchDowns>6</touchDowns>"]
["<badlyHurt>0</badlyHurt>"]
["</playerRecord>"]
["</game>"]
["<game>"]
["<timestamp>2016-09-18 01:00</timestamp>"]
["<playerRecord>"]
["<name>Alex</name>"]
["<number>16761</number>"]
["<teamRating>100</teamRating>"]
["<touchDowns>11</touchDowns>"]
["<badlyHurt>3</badlyHurt>"]
["</playerRecord>"]
["<playerRecord>"]
["<name>Player4</name>"]
["<number>9106</number>"]
["<teamRating>100</teamRating>"]
["<touchDowns>7</touchDowns>"]
["<badlyHurt>2</badlyHurt>"]
["</playerRecord>"]
["</game>"]
["<game>"]
["<timestamp>2016-09-18 02:00</timestamp>"]
["<playerRecord>"]
["<name>Player5</name>"]
["<number>12789</number>"]
["<teamRating>100</teamRating>"]
["<touchDowns>13</touchDowns>"]
["<badlyHurt>1</badlyHurt>"]
["</playerRecord>"]
["<playerRecord>"]
["<name>Linus</name>"]
["<number>15676</number>"]
["<teamRating>100</teamRating>"]
["<touchDowns>3</touchDowns>"]
["<badlyHurt>0</badlyHurt>"]
["</playerRecord>"]
["</game>"]
["<game>"]
["<timestamp>2016-09-18 02:00</timestamp>"]
["<playerRecord>"]
["<name>Player18</name>"]
["<number>7371</number>"]
["<teamRating>100</teamRating>"]
["<touchDowns>11</touchDowns>"]
["<badlyHurt>3</badlyHurt>"]
["</playerRecord>"]
["<playerRecord>"]
["<name>Player7</name>"]
["<number>9672</number>"]
["<teamRating>100</teamRating>"]
["<touchDowns>6</touchDowns>"]
["<badlyHurt>2</badlyHurt>"]
["</playerRecord>"]
["</game>"]
["<game>"]
["<timestamp>2016-09-18 02:00</timestamp>"]
["<playerRecord>"]
["<name>Player6</name>"]
["<number>18136</number>"]
["<teamRating>100</teamRating>"]
["<touchDowns>10</touchDowns>"]
["<badlyHurt>2</badlyHurt>"]
["</playerRecord>"]
["<playerRecord>"]
["<name>Player10</name>"]
["<number>1739</number>"]
["<teamRating>100</teamRating>"]
["<touchDowns>5</touchDowns>"]
["<badlyHurt>1</badlyHurt>"]
["</playerRecord>"]
["</game>"]
["<game>"]
["<timestamp>2016-09-18 02:00</timestamp>"]
["<playerRecord>"]
["<name>Player11</name>"]
["<number>19602</number>"]
["<teamRating>100</teamRating>"]
["<touchDowns>9</touchDowns>"]
["<badlyHurt>1</badlyHurt>"]
["</playerRecord>"]
["<playerRecord>"]
["<name>Alex</name>"]
["<number>16761</number>"]
["<teamRating>100</teamRating>"]
["<touchDowns>16</touchDowns>"]
["<badlyHurt>3</badlyHurt>"]
["</playerRecord>"]
["</game>"]
["<game>"]
["<timestamp>2016-09-18 02:00</timestamp>"]
["<playerRecord>"]
["<name>Player17</name>"]
["<number>7106</number>"]
["<teamRating>100</teamRating>"]
["<touchDowns>15</touchDowns>"]
["<badlyHurt>2</badlyHurt>"]
["</playerRecord>"]
["<playerRecord>"]
["<name>Player14</name>"]
["<number>9080</number>"]
["<teamRating>100</teamRating>"]
["<touchDowns>4</touchDowns>"]
["<badlyHurt>1</badlyHurt>"]
["</playerRecord>"]
["</game>"]
["<game>"]
["<timestamp>2016-09-18 02:00</timestamp>"]
["<playerRecord>"]
["<name>Player13</name>"]
["<number>6092</number>"]
["<teamRating>100</teamRating>"]
["<touchDowns>10</touchDowns>"]
["<badlyHurt>1</badlyHurt>"]
["</playerRecord>"]
["<playerRecord>"]
["<name>Player16</name>"]
["<number>15062</number>"]
["<teamRating>100</teamRating>"]
["<touchDowns>9</touchDowns>"]
["<badlyHurt>1</badlyHurt>"]
["</playerRecord>"]
["</game>"]
["<game>"]
["<timestamp>2016-09-18 02:00</timestamp>"]
["<playerRecord>"]
["<name>Player15</name>"]
["<number>7960</number>"]
["<teamRating>100</teamRating>"]
["<touchDowns>16</touchDowns>"]
["<badlyHurt>2</badlyHurt>"]
["</playerRecord>"]
["<playerRecord>"]
["<name>Player9</name>"]
["<number>14129</number>"]
["<teamRating>100</teamRating>"]
["<touchDowns>7</touchDowns>"]
["<badlyHurt>1</badlyHurt>"]
["</playerRecord>"]
["</game>"]
["<game>"]
["<timestamp>2016-09-18 02:00</timestamp>"]
["<playerRecord>"]
["<name>Player4</name>"]
["<number>9106</number>"]
["<teamRating>100</teamRating>"]
["<touchDowns>10</touchDowns>"]
["<badlyHurt>1</badlyHurt>"]
["</playerRecord>"]
["<playerRecord>"]
["<name>Player12</name>"]
["<number>15064</number>"]
["<teamRating>100</teamRating>"]
["<touchDowns>10</touchDowns>"]
["<badlyHurt>1</badlyHurt>"]
["</playerRecord>"]
["</game>"]
["<game>"]
["<timestamp>2016-09-18 02:00</timestamp>"]
["<playerRecord>"]
["<name>Mike</name>"]
["<number>10468</number>"]
["<teamRating>100</teamRating>"]
["<touchDowns>7</touchDowns>"]
["<badlyHurt>1</badlyHurt>"]
["</playerRecord>"]
["<playerRecord>"]
["<name>Player8</name>"]
["<number>4118</number>"]
["<teamRating>100</teamRating>"]
["<touchDowns>13</touchDowns>"]
["<badlyHurt>2</badlyHurt>"]
["</playerRecord>"]
["</game>"]
["<game>"]
["<timestamp>2016-09-18 03:00</timestamp>"]
["<playerRecord>"]
["<name>Player5</name>"]
["<number>12789</number>"]
["<teamRating>100</teamRating>"]
["<touchDowns>7</touchDowns>"]
["<badlyHurt>1</badlyHurt>"]
["</playerRecord>"]
["<playerRecord>"]
["<name>Alex</name>"]
["<number>16761</number>"]
["<teamRating>100</teamRating>"]
["<touchDowns>12</touchDowns>"]
["<badlyHurt>1</badlyHurt>"]
["</playerRecord>"]
["</game>"]
["<game>"]
["<timestamp>2016-09-18 03:00</timestamp>"]
["<playerRecord>"]
["<name>Player18</name>"]
["<number>7371</number>"]
["<teamRating>100</teamRating>"]
["<touchDowns>9</touchDowns>"]
["<badlyHurt>1</badlyHurt>"]
["</playerRecord>"]
["<playerRecord>"]
["<name>Player17</name>"]
["<number>7106</number>"]
["<teamRating>100</teamRating>"]
["<touchDowns>11</touchDowns>"]
["<badlyHurt>1</badlyHurt>"]
["</playerRecord>"]
["</game>"]
["<game>"]
["<timestamp>2016-09-18 03:00</timestamp>"]
["<playerRecord>"]
["<name>Player15</name>"]
["<number>7960</number>"]
["<teamRating>100</teamRating>"]
["<touchDowns>5</touchDowns>"]
["<badlyHurt>1</badlyHurt>"]
["</playerRecord>"]
["<playerRecord>"]
["<name>Player6</name>"]
["<number>18136</number>"]
["<teamRating>100</teamRating>"]
["<touchDowns>14</touchDowns>"]
["<badlyHurt>3</badlyHurt>"]
["</playerRecord>"]
["</game>"]
["<game>"]
["<timestamp>2016-09-18 03:00</timestamp>"]
["<playerRecord>"]
["<name>Player11</name>"]
["<number>19602</number>"]
["<teamRating>100</teamRating>"]
["<touchDowns>4</touchDowns>"]
["<badlyHurt>0</badlyHurt>"]
["</playerRecord>"]
["<playerRecord>"]
["<name>Linus</name>"]
["<number>15676</number>"]
["<teamRating>100</teamRating>"]
["<touchDowns>12</touchDowns>"]
["<badlyHurt>1</badlyHurt>"]
["</playerRecord>"]
["</game>"]
["<game>"]
["<timestamp>2016-09-18 03:00</timestamp>"]
["<playerRecord>"]
["<name>Player7</name>"]
["<number>9672</number>"]
["<teamRating>100</teamRating>"]
["<touchDowns>11</touchDowns>"]
["<badlyHurt>2</badlyHurt>"]
["</playerRecord>"]
["<playerRecord>"]
["<name>Player13</name>"]
["<number>6092</number>"]
["<teamRating>100</teamRating>"]
["<touchDowns>11</touchDowns>"]
["<badlyHurt>2</badlyHurt>"]
["</playerRecord>"]
["</game>"]
["<game>"]
["<timestamp>2016-09-18 03:00</timestamp>"]
["<playerRecord>"]
["<name>Player16</name>"]
["<number>15062</number>"]
["<teamRating>100</teamRating>"]
["<touchDowns>7</touchDowns>"]
["<badlyHurt>0</badlyHurt>"]
["</playerRecord>"]
["<playerRecord>"]
["<name>Player4</name>"]
["<number>9106</number>"]
["<teamRating>100</teamRating>"]
["<touchDowns>11</touchDowns>"]
["<badlyHurt>1</badlyHurt>"]
["</playerRecord>"]
["</game>"]
["<game>"]
["<timestamp>2016-09-18 03:00</timestamp>"]
["<playerRecord>"]
["<name>Player10</name>"]
["<number>1739</number>"]
["<teamRating>100</teamRating>"]
["<touchDowns>14</touchDowns>"]
["<badlyHurt>2</badlyHurt>"]
["</playerRecord>"]
["<playerRecord>"]
["<name>Player8</name>"]
["<number>4118</number>"]
["<teamRating>100</teamRating>"]
["<touchDowns>4</touchDowns>"]
["<badlyHurt>1</badlyHurt>"]
["</playerRecord>"]
["</game>"]
["<game>"]
["<timestamp>2016-09-18 03:00</timestamp>"]
["<playerRecord>"]
["<name>Player12</name>"]
["<number>15064</number>"]
["<teamRating>100</teamRating>"]
["<touchDowns>5</touchDowns>"]
["<badlyHurt>0</badlyHurt>"]
["</playerRecord>"]
["<playerRecord>"]
["<name>Player9</name>"]
["<number>14129</number>"]
["<teamRating>100</teamRating>"]
["<touchDowns>13</touchDowns>"]
["<badlyHurt>1</badlyHurt>"]
["</playerRecord>"]
["</game>"]
["<game>"]
["<timestamp>2016-09-18 03:00</timestamp>"]
["<playerRecord>"]
["<name>Player14</name>"]
["<number>9080</number>"]
["<teamRating>100</teamRating>"]
["<touchDowns>10</touchDowns>"]
["<badlyHurt>1</badlyHurt>"]
["</playerRecord>"]
["<playerRecord>"]
["<name>Mike</name>"]
["<number>10468</number>"]
["<teamRating>100</teamRating>"]
["<touchDowns>9</touchDowns>"]
["<badlyHurt>1</badlyHurt>"]
["</playerRecord>"]
["</game>"]
["<game>"]
["<timestamp>2016-09-18 04:00</timestamp>"]
["<playerRecord>"]
["<name>Alex</name>"]
["<number>16761</number>"]
["<teamRating>100</teamRating>"]
["<touchDowns>9</touchDowns>"]
["<badlyHurt>2</badlyHurt>"]
["</playerRecord>"]
["<playerRecord>"]
["<name>Player6</name>"]
["<number>18136</number>"]
["<teamRating>100</teamRating>"]
["<touchDowns>12</touchDowns>"]
["<badlyHurt>3</badlyHurt>"]
["</playerRecord>"]
["</game>"]
["<game>"]
["<timestamp>2016-09-18 04:00</timestamp>"]
["<playerRecord>"]
["<name>Player5</name>"]
["<number>12789</number>"]
["<teamRating>100</teamRating>"]
["<touchDowns>12</touchDowns>"]
["<badlyHurt>1</badlyHurt>"]
["</playerRecord>"]
["<playerRecord>"]
["<name>Player17</name>"]
["<number>7106</number>"]
["<teamRating>100</teamRating>"]
["<touchDowns>4</touchDowns>"]
["<badlyHurt>0</badlyHurt>"]
["</playerRecord>"]
["</game>"]
["<game>"]
["<timestamp>2016-09-18 04:00</timestamp>"]
["<playerRecord>"]
["<name>Player18</name>"]
["<number>7371</number>"]
["<teamRating>100</teamRating>"]
["<touchDowns>16</touchDowns>"]
["<badlyHurt>2</badlyHurt>"]
["</playerRecord>"]
["<playerRecord>"]
["<name>Linus</name>"]
["<number>15676</number>"]
["<teamRating>100</teamRating>"]
["<touchDowns>8</touchDowns>"]
["<badlyHurt>1</badlyHurt>"]
["</playerRecord>"]
["</game>"]
["<game>"]
["<timestamp>2016-09-18 04:00</timestamp>"]
["<playerRecord>"]
["<name>Player10</name>"]
["<number>1739</number>"]
["<teamRating>100</teamRating>"]
["<touchDowns>5</touchDowns>"]
["<badlyHurt>0</badlyHurt>"]
["</playerRecord>"]
["<playerRecord>"]
["<name>Player13</name>"]
["<number>6092</number>"]
["<teamRating>100</teamRating>"]
["<touchDowns>15</touchDowns>"]
["<badlyHurt>3</badlyHurt>"]
["</playerRecord>"]
["</game>"]
["<game>"]
["<timestamp>2016-09-18 04:00</timestamp>"]
["<playerRecord>"]
["<name>Player7</name>"]
["<number>9672</number>"]
["<teamRating>100</teamRating>"]
["<touchDowns>11</touchDowns>"]
["<badlyHurt>2</badlyHurt>"]
["</playerRecord>"]
["<playerRecord>"]
["<name>Player4</name>"]
["<number>9106</number>"]
["<teamRating>100</teamRating>"]
["<touchDowns>7</touchDowns>"]
["<badlyHurt>1</badlyHurt>"]
["</playerRecord>"]
["</game>"]
["<game>"]
["<timestamp>2016-09-18 04:00</timestamp>"]
["<playerRecord>"]
["<name>Player15</name>"]
["<number>7960</number>"]
["<teamRating>100</teamRating>"]
["<touchDowns>16</touchDowns>"]
["<badlyHurt>3</badlyHurt>"]
["</playerRecord>"]
["<playerRecord>"]
["<name>Player11</name>"]
["<number>19602</number>"]
["<teamRating>100</teamRating>"]
["<touchDowns>8</touchDowns>"]
["<badlyHurt>1</badlyHurt>"]
["</playerRecord>"]
["</game>"]
["<game>"]
["<timestamp>2016-09-18 04:00</timestamp>"]
["<playerRecord>"]
["<name>Player9</name>"]
["<number>14129</number>"]
["<teamRating>100</teamRating>"]
["<touchDowns>13</touchDowns>"]
["<badlyHurt>2</badlyHurt>"]
["</playerRecord>"]
["<playerRecord>"]
["<name>Player16</name>"]
["<number>15062</number>"]
["<teamRating>100</teamRating>"]
["<touchDowns>9</touchDowns>"]
["<badlyHurt>1</badlyHurt>"]
["</playerRecord>"]
["</game>"]
["<game>"]
["<timestamp>2016-09-18 04:00</timestamp>"]
["<playerRecord>"]
["<name>Player14</name>"]
["<number>9080</number>"]
["<teamRating>100</teamRating>"]
["<touchDowns>17</touchDowns>"]
["<badlyHurt>3</badlyHurt>"]
["</playerRecord>"]
["<playerRecord>"]
["<name>Player8</name>"]
["<number>4118</number>"]
["<teamRating>100</teamRating>"]
["<touchDowns>6</touchDowns>"]
["<badlyHurt>1</badlyHurt>"]
["</playerRecord>"]
["</game>"]
["<game>"]
["<timestamp>2016-09-18 04:00</timestamp>"]
["<playerRecord>"]
["<name>Mike</name>"]
["<number>10468</number>"]
["<teamRating>100</teamRating>"]
["<touchDowns>5</touchDowns>"]
["<badlyHurt>1</badlyHurt>"]
["</playerRecord>"]
["<playerRecord>"]
["<name>Player12</name>"]
["<number>15064</number>"]
["<teamRating>100</teamRating>"]
["<touchDowns>12</touchDowns>"]
["<badlyHurt>2</badlyHurt>"]
["</playerRecord>"]
["</game>"]
["<game>"]
["<timestamp>2016-09-18 05:00</timestamp>"]
["<playerRecord>"]
["<name>Player18</name>"]
["<number>7371</number>"]
["<teamRating>100</teamRating>"]
["<touchDowns>6</touchDowns>"]
["<badlyHurt>1</badlyHurt>"]
["</playerRecord>"]
["<playerRecord>"]
["<name>Player5</name>"]
["<number>12789</number>"]
["<teamRating>100</teamRating>"]
["<touchDowns>13</touchDowns>"]
["<badlyHurt>2</badlyHurt>"]
["</playerRecord>"]
["</game>"]
["<game>"]
["<timestamp>2016-09-18 05:00</timestamp>"]
["<playerRecord>"]
["<name>Player6</name>"]
["<number>18136</number>"]
["<teamRating>100</teamRating>"]
["<touchDowns>20</touchDowns>"]
["<badlyHurt>3</badlyHurt>"]
["</playerRecord>"]
["<playerRecord>"]
["<name>Player13</name>"]
["<number>6092</number>"]
["<teamRating>100</teamRating>"]
["<touchDowns>7</touchDowns>"]
["<badlyHurt>0</badlyHurt>"]
["</playerRecord>"]
["</game>"]
["<game>"]
["<timestamp>2016-09-18 05:00</timestamp>"]
["<playerRecord>"]
["<name>Alex</name>"]
["<number>16761</number>"]
["<teamRating>100</teamRating>"]
["<touchDowns>16</touchDowns>"]
["<badlyHurt>3</badlyHurt>"]
["</playerRecord>"]
["<playerRecord>"]
["<name>Player15</name>"]
["<number>7960</number>"]
["<teamRating>100</teamRating>"]
["<touchDowns>6</touchDowns>"]
["<badlyHurt>0</badlyHurt>"]
["</playerRecord>"]
["</game>"]
["<game>"]
["<timestamp>2016-09-18 05:00</timestamp>"]
["<playerRecord>"]
["<name>Player7</name>"]
["<number>9672</number>"]
["<teamRating>100</teamRating>"]
["<touchDowns>8</touchDowns>"]
["<badlyHurt>1</badlyHurt>"]
["</playerRecord>"]
["<playerRecord>"]
["<name>Player17</name>"]
["<number>7106</number>"]
["<teamRating>100</teamRating>"]
["<touchDowns>11</touchDowns>"]
["<badlyHurt>2</badlyHurt>"]
["</playerRecord>"]
["</game>"]
["<game>"]
["<timestamp>2016-09-18 05:00</timestamp>"]
["<playerRecord>"]
["<name>Player14</name>"]
["<number>9080</number>"]
["<teamRating>100</teamRating>"]
["<touchDowns>9</touchDowns>"]
["<badlyHurt>1</badlyHurt>"]
["</playerRecord>"]
["<playerRecord>"]
["<name>Player9</name>"]
["<number>14129</number>"]
["<teamRating>100</teamRating>"]
["<touchDowns>17</touchDowns>"]
["<badlyHurt>3</badlyHurt>"]
["</playerRecord>"]
["</game>"]
["<game>"]
["<timestamp>2016-09-18 05:00</timestamp>"]
["<playerRecord>"]
["<name>Linus</name>"]
["<number>15676</number>"]
["<teamRating>100</teamRating>"]
["<touchDowns>9</touchDowns>"]
["<badlyHurt>1</badlyHurt>"]
["</playerRecord>"]
["<playerRecord>"]
["<name>Player4</name>"]
["<number>9106</number>"]
["<teamRating>100</teamRating>"]
["<touchDowns>7</touchDowns>"]
["<badlyHurt>1</badlyHurt>"]
["</playerRecord>"]
["</game>"]
["<game>"]
["<timestamp>2016-09-18 05:00</timestamp>"]
["<playerRecord>"]
["<name>Player10</name>"]
["<number>1739</number>"]
["<teamRating>100</teamRating>"]
["<touchDowns>12</touchDowns>"]
["<badlyHurt>2</badlyHurt>"]
["</playerRecord>"]
["<playerRecord>"]
["<name>Player12</name>"]
["<number>15064</number>"]
["<teamRating>100</teamRating>"]
["<touchDowns>6</touchDowns>"]
["<badlyHurt>1</badlyHurt>"]
["</playerRecord>"]
["</game>"]
["<game>"]
["<timestamp>2016-09-18 05:00</timestamp>"]
["<playerRecord>"]
["<name>Player16</name>"]
["<number>15062</number>"]
["<teamRating>100</teamRating>"]
["<touchDowns>11</touchDowns>"]
["<badlyHurt>3</badlyHurt>"]
["</playerRecord>"]
["<playerRecord>"]
["<name>Player8</name>"]
["<number>4118</number>"]
["<teamRating>100</teamRating>"]
["<touchDowns>4</touchDowns>"]
["<badlyHurt>2</badlyHurt>"]
["</playerRecord>"]
["</game>"]
["<game>"]
["<timestamp>2016-09-18 05:00</timestamp>"]
["<playerRecord>"]
["<name>Mike</name>"]
["<number>10468</number>"]
["<teamRating>100</teamRating>"]
["<touchDowns>9</touchDowns>"]
["<badlyHurt>3</badlyHurt>"]
["</playerRecord>"]
["<playerRecord>"]
["<name>Player11</name>"]
["<number>19602</number>"]
["<teamRating>100</teamRating>"]
["<touchDowns>12</touchDowns>"]
["<badlyHurt>3</badlyHurt>"]
["</playerRecord>"]
["</game>"]
["</nafReport>"]

{"sheet":"Working","index":19,"n_rows":34,"n_cols":34,"rows_kept":34,"cut":false,"hidden":false,"merged":[]}
[null,null,null,null,null,null,null,null,null,null,null,null,null,null,null,null,null,null,null,null,null,null,null,null,null,"Latest Rd:",8]
[null,null,null,null,null,null,null,null,null,null,null,null,null,null,null,null,null,null,null,null,null,null,null,null,null,"Players:",{"$f":"COUNTA(Players!B:B)-1","v":128},null,null,null,"Max Score",{"$f":"Setup!B19*TeamSize*Setup!B19+Setup!B19","v":9}]
[null,null,null,null,null,null,null,null,null,null,null,null,null,null,null,null,null,null,null,null,null,null,null,null,null,"Display",14,"Columns"]
[null,null,null,null,null,null,null,null,null,null,null,null,null,null,null,null,null,null,null,null,null,null,null,null,null,"Enter",7,"Columns"]
[null,null,null,null,null,null,null,null,null,null,null,null,null,null,null,null,null,null,null,null,null,null,null,null,null,"Max random",3]
[null,null,null,null,null,null,null,null,null,null,null,null,null,null,null,null,null,null,null,null,null,null,null,null,null,"Number of Groups",{"$f":"COUNTA(Players!M:M)-1","v":16},null,null,null,"Group"]
[null,null,null,null,null,null,null,null,null,null,null,null,null,null,null,null,null,null,null,null,null,null,null,null,null,null,null,null,null,null,"Individual"]
[null,null,null,null,null,null,null,null,null,null,null,null,null,null,null,null,null,null,null,null,null,null,null,null,null,"Group display",18,"columns"]
[]
[null,null,null,null,null,null,null,null,null,null,null,null,null,null,null,null,null,null,null,null,null,null,null,null,null,null,null,null,"Cumulative"]
[null,null,null,null,null,null,null,null,null,null,null,null,null,null,null,null,null,null,null,null,null,null,null,null,null,null,"Amazons",null,null,null,null,null,"Entry Data"]
[null,null,null,null,null,null,null,null,null,null,null,null,null,null,null,null,null,null,null,null,null,null,null,null,null,null,"Chaos",null,null,null,"Initial Display Columns",null,"Player"]
[null,null,null,null,null,null,null,null,null,null,null,null,null,null,null,null,null,null,null,null,null,null,null,null,null,null,"Chaos Dwarves",null,null,null,"Player",null,"Points"]
[null,null,null,null,null,null,null,null,null,null,null,null,null,null,null,null,null,null,null,null,null,null,null,null,null,null,"Chaos Pact",null,null,null,"Points",null,"TD"]
[null,null,null,null,null,null,null,null,null,null,null,null,null,null,null,null,null,null,null,null,null,null,null,null,null,null,"Dark Elves",null,null,null,"TD For",null,"Cas"]
[null,null,null,null,null,null,null,null,null,null,null,null,null,null,null,null,null,null,null,null,null,null,null,null,null,null,"Dwarves",null,null,null,"Cas For",null,{"$f":"Setup!E3","v":"Bonus1"},"Bonus1 Name"]
[null,null,null,null,null,null,null,null,null,null,null,null,null,null,null,null,null,null,null,null,null,null,null,null,null,null,"Elves",null,null,null,{"$f":"Working!AG16","v":"Bonus1"},null,{"$f":"Setup!E4","v":"Bonus2"},"Bonus2 Name"]
[null,null,null,null,null,null,null,null,null,null,null,null,null,null,null,null,null,null,null,null,null,null,null,null,null,null,"Goblins",null,null,null,{"$f":"Working!AG17","v":"Bonus2"},null,"Group"]
[null,null,null,null,null,null,null,null,null,null,null,null,null,null,null,null,null,null,null,null,null,null,null,null,null,null,"Halflings",null,null,null,"TD Against"]
[null,null,null,null,null,null,null,null,null,null,null,null,null,null,null,null,null,null,null,null,null,null,null,null,null,null,"High Elves",null,null,null,"Cas Against"]
[null,null,null,null,null,null,null,null,null,null,null,null,null,null,null,null,null,null,null,null,null,null,null,null,null,null,"Humans",null,null,null,"TD Net"]
[null,null,null,null,null,null,null,null,null,null,null,null,null,null,null,null,null,null,null,null,null,null,null,null,null,null,"Khemri",null,null,null,"Cas Net"]
[null,null,null,null,null,null,null,null,null,null,null,null,null,null,null,null,null,null,null,null,null,null,null,null,null,null,"Lizardmen",null,null,null,"Wins"]
[null,null,null,null,null,null,null,null,null,null,null,null,null,null,null,null,null,null,null,null,null,null,null,null,null,null,"Necromantic",null,null,null,"Draws"]
[null,null,null,null,null,null,null,null,null,null,null,null,null,null,null,null,null,null,null,null,null,null,null,null,null,null,"Norse",null,null,null,"Losses"]
[null,null,null,null,null,null,null,null,null,null,null,null,null,null,null,null,null,null,null,null,null,null,null,null,null,null,"Nurgle's Rotters",null,null,null,"Opp Score"]
[null,null,null,null,null,null,null,null,null,null,null,null,null,null,null,null,null,null,null,null,null,null,null,null,null,null,"Ogres",null,null,null,"Group"]
[null,null,null,null,null,null,null,null,null,null,null,null,null,null,null,null,null,null,null,null,null,null,null,null,null,null,"Orc"]
[null,null,null,null,null,null,null,null,null,null,null,null,null,null,null,null,null,null,null,null,null,null,null,null,null,null,"Skaven"]
[null,null,null,null,null,null,null,null,null,null,null,null,null,null,null,null,null,null,null,null,null,null,null,null,null,null,"Slann"]
[null,null,null,null,null,null,null,null,null,null,null,null,null,null,null,null,null,null,null,null,null,null,null,null,null,null,"Undead"]
[null,null,null,null,null,null,null,null,null,null,null,null,null,null,null,null,null,null,null,null,null,null,null,null,null,null,"Underworld"]
[null,null,null,null,null,null,null,null,null,null,null,null,null,null,null,null,null,null,null,null,null,null,null,null,null,null,"Vampires"]
[null,null,null,null,null,null,null,null,null,null,null,null,null,null,null,null,null,null,null,null,null,null,null,null,null,null,"Wood Elves"]

{"sheet":"ChangeLog","index":20,"n_rows":29,"n_cols":4,"rows_kept":29,"cut":false,"hidden":false,"merged":[]}
[null,"This spreadsheet is based on one by Kaper on an Excel forum: http://www.excelforum.com/excel-programming-vba-macros/1105569-swiss-pairing-algorithm-in-excel-to-organize-a-chess-tournament.html"]
[null,"Massive thanks due to him!"]
[null,"The original was used for Chess, and it has been adapted to work for Blood Bowl by sann0638 (Mike Davies)"]
[]
["Version","Summary","Date","Notes"]
["1.0","Multi-sheet version of the chess","2016-06-19"]
[1.1000000000000001,"Remove Black and White stuff","2016-06-19"]
[1.2,"Change to TDs to generate points","2016-06-19"]
[null,"Got the Swiss working properly","2016-06-19","Published."]
[1.3,"More help information.","2016-06-20"]
[null,"Added Table","2016-06-20"]
[null,"Added Opponent Score","2016-06-20"]
[2.1,"Big overhaul to where info stored","2016-06-21"]
[2.2000000000000002,"Putting in the Score formula","2016-06-21","Published."]
[3.1,"Added all tiebreaker columns","2016-06-22"]
[null,"Realised opponent score was wrong, fixed it.","2016-06-22"]
[3.2,"Fixed problem with sorting the table.","2016-06-23","Published."]
[3.3,"Tiebreakers implemented","2016-06-24"]
[null,"NAF Upload file","2016-06-24","Published."]
[4.0999999999999996,"Group results and matrix added","2016-06-25"]
[null,"Group results fully implemented","2016-06-26"]
[4.2,"Fixed net casualties","2016-06-28"]
[4.3,"Tiebreakers corrected, yet again!","2016-09-17","Published."]
[4.4000000000000004,"Group results corrected, groups added to table","2016-09-17"]
[null,"Removed need for Groups to be in there, corrected number of players.","2016-09-18","Published."]
["5.0","Mostly working Group Swiss","2016-09-21"]
[5.0999999999999996,"Working Group Swiss.","2016-09-21","Published."]
[5.2,"Fixed problem with more than 100 coaches.","2016-09-25"]
[null,"Tidied up tabs.","2016-09-25","Published."]